Workbook

Sheet п.1Костр.1а
B2: I. ТЕХНИЧЕСКАЯ ХАРАКТЕРИСТИКА ДОМА № 1А по пер. 1-й Косторомской | J2: Год постройки - 1913 | R2: Отчетный | S2: АДС
J3: Дата начала управления 01.01.2012г. | R3: период | S3: план | T3: факт
J4: Кадастровый номер - 42:20:0101011 | R4: 2016г. | S4: руб. | T4: руб.
B5: ОБОРУДОВАН: | R5: январь
B6: 1.Водопровод - от центральной сети | S6: =L22 -> 23.12
R7: февраль
S8: =S6 -> 23.12
A9: Мате- | B9: Кол-во | C9: Кол-во | D9: площадь дома в м2 | G9: объём | H9: % | I9: Кровля | R9: март
A10: риал | B10: этажей | C10: квартир | D10: общая | E10: жилая | F10: не- | G10: здания | H10: износа | I10: материал | J10: S,м2 | S10: =S8 -> 23.12
A11: стен | B11: шт. | C11: шт. | F11: жилая | R11: аперль
D12: м2 | E12: м2 | G12: м3 | S12: =S10 -> 23.12
A13: Дерево | B13: 1 | C13: 4 | D13: 136 | E13: 83.2 | F13: 0 | G13: 494 | I13: шиферная | J13: 207 | R13: май
S14: =S12 -> 23.12
R15: июнь
B16: II. РАСЧЁТ НАЧИСЛЕНИЙ И ЗАТРАТ | S16: =S14 -> 23.12
R17: июль
C18: Нач-ие содержания МОП | E18: Затраты на УК | G18: Затраты на сод.дома | I18: Постоянные затраты | M18: Выполнение тек.ремонта | S18: =L22 -> 23.12
A19: Площадь,м2 | C19: Тариф | D19: Плановое | E19: Тариф | F19: Плановое | G19: Тариф | H19: Плановое | I19: Вывоз ТКО | J19: Плановое | K19: Вызов АДС | L19: Плановое | M19: Тариф | N19: Плановое | R19: август
D20: нач-ние | F20: нач-ние | H20: нач-ние | I20: Тариф | J20: нач-ние | K20: Тариф | L20: нач-ние | N20: нач-ние | S20: =S18 -> 23.12
R21: сентябрь
A22: S жилая | B22: 136 | C22: 8.14 | D22: =B22*C22 -> 1107.04 | E22: 1.39 | F22: =B22*E22 -> 189.04 | G22: =C22-E22 -> 6.75 | H22: =B22*G22 -> 918 | I22: 1.16 | J22: =B22*I22 -> 157.76 | K22: 0.17 | L22: =B22*K22 -> 23.12 | M22: =G22-I22-K22 -> 5.42 | N22: =B22*M22 -> 737.12 | S22: =S20 -> 23.12
A23: Аренда | B23: 0 | F23: =E22/C22 -> 0.1707616708 | R23: октябрь
S24: =S22 -> 23.12
R25: ноябрь
S26: =S24 -> 23.12
R27: декабрь
A28: Отчёт за 2016 год | S28: =S26 -> 23.12
A29: по содержанию и текущему ремонту мест общего пользования жилого дома № 1а по пер. 1 Костромскому | R29: Итого: | S29: =SUM(S6:S28) -> 277.44 | T29: =SUM(T6:T28) -> 0
B30: ДОХОДЫ | D30: РАСХОДЫ | H30: ВЫПОЛНЕНО РАБОТ | M30: остаток + | T30: =T29-S29 -> -277.44
B31: Начислено | C31: Оплачено | D31: Вывоз ТКО | E31: Вызов АДС | F31: Средства на т.рем. | M31: перерасход -
B32: факт | C32: факт | F32: от нач-ия | G32: от оплаты | H32: Виды работ | L32: сумма | M32: от нач-ия | N32: от оплаты
A33: январь | B33: 1107.04 | C33: 0 | H33: санитарно-технические работы
A34: затраты УК | B34: =B33*$F$23 -> 189.04 | C34: =C33*$F$23 -> 0 | H34: строительные работы
H35: электромонтажные работы
A36: З-ты на сод.МОП | B36: =B33-B34 -> 918 | C36: =C33-C34 -> 0 | D36: =J22 -> 157.76 | E36: =L22 -> 23.12 | F36: =B36-D36-$E$36 -> 737.12 | G36: =C36-D36-$E$36 -> -180.88 | L36: =SUM(L33:L35) -> 0 | M36: =F36-L36 -> 737.12 | N36: =G36-L36 -> -180.88
A37: февраль | B37: 1107.04 | C37: 1934.54 | H37: санитарно-технические работы
A38: затраты УК | B38: =B37*$F$23 -> 189.04 | C38: =C37*$F$23 -> 330.3452826 | H38: строительные работы | L38: =6780+380 -> 7160
H39: электромонтажные работы
A40: З-ты на сод.МОП | B40: =B37-B38 -> 918 | C40: =C37-C38 -> 1604.194717 | D40: =D36 -> 157.76 | E40: =E36 -> 23.12 | F40: =B40-D40-E40 -> 737.12 | G40: =C40-D40-E40 -> 1423.314717 | L40: =SUM(L37:L39) -> 7160 | M40: =F40-L40 -> -6422.88 | N40: =G40-L40 -> -5736.685283
A41: март | B41: 1107.04 | C41: 944.93 | H41: санитарно-технические работы
A42: затраты УК | B42: =B41*$F$23 -> 189.04 | C42: =C41*$F$23 -> 161.3578256 | H42: строительные работы
H43: электромонтажные работы
A44: З-ты на сод.МОП | B44: =B41-B42 -> 918 | C44: 783.5721744 | D44: =D40 -> 157.76 | E44: =E40 -> 23.12 | F44: =B44-D44-E44 -> 737.12 | G44: =C44-D44-E44 -> 602.6921744 | L44: =SUM(L41:L43) -> 0 | M44: =F44-L44 -> 737.12 | N44: =G44-L44 -> 602.6921744
A45: апрель | B45: 1107.04 | C45: 0 | H45: санитарно-технические работы
A46: затраты УК | B46: =B45*$F$23 -> 189.04 | C46: =C45*$F$23 -> 0 | H46: строительные работы
H47: электромонтажные работы
A48: З-ты на сод.МОП | B48: =B45-B46 -> 918 | C48: 0 | D48: =D44 -> 157.76 | E48: =E44 -> 23.12 | F48: =B48-D48-E48 -> 737.12 | G48: =C48-D48-E48 -> -180.88 | L48: =SUM(L45:L46) -> 0 | M48: =F48-L48 -> 737.12 | N48: =G48-L48 -> -180.88
A49: май | B49: 0 | C49: 0 | H49: санитарно-технические работы
A50: затраты УК | B50: =B49*$F$23 -> 0 | C50: =C49*$F$23 -> 0 | H50: строительные работы
H51: электромонтажные работы
A52: З-ты на сод.МОП | B52: =B49-B50 -> 0 | C52: 0 | D52: 0 | E52: 0 | F52: =B52-D52-E52 -> 0 | G52: =C52-D52-E52 -> 0 | L52: =SUM(L49:L50) -> 0 | M52: =F52-L52 -> 0 | N52: =G52-L52 -> 0
A53: июнь | B53: 0 | C53: 0 | H53: санитарно-технические работы
A54: затраты УК | B54: =B53*$F$23 -> 0 | C54: =C53*$F$23 -> 0 | H54: строительные работы
H55: электромонтажные работы
A56: З-ты на сод.МОП | B56: =B53-B54 -> 0 | C56: 0 | D56: 0 | E56: 0 | F56: =B56-D56-E56 -> 0 | G56: =C56-D56-E56 -> 0 | L56: =SUM(L53:L54) -> 0 | M56: =F56-L56 -> 0 | N56: =G56-L56 -> 0
A57: июль | B57: 0 | C57: 0 | H57: санитарно-технические работы
A58: затраты УК | B58: =B57*$F$23 -> 0 | C58: =C57*$F$23 -> 0 | H58: строительные работы
H59: электромонтажные работы
A60: З-ты на сод.МОП | B60: =B57-B58 -> 0 | C60: 0 | D60: 0 | E60: 0 | F60: =B60-D60-E60 -> 0 | G60: =C60-D60-E60 -> 0 | L60: =SUM(L57:L58) -> 0 | M60: =F60-L60 -> 0 | N60: =G60-L60 -> 0
A61: август | B61: 0 | C61: 0 | H61: санитарно-технические работы
A62: затраты УК | B62: =B61*$F$23 -> 0 | C62: =C61*$F$23 -> 0 | H62: строительные работы
H63: электромонтажные работы
A64: З-ты на сод.МОП | B64: =B61-B62 -> 0 | C64: 0 | D64: 0 | E64: 0 | F64: =B64-D64-E64 -> 0 | G64: =C64-D64-E64 -> 0 | L64: =SUM(L61:L62) -> 0 | M64: =F64-L64 -> 0 | N64: =G64-L64 -> 0
A65: сентябрь | B65: 0 | C65: 0 | H65: санитарно-технические работы
A66: затраты УК | B66: =B65*$F$23 -> 0 | C66: =C65*$F$23 -> 0 | H66: строительные работы
H67: электромонтажные работы
A68: З-ты на сод.МОП | B68: =B65-B66 -> 0 | C68: 0 | D68: 0 | E68: 0 | F68: =B68-D68-E68 -> 0 | G68: =C68-D68-E68 -> 0 | L68: =SUM(L65:L66) -> 0 | M68: =F68-L68 -> 0 | N68: =G68-L68 -> 0
A69: октябрь | B69: 0 | C69: 0 | H69: санитарно-технические работы
A70: затраты УК | B70: =B69*$F$23 -> 0 | C70: =C69*$F$23 -> 0 | H70: строительные работы
H71: электромонтажные работы
A72: З-ты на сод.МОП | B72: =B69-B70 -> 0 | C72: 0 | D72: 0 | E72: 0 | F72: =B72-D72-E72 -> 0 | G72: =C72-D72-E72 -> 0 | L72: =SUM(L69:L70) -> 0 | M72: =F72-L72 -> 0 | N72: =G72-L72 -> 0
A73: ноябрь | B73: 0 | C73: 0 | H73: санитарно-технические работы
A74: затраты УК | B74: =B73*$F$23 -> 0 | C74: =C73*$F$23 -> 0 | H74: строительные работы
H75: электромонтажные работы
A76: З-ты на сод.МОП | B76: =B73-B74 -> 0 | C76: 0 | D76: 0 | E76: 0 | F76: =B76-D76-E76 -> 0 | G76: =C76-D76-E76 -> 0 | L76: =SUM(L73:L74) -> 0 | M76: =F76-L76 -> 0 | N76: =G76-L76 -> 0
A77: декабрь | B77: 0 | C77: 0 | H77: санитарно-технические работы
A78: затраты УК | B78: =B77*$F$23 -> 0 | C78: =C77*$F$23 -> 0 | H78: строительные работы
H79: электромонтажные работы
A80: З-ты на сод.МОП | B80: =B77-B78 -> 0 | C80: 0 | D80: 0 | E80: 0 | F80: =B80-D80-E80 -> 0 | G80: =C80-D80-E80 -> 0 | L80: =SUM(L77:L79) -> 0 | M80: =F80-L80 -> 0 | N80: =G80-L80 -> 0
H81: Остаток 2016 года | L81: =L36+L40+L44+L48+L52+L56+L60+L64+L68+L72+L76+L80 -> 7160 | M81: =M36+M40+M44+M48+M52+M56+M60+M64+M68+M72+M76+M80 -> -4211.52 | N81: =N36+N40+N44+N48+N52+N56+N60+N64+N68+N72+N76+N80 -> -5495.753108
H82: Остаток 2015 года | M82: 14628 | N82: 9027
A83: ВСЕГО | B83: =B36+B40+B44+B48+B52+B56+B60+B64+B68+B72+B76+B80 -> 3672 | C83: =C36+C40+C44+C48+C52+C56+C60+C64+C68+C72+C76+C80 -> 2387.766892 | D83: 631.04 | E83: 92.48 | F83: 2948.48 | G83: 1664.246892 | H83: Всего остаток | M83: =M81+M82 -> 10416.48 | N83: =N81+N82 -> 3531.246892
A86: февраль
B87: Наименование работ | G87: Ед. | H87: Коли- | I87: Сумма
G88: измерен. | H88: чество
A89: Строительные работы
A90: Очистка кровли от снега ( толщина слоя 60 см ) | G90: м2 | H90: 207 | I90: 6780
A91: Работа УАЗ | G91: м/ч | H91: 0.5 | I91: 380
F92: Итого: | I92: =SUM(I90:I91) -> 7160

Sheet п.1Нефт.3
B2: I. ТЕХНИЧЕСКАЯ ХАРАКТЕРИСТИКА ДОМА № 3 по пер. 1-й Нефтянников | J2: Год постройки - 1967 | Q2: Отчетный | R2: АДС
J3: Дата начала управления 01.01.2012г. | Q3: период | R3: план | S3: факт
J4: Кадастровый номер - 42:20:0101013 | Q4: 2016г. | R4: руб. | S4: руб.
B5: ОБОРУДОВАН: | Q5: январь
B6: 1.Водопровод - от центральной сети | R6: =L22 -> 19.482
Q7: февраль
A8: Мате- | B8: Кол-во | C8: Кол-во | D8: площадь дома в м2 | G8: объём | H8: % | I8: Кровля | R8: =R6 -> 19.482
A9: риал | B9: этажей | C9: квартир | D9: общая | E9: жилая | F9: не- | G9: здания | H9: износа | I9: материал | J9: S,м2 | Q9: март
A10: стен | B10: шт. | C10: шт. | F10: жилая | R10: =R8 -> 19.482
D11: м2 | E11: м2 | G11: м3 | Q11: аперль
A12: Дерево | B12: 1 | C12: 3 | D12: 114.6 | E12: 81.1 | F12: 0 | G12: 411 | I12: шиферная | J12: 177 | R12: =R10 -> 19.482
Q13: май
R14: =R12 -> 19.482
Q15: июнь
B16: II. РАСЧЁТ НАЧИСЛЕНИЙ И ЗАТРАТ | R16: =R14 -> 19.482
Q17: июль
C18: Нач-ие содержания МОП | E18: Затраты на УК | G18: Затраты на сод.дома | I18: Постоянные затраты | M18: Выполнение тек.ремонта | R18: =L22 -> 19.482
A19: Площадь,м2 | C19: Тариф | D19: Плановое | E19: Тариф | F19: Плановое | G19: Тариф | H19: Плановое | I19: Вывоз ТКО | J19: Плановое | K19: Вызов АДС | L19: Плановое | M19: Тариф | N19: Плановое | Q19: август
D20: нач-ние | F20: нач-ние | H20: нач-ние | I20: Тариф | J20: нач-ние | K20: Тариф | L20: нач-ние | N20: нач-ние | R20: =R18 -> 19.482
Q21: сентябрь
A22: S жилая | B22: 114.6 | C22: 8.14 | D22: =B22*C22 -> 932.844 | E22: 1.39 | F22: =B22*E22 -> 159.294 | G22: =C22-E22 -> 6.75 | H22: =B22*G22 -> 773.55 | I22: 1.16 | J22: =B22*I22 -> 132.936 | K22: 0.17 | L22: =B22*K22 -> 19.482 | M22: =G22-I22-K22 -> 5.42 | N22: =B22*M22 -> 621.132 | R22: =R20 -> 19.482
A23: Аренда | B23: 0 | F23: =E22/C22 -> 0.1707616708 | Q23: октябрь
R24: =R22 -> 19.482
Q25: ноябрь
R26: =R24 -> 19.482
Q27: декабрь
A28: Отчёт за 2016 год | R28: =R26 -> 19.482
A29: по содержанию и текущему ремонту мест общего пользования жилого дома № 3 по пер. 1 Нефтянников | Q29: Итого: | R29: =SUM(R6:R28) -> 233.784 | S29: =SUM(S6:S28) -> 0
B30: ДОХОДЫ | D30: РАСХОДЫ | H30: ВЫПОЛНЕНО РАБОТ | M30: остаток + | S30: =S29-R29 -> -233.784
B31: Начислено | C31: Оплачено | D31: Вывоз ТКО | E31: Вызов АДС | F31: Средства на т.рем. | M31: перерасход -
B32: факт | C32: факт | F32: от нач-ия | G32: от оплаты | H32: Виды работ | L32: сумма | M32: от нач-ия | N32: от оплаты
A33: январь | B33: 932.84 | C33: 724.83 | H33: санитарно-технические работы
A34: затраты УК | B34: =B33*$F$23 -> 159.293317 | C34: =C33*$F$23 -> 123.7731818 | H34: строительные работы
H35: электромонтажные работы
A36: З-ты на сод.МОП | B36: =B33-B34 -> 773.546683 | C36: =C33-C34 -> 601.0568182 | D36: =J22 -> 132.936 | E36: =L22 -> 19.482 | F36: =B36-D36-$E$36 -> 621.128683 | G36: =C36-D36-$E$36 -> 448.6388182 | L36: =SUM(L33:L35) -> 0 | M36: =F36-L36 -> 621.128683 | N36: =G36-L36 -> 448.6388182
A37: февраль | B37: 932.84 | C37: 244.11 | H37: санитарно-технические работы
A38: затраты УК | B38: =B37*$F$23 -> 159.293317 | C38: =C37*$F$23 -> 41.68463145 | H38: строительные работы
H39: электромонтажные работы
A40: З-ты на сод.МОП | B40: =B37-B38 -> 773.546683 | C40: =C37-C38 -> 202.4253686 | D40: =D36 -> 132.936 | E40: =E36 -> 19.482 | F40: =B40-D40-E40 -> 621.128683 | G40: =C40-D40-E40 -> 50.00736855 | L40: =SUM(L37:L39) -> 0 | M40: =F40-L40 -> 621.128683 | N40: =G40-L40 -> 50.00736855
A41: март | B41: 932.84 | C41: 442.82 | H41: санитарно-технические работы
A42: затраты УК | B42: =B41*$F$23 -> 159.293317 | C42: =C41*$F$23 -> 75.61668305 | H42: строительные работы
H43: электромонтажные работы
A44: З-ты на сод.МОП | B44: =B41-B42 -> 773.546683 | C44: 367.203317 | D44: =D40 -> 132.936 | E44: =E40 -> 19.482 | F44: =B44-D44-E44 -> 621.128683 | G44: =C44-D44-E44 -> 214.785317 | L44: =SUM(L41:L43) -> 0 | M44: =F44-L44 -> 621.128683 | N44: =G44-L44 -> 214.785317
A45: апрель | B45: 932.84 | C45: 687.21 | H45: санитарно-технические работы
A46: затраты УК | B46: =B45*$F$23 -> 159.293317 | C46: =C45*$F$23 -> 117.3491278 | H46: строительные работы
H47: электромонтажные работы | L47: 785
A48: З-ты на сод.МОП | B48: =B45-B46 -> 773.546683 | C48: 569.8608722 | D48: =D44 -> 132.936 | E48: =E44 -> 19.482 | F48: =B48-D48-E48 -> 621.128683 | G48: =C48-D48-E48 -> 417.4428722 | L48: =SUM(L45:L47) -> 785 | M48: =F48-L48 -> -163.871317 | N48: =G48-L48 -> -367.5571278
A49: май | B49: 0 | C49: 0 | H49: санитарно-технические работы
A50: затраты УК | B50: =B49*$F$23 -> 0 | C50: =C49*$F$23 -> 0 | H50: строительные работы
H51: электромонтажные работы
A52: З-ты на сод.МОП | B52: =B49-B50 -> 0 | C52: 0 | D52: 0 | E52: 0 | F52: =B52-D52-E52 -> 0 | G52: =C52-D52-E52 -> 0 | L52: =SUM(L49:L50) -> 0 | M52: =F52-L52 -> 0 | N52: =G52-L52 -> 0
A53: июнь | B53: 0 | C53: 0 | H53: санитарно-технические работы
A54: затраты УК | B54: =B53*$F$23 -> 0 | C54: =C53*$F$23 -> 0 | H54: строительные работы
H55: электромонтажные работы
A56: З-ты на сод.МОП | B56: =B53-B54 -> 0 | C56: 0 | D56: 0 | E56: 0 | F56: =B56-D56-E56 -> 0 | G56: =C56-D56-E56 -> 0 | L56: =SUM(L53:L54) -> 0 | M56: =F56-L56 -> 0 | N56: =G56-L56 -> 0
A57: июль | B57: 0 | C57: 0 | H57: санитарно-технические работы
A58: затраты УК | B58: =B57*$F$23 -> 0 | C58: =C57*$F$23 -> 0 | H58: строительные работы
H59: электромонтажные работы
A60: З-ты на сод.МОП | B60: =B57-B58 -> 0 | C60: 0 | D60: 0 | E60: 0 | F60: =B60-D60-E60 -> 0 | G60: =C60-D60-E60 -> 0 | L60: =SUM(L57:L58) -> 0 | M60: =F60-L60 -> 0 | N60: =G60-L60 -> 0
A61: август | B61: 0 | C61: 0 | H61: санитарно-технические работы
A62: затраты УК | B62: =B61*$F$23 -> 0 | C62: =C61*$F$23 -> 0 | H62: строительные работы
H63: электромонтажные работы
A64: З-ты на сод.МОП | B64: =B61-B62 -> 0 | C64: 0 | D64: 0 | E64: 0 | F64: =B64-D64-E64 -> 0 | G64: =C64-D64-E64 -> 0 | L64: =SUM(L61:L62) -> 0 | M64: =F64-L64 -> 0 | N64: =G64-L64 -> 0
A65: сентябрь | B65: 0 | C65: 0 | H65: санитарно-технические работы
A66: затраты УК | B66: =B65*$F$23 -> 0 | C66: =C65*$F$23 -> 0 | H66: строительные работы
H67: электромонтажные работы
A68: З-ты на сод.МОП | B68: =B65-B66 -> 0 | C68: 0 | D68: 0 | E68: 0 | F68: =B68-D68-E68 -> 0 | G68: =C68-D68-E68 -> 0 | L68: =SUM(L65:L66) -> 0 | M68: =F68-L68 -> 0 | N68: =G68-L68 -> 0
A69: октябрь | B69: 0 | C69: 0 | H69: санитарно-технические работы
A70: затраты УК | B70: =B69*$F$23 -> 0 | C70: =C69*$F$23 -> 0 | H70: строительные работы
H71: электромонтажные работы
A72: З-ты на сод.МОП | B72: =B69-B70 -> 0 | C72: 0 | D72: 0 | E72: 0 | F72: =B72-D72-E72 -> 0 | G72: =C72-D72-E72 -> 0 | L72: =SUM(L69:L70) -> 0 | M72: =F72-L72 -> 0 | N72: =G72-L72 -> 0
A73: ноябрь | B73: 0 | C73: 0 | H73: санитарно-технические работы
A74: затраты УК | B74: =B73*$F$23 -> 0 | C74: =C73*$F$23 -> 0 | H74: строительные работы
H75: электромонтажные работы
A76: З-ты на сод.МОП | B76: =B73-B74 -> 0 | C76: 0 | D76: 0 | E76: 0 | F76: =B76-D76-E76 -> 0 | G76: =C76-D76-E76 -> 0 | L76: =SUM(L73:L74) -> 0 | M76: =F76-L76 -> 0 | N76: =G76-L76 -> 0
A77: декабрь | B77: 0 | C77: 0 | H77: санитарно-технические работы
A78: затраты УК | B78: =B77*$F$23 -> 0 | C78: =C77*$F$23 -> 0 | H78: строительные работы
H79: электромонтажные работы
A80: З-ты на сод.МОП | B80: =B77-B78 -> 0 | C80: 0 | D80: 0 | E80: 0 | F80: =B80-D80-E80 -> 0 | G80: =C80-D80-E80 -> 0 | L80: =SUM(L77:L79) -> 0 | M80: =F80-L80 -> 0 | N80: =G80-L80 -> 0
H81: Остаток 2016 года | L81: =L36+L40+L44+L48+L52+L56+L60+L64+L68+L72+L76+L80 -> 785 | M81: =M36+M40+M44+M48+M52+M56+M60+M64+M68+M72+M76+M80 -> 1699.514732 | N81: =N36+N40+N44+N48+N52+N56+N60+N64+N68+N72+N76+N80 -> 345.8743759
H82: Остаток 2015 года | M82: 10512 | N82: 4651
A83: ВСЕГО | B83: =B36+B40+B44+B48+B52+B56+B60+B64+B68+B72+B76+B80 -> 3094.186732 | C83: =C36+C40+C44+C48+C52+C56+C60+C64+C68+C72+C76+C80 -> 1740.546376 | D83: 531.744 | E83: 77.928 | F83: 2484.514732 | G83: 1130.874376 | H83: Всего остаток | M83: =M81+M82 -> 12211.51473 | N83: =N81+N82 -> 4996.874376
A85: апрель
A86: № | C86: Наименование работ | H86: Ед. | I86: Коли- | J86: Сумма
A87: п/п | H87: измерен. | I87: чество
B88: Электромонтажные работы
A89: 1 | B89: Смена автоматов, кв. № 3 | H89: шт. | I89: 2 | J89: 785
B90: Итого: | J90: =SUM(J88:J89) -> 785

Sheet п.1Нефт.5
A2: I. ТЕХНИЧЕСКАЯ ХАРАКТЕРИСТИКА ДОМА № 5 по пер. 1-й Нефтянников | I2: Год постройки - 1967 | Q2: Отчетный | R2: АДС
I3: Дата начала управления 01.01.2012г. | Q3: период | R3: план | S3: факт
I4: Кадастровый номер - 42:20:0101013 | Q4: 2016г. | R4: руб. | S4: руб.
A5: ОБОРУДОВАН: | Q5: январь
A6: 1.Водопровод - от центральной сети | R6: =L22 -> 21.709
Q7: февраль
A8: Мате- | B8: Кол-во | C8: Кол-во | D8: площадь дома в м2 | G8: объём | H8: % | I8: Кровля | R8: =R6 -> 21.709
A9: риал | B9: этажей | C9: квартир | D9: общая | E9: жилая | F9: не- | G9: здания | H9: износа | I9: материал | J9: S,м2 | Q9: март
A10: стен | B10: шт. | C10: шт. | F10: жилая | R10: =R8 -> 21.709
D11: м2 | E11: м2 | G11: м3 | Q11: аперль
A12: Дерево | B12: 1 | C12: 4 | D12: 127.7 | E12: 79.1 | F12: 0 | G12: 452 | I12: шиферная | J12: 195 | R12: =R10 -> 21.709
Q13: май
R14: =R12 -> 21.709
Q15: июнь
B16: II. РАСЧЁТ НАЧИСЛЕНИЙ И ЗАТРАТ | R16: =R14 -> 21.709
Q17: июль
C18: Нач-ие содержания МОП | E18: Затраты на УК | G18: Затраты на сод.дома | I18: Постоянные затраты | M18: Выполнение тек.ремонта | R18: =L22 -> 21.709
A19: Площадь,м2 | C19: Тариф | D19: Плановое | E19: Тариф | F19: Плановое | G19: Тариф | H19: Плановое | I19: Вывоз ТБО | J19: Плановое | K19: Вызов АДС | L19: Плановое | M19: Тариф | N19: Плановое | Q19: август
D20: нач-ние | F20: нач-ние | H20: нач-ние | I20: Тариф | J20: нач-ние | K20: Тариф | L20: нач-ние | N20: нач-ние | R20: =R18 -> 21.709
Q21: сентябрь
A22: S жилая | B22: 127.7 | C22: 8.14 | D22: =B22*C22 -> 1039.478 | E22: 1.39 | F22: =B22*E22 -> 177.503 | G22: =C22-E22 -> 6.75 | H22: =B22*G22 -> 861.975 | I22: 1.16 | J22: =B22*I22 -> 148.132 | K22: 0.17 | L22: =B22*K22 -> 21.709 | M22: =G22-I22-K22 -> 5.42 | N22: =B22*M22 -> 692.134 | R22: =R20 -> 21.709
A23: Аренда | B23: 0 | F23: =E22/C22 -> 0.1707616708 | Q23: октябрь
R24: =R22 -> 21.709
Q25: ноябрь
R26: =R24 -> 21.709
Q27: декабрь
A28: Отчёт за 2016 год | R28: =R26 -> 21.709
A29: по содержанию и текущему ремонту мест общего пользования жилого дома № 5 по пер. 1 Нефтянников | Q29: Итого: | R29: =SUM(R6:R28) -> 260.508 | S29: =SUM(S6:S28) -> 0
B30: ДОХОДЫ | D30: РАСХОДЫ | H30: ВЫПОЛНЕНО РАБОТ | M30: остаток + | S30: =S29-R29 -> -260.508
B31: Начислено | C31: Оплачено | D31: Вывоз ТКО | E31: Вызов АДС | F31: Средства на т.рем. | M31: перерасход -
B32: факт | C32: факт | F32: от нач-ия | G32: от оплаты | H32: Виды работ | L32: сумма | M32: от нач-ия | N32: от оплаты
A33: январь | B33: 1039.48 | C33: 234.02 | H33: санитарно-технические работы
A34: затраты УК | B34: =B33*$F$23 -> 177.5033415 | C34: =C33*$F$23 -> 39.96164619 | H34: строительные работы
H35: электромонтажные работы
A36: З-ты на сод.МОП | B36: =B33-B34 -> 861.9766585 | C36: =C33-C34 -> 194.0583538 | D36: =J22 -> 148.132 | E36: =L22 -> 21.709 | F36: =B36-D36-$E$36 -> 692.1356585 | G36: =C36-D36-$E$36 -> 24.21735381 | L36: =SUM(L33:L35) -> 0 | M36: =F36-L36 -> 692.1356585 | N36: =G36-L36 -> 24.21735381
A37: февраль | B37: 1039.48 | C37: 233.2 | H37: санитарно-технические работы
A38: затраты УК | B38: =B37*$F$23 -> 177.5033415 | C38: =C37*$F$23 -> 39.82162162 | H38: строительные работы
H39: электромонтажные работы
A40: З-ты на сод.МОП | B40: =B37-B38 -> 861.9766585 | C40: =C37-C38 -> 193.3783784 | D40: =D36 -> 148.132 | E40: =E36 -> 21.709 | F40: =B40-D40-E40 -> 692.1356585 | G40: =C40-D40-E40 -> 23.53737838 | L40: =SUM(L37:L39) -> 0 | M40: =F40-L40 -> 692.1356585 | N40: =G40-L40 -> 23.53737838
A41: март | B41: 1039.48 | C41: 858.8 | H41: санитарно-технические работы
A42: затраты УК | B42: =B41*$F$23 -> 177.5033415 | C42: =C41*$F$23 -> 146.6501229 | H42: строительные работы
H43: электромонтажные работы
A44: З-ты на сод.МОП | B44: =B41-B42 -> 861.9766585 | C44: 712.1498771 | D44: =D40 -> 148.132 | E44: =E40 -> 21.709 | F44: =B44-D44-E44 -> 692.1356585 | G44: =C44-D44-E44 -> 542.3088771 | L44: =SUM(L41:L43) -> 0 | M44: =F44-L44 -> 692.1356585 | N44: =G44-L44 -> 542.3088771
A45: апрель | B45: 1039.48 | C45: 233.2 | H45: санитарно-технические работы
A46: затраты УК | B46: =B45*$F$23 -> 177.5033415 | C46: =C45*$F$23 -> 39.82162162 | H46: строительные работы
H47: электромонтажные работы
A48: З-ты на сод.МОП | B48: =B45-B46 -> 861.9766585 | C48: 193.3783784 | D48: =D44 -> 148.132 | E48: =E44 -> 21.709 | F48: =B48-D48-E48 -> 692.1356585 | G48: =C48-D48-E48 -> 23.53737838 | L48: =SUM(L45:L46) -> 0 | M48: =F48-L48 -> 692.1356585 | N48: =G48-L48 -> 23.53737838
A49: май | B49: 0 | C49: 0 | H49: санитарно-технические работы
A50: затраты УК | B50: =B49*$F$23 -> 0 | C50: =C49*$F$23 -> 0 | H50: строительные работы
H51: электромонтажные работы
A52: З-ты на сод.МОП | B52: =B49-B50 -> 0 | C52: 0 | D52: 0 | E52: 0 | F52: =B52-D52-E52 -> 0 | G52: =C52-D52-E52 -> 0 | L52: =SUM(L49:L50) -> 0 | M52: =F52-L52 -> 0 | N52: =G52-L52 -> 0
A53: июнь | B53: 0 | C53: 0 | H53: санитарно-технические работы
A54: затраты УК | B54: =B53*$F$23 -> 0 | C54: =C53*$F$23 -> 0 | H54: строительные работы
H55: электромонтажные работы
A56: З-ты на сод.МОП | B56: =B53-B54 -> 0 | C56: 0 | D56: 0 | E56: 0 | F56: =B56-D56-E56 -> 0 | G56: =C56-D56-E56 -> 0 | L56: =SUM(L53:L54) -> 0 | M56: =F56-L56 -> 0 | N56: =G56-L56 -> 0
A57: июль | B57: 0 | C57: 0 | H57: санитарно-технические работы
A58: затраты УК | B58: =B57*$F$23 -> 0 | C58: =C57*$F$23 -> 0 | H58: строительные работы
H59: электромонтажные работы
A60: З-ты на сод.МОП | B60: =B57-B58 -> 0 | C60: 0 | D60: 0 | E60: 0 | F60: =B60-D60-E60 -> 0 | G60: =C60-D60-E60 -> 0 | L60: =SUM(L57:L58) -> 0 | M60: =F60-L60 -> 0 | N60: =G60-L60 -> 0
A61: август | B61: 0 | C61: 0 | H61: санитарно-технические работы
A62: затраты УК | B62: =B61*$F$23 -> 0 | C62: =C61*$F$23 -> 0 | H62: строительные работы
H63: электромонтажные работы
A64: З-ты на сод.МОП | B64: =B61-B62 -> 0 | C64: 0 | D64: 0 | E64: 0 | F64: =B64-D64-E64 -> 0 | G64: =C64-D64-E64 -> 0 | L64: =SUM(L61:L62) -> 0 | M64: =F64-L64 -> 0 | N64: =G64-L64 -> 0
A65: сентябрь | B65: 0 | C65: 0 | H65: санитарно-технические работы
A66: затраты УК | B66: =B65*$F$23 -> 0 | C66: =C65*$F$23 -> 0 | H66: строительные работы
H67: электромонтажные работы
A68: З-ты на сод.МОП | B68: =B65-B66 -> 0 | C68: 0 | D68: 0 | E68: 0 | F68: =B68-D68-E68 -> 0 | G68: =C68-D68-E68 -> 0 | L68: =SUM(L65:L66) -> 0 | M68: =F68-L68 -> 0 | N68: =G68-L68 -> 0
A69: октябрь | B69: 0 | C69: 0 | H69: санитарно-технические работы
A70: затраты УК | B70: =B69*$F$23 -> 0 | C70: =C69*$F$23 -> 0 | H70: строительные работы
H71: электромонтажные работы
A72: З-ты на сод.МОП | B72: =B69-B70 -> 0 | C72: 0 | D72: 0 | E72: 0 | F72: =B72-D72-E72 -> 0 | G72: =C72-D72-E72 -> 0 | L72: =SUM(L69:L70) -> 0 | M72: =F72-L72 -> 0 | N72: =G72-L72 -> 0
A73: ноябрь | B73: 0 | C73: 0 | H73: санитарно-технические работы
A74: затраты УК | B74: =B73*$F$23 -> 0 | C74: =C73*$F$23 -> 0 | H74: строительные работы
H75: электромонтажные работы
A76: З-ты на сод.МОП | B76: =B73-B74 -> 0 | C76: 0 | D76: 0 | E76: 0 | F76: =B76-D76-E76 -> 0 | G76: =C76-D76-E76 -> 0 | L76: =SUM(L73:L74) -> 0 | M76: =F76-L76 -> 0 | N76: =G76-L76 -> 0
A77: декабрь | B77: 0 | C77: 0 | H77: санитарно-технические работы
A78: затраты УК | B78: =B77*$F$23 -> 0 | C78: =C77*$F$23 -> 0 | H78: строительные работы
H79: электромонтажные работы
A80: З-ты на сод.МОП | B80: =B77-B78 -> 0 | C80: 0 | D80: 0 | E80: 0 | F80: =B80-D80-E80 -> 0 | G80: =C80-D80-E80 -> 0 | L80: =SUM(L77:L79) -> 0 | M80: =F80-L80 -> 0 | N80: =G80-L80 -> 0
H81: Остаток 2016 года | L81: =L36+L40+L44+L48+L52+L56+L60+L64+L68+L72+L76+L80 -> 0 | M81: =M36+M40+M44+M48+M52+M56+M60+M64+M68+M72+M76+M80 -> 2768.542634 | N81: =N36+N40+N44+N48+N52+N56+N60+N64+N68+N72+N76+N80 -> 613.6009877
H82: Остаток 2015 года | M82: 20346 | N82: 16787
A83: ВСЕГО | B83: =B36+B40+B44+B48+B52+B56+B60+B64+B68+B72+B76+B80 -> 3447.906634 | C83: =C36+C40+C44+C48+C52+C56+C60+C64+C68+C72+C76+C80 -> 1292.964988 | D83: 592.528 | E83: 86.836 | F83: 2768.542634 | G83: 613.6009877 | H83: Всего остаток | M83: =M81+M82 -> 23114.54263 | N83: =N81+N82 -> 17400.60099
B86: Наименование работ | G86: Ед. | H86: Коли- | I86: Сумма
G87: измерен. | H87: чество
A88: Строительные работы
F92: Итого: | I92: =SUM(I89:I91) -> 0

Sheet п.Иркут.2
A2: I. ТЕХНИЧЕСКАЯ ХАРАКТЕРИСТИКА ДОМА № 2 по пер. Иркутский | I2: Год постройки - 1914 | Q2: Отчетный | R2: ОДС
I3: Дата начала управления 01.01.2012г. | Q3: период | R3: план | S3: факт
I4: Кадастровый номер - 42:20:0101013 | Q4: 2016г. | R4: руб. | S4: руб.
A5: ОБОРУДОВАН: | Q5: январь
A6: 1.Водопровод - от центральной сети | R6: =L22 -> 14.994
Q7: февраль
A8: Мате- | B8: Кол-во | C8: Кол-во | D8: площадь дома в м2 | G8: объём | H8: % | I8: Кровля | R8: =R6 -> 14.994
A9: риал | B9: этажей | C9: квартир | D9: общая | E9: жилая | F9: не- | G9: здания | H9: износа | I9: материал | J9: S,м2 | Q9: март
A10: стен | B10: шт. | C10: шт. | F10: жилая | R10: =R8 -> 14.994
D11: м2 | E11: м2 | G11: м3 | Q11: аперль
A12: Дерево | B12: 1 | C12: 3 | D12: 88.2 | E12: 59.3 | F12: 0 | G12: 317 | I12: шиферная | J12: 220 | R12: =R10 -> 14.994
Q13: май
R14: =R12 -> 14.994
Q15: июнь
B16: II. РАСЧЁТ НАЧИСЛЕНИЙ И ЗАТРАТ | R16: =R14 -> 14.994
Q17: июль
C18: Нач-ие содержания МОП | E18: Затраты на УК | G18: Затраты на сод.дома | I18: Постоянные затраты | M18: Выполнение тек.ремонта | R18: =L22 -> 14.994
A19: Площадь,м2 | C19: Тариф | D19: Плановое | E19: Тариф | F19: Плановое | G19: Тариф | H19: Плановое | I19: Вывоз ТКО | J19: Плановое | K19: Вызов АДС | L19: Плановое | M19: Тариф | N19: Плановое | Q19: август
D20: нач-ние | F20: нач-ние | H20: нач-ние | I20: Тариф | J20: нач-ние | K20: Тариф | L20: нач-ние | N20: нач-ние | R20: =R18 -> 14.994
Q21: сентябрь
A22: S жилая | B22: 88.2 | C22: 8.14 | D22: =B22*C22 -> 717.948 | E22: 1.39 | F22: =B22*E22 -> 122.598 | G22: =C22-E22 -> 6.75 | H22: =B22*G22 -> 595.35 | I22: 1.16 | J22: =B22*I22 -> 102.312 | K22: 0.17 | L22: =B22*K22 -> 14.994 | M22: =G22-I22-K22 -> 5.42 | N22: =B22*M22 -> 478.044 | R22: =R20 -> 14.994
A23: Аренда | B23: 0 | F23: =E22/C22 -> 0.1707616708 | Q23: октябрь
A24: S жилая | B24: 66.3 | C24: 8.14 | D24: =B24*C24 -> 539.682 | E24: 1.39 | F24: =B24*E24 -> 92.157 | G24: =C24-E24 -> 6.75 | H24: =B24*G24 -> 447.525 | I24: 1.16 | J24: =B24*I24 -> 76.908 | K24: 0.17 | L24: =B24*K24 -> 11.271 | M24: =G24-I24-K24 -> 5.42 | N24: =B24*M24 -> 359.346 | R24: =R22 -> 14.994
A25: с 01.03.16г. | Q25: ноябрь
R26: =R24 -> 14.994
Q27: декабрь
A28: Отчёт за 2016 год | R28: =R26 -> 14.994
A29: по содержанию и текущему ремонту мест общего пользования жилого дома № 2 по пер. Иркутский | Q29: Итого: | R29: =SUM(R6:R28) -> 179.928 | S29: =SUM(S6:S28) -> 0
B30: ДОХОДЫ | D30: РАСХОДЫ | H30: ВЫПОЛНЕНО РАБОТ | M30: остаток + | S30: =S29-R29 -> -179.928
B31: Начислено | C31: Оплачено | D31: Вывоз ТКО | E31: Вызов АДС | F31: Средства на т.рем. | M31: перерасход -
B32: факт | C32: факт | F32: от нач-ия | G32: от оплаты | H32: Виды работ | L32: сумма | M32: от нач-ия | N32: от оплаты
A33: январь | B33: 717.96 | C33: 0 | H33: санитарно-технические работы
A34: затраты УК | B34: =B33*$F$23 -> 122.6000491 | C34: =C33*$F$23 -> 0 | H34: строительные работы | L34: 4622
H35: электромонтажные работы
A36: З-ты на сод.МОП | B36: =B33-B34 -> 595.3599509 | C36: =C33-C34 -> 0 | D36: =J22 -> 102.312 | E36: =L22 -> 14.994 | F36: =B36-D36-$E$36 -> 478.0539509 | G36: =C36-D36-$E$36 -> -117.306 | L36: =SUM(L33:L35) -> 4622 | M36: =F36-L36 -> -4143.946049 | N36: =G36-L36 -> -4739.306
A37: февраль | B37: 717.96 | C37: 1233.08 | H37: санитарно-технические работы
A38: затраты УК | B38: =B37*$F$23 -> 122.6000491 | C38: =C37*$F$23 -> 210.562801 | H38: строительные работы
H39: электромонтажные работы
A40: З-ты на сод.МОП | B40: =B37-B38 -> 595.3599509 | C40: =C37-C38 -> 1022.517199 | D40: =D36 -> 102.312 | E40: =E36 -> 14.994 | F40: =B40-D40-E40 -> 478.0539509 | G40: =C40-D40-E40 -> 905.211199 | L40: =SUM(L37:L39) -> 0 | M40: =F40-L40 -> 478.0539509 | N40: =G40-L40 -> 905.211199
A41: март | B41: 717.96 | C41: 2128.53 | H41: санитарно-технические работы
A42: затраты УК | B42: =B41*$F$23 -> 122.6000491 | C42: =C41*$F$23 -> 363.4713391 | H42: строительные работы
H43: электромонтажные работы
A44: З-ты на сод.МОП | B44: =B41-B42 -> 595.3599509 | C44: 1765.058661 | D44: =J24 -> 76.908 | E44: =L24 -> 11.271 | F44: =B44-D44-E44 -> 507.1809509 | G44: =C44-D44-E44 -> 1676.879661 | L44: =SUM(L41:L43) -> 0 | M44: =F44-L44 -> 507.1809509 | N44: =G44-L44 -> 1676.879661
A45: апрель | B45: 361.42 | C45: 1796.16 | H45: санитарно-технические работы
A46: затраты УК | B46: =B45*$F$23 -> 61.71668305 | C46: =C45*$F$23 -> 306.7152826 | H46: строительные работы
H47: электромонтажные работы
A48: З-ты на сод.МОП | B48: =B45-B46 -> 299.703317 | C48: 1489.444717 | D48: =D44 -> 76.908 | E48: =E44 -> 11.271 | F48: =B48-D48-E48 -> 211.524317 | G48: =C48-D48-E48 -> 1401.265717 | L48: =SUM(L45:L46) -> 0 | M48: =F48-L48 -> 211.524317 | N48: =G48-L48 -> 1401.265717
A49: май | B49: 0 | C49: 0 | H49: санитарно-технические работы
A50: затраты УК | B50: =B49*$F$23 -> 0 | C50: =C49*$F$23 -> 0 | H50: строительные работы
H51: электромонтажные работы
A52: З-ты на сод.МОП | B52: =B49-B50 -> 0 | C52: 0 | D52: 0 | E52: 0 | F52: =B52-D52-E52 -> 0 | G52: =C52-D52-E52 -> 0 | L52: =SUM(L49:L50) -> 0 | M52: =F52-L52 -> 0 | N52: =G52-L52 -> 0
A53: июнь | B53: 0 | C53: 0 | H53: санитарно-технические работы
A54: затраты УК | B54: =B53*$F$23 -> 0 | C54: =C53*$F$23 -> 0 | H54: строительные работы
H55: электромонтажные работы
A56: З-ты на сод.МОП | B56: =B53-B54 -> 0 | C56: 0 | D56: 0 | E56: 0 | F56: =B56-D56-E56 -> 0 | G56: =C56-D56-E56 -> 0 | L56: =SUM(L53:L54) -> 0 | M56: =F56-L56 -> 0 | N56: =G56-L56 -> 0
A57: июль | B57: 0 | C57: 0 | H57: санитарно-технические работы
A58: затраты УК | B58: =B57*$F$23 -> 0 | C58: =C57*$F$23 -> 0 | H58: строительные работы
H59: электромонтажные работы
A60: З-ты на сод.МОП | B60: =B57-B58 -> 0 | C60: 0 | D60: 0 | E60: 0 | F60: =B60-D60-E60 -> 0 | G60: =C60-D60-E60 -> 0 | L60: =SUM(L57:L58) -> 0 | M60: =F60-L60 -> 0 | N60: =G60-L60 -> 0
A61: август | B61: 0 | C61: 0 | H61: санитарно-технические работы
A62: затраты УК | B62: =B61*$F$23 -> 0 | C62: =C61*$F$23 -> 0 | H62: строительные работы
H63: электромонтажные работы
A64: З-ты на сод.МОП | B64: =B61-B62 -> 0 | C64: 0 | D64: 0 | E64: 0 | F64: =B64-D64-E64 -> 0 | G64: =C64-D64-E64 -> 0 | L64: =SUM(L61:L62) -> 0 | M64: =F64-L64 -> 0 | N64: =G64-L64 -> 0
A65: сентябрь | B65: 0 | C65: 0 | H65: санитарно-технические работы
A66: затраты УК | B66: =B65*$F$23 -> 0 | C66: =C65*$F$23 -> 0 | H66: строительные работы
H67: электромонтажные работы
A68: З-ты на сод.МОП | B68: =B65-B66 -> 0 | C68: 0 | D68: 0 | E68: 0 | F68: =B68-D68-E68 -> 0 | G68: =C68-D68-E68 -> 0 | L68: =SUM(L65:L66) -> 0 | M68: =F68-L68 -> 0 | N68: =G68-L68 -> 0
A69: октябрь | B69: 0 | C69: 0 | H69: санитарно-технические работы
A70: затраты УК | B70: =B69*$F$23 -> 0 | C70: =C69*$F$23 -> 0 | H70: строительные работы
H71: электромонтажные работы
A72: З-ты на сод.МОП | B72: =B69-B70 -> 0 | C72: 0 | D72: 0 | E72: 0 | F72: =B72-D72-E72 -> 0 | G72: =C72-D72-E72 -> 0 | L72: =SUM(L69:L70) -> 0 | M72: =F72-L72 -> 0 | N72: =G72-L72 -> 0
A73: ноябрь | B73: 0 | C73: 0 | H73: санитарно-технические работы
A74: затраты УК | B74: =B73*$F$23 -> 0 | C74: =C73*$F$23 -> 0 | H74: строительные работы
H75: электромонтажные работы
A76: З-ты на сод.МОП | B76: =B73-B74 -> 0 | C76: 0 | D76: 0 | E76: 0 | F76: =B76-D76-E76 -> 0 | G76: =C76-D76-E76 -> 0 | L76: =SUM(L73:L74) -> 0 | M76: =F76-L76 -> 0 | N76: =G76-L76 -> 0
A77: декабрь | B77: 0 | C77: 0 | H77: санитарно-технические работы
A78: затраты УК | B78: =B77*$F$23 -> 0 | C78: =C77*$F$23 -> 0 | H78: строительные работы
H79: электромонтажные работы
A80: З-ты на сод.МОП | B80: =B77-B78 -> 0 | C80: 0 | D80: 0 | E80: 0 | F80: =B80-D80-E80 -> 0 | G80: =C80-D80-E80 -> 0 | L80: =SUM(L77:L79) -> 0 | M80: =F80-L80 -> 0 | N80: =G80-L80 -> 0
H81: Остаток 2016 года | L81: =L36+L40+L44+L48+L52+L56+L60+L64+L68+L72+L76+L80 -> 4622 | M81: =M36+M40+M44+M48+M52+M56+M60+M64+M68+M72+M76+M80 -> -2947.18683 | N81: =N36+N40+N44+N48+N52+N56+N60+N64+N68+N72+N76+N80 -> -755.9494226
H82: Остаток 2015 года | M82: 18070 | N82: 12846
A83: ВСЕГО | B83: =B36+B40+B44+B48+B52+B56+B60+B64+B68+B72+B76+B80 -> 2085.78317 | C83: =C36+C40+C44+C48+C52+C56+C60+C64+C68+C72+C76+C80 -> 4277.020577 | D83: 358.44 | E83: 52.53 | F83: 1674.81317 | G83: =G36+G40+G44+G48+G52+G56+G60+G64+G68+G72+G76+G80 -> 3866.050577 | H83: Всего остаток | M83: =M81+M82 -> 15122.81317 | N83: =N81+N82 -> 12090.05058
A85: февраль
B86: Наименование работ | G86: Ед. | H86: Коли- | I86: Сумма
G87: измерен. | H87: чество
A88: Строительные работы
A89: Очистка кровли от снега ( толщина слоя 70 см ) | G89: м2 | H89: 132 | I89: 4622
F90: Итого: | I90: =SUM(I89:I89) -> 4622

Sheet п.Иркут.4
A2: I. ТЕХНИЧЕСКАЯ ХАРАКТЕРИСТИКА ДОМА № 4 по пер. Иркутский | I2: Год постройки - 1914 | Q2: Отчетный | R2: ОДС
I3: Дата начала управления 01.01.2012г. | Q3: период | R3: план | S3: факт
I4: Кадастровый номер - 42:20:0101013 | Q4: 2016г. | R4: руб. | S4: руб.
A5: ОБОРУДОВАН: | Q5: январь
A6: 1.Водопровод - от центральной сети | R6: =L22 -> 7.327
Q7: февраль
A8: Мате- | B8: Кол-во | C8: Кол-во | D8: площадь дома в м2 | G8: объём | H8: % | I8: Кровля | R8: =R6 -> 7.327
A9: риал | B9: этажей | C9: квартир | D9: общая | E9: жилая | F9: не- | G9: здания | H9: износа | I9: материал | J9: S,м2 | Q9: март
A10: стен | B10: шт. | C10: шт. | F10: жилая | R10: =R8 -> 7.327
D11: м2 | E11: м2 | G11: м3 | Q11: аперль
A12: Дерево | B12: 1 | C12: 1 | D12: 43.1 | E12: 43.6 | F12: 0 | G12: 115 | I12: шифер | J12: 108 | R12: =R10 -> 7.327
Q13: май
R14: =R12 -> 7.327
Q15: июнь
B16: II. РАСЧЁТ НАЧИСЛЕНИЙ И ЗАТРАТ | R16: =R14 -> 7.327
Q17: июль
C18: Нач-ие содержания МОП | E18: Затраты на УК | G18: Затраты на сод.дома | I18: Постоянные затраты | M18: Вып-ние тек.ремонта | R18: =L22 -> 7.327
A19: Площадь,м2 | C19: Тариф | D19: Плановое | E19: Тариф | F19: Плановое | G19: Тариф | H19: Плановое | I19: Вывоз ТКО | J19: Плановое | K19: Вызов АДС | L19: Плановое | M19: Тариф | N19: Плановое | Q19: август
D20: нач-ние | F20: нач-ние | H20: нач-ние | I20: Тариф | J20: нач-ние | K20: Тариф | L20: нач-ние | N20: нач-ние | R20: =R18 -> 7.327
Q21: сентябрь
A22: S жилая | B22: 43.1 | C22: 8.14 | D22: =B22*C22 -> 350.834 | E22: 1.39 | F22: =B22*E22 -> 59.909 | G22: =C22-E22 -> 6.75 | H22: =B22*G22 -> 290.925 | I22: 1.16 | J22: =B22*I22 -> 49.996 | K22: 0.17 | L22: =B22*K22 -> 7.327 | M22: =G22-I22-K22 -> 5.42 | N22: =B22*M22 -> 233.602 | R22: =R20 -> 7.327
A23: Аренда | B23: 0 | F23: =E22/C22 -> 0.1707616708 | Q23: октябрь
R24: =R22 -> 7.327
Q25: ноябрь
R26: =R24 -> 7.327
Q27: декабрь
A28: Отчёт за 2016 год | R28: =R26 -> 7.327
A29: по содержанию и текущему ремонту мест общего пользования жилого дома № 4 по пер. Иркутский | Q29: Итого: | R29: =SUM(R6:R28) -> 87.924 | S29: =SUM(S6:S28) -> 0
B30: ДОХОДЫ | D30: РАСХОДЫ | H30: ВЫПОЛНЕНО РАБОТ | M30: остаток + | S30: =S29-R29 -> -87.924
B31: Начислено | C31: Оплачено | D31: Вывоз ТКО | E31: Вызов АДС | F31: Средства на т.рем. | M31: перерасход -
B32: факт | C32: факт | F32: от нач-ия | G32: от оплаты | H32: Виды работ | L32: сумма | M32: от нач-ия | N32: от оплаты
A33: январь | B33: 972.72 | C33: 486.26 | H33: санитарно-технические работы
A34: затраты УК | B34: =B33*$F$23 -> 166.1032924 | C34: =C33*$F$23 -> 83.03457002 | H34: строительные работы
H35: электромонтажные работы
A36: З-ты на сод.МОП | B36: =B33-B34 -> 806.6167076 | C36: =C33-C34 -> 403.22543 | D36: =J22 -> 49.996 | E36: =L22 -> 7.327 | F36: =B36-D36-$E$36 -> 749.2937076 | G36: =C36-D36-$E$36 -> 345.90243 | L36: =SUM(L33:L35) -> 0 | M36: =F36-L36 -> 749.2937076 | N36: =G36-L36 -> 345.90243
A37: февраль | B37: 218.46 | C37: 486.27 | H37: санитарно-технические работы
A38: затраты УК | B38: =B37*$F$23 -> 37.30459459 | C38: =C37*$F$23 -> 83.03627764 | H38: строительные работы | L38: 4323
H39: электромонтажные работы
A40: З-ты на сод.МОП | B40: =B37-B38 -> 181.1554054 | C40: =C37-C38 -> 403.2337224 | D40: =D36 -> 49.996 | E40: =E36 -> 7.327 | F40: =B40-D40-E40 -> 123.8324054 | G40: =C40-D40-E40 -> 345.9107224 | L40: =SUM(L37:L39) -> 4323 | M40: =F40-L40 -> -4199.167595 | N40: =G40-L40 -> -3977.089278
A41: март | B41: 350.83 | C41: 175.26 | H41: санитарно-технические работы
A42: затраты УК | B42: =B41*$F$23 -> 59.90831695 | C42: =C41*$F$23 -> 29.92769042 | H42: строительные работы
H43: электромонтажные работы
A44: З-ты на сод.МОП | B44: =B41-B42 -> 290.921683 | C44: 145.3323096 | D44: =D40 -> 49.996 | E44: =E40 -> 7.327 | F44: =B44-D44-E44 -> 233.598683 | G44: =C44-D44-E44 -> 88.00930958 | L44: =SUM(L41:L43) -> 0 | M44: =F44-L44 -> 233.598683 | N44: =G44-L44 -> 88.00930958
A45: апрель | B45: 350.83 | C45: 528.93 | H45: санитарно-технические работы
A46: затраты УК | B46: =B45*$F$23 -> 59.90831695 | C46: =C45*$F$23 -> 90.32097052 | H46: строительные работы
H47: электромонтажные работы
A48: З-ты на сод.МОП | B48: =B45-B46 -> 290.921683 | C48: 438.6090295 | D48: =D44 -> 49.996 | E48: =E44 -> 7.327 | F48: =B48-D48-E48 -> 233.598683 | G48: =C48-D48-E48 -> 381.2860295 | L48: =SUM(L45:L46) -> 0 | M48: =F48-L48 -> 233.598683 | N48: =G48-L48 -> 381.2860295
A49: май | B49: 0 | C49: 0 | H49: санитарно-технические работы
A50: затраты УК | B50: =B49*$F$23 -> 0 | C50: =C49*$F$23 -> 0 | H50: строительные работы
H51: электромонтажные работы
A52: З-ты на сод.МОП | B52: =B49-B50 -> 0 | C52: 0 | D52: 0 | E52: 0 | F52: =B52-D52-E52 -> 0 | G52: =C52-D52-E52 -> 0 | L52: =SUM(L49:L50) -> 0 | M52: =F52-L52 -> 0 | N52: =G52-L52 -> 0
A53: июнь | B53: 0 | C53: 0 | H53: санитарно-технические работы
A54: затраты УК | B54: =B53*$F$23 -> 0 | C54: =C53*$F$23 -> 0 | H54: строительные работы
H55: электромонтажные работы
A56: З-ты на сод.МОП | B56: =B53-B54 -> 0 | C56: 0 | D56: 0 | E56: 0 | F56: =B56-D56-E56 -> 0 | G56: =C56-D56-E56 -> 0 | L56: =SUM(L53:L54) -> 0 | M56: =F56-L56 -> 0 | N56: =G56-L56 -> 0
A57: июль | B57: 0 | C57: 0 | H57: санитарно-технические работы
A58: затраты УК | B58: =B57*$F$23 -> 0 | C58: =C57*$F$23 -> 0 | H58: строительные работы
H59: электромонтажные работы
A60: З-ты на сод.МОП | B60: =B57-B58 -> 0 | C60: 0 | D60: 0 | E60: 0 | F60: =B60-D60-E60 -> 0 | G60: =C60-D60-E60 -> 0 | L60: =SUM(L57:L58) -> 0 | M60: =F60-L60 -> 0 | N60: =G60-L60 -> 0
A61: август | B61: 0 | C61: 0 | H61: санитарно-технические работы
A62: затраты УК | B62: =B61*$F$23 -> 0 | C62: =C61*$F$23 -> 0 | H62: строительные работы
H63: электромонтажные работы
A64: З-ты на сод.МОП | B64: =B61-B62 -> 0 | C64: 0 | D64: 0 | E64: 0 | F64: =B64-D64-E64 -> 0 | G64: =C64-D64-E64 -> 0 | L64: =SUM(L61:L62) -> 0 | M64: =F64-L64 -> 0 | N64: =G64-L64 -> 0
A65: сентябрь | B65: 0 | C65: 0 | H65: санитарно-технические работы
A66: затраты УК | B66: =B65*$F$23 -> 0 | C66: =C65*$F$23 -> 0 | H66: строительные работы
H67: электромонтажные работы
A68: З-ты на сод.МОП | B68: =B65-B66 -> 0 | C68: 0 | D68: 0 | E68: 0 | F68: =B68-D68-E68 -> 0 | G68: =C68-D68-E68 -> 0 | L68: =SUM(L65:L66) -> 0 | M68: =F68-L68 -> 0 | N68: =G68-L68 -> 0
A69: октябрь | B69: 0 | C69: 0 | H69: санитарно-технические работы
A70: затраты УК | B70: =B69*$F$23 -> 0 | C70: =C69*$F$23 -> 0 | H70: строительные работы
H71: электромонтажные работы
A72: З-ты на сод.МОП | B72: =B69-B70 -> 0 | C72: 0 | D72: 0 | E72: 0 | F72: =B72-D72-E72 -> 0 | G72: =C72-D72-E72 -> 0 | L72: =SUM(L69:L70) -> 0 | M72: =F72-L72 -> 0 | N72: =G72-L72 -> 0
A73: ноябрь | B73: 0 | C73: 0 | H73: санитарно-технические работы
A74: затраты УК | B74: =B73*$F$23 -> 0 | C74: =C73*$F$23 -> 0 | H74: строительные работы
H75: электромонтажные работы
A76: З-ты на сод.МОП | B76: =B73-B74 -> 0 | C76: 0 | D76: 0 | E76: 0 | F76: =B76-D76-E76 -> 0 | G76: =C76-D76-E76 -> 0 | L76: =SUM(L73:L74) -> 0 | M76: =F76-L76 -> 0 | N76: =G76-L76 -> 0
A77: декабрь | B77: 0 | C77: 0 | H77: санитарно-технические работы
A78: затраты УК | B78: =B77*$F$23 -> 0 | C78: =C77*$F$23 -> 0 | H78: строительные работы
H79: электромонтажные работы
A80: З-ты на сод.МОП | B80: =B77-B78 -> 0 | C80: 0 | D80: 0 | E80: 0 | F80: =B80-D80-E80 -> 0 | G80: =C80-D80-E80 -> 0 | L80: =SUM(L77:L79) -> 0 | M80: =F80-L80 -> 0 | N80: =G80-L80 -> 0
H81: Остаток 2016 года | L81: =L36+L40+L44+L48+L52+L56+L60+L64+L68+L72+L76+L80 -> 4323 | M81: =M36+M40+M44+M48+M52+M56+M60+M64+M68+M72+M76+M80 -> -2982.676521 | N81: =N36+N40+N44+N48+N52+N56+N60+N64+N68+N72+N76+N80 -> -3161.891509
H82: Остаток 2015 года | M82: 26918 | N82: 26452
A83: ВСЕГО | B83: =B36+B40+B44+B48+B52+B56+B60+B64+B68+B72+B76+B80 -> 1569.615479 | C83: =C36+C40+C44+C48+C52+C56+C60+C64+C68+C72+C76+C80 -> 1390.400491 | D83: 199.984 | E83: 29.308 | F83: 1340.323479 | G83: =G36+G40+G44+G48+G52+G56+G60+G64+G68+G72+G76+G80 -> 1161.108491 | H83: Всего остаток | M83: =M81+M82 -> 23935.32348 | N83: =N81+N82 -> 23290.10849
A86: февраль
B87: Наименование работ | G87: Ед. | H87: Коли- | I87: Сумма
G88: измерен. | H88: чество
A89: Строительные работы
A90: Очистка кровли от снега ( толщина слоя 60 см ) | G90: м2 | H90: 132 | I90: 4323
F91: Итого: | I91: =SUM(I90:I90) -> 4323

Sheet п.Иркут.6
A2: I. ТЕХНИЧЕСКАЯ ХАРАКТЕРИСТИКА ДОМА № 6 по пер. Иркутский | I2: Год постройки - 1914 | Q2: Отчетный | R2: ОДС
I3: Дата начала управления 01.01.2012г. | Q3: период | R3: план | S3: факт
I4: Кадастровый номер - 42:20:0101013 | Q4: 2016г. | R4: руб. | S4: руб.
A5: ОБОРУДОВАН: | Q5: январь
A6: 1.Водопровод - от центральной сети | R6: =L22 -> 7.378
Q7: февраль
A8: Мате- | B8: Кол-во | C8: Кол-во | D8: площадь дома в м2 | G8: объём | H8: % | I8: Кровля | R8: =R6 -> 7.378
A9: риал | B9: этажей | C9: квартир | D9: общая | E9: жилая | F9: не- | G9: здания | H9: износа | I9: материал | J9: S,м2 | Q9: март
A10: стен | B10: шт. | C10: шт. | F10: жилая | R10: =R8 -> 7.378
D11: м2 | E11: м2 | G11: м3 | Q11: аперль
A12: Дерево | B12: 1 | C12: 1 | D12: 43.4 | E12: 32.9 | F12: 0 | G12: 105 | I12: шифер | J12: 54 | R12: =R10 -> 7.378
Q13: май
R14: =R12 -> 7.378
Q15: июнь
B16: II. РАСЧЁТ НАЧИСЛЕНИЙ И ЗАТРАТ | R16: =R14 -> 7.378
Q17: июль
C18: Нач-ие содержания МОП | E18: Затраты на УК | G18: Затраты на сод.дома | I18: Постоянные затраты | M18: Вып-ние тек.ремонта | R18: =L22 -> 7.378
A19: Площадь,м2 | C19: Тариф | D19: Плановое | E19: Тариф | F19: Плановое | G19: Тариф | H19: Плановое | I19: Вывоз ТКО | J19: Плановое | K19: Вызов АДС | L19: Плановое | M19: Тариф | N19: Плановое | Q19: август
D20: нач-ние | F20: нач-ние | H20: нач-ние | I20: Тариф | J20: нач-ние | K20: Тариф | L20: нач-ние | N20: нач-ние | R20: =R18 -> 7.378
Q21: сентябрь
A22: S жилая | B22: 43.4 | C22: 8.14 | D22: =B22*C22 -> 353.276 | E22: 1.39 | F22: =B22*E22 -> 60.326 | G22: =C22-E22 -> 6.75 | H22: =B22*G22 -> 292.95 | I22: 1.16 | J22: =B22*I22 -> 50.344 | K22: 0.17 | L22: =B22*K22 -> 7.378 | M22: =G22-I22-K22 -> 5.42 | N22: =B22*M22 -> 235.228 | R22: =R20 -> 7.378
A23: Аренда | B23: 0 | F23: =E22/C22 -> 0.1707616708 | Q23: октябрь
R24: =R22 -> 7.378
Q25: ноябрь
R26: =R24 -> 7.378
Q27: декабрь
A28: Отчёт за 2016 год | R28: =R26 -> 7.378
A29: по содержанию и текущему ремонту мест общего пользования жилого дома № 6 по пер. Иркутский | Q29: Итого: | R29: =SUM(R6:R28) -> 88.536 | S29: =SUM(S6:S28) -> 0
A30: , | B30: ДОХОДЫ | D30: РАСХОДЫ | H30: ВЫПОЛНЕНО РАБОТ | M30: остаток + | S30: =S29-R29 -> -88.536
B31: Начислено | C31: Оплачено | D31: Вывоз ТКО | E31: Вызов АДС | F31: Средства на т.рем. | M31: перерасход -
B32: факт | C32: факт | F32: от нач-ия | G32: от оплаты | H32: Виды работ | L32: сумма | M32: от нач-ия | N32: от оплаты
A33: январь | B33: 725.28 | C33: 316.2 | H33: санитарно-технические работы
A34: затраты УК | B34: =B33*$F$23 -> 123.8500246 | C34: =C33*$F$23 -> 53.99484029 | H34: строительные работы
H35: электромонтажные работы
A36: З-ты на сод.МОП | B36: =B33-B34 -> 601.4299754 | C36: =C33-C34 -> 262.2051597 | D36: =J22 -> 50.344 | E36: =L22 -> 7.378 | F36: =B36-D36-$E$36 -> 543.7079754 | G36: =C36-D36-$E$36 -> 204.4831597 | L36: =SUM(L33:L35) -> 0 | M36: =F36-L36 -> 543.7079754 | N36: =G36-L36 -> 204.4831597
A37: февраль | B37: 391.76 | C37: 743.76 | H37: санитарно-технические работы
A38: затраты УК | B38: =B37*$F$23 -> 66.89759214 | C38: =C37*$F$23 -> 127.0057002 | H38: строительные работы | L38: =4487+380 -> 4867
H39: электромонтажные работы
A40: З-ты на сод.МОП | B40: =B37-B38 -> 324.8624079 | C40: =C37-C38 -> 616.7542998 | D40: =D36 -> 50.344 | E40: =E36 -> 7.378 | F40: =B40-D40-E40 -> 267.1404079 | G40: =C40-D40-E40 -> 559.0322998 | L40: =SUM(L37:L39) -> 4867 | M40: =F40-L40 -> -4599.859592 | N40: =G40-L40 -> -4307.9677
A41: март | B41: 353.28 | C41: 741.93 | H41: санитарно-технические работы
A42: затраты УК | B42: =B41*$F$23 -> 60.32668305 | C42: =C41*$F$23 -> 126.6932064 | H42: строительные работы
H43: электромонтажные работы
A44: З-ты на сод.МОП | B44: =B41-B42 -> 292.953317 | C44: 615.2367936 | D44: =D40 -> 50.344 | E44: =E40 -> 7.378 | F44: =B44-D44-E44 -> 235.231317 | G44: =C44-D44-E44 -> 557.5147936 | L44: =SUM(L41:L43) -> 0 | M44: =F44-L44 -> 235.231317 | N44: =G44-L44 -> 557.5147936
A45: апрель | B45: 352.28 | C45: 0 | H45: санитарно-технические работы
A46: затраты УК | B46: =B45*$F$23 -> 60.15592138 | C46: =C45*$F$23 -> 0 | H46: строительные работы
H47: электромонтажные работы
A48: З-ты на сод.МОП | B48: =B45-B46 -> 292.1240786 | C48: 0 | D48: =D44 -> 50.344 | E48: =E44 -> 7.378 | F48: =B48-D48-E48 -> 234.4020786 | G48: =C48-D48-E48 -> -57.722 | L48: =SUM(L45:L46) -> 0 | M48: =F48-L48 -> 234.4020786 | N48: =G48-L48 -> -57.722
A49: май | B49: 0 | C49: 0 | H49: санитарно-технические работы
A50: затраты УК | B50: =B49*$F$23 -> 0 | C50: =C49*$F$23 -> 0 | H50: строительные работы
H51: электромонтажные работы
A52: З-ты на сод.МОП | B52: =B49-B50 -> 0 | C52: 0 | D52: 0 | E52: 0 | F52: =B52-D52-E52 -> 0 | G52: =C52-D52-E52 -> 0 | L52: =SUM(L49:L50) -> 0 | M52: =F52-L52 -> 0 | N52: =G52-L52 -> 0
A53: июнь | B53: 0 | C53: 0 | H53: санитарно-технические работы
A54: затраты УК | B54: =B53*$F$23 -> 0 | C54: =C53*$F$23 -> 0 | H54: строительные работы
H55: электромонтажные работы
A56: З-ты на сод.МОП | B56: =B53-B54 -> 0 | C56: 0 | D56: 0 | E56: 0 | F56: =B56-D56-E56 -> 0 | G56: =C56-D56-E56 -> 0 | L56: =SUM(L53:L54) -> 0 | M56: =F56-L56 -> 0 | N56: =G56-L56 -> 0
A57: июль | B57: 0 | C57: 0 | H57: санитарно-технические работы
A58: затраты УК | B58: =B57*$F$23 -> 0 | C58: =C57*$F$23 -> 0 | H58: строительные работы
H59: электромонтажные работы
A60: З-ты на сод.МОП | B60: =B57-B58 -> 0 | C60: 0 | D60: 0 | E60: 0 | F60: =B60-D60-E60 -> 0 | G60: =C60-D60-E60 -> 0 | L60: =SUM(L57:L58) -> 0 | M60: =F60-L60 -> 0 | N60: =G60-L60 -> 0
A61: август | B61: 0 | C61: 0 | H61: санитарно-технические работы
A62: затраты УК | B62: =B61*$F$23 -> 0 | C62: =C61*$F$23 -> 0 | H62: строительные работы
H63: электромонтажные работы
A64: З-ты на сод.МОП | B64: =B61-B62 -> 0 | C64: 0 | D64: 0 | E64: 0 | F64: =B64-D64-E64 -> 0 | G64: =C64-D64-E64 -> 0 | L64: =SUM(L61:L62) -> 0 | M64: =F64-L64 -> 0 | N64: =G64-L64 -> 0
A65: сентябрь | B65: 0 | C65: 0 | H65: санитарно-технические работы
A66: затраты УК | B66: =B65*$F$23 -> 0 | C66: =C65*$F$23 -> 0 | H66: строительные работы
H67: электромонтажные работы
A68: З-ты на сод.МОП | B68: =B65-B66 -> 0 | C68: 0 | D68: 0 | E68: 0 | F68: =B68-D68-E68 -> 0 | G68: =C68-D68-E68 -> 0 | L68: =SUM(L65:L66) -> 0 | M68: =F68-L68 -> 0 | N68: =G68-L68 -> 0
A69: октябрь | B69: 0 | C69: 0 | H69: санитарно-технические работы
A70: затраты УК | B70: =B69*$F$23 -> 0 | C70: =C69*$F$23 -> 0 | H70: строительные работы
H71: электромонтажные работы
A72: З-ты на сод.МОП | B72: =B69-B70 -> 0 | C72: 0 | D72: 0 | E72: 0 | F72: =B72-D72-E72 -> 0 | G72: =C72-D72-E72 -> 0 | L72: =SUM(L69:L70) -> 0 | M72: =F72-L72 -> 0 | N72: =G72-L72 -> 0
A73: ноябрь | B73: 0 | C73: 0 | H73: санитарно-технические работы
A74: затраты УК | B74: =B73*$F$23 -> 0 | C74: =C73*$F$23 -> 0 | H74: строительные работы
H75: электромонтажные работы
A76: З-ты на сод.МОП | B76: =B73-B74 -> 0 | C76: 0 | D76: 0 | E76: 0 | F76: =B76-D76-E76 -> 0 | G76: =C76-D76-E76 -> 0 | L76: =SUM(L73:L74) -> 0 | M76: =F76-L76 -> 0 | N76: =G76-L76 -> 0
A77: декабрь | B77: 0 | C77: 0 | H77: санитарно-технические работы
A78: затраты УК | B78: =B77*$F$23 -> 0 | C78: =C77*$F$23 -> 0 | H78: строительные работы
H79: электромонтажные работы
A80: З-ты на сод.МОП | B80: =B77-B78 -> 0 | C80: 0 | D80: 0 | E80: 0 | F80: =B80-D80-E80 -> 0 | G80: =C80-D80-E80 -> 0 | L80: =SUM(L77:L79) -> 0 | M80: =F80-L80 -> 0 | N80: =G80-L80 -> 0
H81: Остаток 2016 года | L81: =L36+L40+L44+L48+L52+L56+L60+L64+L68+L72+L76+L80 -> 4867 | M81: =M36+M40+M44+M48+M52+M56+M60+M64+M68+M72+M76+M80 -> -3586.518221 | N81: =N36+N40+N44+N48+N52+N56+N60+N64+N68+N72+N76+N80 -> -3603.691747
H82: Остаток 2015 года | M82: 19953 | N82: 17954
A83: ВСЕГО | B83: =B36+B40+B44+B48+B52+B56+B60+B64+B68+B72+B76+B80 -> 1511.369779 | C83: =C36+C40+C44+C48+C52+C56+C60+C64+C68+C72+C76+C80 -> 1494.196253 | D83: 201.376 | E83: 29.512 | F83: 1280.481779 | G83: =G36+G40+G44+G48+G52+G56+G60+G64+G68+G72+G76+G80 -> 1263.308253 | H83: Всего остаток | M83: =M81+M82 -> 16366.48178 | N83: =N81+N82 -> 14350.30825
A86: февраль
B87: Наименование работ | G87: Ед. | H87: Коли- | I87: Сумма
G88: измерен. | H88: чество
A89: Строительные работы
A90: Очистка кровли от снега ( толщина слоя 60 см ) | G90: м2 | H90: 137 | I90: 4487
A91: Работа УАЗ | G91: м/ч | H91: 0.5 | I91: 380
F92: Итого: | I92: =SUM(I89:I91) -> 4867

Sheet п.Коминт.1
A2: I. ТЕХНИЧЕСКАЯ ХАРАКТЕРИСТИКА ДОМА № 1 по пер. Коминтерна | I2: Год постройки - 1924
I3: Дата начала управления 01.01.2012г.
I4: Кадастровый номер - 42:20:0101029
A5: ОБОРУДОВАН:
A6: 1.Водопровод - от центральной сети
A8: Мате- | B8: Кол-во | C8: Кол-во | D8: площадь дома в м2 | G8: объём | H8: % | I8: Кровля
A9: риал | B9: этажей | C9: квартир | D9: общая | E9: жилая | F9: не- | G9: здания | H9: износа- | I9: материал | J9: S,м2
A10: стен | B10: шт. | C10: шт. | F10: жилая
D11: м2 | E11: м2 | G11: м3
A12: Дерево | B12: 1 | C12: 1 | D12: 40.5 | E12: 21.8 | F12: 0 | G12: 112 | I12: шиферная | J12: 48.5
B16: II. РАСЧЁТ НАЧИСЛЕНИЙ И ЗАТРАТ
C18: Нач-ие содержания МОП | E18: Затраты на УК | G18: Затраты на сод.дома | I18: Постоянные затраты | M18: Вып-ние тек.ремонта
A19: Площадь,м2 | C19: Тариф | D19: Плановое | E19: Тариф | F19: Плановое | G19: Тариф | H19: Плановое | I19: Вывоз ТКО | J19: Плановое | K19: Вызов АДС | L19: Плановое | M19: Тариф | N19: Плановое
D20: нач-ние | F20: нач-ние | H20: нач-ние | I20: Тариф | J20: нач-ние | K20: Тариф | L20: нач-ние | N20: нач-ние
A22: S жилая | B22: 40.5 | C22: 8.14 | D22: =B22*C22 -> 329.67 | E22: 1.39 | F22: =B22*E22 -> 56.295 | G22: =C22-E22 -> 6.75 | H22: =B22*G22 -> 273.375 | I22: 1.16 | J22: =B22*I22 -> 46.98 | K22: 0.17 | L22: =B22*K22 -> 6.885 | M22: =G22-I22-K22 -> 5.42 | N22: =B22*M22 -> 219.51 | O22: =E22+I22+K22+M22 -> 8.14
A23: Аренда | B23: 0 | F23: =E22/C22 -> 0.1707616708 | O23: =F22+H22 -> 329.67
A28: Отчёт за 2016 год
A29: по содержанию и текущему ремонту мест общего пользования жилого дома № 1 по пер. Коминтерна
A30: , | B30: ДОХОДЫ | D30: РАСХОДЫ | H30: ВЫПОЛНЕНО РАБОТ | M30: остаток + | P30: Отчетный | Q30: ОДС
B31: Начислено | C31: Оплачено | D31: Вывоз ТКО | E31: Вызов АДС | F31: Средства на т.рем. | M31: перерасход - | P31: период | Q31: план | R31: факт
B32: факт | C32: факт | F32: от нач-ия | G32: от оплаты | H32: Виды работ | L32: сумма | M32: от нач-ия | N32: от оплаты | P32: 2016г. | Q32: руб. | R32: руб.
A33: январь | B33: 329.67 | C33: 328.74 | H33: санитарно-технические работы | P33: январь
A34: затраты УК | B34: =B33*$F$23 -> 56.295 | C34: =C33*$F$23 -> 56.13619165 | H34: строительные работы | Q34: =L22 -> 6.885
H35: электромонтажные работы | P35: февраль
A36: З-ты на сод.МОП | B36: =B33-B34 -> 273.375 | C36: =C33-C34 -> 272.6038084 | D36: =J22 -> 46.98 | E36: =L22 -> 6.885 | F36: =B36-D36-$E$36 -> 219.51 | G36: =C36-D36-$E$36 -> 218.7388084 | L36: =SUM(L33:L35) -> 0 | M36: =F36-L36 -> 219.51 | N36: =G36-L36 -> 218.7388084 | Q36: =Q34 -> 6.885
A37: февраль | B37: 329.67 | C37: 330.13 | H37: санитарно-технические работы | P37: март
A38: затраты УК | B38: =B37*$F$23 -> 56.295 | C38: =C37*$F$23 -> 56.37355037 | H38: строительные работы | Q38: =Q36 -> 6.885
H39: электромонтажные работы | P39: аперль
A40: З-ты на сод.МОП | B40: =B37-B38 -> 273.375 | C40: =C37-C38 -> 273.7564496 | D40: =D36 -> 46.98 | E40: =E36 -> 6.885 | F40: =B40-D40-E40 -> 219.51 | G40: =C40-D40-E40 -> 219.8914496 | L40: =SUM(L37:L39) -> 0 | M40: =F40-L40 -> 219.51 | N40: =G40-L40 -> 219.8914496 | Q40: =Q38 -> 6.885
A41: март | B41: 329.67 | C41: 329.43 | H41: санитарно-технические работы | P41: май
A42: затраты УК | B42: =B41*$F$23 -> 56.295 | C42: =C41*$F$23 -> 56.2540172 | H42: строительные работы | Q42: =Q40 -> 6.885
H43: электромонтажные работы | P43: июнь
A44: З-ты на сод.МОП | B44: =B41-B42 -> 273.375 | C44: 273.1759828 | D44: =D40 -> 46.98 | E44: =E40 -> 6.885 | F44: =B44-D44-E44 -> 219.51 | G44: =C44-D44-E44 -> 219.3109828 | L44: =SUM(L41:L43) -> 0 | M44: =F44-L44 -> 219.51 | N44: =G44-L44 -> 219.3109828 | Q44: =Q42 -> 6.885
A45: апрель | B45: 329.67 | C45: 329.43 | H45: санитарно-технические работы | P45: июль
A46: затраты УК | B46: =B45*$F$23 -> 56.295 | C46: =C45*$F$23 -> 56.2540172 | H46: строительные работы | Q46: =L22 -> 6.885
H47: электромонтажные работы | P47: август
A48: З-ты на сод.МОП | B48: =B45-B46 -> 273.375 | C48: 273.1759828 | D48: =D44 -> 46.98 | E48: =E44 -> 6.885 | F48: =B48-D48-E48 -> 219.51 | G48: =C48-D48-E48 -> 219.3109828 | L48: =SUM(L45:L46) -> 0 | M48: =F48-L48 -> 219.51 | N48: =G48-L48 -> 219.3109828 | Q48: =Q46 -> 6.885
A49: май | B49: 0 | C49: 0 | H49: санитарно-технические работы | P49: сентябрь
A50: затраты УК | B50: =B49*$F$23 -> 0 | C50: =C49*$F$23 -> 0 | H50: строительные работы | Q50: =Q48 -> 6.885
H51: электромонтажные работы | P51: октябрь
A52: З-ты на сод.МОП | B52: =B49-B50 -> 0 | C52: 0 | D52: 0 | E52: 0 | F52: =B52-D52-E52 -> 0 | G52: =C52-D52-E52 -> 0 | L52: =SUM(L49:L50) -> 0 | M52: =F52-L52 -> 0 | N52: =G52-L52 -> 0 | Q52: =Q50 -> 6.885
A53: июнь | B53: 0 | C53: 0 | H53: санитарно-технические работы | P53: ноябрь
A54: затраты УК | B54: =B53*$F$23 -> 0 | C54: =C53*$F$23 -> 0 | H54: строительные работы | Q54: =Q52 -> 6.885
H55: электромонтажные работы | P55: декабрь
A56: З-ты на сод.МОП | B56: =B53-B54 -> 0 | C56: 0 | D56: 0 | E56: 0 | F56: =B56-D56-E56 -> 0 | G56: =C56-D56-E56 -> 0 | L56: =SUM(L53:L54) -> 0 | M56: =F56-L56 -> 0 | N56: =G56-L56 -> 0 | Q56: =Q54 -> 6.885
A57: июль | B57: 0 | C57: 0 | H57: санитарно-технические работы | P57: Итого: | Q57: =SUM(Q34:Q56) -> 82.62 | R57: =SUM(R34:R56) -> 0
A58: затраты УК | B58: =B57*$F$23 -> 0 | C58: =C57*$F$23 -> 0 | H58: строительные работы | R58: =R57-Q57 -> -82.62
H59: электромонтажные работы
A60: З-ты на сод.МОП | B60: =B57-B58 -> 0 | C60: 0 | D60: 0 | E60: 0 | F60: =B60-D60-E60 -> 0 | G60: =C60-D60-E60 -> 0 | L60: =SUM(L57:L58) -> 0 | M60: =F60-L60 -> 0 | N60: =G60-L60 -> 0
A61: август | B61: 0 | C61: 0 | H61: санитарно-технические работы
A62: затраты УК | B62: =B61*$F$23 -> 0 | C62: =C61*$F$23 -> 0 | H62: строительные работы
H63: электромонтажные работы
A64: З-ты на сод.МОП | B64: =B61-B62 -> 0 | C64: 0 | D64: 0 | E64: 0 | F64: =B64-D64-E64 -> 0 | G64: =C64-D64-E64 -> 0 | L64: =SUM(L61:L62) -> 0 | M64: =F64-L64 -> 0 | N64: =G64-L64 -> 0
A65: сентябрь | B65: 0 | C65: 0 | H65: санитарно-технические работы
A66: затраты УК | B66: =B65*$F$23 -> 0 | C66: =C65*$F$23 -> 0 | H66: строительные работы
H67: электромонтажные работы
A68: З-ты на сод.МОП | B68: =B65-B66 -> 0 | C68: 0 | D68: 0 | E68: 0 | F68: =B68-D68-E68 -> 0 | G68: =C68-D68-E68 -> 0 | L68: =SUM(L65:L66) -> 0 | M68: =F68-L68 -> 0 | N68: =G68-L68 -> 0
A69: октябрь | B69: 0 | C69: 0 | H69: санитарно-технические работы
A70: затраты УК | B70: =B69*$F$23 -> 0 | C70: =C69*$F$23 -> 0 | H70: строительные работы
H71: электромонтажные работы
A72: З-ты на сод.МОП | B72: =B69-B70 -> 0 | C72: 0 | D72: 0 | E72: 0 | F72: =B72-D72-E72 -> 0 | G72: =C72-D72-E72 -> 0 | L72: =SUM(L69:L70) -> 0 | M72: =F72-L72 -> 0 | N72: =G72-L72 -> 0
A73: ноябрь | B73: 0 | C73: 0 | H73: санитарно-технические работы
A74: затраты УК | B74: =B73*$F$23 -> 0 | C74: =C73*$F$23 -> 0 | H74: строительные работы
H75: электромонтажные работы
A76: З-ты на сод.МОП | B76: =B73-B74 -> 0 | C76: 0 | D76: 0 | E76: 0 | F76: =B76-D76-E76 -> 0 | G76: =C76-D76-E76 -> 0 | L76: =SUM(L73:L74) -> 0 | M76: =F76-L76 -> 0 | N76: =G76-L76 -> 0
A77: декабрь | B77: 0 | C77: 0 | H77: санитарно-технические работы
A78: затраты УК | B78: =B77*$F$23 -> 0 | C78: =C77*$F$23 -> 0 | H78: строительные работы
H79: электромонтажные работы
A80: З-ты на сод.МОП | B80: =B77-B78 -> 0 | C80: 0 | D80: 0 | E80: 0 | F80: =B80-D80-E80 -> 0 | G80: =C80-D80-E80 -> 0 | L80: =SUM(L77:L79) -> 0 | M80: =F80-L80 -> 0 | N80: =G80-L80 -> 0
H81: Остаток 2016 года | L81: =L36+L40+L44+L48+L52+L56+L60+L64+L68+L72+L76+L80 -> 0 | M81: =M36+M40+M44+M48+M52+M56+M60+M64+M68+M72+M76+M80 -> 878.04 | N81: =N36+N40+N44+N48+N52+N56+N60+N64+N68+N72+N76+N80 -> 877.2522236
H82: Остаток 2015 года | M82: -101 | N82: 378
A83: ВСЕГО | B83: =B36+B40+B44+B48+B52+B56+B60+B64+B68+B72+B76+B80 -> 1093.5 | C83: =C36+C40+C44+C48+C52+C56+C60+C64+C68+C72+C76+C80 -> 1092.712224 | D83: 187.92 | E83: 27.54 | F83: 878.04 | G83: =G36+G40+G44+G48+G52+G56+G60+G64+G68+G72+G76+G80 -> 877.2522236 | H83: Всего остаток | M83: =M81+M82 -> 777.04 | N83: =N81+N82 -> 1255.252224
B86: Наименование работ | G86: Ед. | H86: Коли- | I86: Сумма
G87: измерен. | H87: чество
A88: Строительные работы
F92: Итого: | I92: =SUM(I89:I91) -> 0

Sheet п.Коминт.4
A2: I. ТЕХНИЧЕСКАЯ ХАРАКТЕРИСТИКА ДОМА № 1 по пер. Коминтерна | I2: Год постройки - 1965
I3: Дата начала управления 01.01.2012г.
I4: Кадастровый номер - 42:20:0101029
A5: ОБОРУДОВАН:
A6: 1.Водопровод - от центральной сети
A8: Мате- | B8: Кол-во | C8: Кол-во | D8: площадь дома в м2 | G8: объём | H8: % | I8: Кровля
A9: риал | B9: этажей | C9: квартир | D9: общая | E9: жилая | F9: не- | G9: здания | H9: износа - | I9: материал | J9: S,м2
A10: стен | B10: шт. | C10: шт. | F10: жилая | H10: год
D11: м2 | E11: м2 | G11: м3 | H11: инвентариз.
A12: Дерево | B12: 1 | C12: 2 | D12: 81.3 | E12: 46.1 | F12: 0 | G12: 224 | H12: 55%- 2007г. | I12: шиферная | J12: 97
B16: II. РАСЧЁТ НАЧИСЛЕНИЙ И ЗАТРАТ
C18: Нач-ие содержания МОП | E18: Затраты на УК | G18: Затраты на сод.дома | I18: Постоянные затраты | M18: Вып-ние тек.ремонта
A19: Площадь,м2 | C19: Тариф | D19: Плановое | E19: Тариф | F19: Плановое | G19: Тариф | H19: Плановое | I19: Вывоз ТКО | J19: Плановое | K19: Вызов АДС | L19: Плановое | M19: Тариф | N19: Плановое
D20: нач-ние | F20: нач-ние | H20: нач-ние | I20: Тариф | J20: нач-ние | K20: Тариф | L20: нач-ние | N20: нач-ние
A22: S жилая | B22: 81.3 | C22: 8.14 | D22: =B22*C22 -> 661.782 | E22: 1.39 | F22: =B22*E22 -> 113.007 | G22: =C22-E22 -> 6.75 | H22: =B22*G22 -> 548.775 | I22: 1.16 | J22: =B22*I22 -> 94.308 | K22: 0.17 | L22: =B22*K22 -> 13.821 | M22: =G22-I22-K22 -> 5.42 | N22: =B22*M22 -> 440.646 | O22: =E22+I22+K22+M22 -> 8.14
A23: Аренда | B23: 0 | F23: =E22/C22 -> 0.1707616708 | O23: =F22+H22 -> 661.782
A28: Отчёт за 2016 год
A29: по содержанию и текущему ремонту мест общего пользования жилого дома № 4 по пер. Коминтерна
A30: , | B30: ДОХОДЫ | D30: РАСХОДЫ | H30: ВЫПОЛНЕНО РАБОТ | M30: остаток + | P30: Отчетный | Q30: ОДС
B31: Начислено | C31: Оплачено | D31: Вывоз ТКО | E31: Вызов АДС | F31: Средства на т.рем. | M31: перерасход - | P31: период | Q31: план | R31: факт
B32: факт | C32: факт | F32: от нач-ия | G32: от оплаты | H32: Виды работ | L32: сумма | M32: от нач-ия | N32: от оплаты | P32: 2016г. | Q32: руб. | R32: руб.
A33: январь | B33: 661.78 | C33: 1223.17 | H33: санитарно-технические работы | P33: январь
A34: затраты УК | B34: =B33*$F$23 -> 113.0066585 | C34: =C33*$F$23 -> 208.8705528 | H34: строительные работы | Q34: =L22 -> 13.821
H35: электромонтажные работы | P35: февраль
A36: З-ты на сод.МОП | B36: =B33-B34 -> 548.7733415 | C36: =C33-C34 -> 1014.299447 | D36: =J22 -> 94.308 | E36: =L22 -> 13.821 | F36: =B36-D36-$E$36 -> 440.6443415 | G36: =C36-D36-$E$36 -> 906.1704472 | L36: =SUM(L33:L35) -> 0 | M36: =F36-L36 -> 440.6443415 | N36: =G36-L36 -> 906.1704472 | Q36: =Q34 -> 13.821
A37: февраль | B37: 661.78 | C37: 0 | H37: санитарно-технические работы | P37: март
A38: затраты УК | B38: =B37*$F$23 -> 113.0066585 | C38: =C37*$F$23 -> 0 | H38: строительные работы | Q38: =Q36 -> 13.821
H39: электромонтажные работы | P39: аперль
A40: З-ты на сод.МОП | B40: =B37-B38 -> 548.7733415 | C40: =C37-C38 -> 0 | D40: =D36 -> 94.308 | E40: =E36 -> 13.821 | F40: =B40-D40-E40 -> 440.6443415 | G40: =C40-D40-E40 -> -108.129 | L40: =SUM(L37:L39) -> 0 | M40: =F40-L40 -> 440.6443415 | N40: =G40-L40 -> -108.129 | Q40: =Q38 -> 13.821
A41: март | B41: 661.78 | C41: 0 | H41: санитарно-технические работы | P41: май
A42: затраты УК | B42: =B41*$F$23 -> 113.0066585 | C42: =C41*$F$23 -> 0 | H42: строительные работы | Q42: =Q40 -> 13.821
H43: электромонтажные работы | P43: июнь
A44: З-ты на сод.МОП | B44: =B41-B42 -> 548.7733415 | C44: 0 | D44: =D40 -> 94.308 | E44: =E40 -> 13.821 | F44: =B44-D44-E44 -> 440.6443415 | G44: =C44-D44-E44 -> -108.129 | L44: =SUM(L41:L43) -> 0 | M44: =F44-L44 -> 440.6443415 | N44: =G44-L44 -> -108.129 | Q44: =Q42 -> 13.821
A45: апрель | B45: 661.78 | C45: 1228.21 | H45: санитарно-технические работы | P45: июль
A46: затраты УК | B46: =B45*$F$23 -> 113.0066585 | C46: =C45*$F$23 -> 209.7311916 | H46: строительные работы | Q46: =L22 -> 13.821
H47: электромонтажные работы | P47: август
A48: З-ты на сод.МОП | B48: =B45-B46 -> 548.7733415 | C48: 1018.478808 | D48: =D44 -> 94.308 | E48: =E44 -> 13.821 | F48: =B48-D48-E48 -> 440.6443415 | G48: =C48-D48-E48 -> 910.3498084 | L48: =SUM(L45:L46) -> 0 | M48: =F48-L48 -> 440.6443415 | N48: =G48-L48 -> 910.3498084 | Q48: =Q46 -> 13.821
A49: май | B49: 0 | C49: 0 | H49: санитарно-технические работы | P49: сентябрь
A50: затраты УК | B50: =B49*$F$23 -> 0 | C50: =C49*$F$23 -> 0 | H50: строительные работы | Q50: =Q48 -> 13.821
H51: электромонтажные работы | P51: октябрь
A52: З-ты на сод.МОП | B52: =B49-B50 -> 0 | C52: 0 | D52: 0 | E52: 0 | F52: =B52-D52-E52 -> 0 | G52: =C52-D52-E52 -> 0 | L52: =SUM(L49:L50) -> 0 | M52: =F52-L52 -> 0 | N52: =G52-L52 -> 0 | Q52: =Q50 -> 13.821
A53: июнь | B53: 0 | C53: 0 | H53: санитарно-технические работы | P53: ноябрь
A54: затраты УК | B54: =B53*$F$23 -> 0 | C54: =C53*$F$23 -> 0 | H54: строительные работы | Q54: =Q52 -> 13.821
H55: электромонтажные работы | P55: декабрь
A56: З-ты на сод.МОП | B56: =B53-B54 -> 0 | C56: 0 | D56: 0 | E56: 0 | F56: =B56-D56-E56 -> 0 | G56: =C56-D56-E56 -> 0 | L56: =SUM(L53:L54) -> 0 | M56: =F56-L56 -> 0 | N56: =G56-L56 -> 0 | Q56: =Q54 -> 13.821
A57: июль | B57: 0 | C57: 0 | H57: санитарно-технические работы | P57: Итого: | Q57: =SUM(Q34:Q56) -> 165.852 | R57: =SUM(R34:R56) -> 0
A58: затраты УК | B58: =B57*$F$23 -> 0 | C58: =C57*$F$23 -> 0 | H58: строительные работы | R58: =R57-Q57 -> -165.852
H59: электромонтажные работы
A60: З-ты на сод.МОП | B60: =B57-B58 -> 0 | C60: 0 | D60: 0 | E60: 0 | F60: =B60-D60-E60 -> 0 | G60: =C60-D60-E60 -> 0 | L60: =SUM(L57:L58) -> 0 | M60: =F60-L60 -> 0 | N60: =G60-L60 -> 0
A61: август | B61: 0 | C61: 0 | H61: санитарно-технические работы
A62: затраты УК | B62: =B61*$F$23 -> 0 | C62: =C61*$F$23 -> 0 | H62: строительные работы
H63: электромонтажные работы
A64: З-ты на сод.МОП | B64: =B61-B62 -> 0 | C64: 0 | D64: 0 | E64: 0 | F64: =B64-D64-E64 -> 0 | G64: =C64-D64-E64 -> 0 | L64: =SUM(L61:L62) -> 0 | M64: =F64-L64 -> 0 | N64: =G64-L64 -> 0
A65: сентябрь | B65: 0 | C65: 0 | H65: санитарно-технические работы
A66: затраты УК | B66: =B65*$F$23 -> 0 | C66: =C65*$F$23 -> 0 | H66: строительные работы
H67: электромонтажные работы
A68: З-ты на сод.МОП | B68: =B65-B66 -> 0 | C68: 0 | D68: 0 | E68: 0 | F68: =B68-D68-E68 -> 0 | G68: =C68-D68-E68 -> 0 | L68: =SUM(L65:L66) -> 0 | M68: =F68-L68 -> 0 | N68: =G68-L68 -> 0
A69: октябрь | B69: 0 | C69: 0 | H69: санитарно-технические работы
A70: затраты УК | B70: =B69*$F$23 -> 0 | C70: =C69*$F$23 -> 0 | H70: строительные работы
H71: электромонтажные работы
A72: З-ты на сод.МОП | B72: =B69-B70 -> 0 | C72: 0 | D72: 0 | E72: 0 | F72: =B72-D72-E72 -> 0 | G72: =C72-D72-E72 -> 0 | L72: =SUM(L69:L70) -> 0 | M72: =F72-L72 -> 0 | N72: =G72-L72 -> 0
A73: ноябрь | B73: 0 | C73: 0 | H73: санитарно-технические работы
A74: затраты УК | B74: =B73*$F$23 -> 0 | C74: =C73*$F$23 -> 0 | H74: строительные работы
H75: электромонтажные работы
A76: З-ты на сод.МОП | B76: =B73-B74 -> 0 | C76: 0 | D76: 0 | E76: 0 | F76: =B76-D76-E76 -> 0 | G76: =C76-D76-E76 -> 0 | L76: =SUM(L73:L74) -> 0 | M76: =F76-L76 -> 0 | N76: =G76-L76 -> 0
A77: декабрь | B77: 0 | C77: 0 | H77: санитарно-технические работы
A78: затраты УК | B78: =B77*$F$23 -> 0 | C78: =C77*$F$23 -> 0 | H78: строительные работы
H79: электромонтажные работы
A80: З-ты на сод.МОП | B80: =B77-B78 -> 0 | C80: 0 | D80: 0 | E80: 0 | F80: =B80-D80-E80 -> 0 | G80: =C80-D80-E80 -> 0 | L80: =SUM(L77:L79) -> 0 | M80: =F80-L80 -> 0 | N80: =G80-L80 -> 0
H81: Остаток 2016 года | L81: =L36+L40+L44+L48+L52+L56+L60+L64+L68+L72+L76+L80 -> 0 | M81: =M36+M40+M44+M48+M52+M56+M60+M64+M68+M72+M76+M80 -> 1762.577366 | N81: =N36+N40+N44+N48+N52+N56+N60+N64+N68+N72+N76+N80 -> 1600.262256
H82: Остаток 2015 года | M82: -2184 | N82: -6056
A83: ВСЕГО | B83: =B36+B40+B44+B48+B52+B56+B60+B64+B68+B72+B76+B80 -> 2195.093366 | C83: =C36+C40+C44+C48+C52+C56+C60+C64+C68+C72+C76+C80 -> 2032.778256 | D83: 377.232 | E83: 55.284 | F83: 1762.577366 | G83: =G36+G40+G44+G48+G52+G56+G60+G64+G68+G72+G76+G80 -> 1600.262256 | H83: Всего остаток | M83: =M81+M82 -> -421.4226339 | N83: =N81+N82 -> -4455.737744
B86: Наименование работ | G86: Ед. | H86: Коли- | I86: Сумма
G87: измерен. | H87: чество
A88: Строительные работы
F92: Итого: | I92: =SUM(I89:I91) -> 0

Sheet п.Коминт.5
A2: I. ТЕХНИЧЕСКАЯ ХАРАКТЕРИСТИКА ДОМА № 5 по пер. Коминтерна | I2: Год постройки - 1943
I3: Дата начала управления 01.01.2012г.
I4: Кадастровый номер - 42:20:0101029
A5: ОБОРУДОВАН:
A6: 1.Водопровод - от центральной сети
A8: Мате- | B8: Кол-во | C8: Кол-во | D8: площадь дома в м2 | G8: объём | H8: % | I8: Кровля
A9: риал | B9: этажей | C9: квартир | D9: общая | E9: жилая | F9: не- | G9: здания | H9: износа - | I9: материал | J9: S,м2
A10: стен | B10: шт. | C10: шт. | F10: жилая | H10: год
D11: м2 | E11: м2 | G11: м3 | H11: инвентариз.
A12: Дерево | B12: 1 | C12: 4 | D12: 107.7 | E12: 66 | F12: 0 | G12: 376 | H12: 65%- 2007г. | I12: шиферная | J12: 159
B16: II. РАСЧЁТ НАЧИСЛЕНИЙ И ЗАТРАТ
C18: Нач-ие содержания МОП | E18: Затраты на УК | G18: Затраты на сод.дома | I18: Постоянные затраты | M18: Вып-ние тек.ремонта
A19: Площадь,м2 | C19: Тариф | D19: Плановое | E19: Тариф | F19: Плановое | G19: Тариф | H19: Плановое | I19: Вывоз ТКО | J19: Плановое | K19: Вызов АДС | L19: Плановое | M19: Тариф | N19: Плановое
D20: нач-ние | F20: нач-ние | H20: нач-ние | I20: Тариф | J20: нач-ние | K20: Тариф | L20: нач-ние | N20: нач-ние
A22: S жилая | B22: 107.7 | C22: 8.14 | D22: =B22*C22 -> 876.678 | E22: 1.39 | F22: =B22*E22 -> 149.703 | G22: =C22-E22 -> 6.75 | H22: =B22*G22 -> 726.975 | I22: 1.16 | J22: =B22*I22 -> 124.932 | K22: 0.17 | L22: =B22*K22 -> 18.309 | M22: =G22-I22-K22 -> 5.42 | N22: =B22*M22 -> 583.734 | O22: =E22+I22+K22+M22 -> 8.14
A23: Аренда | B23: 0 | F23: =E22/C22 -> 0.1707616708 | O23: =F22+H22 -> 876.678
A28: Отчёт за 2016 год
A29: по содержанию и текущему ремонту мест общего пользования жилого дома № 5 по пер. Коминтерна
A30: , | B30: ДОХОДЫ | D30: РАСХОДЫ | H30: ВЫПОЛНЕНО РАБОТ | M30: остаток + | P30: Отчетный | Q30: ОДС
B31: Начислено | C31: Оплачено | D31: Вывоз ТКО | E31: Вызов АДС | F31: Средства на т.рем. | M31: перерасход - | P31: период | Q31: план | R31: факт
B32: факт | C32: факт | F32: от нач-ия | G32: от оплаты | H32: Виды работ | L32: сумма | M32: от нач-ия | N32: от оплаты | P32: 2016г. | Q32: руб. | R32: руб.
A33: январь | B33: 876.67 | C33: 894.45 | H33: санитарно-технические работы | P33: январь
A34: затраты УК | B34: =B33*$F$23 -> 149.7016339 | C34: =C33*$F$23 -> 152.7377764 | H34: строительные работы | Q34: =L22 -> 18.309
H35: электромонтажные работы | P35: февраль
A36: З-ты на сод.МОП | B36: =B33-B34 -> 726.9683661 | C36: =C33-C34 -> 741.7122236 | D36: =J22 -> 124.932 | E36: =L22 -> 18.309 | F36: =B36-D36-$E$36 -> 583.7273661 | G36: =C36-D36-$E$36 -> 598.4712236 | L36: =SUM(L33:L35) -> 0 | M36: =F36-L36 -> 583.7273661 | N36: =G36-L36 -> 598.4712236 | Q36: =Q34 -> 18.309
A37: февраль | B37: 876.67 | C37: 415.79 | H37: санитарно-технические работы | P37: март
A38: затраты УК | B38: =B37*$F$23 -> 149.7016339 | C38: =C37*$F$23 -> 71.00099509 | H38: строительные работы | Q38: =Q36 -> 18.309
H39: электромонтажные работы | P39: аперль
A40: З-ты на сод.МОП | B40: =B37-B38 -> 726.9683661 | C40: =C37-C38 -> 344.7890049 | D40: =D36 -> 124.932 | E40: =E36 -> 18.309 | F40: =B40-D40-E40 -> 583.7273661 | G40: =C40-D40-E40 -> 201.5480049 | L40: =SUM(L37:L39) -> 0 | M40: =F40-L40 -> 583.7273661 | N40: =G40-L40 -> 201.5480049 | Q40: =Q38 -> 18.309
A41: март | B41: 876.67 | C41: 892.27 | H41: санитарно-технические работы | P41: май
A42: затраты УК | B42: =B41*$F$23 -> 149.7016339 | C42: =C41*$F$23 -> 152.365516 | H42: строительные работы | Q42: =Q40 -> 18.309
H43: электромонтажные работы | P43: июнь
A44: З-ты на сод.МОП | B44: =B41-B42 -> 726.9683661 | C44: 739.904484 | D44: =D40 -> 124.932 | E44: =E40 -> 18.309 | F44: =B44-D44-E44 -> 583.7273661 | G44: =C44-D44-E44 -> 596.663484 | L44: =SUM(L41:L43) -> 0 | M44: =F44-L44 -> 583.7273661 | N44: =G44-L44 -> 596.663484 | Q44: =Q42 -> 18.309
A45: апрель | B45: 876.67 | C45: 427.11 | H45: санитарно-технические работы | P45: июль
A46: затраты УК | B46: =B45*$F$23 -> 149.7016339 | C46: =C45*$F$23 -> 72.9340172 | H46: строительные работы | Q46: =L22 -> 18.309
H47: электромонтажные работы | P47: август
A48: З-ты на сод.МОП | B48: =B45-B46 -> 726.9683661 | C48: 354.1759828 | D48: =D44 -> 124.932 | E48: =E44 -> 18.309 | F48: =B48-D48-E48 -> 583.7273661 | G48: =C48-D48-E48 -> 210.9349828 | L48: =SUM(L45:L46) -> 0 | M48: =F48-L48 -> 583.7273661 | N48: =G48-L48 -> 210.9349828 | Q48: =Q46 -> 18.309
A49: май | B49: 0 | C49: 0 | H49: санитарно-технические работы | P49: сентябрь
A50: затраты УК | B50: =B49*$F$23 -> 0 | C50: =C49*$F$23 -> 0 | H50: строительные работы | Q50: =Q48 -> 18.309
H51: электромонтажные работы | P51: октябрь
A52: З-ты на сод.МОП | B52: =B49-B50 -> 0 | C52: 0 | D52: 0 | E52: 0 | F52: =B52-D52-E52 -> 0 | G52: =C52-D52-E52 -> 0 | L52: =SUM(L49:L50) -> 0 | M52: =F52-L52 -> 0 | N52: =G52-L52 -> 0 | Q52: =Q50 -> 18.309
A53: июнь | B53: 0 | C53: 0 | H53: санитарно-технические работы | P53: ноябрь
A54: затраты УК | B54: =B53*$F$23 -> 0 | C54: =C53*$F$23 -> 0 | H54: строительные работы | Q54: =Q52 -> 18.309
H55: электромонтажные работы | P55: декабрь
A56: З-ты на сод.МОП | B56: =B53-B54 -> 0 | C56: 0 | D56: 0 | E56: 0 | F56: =B56-D56-E56 -> 0 | G56: =C56-D56-E56 -> 0 | L56: =SUM(L53:L54) -> 0 | M56: =F56-L56 -> 0 | N56: =G56-L56 -> 0 | Q56: =Q54 -> 18.309
A57: июль | B57: 0 | C57: 0 | H57: санитарно-технические работы | P57: Итого: | Q57: =SUM(Q34:Q56) -> 219.708 | R57: =SUM(R34:R56) -> 0
A58: затраты УК | B58: =B57*$F$23 -> 0 | C58: =C57*$F$23 -> 0 | H58: строительные работы | R58: =R57-Q57 -> -219.708
H59: электромонтажные работы
A60: З-ты на сод.МОП | B60: =B57-B58 -> 0 | C60: 0 | D60: 0 | E60: 0 | F60: =B60-D60-E60 -> 0 | G60: =C60-D60-E60 -> 0 | L60: =SUM(L57:L58) -> 0 | M60: =F60-L60 -> 0 | N60: =G60-L60 -> 0
A61: август | B61: 0 | C61: 0 | H61: санитарно-технические работы
A62: затраты УК | B62: =B61*$F$23 -> 0 | C62: =C61*$F$23 -> 0 | H62: строительные работы
H63: электромонтажные работы
A64: З-ты на сод.МОП | B64: =B61-B62 -> 0 | C64: 0 | D64: 0 | E64: 0 | F64: =B64-D64-E64 -> 0 | G64: =C64-D64-E64 -> 0 | L64: =SUM(L61:L62) -> 0 | M64: =F64-L64 -> 0 | N64: =G64-L64 -> 0
A65: сентябрь | B65: 0 | C65: 0 | H65: санитарно-технические работы
A66: затраты УК | B66: =B65*$F$23 -> 0 | C66: =C65*$F$23 -> 0 | H66: строительные работы
H67: электромонтажные работы
A68: З-ты на сод.МОП | B68: =B65-B66 -> 0 | C68: 0 | D68: 0 | E68: 0 | F68: =B68-D68-E68 -> 0 | G68: =C68-D68-E68 -> 0 | L68: =SUM(L65:L66) -> 0 | M68: =F68-L68 -> 0 | N68: =G68-L68 -> 0
A69: октябрь | B69: 0 | C69: 0 | H69: санитарно-технические работы
A70: затраты УК | B70: =B69*$F$23 -> 0 | C70: =C69*$F$23 -> 0 | H70: строительные работы
H71: электромонтажные работы
A72: З-ты на сод.МОП | B72: =B69-B70 -> 0 | C72: 0 | D72: 0 | E72: 0 | F72: =B72-D72-E72 -> 0 | G72: =C72-D72-E72 -> 0 | L72: =SUM(L69:L70) -> 0 | M72: =F72-L72 -> 0 | N72: =G72-L72 -> 0
A73: ноябрь | B73: 0 | C73: 0 | H73: санитарно-технические работы
A74: затраты УК | B74: =B73*$F$23 -> 0 | C74: =C73*$F$23 -> 0 | H74: строительные работы
H75: электромонтажные работы
A76: З-ты на сод.МОП | B76: =B73-B74 -> 0 | C76: 0 | D76: 0 | E76: 0 | F76: =B76-D76-E76 -> 0 | G76: =C76-D76-E76 -> 0 | L76: =SUM(L73:L74) -> 0 | M76: =F76-L76 -> 0 | N76: =G76-L76 -> 0
A77: декабрь | B77: 0 | C77: 0 | H77: санитарно-технические работы
A78: затраты УК | B78: =B77*$F$23 -> 0 | C78: =C77*$F$23 -> 0 | H78: строительные работы
H79: электромонтажные работы
A80: З-ты на сод.МОП | B80: =B77-B78 -> 0 | C80: 0 | D80: 0 | E80: 0 | F80: =B80-D80-E80 -> 0 | G80: =C80-D80-E80 -> 0 | L80: =SUM(L77:L79) -> 0 | M80: =F80-L80 -> 0 | N80: =G80-L80 -> 0
H81: Остаток 2016 года | L81: =L36+L40+L44+L48+L52+L56+L60+L64+L68+L72+L76+L80 -> 0 | M81: =M36+M40+M44+M48+M52+M56+M60+M64+M68+M72+M76+M80 -> 2334.909464 | N81: =N36+N40+N44+N48+N52+N56+N60+N64+N68+N72+N76+N80 -> 1607.617695
H82: Остаток 2015 года | M82: 8373 | N82: 1385
A83: ВСЕГО | B83: =B36+B40+B44+B48+B52+B56+B60+B64+B68+B72+B76+B80 -> 2907.873464 | C83: =C36+C40+C44+C48+C52+C56+C60+C64+C68+C72+C76+C80 -> 2180.581695 | D83: 499.728 | E83: =E36+E40+E44+E48+E52+E56+E60+E64+E68+E72+E76+E80 -> 73.236 | F83: 2334.909464 | G83: =G36+G40+G44+G48+G52+G56+G60+G64+G68+G72+G76+G80 -> 1607.617695 | H83: Всего остаток | M83: =M81+M82 -> 10707.90946 | N83: =N81+N82 -> 2992.617695
B86: Наименование работ | G86: Ед. | H86: Коли- | I86: Сумма
G87: измерен. | H87: чество
A88: Строительные работы
F92: Итого: | I92: =SUM(I89:I91) -> 0

Sheet п.Коминт.6
A2: I. ТЕХНИЧЕСКАЯ ХАРАКТЕРИСТИКА ДОМА № 6 по пер. Коминтерна | I2: Год постройки - 1928
I3: Дата начала управления 01.01.2012г.
I4: Кадастровый номер - 42:20:0101029
A5: ОБОРУДОВАН:
A6: 1.Водопровод - от центральной сети
A8: Мате- | B8: Кол-во | C8: Кол-во | D8: площадь дома в м2 | G8: объём | H8: % | I8: Кровля
A9: риал | B9: этажей | C9: квартир | D9: общая | E9: жилая | F9: не- | G9: здания | H9: износа - | I9: материал | J9: S,м2
A10: стен | B10: шт. | C10: шт. | F10: жилая | H10: год
D11: м2 | E11: м2 | G11: м3 | H11: инвентариз.
A12: Дерево | B12: 1 | C12: 1 | D12: 52.7 | E12: 34.3 | F12: 0 | G12: 159 | H12: 67%- 2007г. | I12: шиферная | J12: 74
B16: II. РАСЧЁТ НАЧИСЛЕНИЙ И ЗАТРАТ
C18: Нач-ие содержания МОП | E18: Затраты на УК | G18: Затраты на сод.дома | I18: Постоянные затраты | M18: Вып-ние тек.ремонта
A19: Площадь,м2 | C19: Тариф | D19: Плановое | E19: Тариф | F19: Плановое | G19: Тариф | H19: Плановое | I19: Вывоз ТКО | J19: Плановое | K19: Вызов АДС | L19: Плановое | M19: Тариф | N19: Плановое
D20: нач-ние | F20: нач-ние | H20: нач-ние | I20: Тариф | J20: нач-ние | K20: Тариф | L20: нач-ние | N20: нач-ние
A22: S жилая | B22: 52.7 | C22: 8.14 | D22: =B22*C22 -> 428.978 | E22: 1.39 | F22: =B22*E22 -> 73.253 | G22: =C22-E22 -> 6.75 | H22: =B22*G22 -> 355.725 | I22: 1.16 | J22: =B22*I22 -> 61.132 | K22: 0.17 | L22: =B22*K22 -> 8.959 | M22: =G22-I22-K22 -> 5.42 | N22: =B22*M22 -> 285.634 | O22: =E22+I22+K22+M22 -> 8.14
A23: Аренда | B23: 0 | F23: =E22/C22 -> 0.1707616708 | O23: =F22+H22 -> 428.978
A28: Отчёт за 2016 год
A29: по содержанию и текущему ремонту мест общего пользования жилого дома № 6 по пер. Коминтерна
A30: , | B30: ДОХОДЫ | D30: РАСХОДЫ | H30: ВЫПОЛНЕНО РАБОТ | M30: остаток + | P30: Отчетный | Q30: ОДС
B31: Начислено | C31: Оплачено | D31: Вывоз ТКО | E31: Вызов АДС | F31: Средства на т.рем. | M31: перерасход - | P31: период | Q31: план | R31: факт
B32: факт | C32: факт | F32: от нач-ия | G32: от оплаты | H32: Виды работ | L32: сумма | M32: от нач-ия | N32: от оплаты | P32: 2016г. | Q32: руб. | R32: руб.
A33: январь | B33: 428.98 | C33: 0 | H33: санитарно-технические работы | P33: январь
A34: затраты УК | B34: =B33*$F$23 -> 73.25334152 | C34: =C33*$F$23 -> 0 | H34: строительные работы | Q34: =L22 -> 8.959
H35: электромонтажные работы | P35: февраль
A36: З-ты на сод.МОП | B36: =B33-B34 -> 355.7266585 | C36: =C33-C34 -> 0 | D36: =J22 -> 61.132 | E36: =L22 -> 8.959 | F36: =B36-D36-$E$36 -> 285.6356585 | G36: =C36-D36-$E$36 -> -70.091 | L36: =SUM(L33:L35) -> 0 | M36: =F36-L36 -> 285.6356585 | N36: =G36-L36 -> -70.091 | Q36: =Q34 -> 8.959
A37: февраль | B37: 428.98 | C37: 0 | H37: санитарно-технические работы | P37: март
A38: затраты УК | B38: =B37*$F$23 -> 73.25334152 | C38: =C37*$F$23 -> 0 | H38: строительные работы | Q38: =Q36 -> 8.959
H39: электромонтажные работы | P39: аперль
A40: З-ты на сод.МОП | B40: =B37-B38 -> 355.7266585 | C40: =C37-C38 -> 0 | D40: =D36 -> 61.132 | E40: =E36 -> 8.959 | F40: =B40-D40-E40 -> 285.6356585 | G40: =C40-D40-E40 -> -70.091 | L40: =SUM(L37:L39) -> 0 | M40: =F40-L40 -> 285.6356585 | N40: =G40-L40 -> -70.091 | Q40: =Q38 -> 8.959
A41: март | B41: 428.98 | C41: 1289.21 | H41: санитарно-технические работы | P41: май
A42: затраты УК | B42: =B41*$F$23 -> 73.25334152 | C42: =C41*$F$23 -> 220.1476536 | H42: строительные работы | Q42: =Q40 -> 8.959
H43: электромонтажные работы | P43: июнь
A44: З-ты на сод.МОП | B44: =B41-B42 -> 355.7266585 | C44: 1069.062346 | D44: =D40 -> 61.132 | E44: =E40 -> 8.959 | F44: =B44-D44-E44 -> 285.6356585 | G44: =C44-D44-E44 -> 998.9713464 | L44: =SUM(L41:L43) -> 0 | M44: =F44-L44 -> 285.6356585 | N44: =G44-L44 -> 998.9713464 | Q44: =Q42 -> 8.959
A45: апрель | B45: 428.98 | C45: 0 | H45: санитарно-технические работы | P45: июль
A46: затраты УК | B46: =B45*$F$23 -> 73.25334152 | C46: =C45*$F$23 -> 0 | H46: строительные работы | Q46: =L22 -> 8.959
H47: электромонтажные работы | P47: август
A48: З-ты на сод.МОП | B48: =B45-B46 -> 355.7266585 | C48: 0 | D48: =D44 -> 61.132 | E48: =E44 -> 8.959 | F48: =B48-D48-E48 -> 285.6356585 | G48: =C48-D48-E48 -> -70.091 | L48: =SUM(L45:L46) -> 0 | M48: =F48-L48 -> 285.6356585 | N48: =G48-L48 -> -70.091 | Q48: =Q46 -> 8.959
A49: май | B49: 0 | C49: 0 | H49: санитарно-технические работы | P49: сентябрь
A50: затраты УК | B50: =B49*$F$23 -> 0 | C50: =C49*$F$23 -> 0 | H50: строительные работы | Q50: =Q48 -> 8.959
H51: электромонтажные работы | P51: октябрь
A52: З-ты на сод.МОП | B52: =B49-B50 -> 0 | C52: 0 | D52: 0 | E52: 0 | F52: =B52-D52-E52 -> 0 | G52: =C52-D52-E52 -> 0 | L52: =SUM(L49:L50) -> 0 | M52: =F52-L52 -> 0 | N52: =G52-L52 -> 0 | Q52: =Q50 -> 8.959
A53: июнь | B53: 0 | C53: 0 | H53: санитарно-технические работы | P53: ноябрь
A54: затраты УК | B54: =B53*$F$23 -> 0 | C54: =C53*$F$23 -> 0 | H54: строительные работы | Q54: =Q52 -> 8.959
H55: электромонтажные работы | P55: декабрь
A56: З-ты на сод.МОП | B56: =B53-B54 -> 0 | C56: 0 | D56: 0 | E56: 0 | F56: =B56-D56-E56 -> 0 | G56: =C56-D56-E56 -> 0 | L56: =SUM(L53:L54) -> 0 | M56: =F56-L56 -> 0 | N56: =G56-L56 -> 0 | Q56: =Q54 -> 8.959
A57: июль | B57: 0 | C57: 0 | H57: санитарно-технические работы | P57: Итого: | Q57: =SUM(Q34:Q56) -> 107.508 | R57: =SUM(R34:R56) -> 0
A58: затраты УК | B58: =B57*$F$23 -> 0 | C58: =C57*$F$23 -> 0 | H58: строительные работы | R58: =R57-Q57 -> -107.508
H59: электромонтажные работы
A60: З-ты на сод.МОП | B60: =B57-B58 -> 0 | C60: 0 | D60: 0 | E60: 0 | F60: =B60-D60-E60 -> 0 | G60: =C60-D60-E60 -> 0 | L60: =SUM(L57:L58) -> 0 | M60: =F60-L60 -> 0 | N60: =G60-L60 -> 0
A61: август | B61: 0 | C61: 0 | H61: санитарно-технические работы
A62: затраты УК | B62: =B61*$F$23 -> 0 | C62: =C61*$F$23 -> 0 | H62: строительные работы
H63: электромонтажные работы
A64: З-ты на сод.МОП | B64: =B61-B62 -> 0 | C64: 0 | D64: 0 | E64: 0 | F64: =B64-D64-E64 -> 0 | G64: =C64-D64-E64 -> 0 | L64: =SUM(L61:L62) -> 0 | M64: =F64-L64 -> 0 | N64: =G64-L64 -> 0
A65: сентябрь | B65: 0 | C65: 0 | H65: санитарно-технические работы
A66: затраты УК | B66: =B65*$F$23 -> 0 | C66: =C65*$F$23 -> 0 | H66: строительные работы
H67: электромонтажные работы
A68: З-ты на сод.МОП | B68: =B65-B66 -> 0 | C68: 0 | D68: 0 | E68: 0 | F68: =B68-D68-E68 -> 0 | G68: =C68-D68-E68 -> 0 | L68: =SUM(L65:L66) -> 0 | M68: =F68-L68 -> 0 | N68: =G68-L68 -> 0
A69: октябрь | B69: 0 | C69: 0 | H69: санитарно-технические работы
A70: затраты УК | B70: =B69*$F$23 -> 0 | C70: =C69*$F$23 -> 0 | H70: строительные работы
H71: электромонтажные работы
A72: З-ты на сод.МОП | B72: =B69-B70 -> 0 | C72: 0 | D72: 0 | E72: 0 | F72: =B72-D72-E72 -> 0 | G72: =C72-D72-E72 -> 0 | L72: =SUM(L69:L70) -> 0 | M72: =F72-L72 -> 0 | N72: =G72-L72 -> 0
A73: ноябрь | B73: 0 | C73: 0 | H73: санитарно-технические работы
A74: затраты УК | B74: =B73*$F$23 -> 0 | C74: =C73*$F$23 -> 0 | H74: строительные работы
H75: электромонтажные работы
A76: З-ты на сод.МОП | B76: =B73-B74 -> 0 | C76: 0 | D76: 0 | E76: 0 | F76: =B76-D76-E76 -> 0 | G76: =C76-D76-E76 -> 0 | L76: =SUM(L73:L74) -> 0 | M76: =F76-L76 -> 0 | N76: =G76-L76 -> 0
A77: декабрь | B77: 0 | C77: 0 | H77: санитарно-технические работы
A78: затраты УК | B78: =B77*$F$23 -> 0 | C78: =C77*$F$23 -> 0 | H78: строительные работы
H79: электромонтажные работы
A80: З-ты на сод.МОП | B80: =B77-B78 -> 0 | C80: 0 | D80: 0 | E80: 0 | F80: =B80-D80-E80 -> 0 | G80: =C80-D80-E80 -> 0 | L80: =SUM(L77:L79) -> 0 | M80: =F80-L80 -> 0 | N80: =G80-L80 -> 0
H81: Остаток 2016 года | L81: =L36+L40+L44+L48+L52+L56+L60+L64+L68+L72+L76+L80 -> 0 | M81: =M36+M40+M44+M48+M52+M56+M60+M64+M68+M72+M76+M80 -> 1142.542634 | N81: =N36+N40+N44+N48+N52+N56+N60+N64+N68+N72+N76+N80 -> 788.6983464
H82: Остаток 2015 года | M82: -7650 | N82: 1309
A83: ВСЕГО | B83: =B36+B40+B44+B48+B52+B56+B60+B64+B68+B72+B76+B80 -> 1422.906634 | C83: =C36+C40+C44+C48+C52+C56+C60+C64+C68+C72+C76+C80 -> 1069.062346 | D83: 244.528 | E83: =E36+E40+E44+E48+E52+E56+E60+E64+E68+E72+E76+E80 -> 35.836 | F83: 1142.542634 | G83: =G36+G40+G44+G48+G52+G56+G60+G64+G68+G72+G76+G80 -> 788.6983464 | H83: Всего остаток | M83: =M81+M82 -> -6507.457366 | N83: =N81+N82 -> 2097.698346
B86: Наименование работ | G86: Ед. | H86: Коли- | I86: Сумма
G87: измерен. | H87: чество
A88: Строительные работы
F92: Итого: | I92: =SUM(I89:I91) -> 0

Sheet п.Коминт.7
A2: I. ТЕХНИЧЕСКАЯ ХАРАКТЕРИСТИКА ДОМА № 6 по пер. Коминтерна | I2: Год постройки - 1931
I3: Дата начала управления 01.01.2012г.
I4: Кадастровый номер - 42:20:0101029
A5: ОБОРУДОВАН:
A6: 1.Водопровод - от центральной сети
A8: Мате- | B8: Кол-во | C8: Кол-во | D8: площадь дома в м2 | G8: объём | H8: % | I8: Кровля
A9: риал | B9: этажей | C9: квартир | D9: общая | E9: жилая | F9: не- | G9: здания | H9: износа - | I9: материал | J9: S,м2
A10: стен | B10: шт. | C10: шт. | F10: жилая | H10: год
D11: м2 | E11: м2 | G11: м3 | H11: инвентариз.
A12: Дерево | B12: 1 | C12: 1 | D12: 50.6 | E12: 41.7 | F12: 0 | G12: 180 | H12: 60%- 2007г. | I12: шиферная | J12: 79
B16: II. РАСЧЁТ НАЧИСЛЕНИЙ И ЗАТРАТ
C18: Нач-ие содержания МОП | E18: Затраты на УК | G18: Затраты на сод.дома | I18: Постоянные затраты | M18: Вып-ние тек.ремонта
A19: Площадь,м2 | C19: Тариф | D19: Плановое | E19: Тариф | F19: Плановое | G19: Тариф | H19: Плановое | I19: Вывоз ТКО | J19: Плановое | K19: Вызов АДС | L19: Плановое | M19: Тариф | N19: Плановое
D20: нач-ние | F20: нач-ние | H20: нач-ние | I20: Тариф | J20: нач-ние | K20: Тариф | L20: нач-ние | N20: нач-ние
A22: S жилая | B22: 50.6 | C22: 8.14 | D22: =B22*C22 -> 411.884 | E22: 1.39 | F22: =B22*E22 -> 70.334 | G22: =C22-E22 -> 6.75 | H22: =B22*G22 -> 341.55 | I22: 1.16 | J22: =B22*I22 -> 58.696 | K22: 0.17 | L22: =B22*K22 -> 8.602 | M22: =G22-I22-K22 -> 5.42 | N22: =B22*M22 -> 274.252 | O22: =E22+I22+K22+M22 -> 8.14
A23: Аренда | B23: 0 | F23: =E22/C22 -> 0.1707616708 | O23: =F22+H22 -> 411.884
A28: Отчёт за 2016 год
A29: по содержанию и текущему ремонту мест общего пользования жилого дома № 7 по пер. Коминтерна
A30: , | B30: ДОХОДЫ | D30: РАСХОДЫ | H30: ВЫПОЛНЕНО РАБОТ | M30: остаток + | P30: Отчетный | Q30: ОДС
B31: Начислено | C31: Оплачено | D31: Вывоз ТКО | E31: Вызов АДС | F31: Средства на т.рем. | M31: перерасход - | P31: период | Q31: план | R31: факт
B32: факт | C32: факт | F32: от нач-ия | G32: от оплаты | H32: Виды работ | L32: сумма | M32: от нач-ия | N32: от оплаты | P32: 2016г. | Q32: руб. | R32: руб.
A33: январь | B33: 411.88 | C33: 0 | H33: санитарно-технические работы | P33: январь
A34: затраты УК | B34: =B33*$F$23 -> 70.33331695 | C34: =C33*$F$23 -> 0 | H34: строительные работы | Q34: =L22 -> 8.602
H35: электромонтажные работы | P35: февраль
A36: З-ты на сод.МОП | B36: =B33-B34 -> 341.546683 | C36: =C33-C34 -> 0 | D36: =J22 -> 58.696 | E36: =L22 -> 8.602 | F36: =B36-D36-$E$36 -> 274.248683 | G36: =C36-D36-$E$36 -> -67.298 | L36: =SUM(L33:L35) -> 0 | M36: =F36-L36 -> 274.248683 | N36: =G36-L36 -> -67.298 | Q36: =Q34 -> 8.602
A37: февраль | B37: 411.88 | C37: 0 | H37: санитарно-технические работы | P37: март
A38: затраты УК | B38: =B37*$F$23 -> 70.33331695 | C38: =C37*$F$23 -> 0 | H38: строительные работы | Q38: =Q36 -> 8.602
H39: электромонтажные работы | P39: аперль
A40: З-ты на сод.МОП | B40: =B37-B38 -> 341.546683 | C40: =C37-C38 -> 0 | D40: =D36 -> 58.696 | E40: =E36 -> 8.602 | F40: =B40-D40-E40 -> 274.248683 | G40: =C40-D40-E40 -> -67.298 | L40: =SUM(L37:L39) -> 0 | M40: =F40-L40 -> 274.248683 | N40: =G40-L40 -> -67.298 | Q40: =Q38 -> 8.602
A41: март | B41: 411.88 | C41: 0 | H41: санитарно-технические работы | P41: май
A42: затраты УК | B42: =B41*$F$23 -> 70.33331695 | C42: =C41*$F$23 -> 0 | H42: строительные работы | Q42: =Q40 -> 8.602
H43: электромонтажные работы | P43: июнь
A44: З-ты на сод.МОП | B44: =B41-B42 -> 341.546683 | C44: 0 | D44: =D40 -> 58.696 | E44: =E40 -> 8.602 | F44: =B44-D44-E44 -> 274.248683 | G44: =C44-D44-E44 -> -67.298 | L44: =SUM(L41:L43) -> 0 | M44: =F44-L44 -> 274.248683 | N44: =G44-L44 -> -67.298 | Q44: =Q42 -> 8.602
A45: апрель | B45: 411.88 | C45: 0 | H45: санитарно-технические работы | P45: июль
A46: затраты УК | B46: =B45*$F$23 -> 70.33331695 | C46: =C45*$F$23 -> 0 | H46: строительные работы | Q46: =L22 -> 8.602
H47: электромонтажные работы | P47: август
A48: З-ты на сод.МОП | B48: =B45-B46 -> 341.546683 | C48: 0 | D48: =D44 -> 58.696 | E48: =E44 -> 8.602 | F48: =B48-D48-E48 -> 274.248683 | G48: =C48-D48-E48 -> -67.298 | L48: =SUM(L45:L46) -> 0 | M48: =F48-L48 -> 274.248683 | N48: =G48-L48 -> -67.298 | Q48: =Q46 -> 8.602
A49: май | B49: 0 | C49: 0 | H49: санитарно-технические работы | P49: сентябрь
A50: затраты УК | B50: =B49*$F$23 -> 0 | C50: =C49*$F$23 -> 0 | H50: строительные работы | Q50: =Q48 -> 8.602
H51: электромонтажные работы | P51: октябрь
A52: З-ты на сод.МОП | B52: =B49-B50 -> 0 | C52: 0 | D52: 0 | E52: 0 | F52: =B52-D52-E52 -> 0 | G52: =C52-D52-E52 -> 0 | L52: =SUM(L49:L50) -> 0 | M52: =F52-L52 -> 0 | N52: =G52-L52 -> 0 | Q52: =Q50 -> 8.602
A53: июнь | B53: 0 | C53: 0 | H53: санитарно-технические работы | P53: ноябрь
A54: затраты УК | B54: =B53*$F$23 -> 0 | C54: =C53*$F$23 -> 0 | H54: строительные работы | Q54: =Q52 -> 8.602
H55: электромонтажные работы | P55: декабрь
A56: З-ты на сод.МОП | B56: =B53-B54 -> 0 | C56: 0 | D56: 0 | E56: 0 | F56: =B56-D56-E56 -> 0 | G56: =C56-D56-E56 -> 0 | L56: =SUM(L53:L54) -> 0 | M56: =F56-L56 -> 0 | N56: =G56-L56 -> 0 | Q56: =Q54 -> 8.602
A57: июль | B57: 0 | C57: 0 | H57: санитарно-технические работы | P57: Итого: | Q57: =SUM(Q34:Q56) -> 103.224 | R57: =SUM(R34:R56) -> 0
A58: затраты УК | B58: =B57*$F$23 -> 0 | C58: =C57*$F$23 -> 0 | H58: строительные работы | R58: =R57-Q57 -> -103.224
H59: электромонтажные работы
A60: З-ты на сод.МОП | B60: =B57-B58 -> 0 | C60: 0 | D60: 0 | E60: 0 | F60: =B60-D60-E60 -> 0 | G60: =C60-D60-E60 -> 0 | L60: =SUM(L57:L58) -> 0 | M60: =F60-L60 -> 0 | N60: =G60-L60 -> 0
A61: август | B61: 0 | C61: 0 | H61: санитарно-технические работы
A62: затраты УК | B62: =B61*$F$23 -> 0 | C62: =C61*$F$23 -> 0 | H62: строительные работы
H63: электромонтажные работы
A64: З-ты на сод.МОП | B64: =B61-B62 -> 0 | C64: 0 | D64: 0 | E64: 0 | F64: =B64-D64-E64 -> 0 | G64: =C64-D64-E64 -> 0 | L64: =SUM(L61:L62) -> 0 | M64: =F64-L64 -> 0 | N64: =G64-L64 -> 0
A65: сентябрь | B65: 0 | C65: 0 | H65: санитарно-технические работы
A66: затраты УК | B66: =B65*$F$23 -> 0 | C66: =C65*$F$23 -> 0 | H66: строительные работы
H67: электромонтажные работы
A68: З-ты на сод.МОП | B68: =B65-B66 -> 0 | C68: 0 | D68: 0 | E68: 0 | F68: =B68-D68-E68 -> 0 | G68: =C68-D68-E68 -> 0 | L68: =SUM(L65:L66) -> 0 | M68: =F68-L68 -> 0 | N68: =G68-L68 -> 0
A69: октябрь | B69: 0 | C69: 0 | H69: санитарно-технические работы
A70: затраты УК | B70: =B69*$F$23 -> 0 | C70: =C69*$F$23 -> 0 | H70: строительные работы
H71: электромонтажные работы
A72: З-ты на сод.МОП | B72: =B69-B70 -> 0 | C72: 0 | D72: 0 | E72: 0 | F72: =B72-D72-E72 -> 0 | G72: =C72-D72-E72 -> 0 | L72: =SUM(L69:L70) -> 0 | M72: =F72-L72 -> 0 | N72: =G72-L72 -> 0
A73: ноябрь | B73: 0 | C73: 0 | H73: санитарно-технические работы
A74: затраты УК | B74: =B73*$F$23 -> 0 | C74: =C73*$F$23 -> 0 | H74: строительные работы
H75: электромонтажные работы
A76: З-ты на сод.МОП | B76: =B73-B74 -> 0 | C76: 0 | D76: 0 | E76: 0 | F76: =B76-D76-E76 -> 0 | G76: =C76-D76-E76 -> 0 | L76: =SUM(L73:L74) -> 0 | M76: =F76-L76 -> 0 | N76: =G76-L76 -> 0
A77: декабрь | B77: 0 | C77: 0 | H77: санитарно-технические работы
A78: затраты УК | B78: =B77*$F$23 -> 0 | C78: =C77*$F$23 -> 0 | H78: строительные работы
H79: электромонтажные работы
A80: З-ты на сод.МОП | B80: =B77-B78 -> 0 | C80: 0 | D80: 0 | E80: 0 | F80: =B80-D80-E80 -> 0 | G80: =C80-D80-E80 -> 0 | L80: =SUM(L77:L79) -> 0 | M80: =F80-L80 -> 0 | N80: =G80-L80 -> 0
H81: Остаток 2016 года | L81: =L36+L40+L44+L48+L52+L56+L60+L64+L68+L72+L76+L80 -> 0 | M81: =M36+M40+M44+M48+M52+M56+M60+M64+M68+M72+M76+M80 -> 1096.994732 | N81: =N36+N40+N44+N48+N52+N56+N60+N64+N68+N72+N76+N80 -> -269.192
H82: Остаток 2015 года | M82: 5750 | N82: -5698
A83: ВСЕГО | B83: =B36+B40+B44+B48+B52+B56+B60+B64+B68+B72+B76+B80 -> 1366.186732 | C83: =C36+C40+C44+C48+C52+C56+C60+C64+C68+C72+C76+C80 -> 0 | D83: 234.784 | E83: =E36+E40+E44+E48+E52+E56+E60+E64+E68+E72+E76+E80 -> 34.408 | F83: 1096.994732 | G83: =G36+G40+G44+G48+G52+G56+G60+G64+G68+G72+G76+G80 -> -269.192 | H83: Всего остаток | M83: =M81+M82 -> 6846.994732 | N83: =N81+N82 -> -5967.192
B86: Наименование работ | G86: Ед. | H86: Коли- | I86: Сумма
G87: измерен. | H87: чество
A88: Строительные работы
F92: Итого: | I92: =SUM(I89:I91) -> 0

Sheet п.Копейс.3
A2: I. ТЕХНИЧЕСКАЯ ХАРАКТЕРИСТИКА ДОМА № 7 по пер. Коминтерна | I2: Год постройки - 1914
I3: Дата начала управления 01.01.2012г.
I4: Кадастровый номер - 42:20:0101026
A5: ОБОРУДОВАН:
A6: 1.Водопровод - от центральной сети
A8: Мате- | B8: Кол-во | C8: Кол-во | D8: площадь дома в м2 | G8: объём | H8: % | I8: Кровля
A9: риал | B9: этажей | C9: квартир | D9: общая | E9: жилая | F9: не- | G9: здания | H9: износа - | I9: материал | J9: S,м2
A10: стен | B10: шт. | C10: шт. | F10: жилая | H10: год
D11: м2 | E11: м2 | G11: м3 | H11: инвентариз.
A12: Дерево | B12: 1 | C12: 3 | D12: 123.9 | E12: 86.3 | F12: 0 | G12: 394 | H12: 65%- 2005г. | I12: шиферная | J12: 130
B16: II. РАСЧЁТ НАЧИСЛЕНИЙ И ЗАТРАТ
C18: Нач-ие содержания МОП | E18: Затраты на УК | G18: Затраты на сод.дома | I18: Постоянные затраты | M18: Вып-ние тек.ремонта
A19: Площадь,м2 | C19: Тариф | D19: Плановое | E19: Тариф | F19: Плановое | G19: Тариф | H19: Плановое | I19: Вывоз ТКО | J19: Плановое | K19: Вызов АДС | L19: Плановое | M19: Тариф | N19: Плановое
D20: нач-ние | F20: нач-ние | H20: нач-ние | I20: Тариф | J20: нач-ние | K20: Тариф | L20: нач-ние | N20: нач-ние
A22: S жилая | B22: 123.9 | C22: 8.14 | D22: =B22*C22 -> 1008.546 | E22: 1.39 | F22: =B22*E22 -> 172.221 | G22: =C22-E22 -> 6.75 | H22: =B22*G22 -> 836.325 | I22: 1.16 | J22: =B22*I22 -> 143.724 | K22: 0.17 | L22: =B22*K22 -> 21.063 | M22: =G22-I22-K22 -> 5.42 | N22: =B22*M22 -> 671.538 | O22: =E22+I22+K22+M22 -> 8.14
A23: Аренда | B23: 0 | F23: =E22/C22 -> 0.1707616708 | O23: =F22+H22 -> 1008.546
A28: Отчёт за 2016 год
A29: по содержанию и текущему ремонту мест общего пользования жилого дома № 7 по пер. Коминтерна
A30: , | B30: ДОХОДЫ | D30: РАСХОДЫ | H30: ВЫПОЛНЕНО РАБОТ | M30: остаток + | P30: Отчетный | Q30: ОДС
B31: Начислено | C31: Оплачено | D31: Вывоз ТКО | E31: Вызов АДС | F31: Средства на т.рем. | M31: перерасход - | P31: период | Q31: план | R31: факт
B32: факт | C32: факт | F32: от нач-ия | G32: от оплаты | H32: Виды работ | L32: сумма | M32: от нач-ия | N32: от оплаты | P32: 2016г. | Q32: руб. | R32: руб.
A33: январь | B33: 1008.54 | C33: 297.11 | H33: санитарно-технические работы | P33: январь
A34: затраты УК | B34: =B33*$F$23 -> 172.2199754 | C34: =C33*$F$23 -> 50.735 | H34: строительные работы | Q34: =L22 -> 21.063
H35: электромонтажные работы | P35: февраль
A36: З-ты на сод.МОП | B36: =B33-B34 -> 836.3200246 | C36: =C33-C34 -> 246.375 | D36: =J22 -> 143.724 | E36: =L22 -> 21.063 | F36: =B36-D36-$E$36 -> 671.5330246 | G36: =C36-D36-$E$36 -> 81.588 | L36: =SUM(L33:L35) -> 0 | M36: =F36-L36 -> 671.5330246 | N36: =G36-L36 -> 81.588 | Q36: =Q34 -> 21.063
A37: февраль | B37: 830.28 | C37: 2021.2 | H37: санитарно-технические работы | P37: март
A38: затраты УК | B38: =B37*$F$23 -> 141.78 | C38: =C37*$F$23 -> 345.1434889 | H38: строительные работы | Q38: =Q36 -> 21.063
H39: электромонтажные работы | P39: аперль
A40: З-ты на сод.МОП | B40: =B37-B38 -> 688.5 | C40: =C37-C38 -> 1676.056511 | D40: =D36 -> 143.724 | E40: =E36 -> 21.063 | F40: =B40-D40-E40 -> 523.713 | G40: =C40-D40-E40 -> 1511.269511 | L40: =SUM(L37:L39) -> 0 | M40: =F40-L40 -> 523.713 | N40: =G40-L40 -> 1511.269511 | Q40: =Q38 -> 21.063
A41: март | B41: 1008.54 | C41: 300.54 | H41: санитарно-технические работы | P41: май
A42: затраты УК | B42: =B41*$F$23 -> 172.2199754 | C42: =C41*$F$23 -> 51.32071253 | H42: строительные работы | Q42: =Q40 -> 21.063
H43: электромонтажные работы | P43: июнь
A44: З-ты на сод.МОП | B44: =B41-B42 -> 836.3200246 | C44: 249.2192875 | D44: =D40 -> 143.724 | E44: =E40 -> 21.063 | F44: =B44-D44-E44 -> 671.5330246 | G44: =C44-D44-E44 -> 84.43228747 | L44: =SUM(L41:L43) -> 0 | M44: =F44-L44 -> 671.5330246 | N44: =G44-L44 -> 84.43228747 | Q44: =Q42 -> 21.063
A45: апрель | B45: 1008.54 | C45: 1021.36 | H45: санитарно-технические работы | P45: июль
A46: затраты УК | B46: =B45*$F$23 -> 172.2199754 | C46: =C45*$F$23 -> 174.40914 | H46: строительные работы | Q46: =L22 -> 21.063
H47: электромонтажные работы | P47: август
A48: З-ты на сод.МОП | B48: =B45-B46 -> 836.3200246 | C48: 846.95086 | D48: =D44 -> 143.724 | E48: =E44 -> 21.063 | F48: =B48-D48-E48 -> 671.5330246 | G48: =C48-D48-E48 -> 682.16386 | L48: =SUM(L45:L46) -> 0 | M48: =F48-L48 -> 671.5330246 | N48: =G48-L48 -> 682.16386 | Q48: =Q46 -> 21.063
A49: май | B49: 0 | C49: 0 | H49: санитарно-технические работы | P49: сентябрь
A50: затраты УК | B50: =B49*$F$23 -> 0 | C50: =C49*$F$23 -> 0 | H50: строительные работы | Q50: =Q48 -> 21.063
H51: электромонтажные работы | P51: октябрь
A52: З-ты на сод.МОП | B52: =B49-B50 -> 0 | C52: 0 | D52: 0 | E52: 0 | F52: =B52-D52-E52 -> 0 | G52: =C52-D52-E52 -> 0 | L52: =SUM(L49:L50) -> 0 | M52: =F52-L52 -> 0 | N52: =G52-L52 -> 0 | Q52: =Q50 -> 21.063
A53: июнь | B53: 0 | C53: 0 | H53: санитарно-технические работы | P53: ноябрь
A54: затраты УК | B54: =B53*$F$23 -> 0 | C54: =C53*$F$23 -> 0 | H54: строительные работы | Q54: =Q52 -> 21.063
H55: электромонтажные работы | P55: декабрь
A56: З-ты на сод.МОП | B56: =B53-B54 -> 0 | C56: 0 | D56: 0 | E56: 0 | F56: =B56-D56-E56 -> 0 | G56: =C56-D56-E56 -> 0 | L56: =SUM(L53:L54) -> 0 | M56: =F56-L56 -> 0 | N56: =G56-L56 -> 0 | Q56: =Q54 -> 21.063
A57: июль | B57: 0 | C57: 0 | H57: санитарно-технические работы | P57: Итого: | Q57: =SUM(Q34:Q56) -> 252.756 | R57: =SUM(R34:R56) -> 0
A58: затраты УК | B58: =B57*$F$23 -> 0 | C58: =C57*$F$23 -> 0 | H58: строительные работы | R58: =R57-Q57 -> -252.756
H59: электромонтажные работы
A60: З-ты на сод.МОП | B60: =B57-B58 -> 0 | C60: 0 | D60: 0 | E60: 0 | F60: =B60-D60-E60 -> 0 | G60: =C60-D60-E60 -> 0 | L60: =SUM(L57:L58) -> 0 | M60: =F60-L60 -> 0 | N60: =G60-L60 -> 0
A61: август | B61: 0 | C61: 0 | H61: санитарно-технические работы
A62: затраты УК | B62: =B61*$F$23 -> 0 | C62: =C61*$F$23 -> 0 | H62: строительные работы
H63: электромонтажные работы
A64: З-ты на сод.МОП | B64: =B61-B62 -> 0 | C64: 0 | D64: 0 | E64: 0 | F64: =B64-D64-E64 -> 0 | G64: =C64-D64-E64 -> 0 | L64: =SUM(L61:L62) -> 0 | M64: =F64-L64 -> 0 | N64: =G64-L64 -> 0
A65: сентябрь | B65: 0 | C65: 0 | H65: санитарно-технические работы
A66: затраты УК | B66: =B65*$F$23 -> 0 | C66: =C65*$F$23 -> 0 | H66: строительные работы
H67: электромонтажные работы
A68: З-ты на сод.МОП | B68: =B65-B66 -> 0 | C68: 0 | D68: 0 | E68: 0 | F68: =B68-D68-E68 -> 0 | G68: =C68-D68-E68 -> 0 | L68: =SUM(L65:L66) -> 0 | M68: =F68-L68 -> 0 | N68: =G68-L68 -> 0
A69: октябрь | B69: 0 | C69: 0 | H69: санитарно-технические работы
A70: затраты УК | B70: =B69*$F$23 -> 0 | C70: =C69*$F$23 -> 0 | H70: строительные работы
H71: электромонтажные работы
A72: З-ты на сод.МОП | B72: =B69-B70 -> 0 | C72: 0 | D72: 0 | E72: 0 | F72: =B72-D72-E72 -> 0 | G72: =C72-D72-E72 -> 0 | L72: =SUM(L69:L70) -> 0 | M72: =F72-L72 -> 0 | N72: =G72-L72 -> 0
A73: ноябрь | B73: 0 | C73: 0 | H73: санитарно-технические работы
A74: затраты УК | B74: =B73*$F$23 -> 0 | C74: =C73*$F$23 -> 0 | H74: строительные работы
H75: электромонтажные работы
A76: З-ты на сод.МОП | B76: =B73-B74 -> 0 | C76: 0 | D76: 0 | E76: 0 | F76: =B76-D76-E76 -> 0 | G76: =C76-D76-E76 -> 0 | L76: =SUM(L73:L74) -> 0 | M76: =F76-L76 -> 0 | N76: =G76-L76 -> 0
A77: декабрь | B77: 0 | C77: 0 | H77: санитарно-технические работы
A78: затраты УК | B78: =B77*$F$23 -> 0 | C78: =C77*$F$23 -> 0 | H78: строительные работы
H79: электромонтажные работы
A80: З-ты на сод.МОП | B80: =B77-B78 -> 0 | C80: 0 | D80: 0 | E80: 0 | F80: =B80-D80-E80 -> 0 | G80: =C80-D80-E80 -> 0 | L80: =SUM(L77:L79) -> 0 | M80: =F80-L80 -> 0 | N80: =G80-L80 -> 0
H81: Остаток 2016 года | L81: =L36+L40+L44+L48+L52+L56+L60+L64+L68+L72+L76+L80 -> 0 | M81: =M36+M40+M44+M48+M52+M56+M60+M64+M68+M72+M76+M80 -> 2538.312074 | N81: =N36+N40+N44+N48+N52+N56+N60+N64+N68+N72+N76+N80 -> 2359.453658
H82: Остаток 2015 года | M82: 26604 | N82: 24512
A83: ВСЕГО | B83: =B36+B40+B44+B48+B52+B56+B60+B64+B68+B72+B76+B80 -> 3197.460074 | C83: =C36+C40+C44+C48+C52+C56+C60+C64+C68+C72+C76+C80 -> 3018.601658 | D83: 574.896 | E83: =E36+E40+E44+E48+E52+E56+E60+E64+E68+E72+E76+E80 -> 84.252 | F83: 2538.312074 | G83: =G36+G40+G44+G48+G52+G56+G60+G64+G68+G72+G76+G80 -> 2359.453658 | H83: Всего остаток | M83: =M81+M82 -> 29142.31207 | N83: =N81+N82 -> 26871.45366
B86: Наименование работ | G86: Ед. | H86: Коли- | I86: Сумма
G87: измерен. | H87: чество
A88: Строительные работы
F92: Итого: | I92: =SUM(I89:I91) -> 0

Sheet п.Львин.9
A2: I. ТЕХНИЧЕСКАЯ ХАРАКТЕРИСТИКА ДОМА № 9 по пер. Львиный | I2: Год постройки - 1923
I3: Дата начала управления 01.01.2012г.
I4: Кадастровый номер - 42:20:0101018
A5: ОБОРУДОВАН:
A6: 1.Водопровод - от центральной сети
A8: Мате- | B8: Кол-во | C8: Кол-во | D8: площадь дома в м2 | G8: объём | H8: % | I8: Кровля
A9: риал | B9: этажей | C9: квартир | D9: общая | E9: жилая | F9: не- | G9: здания | H9: износа - | I9: материал | J9: S,м2
A10: стен | B10: шт. | C10: шт. | F10: жилая | H10: год
D11: м2 | E11: м2 | G11: м3 | H11: инвентариз.
A12: Дерево | B12: 1 | C12: 1 | D12: 39.6 | E12: 32 | F12: 0 | G12: 119 | I12: шифер | J12: 49.5
B16: II. РАСЧЁТ НАЧИСЛЕНИЙ И ЗАТРАТ
C18: Нач-ие содержания МОП | E18: Затраты на УК | G18: Затраты на сод.дома | I18: Постоянные затраты | M18: Вып-ние тек.ремонта
A19: Площадь,м2 | C19: Тариф | D19: Плановое | E19: Тариф | F19: Плановое | G19: Тариф | H19: Плановое | I19: Вывоз ТКО | J19: Плановое | K19: Вызов АДС | L19: Плановое | M19: Тариф | N19: Плановое
D20: нач-ние | F20: нач-ние | H20: нач-ние | I20: Тариф | J20: нач-ние | K20: Тариф | L20: нач-ние | N20: нач-ние
A22: S жилая | B22: 39.6 | C22: 8.14 | D22: =B22*C22 -> 322.344 | E22: 1.39 | F22: =B22*E22 -> 55.044 | G22: =C22-E22 -> 6.75 | H22: =B22*G22 -> 267.3 | I22: 1.16 | J22: =B22*I22 -> 45.936 | K22: 0.17 | L22: =B22*K22 -> 6.732 | M22: =G22-I22-K22 -> 5.42 | N22: =B22*M22 -> 214.632 | O22: =E22+I22+K22+M22 -> 8.14
A23: Аренда | B23: 0 | F23: =E22/C22 -> 0.1707616708 | O23: =F22+H22 -> 322.344
A28: Отчёт за 2016 год
A29: по содержанию и текущему ремонту мест общего пользования жилого дома № 9 по пер.Львиный
A30: , | B30: ДОХОДЫ | D30: РАСХОДЫ | H30: ВЫПОЛНЕНО РАБОТ | M30: остаток + | P30: Отчетный | Q30: ОДС
B31: Начислено | C31: Оплачено | D31: Вывоз ТКО | E31: Вызов АДС | F31: Средства на т.рем. | M31: перерасход - | P31: период | Q31: план | R31: факт
B32: факт | C32: факт | F32: от нач-ия | G32: от оплаты | H32: Виды работ | L32: сумма | M32: от нач-ия | N32: от оплаты | P32: 2016г. | Q32: руб. | R32: руб.
A33: январь | B33: 569.04 | C33: 8140.12 | H33: санитарно-технические работы | P33: январь
A34: затраты УК | B34: =B33*$F$23 -> 97.17022113 | C34: =C33*$F$23 -> 1390.020491 | H34: строительные работы | Q34: =L22 -> 6.732
H35: электромонтажные работы | P35: февраль
A36: З-ты на сод.МОП | B36: =B33-B34 -> 471.8697789 | C36: =C33-C34 -> 6750.099509 | D36: =J22 -> 45.936 | E36: =L22 -> 6.732 | F36: =B36-D36-$E$36 -> 419.2017789 | G36: =C36-D36-$E$36 -> 6697.431509 | L36: =SUM(L33:L35) -> 0 | M36: =F36-L36 -> 419.2017789 | N36: =G36-L36 -> 6697.431509 | Q36: =Q34 -> 6.732
A37: февраль | B37: 301.94 | C37: 0 | H37: санитарно-технические работы | P37: март
A38: затраты УК | B38: =B37*$F$23 -> 51.55977887 | C38: =C37*$F$23 -> 0 | H38: строительные работы | Q38: =Q36 -> 6.732
H39: электромонтажные работы | P39: аперль
A40: З-ты на сод.МОП | B40: =B37-B38 -> 250.3802211 | C40: =C37-C38 -> 0 | D40: =D36 -> 45.936 | E40: =E36 -> 6.732 | F40: =B40-D40-E40 -> 197.7122211 | G40: =C40-D40-E40 -> -52.668 | L40: =SUM(L37:L39) -> 0 | M40: =F40-L40 -> 197.7122211 | N40: =G40-L40 -> -52.668 | Q40: =Q38 -> 6.732
A41: март | B41: 322.34 | C41: 0 | H41: санитарно-технические работы | P41: май
A42: затраты УК | B42: =B41*$F$23 -> 55.04331695 | C42: =C41*$F$23 -> 0 | H42: строительные работы | Q42: =Q40 -> 6.732
H43: электромонтажные работы | P43: июнь
A44: З-ты на сод.МОП | B44: =B41-B42 -> 267.296683 | C44: 0 | D44: =D40 -> 45.936 | E44: =E40 -> 6.732 | F44: =B44-D44-E44 -> 214.628683 | G44: =C44-D44-E44 -> -52.668 | L44: =SUM(L41:L43) -> 0 | M44: =F44-L44 -> 214.628683 | N44: =G44-L44 -> -52.668 | Q44: =Q42 -> 6.732
A45: апрель | B45: 322.34 | C45: 0 | H45: санитарно-технические работы | P45: июль
A46: затраты УК | B46: =B45*$F$23 -> 55.04331695 | C46: =C45*$F$23 -> 0 | H46: строительные работы | Q46: =L22 -> 6.732
H47: электромонтажные работы | P47: август
A48: З-ты на сод.МОП | B48: =B45-B46 -> 267.296683 | C48: 0 | D48: =D44 -> 45.936 | E48: =E44 -> 6.732 | F48: =B48-D48-E48 -> 214.628683 | G48: =C48-D48-E48 -> -52.668 | L48: =SUM(L45:L46) -> 0 | M48: =F48-L48 -> 214.628683 | N48: =G48-L48 -> -52.668 | Q48: =Q46 -> 6.732
A49: май | B49: 0 | C49: 0 | H49: санитарно-технические работы | P49: сентябрь
A50: затраты УК | B50: =B49*$F$23 -> 0 | C50: =C49*$F$23 -> 0 | H50: строительные работы | Q50: =Q48 -> 6.732
H51: электромонтажные работы | P51: октябрь
A52: З-ты на сод.МОП | B52: =B49-B50 -> 0 | C52: 0 | D52: 0 | E52: 0 | F52: =B52-D52-E52 -> 0 | G52: =C52-D52-E52 -> 0 | L52: =SUM(L49:L50) -> 0 | M52: =F52-L52 -> 0 | N52: =G52-L52 -> 0 | Q52: =Q50 -> 6.732
A53: июнь | B53: 0 | C53: 0 | H53: санитарно-технические работы | P53: ноябрь
A54: затраты УК | B54: =B53*$F$23 -> 0 | C54: =C53*$F$23 -> 0 | H54: строительные работы | Q54: =Q52 -> 6.732
H55: электромонтажные работы | P55: декабрь
A56: З-ты на сод.МОП | B56: =B53-B54 -> 0 | C56: 0 | D56: 0 | E56: 0 | F56: =B56-D56-E56 -> 0 | G56: =C56-D56-E56 -> 0 | L56: =SUM(L53:L54) -> 0 | M56: =F56-L56 -> 0 | N56: =G56-L56 -> 0 | Q56: =Q54 -> 6.732
A57: июль | B57: 0 | C57: 0 | H57: санитарно-технические работы | P57: Итого: | Q57: =SUM(Q34:Q56) -> 80.784 | R57: =SUM(R34:R56) -> 0
A58: затраты УК | B58: =B57*$F$23 -> 0 | C58: =C57*$F$23 -> 0 | H58: строительные работы | R58: =R57-Q57 -> -80.784
H59: электромонтажные работы
A60: З-ты на сод.МОП | B60: =B57-B58 -> 0 | C60: 0 | D60: 0 | E60: 0 | F60: =B60-D60-E60 -> 0 | G60: =C60-D60-E60 -> 0 | L60: =SUM(L57:L58) -> 0 | M60: =F60-L60 -> 0 | N60: =G60-L60 -> 0
A61: август | B61: 0 | C61: 0 | H61: санитарно-технические работы
A62: затраты УК | B62: =B61*$F$23 -> 0 | C62: =C61*$F$23 -> 0 | H62: строительные работы
H63: электромонтажные работы
A64: З-ты на сод.МОП | B64: =B61-B62 -> 0 | C64: 0 | D64: 0 | E64: 0 | F64: =B64-D64-E64 -> 0 | G64: =C64-D64-E64 -> 0 | L64: =SUM(L61:L62) -> 0 | M64: =F64-L64 -> 0 | N64: =G64-L64 -> 0
A65: сентябрь | B65: 0 | C65: 0 | H65: санитарно-технические работы
A66: затраты УК | B66: =B65*$F$23 -> 0 | C66: =C65*$F$23 -> 0 | H66: строительные работы
H67: электромонтажные работы
A68: З-ты на сод.МОП | B68: =B65-B66 -> 0 | C68: 0 | D68: 0 | E68: 0 | F68: =B68-D68-E68 -> 0 | G68: =C68-D68-E68 -> 0 | L68: =SUM(L65:L66) -> 0 | M68: =F68-L68 -> 0 | N68: =G68-L68 -> 0
A69: октябрь | B69: 0 | C69: 0 | H69: санитарно-технические работы
A70: затраты УК | B70: =B69*$F$23 -> 0 | C70: =C69*$F$23 -> 0 | H70: строительные работы
H71: электромонтажные работы
A72: З-ты на сод.МОП | B72: =B69-B70 -> 0 | C72: 0 | D72: 0 | E72: 0 | F72: =B72-D72-E72 -> 0 | G72: =C72-D72-E72 -> 0 | L72: =SUM(L69:L70) -> 0 | M72: =F72-L72 -> 0 | N72: =G72-L72 -> 0
A73: ноябрь | B73: 0 | C73: 0 | H73: санитарно-технические работы
A74: затраты УК | B74: =B73*$F$23 -> 0 | C74: =C73*$F$23 -> 0 | H74: строительные работы
H75: электромонтажные работы
A76: З-ты на сод.МОП | B76: =B73-B74 -> 0 | C76: 0 | D76: 0 | E76: 0 | F76: =B76-D76-E76 -> 0 | G76: =C76-D76-E76 -> 0 | L76: =SUM(L73:L74) -> 0 | M76: =F76-L76 -> 0 | N76: =G76-L76 -> 0
A77: декабрь | B77: 0 | C77: 0 | H77: санитарно-технические работы
A78: затраты УК | B78: =B77*$F$23 -> 0 | C78: =C77*$F$23 -> 0 | H78: строительные работы
H79: электромонтажные работы
A80: З-ты на сод.МОП | B80: =B77-B78 -> 0 | C80: 0 | D80: 0 | E80: 0 | F80: =B80-D80-E80 -> 0 | G80: =C80-D80-E80 -> 0 | L80: =SUM(L77:L79) -> 0 | M80: =F80-L80 -> 0 | N80: =G80-L80 -> 0
H81: Остаток 2016 года | L81: =L36+L40+L44+L48+L52+L56+L60+L64+L68+L72+L76+L80 -> 0 | M81: =M36+M40+M44+M48+M52+M56+M60+M64+M68+M72+M76+M80 -> 1046.171366 | N81: =N36+N40+N44+N48+N52+N56+N60+N64+N68+N72+N76+N80 -> 6539.427509
H82: Остаток 2015 года | M82: 19258 | N82: 4532
A83: ВСЕГО | B83: =B36+B40+B44+B48+B52+B56+B60+B64+B68+B72+B76+B80 -> 1256.843366 | C83: =C36+C40+C44+C48+C52+C56+C60+C64+C68+C72+C76+C80 -> 6750.099509 | D83: 183.744 | E83: =E36+E40+E44+E48+E52+E56+E60+E64+E68+E72+E76+E80 -> 26.928 | F83: 1046.171366 | G83: =G36+G40+G44+G48+G52+G56+G60+G64+G68+G72+G76+G80 -> 6539.427509 | H83: Всего остаток | M83: =M81+M82 -> 20304.17137 | N83: =N81+N82 -> 11071.42751
B86: Наименование работ | G86: Ед. | H86: Коли- | I86: Сумма
G87: измерен. | H87: чество
A88: Строительные работы
F92: Итого: | I92: =SUM(I89:I91) -> 0

Sheet п.Львин.11
A2: I. ТЕХНИЧЕСКАЯ ХАРАКТЕРИСТИКА ДОМА № 11 по пер. Львиный | I2: Год постройки - 1927
I3: Дата начала управления 01.01.2012г.
I4: Кадастровый номер - 42:20:0101018
A5: ОБОРУДОВАН:
A6: 1.Водопровод - от центральной сети
A8: Мате- | B8: Кол-во | C8: Кол-во | D8: площадь дома в м2 | G8: объём | H8: % | I8: Кровля
A9: риал | B9: этажей | C9: квартир | D9: общая | E9: жилая | F9: не- | G9: здания | H9: износа - | I9: материал | J9: S,м2
A10: стен | B10: шт. | C10: шт. | F10: жилая | H10: год
D11: м2 | E11: м2 | G11: м3 | H11: инвентариз.
A12: Дерево | B12: 1 | C12: 3 | D12: 122 | E12: 79 | F12: 0 | G12: 430 | I12: шиферная | J12: 180
B16: II. РАСЧЁТ НАЧИСЛЕНИЙ И ЗАТРАТ
C18: Нач-ие содержания МОП | E18: Затраты на УК | G18: Затраты на сод.дома | I18: Постоянные затраты | M18: Вып-ние тек.ремонта
A19: Площадь,м2 | C19: Тариф | D19: Плановое | E19: Тариф | F19: Плановое | G19: Тариф | H19: Плановое | I19: Вывоз ТКО | J19: Плановое | K19: Вызов АДС | L19: Плановое | M19: Тариф | N19: Плановое
D20: нач-ние | F20: нач-ние | H20: нач-ние | I20: Тариф | J20: нач-ние | K20: Тариф | L20: нач-ние | N20: нач-ние
A22: S жилая | B22: 122 | C22: 8.14 | D22: =B22*C22 -> 993.08 | E22: 1.39 | F22: =B22*E22 -> 169.58 | G22: =C22-E22 -> 6.75 | H22: =B22*G22 -> 823.5 | I22: 1.16 | J22: =B22*I22 -> 141.52 | K22: 0.17 | L22: =B22*K22 -> 20.74 | M22: =G22-I22-K22 -> 5.42 | N22: =B22*M22 -> 661.24 | O22: =E22+I22+K22+M22 -> 8.14
A23: Аренда | B23: 0 | F23: =E22/C22 -> 0.1707616708 | O23: =F22+H22 -> 993.08
A28: Отчёт за 2016 год
A29: по содержанию и текущему ремонту мест общего пользования жилого дома № 11 по пер.Львиный
A30: , | B30: ДОХОДЫ | D30: РАСХОДЫ | H30: ВЫПОЛНЕНО РАБОТ | M30: остаток + | P30: Отчетный | Q30: ОДС
B31: Начислено | C31: Оплачено | D31: Вывоз ТКО | E31: Вызов АДС | F31: Средства на т.рем. | M31: перерасход - | P31: период | Q31: план | R31: факт
B32: факт | C32: факт | F32: от нач-ия | G32: от оплаты | H32: Виды работ | L32: сумма | M32: от нач-ия | N32: от оплаты | P32: 2016г. | Q32: руб. | R32: руб.
A33: январь | B33: 993.07 | C33: 604.39 | H33: санитарно-технические работы | P33: январь
A34: затраты УК | B34: =B33*$F$23 -> 169.5782924 | C34: =C33*$F$23 -> 103.2066462 | H34: строительные работы | Q34: =L22 -> 20.74
H35: электромонтажные работы | P35: февраль
A36: З-ты на сод.МОП | B36: =B33-B34 -> 823.4917076 | C36: =C33-C34 -> 501.1833538 | D36: =J22 -> 141.52 | E36: =L22 -> 20.74 | F36: =B36-D36-$E$36 -> 661.2317076 | G36: =C36-D36-$E$36 -> 338.9233538 | L36: =SUM(L33:L35) -> 0 | M36: =F36-L36 -> 661.2317076 | N36: =G36-L36 -> 338.9233538 | Q36: =Q34 -> 20.74
A37: февраль | B37: 993.07 | C37: 5055.39 | H37: санитарно-технические работы | P37: март
A38: затраты УК | B38: =B37*$F$23 -> 169.5782924 | C38: =C37*$F$23 -> 863.2668428 | H38: строительные работы | L38: 2358 | Q38: =Q36 -> 20.74
H39: электромонтажные работы | P39: аперль
A40: З-ты на сод.МОП | B40: =B37-B38 -> 823.4917076 | C40: =C37-C38 -> 4192.123157 | D40: =D36 -> 141.52 | E40: =E36 -> 20.74 | F40: =B40-D40-E40 -> 661.2317076 | G40: =C40-D40-E40 -> 4029.863157 | L40: =SUM(L37:L39) -> 2358 | M40: =F40-L40 -> -1696.768292 | N40: =G40-L40 -> 1671.863157 | Q40: =Q38 -> 20.74
A41: март | B41: 993.07 | C41: 0 | H41: санитарно-технические работы | P41: май
A42: затраты УК | B42: =B41*$F$23 -> 169.5782924 | C42: =C41*$F$23 -> 0 | H42: строительные работы | Q42: =Q40 -> 20.74
H43: электромонтажные работы | P43: июнь
A44: З-ты на сод.МОП | B44: =B41-B42 -> 823.4917076 | C44: 0 | D44: =D40 -> 141.52 | E44: =E40 -> 20.74 | F44: =B44-D44-E44 -> 661.2317076 | G44: =C44-D44-E44 -> -162.26 | L44: =SUM(L41:L43) -> 0 | M44: =F44-L44 -> 661.2317076 | N44: =G44-L44 -> -162.26 | Q44: =Q42 -> 20.74
A45: апрель | B45: 993.07 | C45: 7163.39 | H45: санитарно-технические работы | P45: июль
A46: затраты УК | B46: =B45*$F$23 -> 169.5782924 | C46: =C45*$F$23 -> 1223.232445 | H46: строительные работы | Q46: =L22 -> 20.74
H47: электромонтажные работы | P47: август
A48: З-ты на сод.МОП | B48: =B45-B46 -> 823.4917076 | C48: 5940.157555 | D48: =D44 -> 141.52 | E48: =E44 -> 20.74 | F48: =B48-D48-E48 -> 661.2317076 | G48: =C48-D48-E48 -> 5777.897555 | L48: =SUM(L45:L46) -> 0 | M48: =F48-L48 -> 661.2317076 | N48: =G48-L48 -> 5777.897555 | Q48: =Q46 -> 20.74
A49: май | B49: 0 | C49: 0 | H49: санитарно-технические работы | P49: сентябрь
A50: затраты УК | B50: =B49*$F$23 -> 0 | C50: =C49*$F$23 -> 0 | H50: строительные работы | Q50: =Q48 -> 20.74
H51: электромонтажные работы | P51: октябрь
A52: З-ты на сод.МОП | B52: =B49-B50 -> 0 | C52: 0 | D52: 0 | E52: 0 | F52: =B52-D52-E52 -> 0 | G52: =C52-D52-E52 -> 0 | L52: =SUM(L49:L50) -> 0 | M52: =F52-L52 -> 0 | N52: =G52-L52 -> 0 | Q52: =Q50 -> 20.74
A53: июнь | B53: 0 | C53: 0 | H53: санитарно-технические работы | P53: ноябрь
A54: затраты УК | B54: =B53*$F$23 -> 0 | C54: =C53*$F$23 -> 0 | H54: строительные работы | Q54: =Q52 -> 20.74
H55: электромонтажные работы | P55: декабрь
A56: З-ты на сод.МОП | B56: =B53-B54 -> 0 | C56: 0 | D56: 0 | E56: 0 | F56: =B56-D56-E56 -> 0 | G56: =C56-D56-E56 -> 0 | L56: =SUM(L53:L54) -> 0 | M56: =F56-L56 -> 0 | N56: =G56-L56 -> 0 | Q56: =Q54 -> 20.74
A57: июль | B57: 0 | C57: 0 | H57: санитарно-технические работы | P57: Итого: | Q57: =SUM(Q34:Q56) -> 248.88 | R57: =SUM(R34:R56) -> 0
A58: затраты УК | B58: =B57*$F$23 -> 0 | C58: =C57*$F$23 -> 0 | H58: строительные работы | R58: =R57-Q57 -> -248.88
H59: электромонтажные работы
A60: З-ты на сод.МОП | B60: =B57-B58 -> 0 | C60: 0 | D60: 0 | E60: 0 | F60: =B60-D60-E60 -> 0 | G60: =C60-D60-E60 -> 0 | L60: =SUM(L57:L58) -> 0 | M60: =F60-L60 -> 0 | N60: =G60-L60 -> 0
A61: август | B61: 0 | C61: 0 | H61: санитарно-технические работы
A62: затраты УК | B62: =B61*$F$23 -> 0 | C62: =C61*$F$23 -> 0 | H62: строительные работы
H63: электромонтажные работы
A64: З-ты на сод.МОП | B64: =B61-B62 -> 0 | C64: 0 | D64: 0 | E64: 0 | F64: =B64-D64-E64 -> 0 | G64: =C64-D64-E64 -> 0 | L64: =SUM(L61:L62) -> 0 | M64: =F64-L64 -> 0 | N64: =G64-L64 -> 0
A65: сентябрь | B65: 0 | C65: 0 | H65: санитарно-технические работы
A66: затраты УК | B66: =B65*$F$23 -> 0 | C66: =C65*$F$23 -> 0 | H66: строительные работы
H67: электромонтажные работы
A68: З-ты на сод.МОП | B68: =B65-B66 -> 0 | C68: 0 | D68: 0 | E68: 0 | F68: =B68-D68-E68 -> 0 | G68: =C68-D68-E68 -> 0 | L68: =SUM(L65:L66) -> 0 | M68: =F68-L68 -> 0 | N68: =G68-L68 -> 0
A69: октябрь | B69: 0 | C69: 0 | H69: санитарно-технические работы
A70: затраты УК | B70: =B69*$F$23 -> 0 | C70: =C69*$F$23 -> 0 | H70: строительные работы
H71: электромонтажные работы
A72: З-ты на сод.МОП | B72: =B69-B70 -> 0 | C72: 0 | D72: 0 | E72: 0 | F72: =B72-D72-E72 -> 0 | G72: =C72-D72-E72 -> 0 | L72: =SUM(L69:L70) -> 0 | M72: =F72-L72 -> 0 | N72: =G72-L72 -> 0
A73: ноябрь | B73: 0 | C73: 0 | H73: санитарно-технические работы
A74: затраты УК | B74: =B73*$F$23 -> 0 | C74: =C73*$F$23 -> 0 | H74: строительные работы
H75: электромонтажные работы
A76: З-ты на сод.МОП | B76: =B73-B74 -> 0 | C76: 0 | D76: 0 | E76: 0 | F76: =B76-D76-E76 -> 0 | G76: =C76-D76-E76 -> 0 | L76: =SUM(L73:L74) -> 0 | M76: =F76-L76 -> 0 | N76: =G76-L76 -> 0
A77: декабрь | B77: 0 | C77: 0 | H77: санитарно-технические работы
A78: затраты УК | B78: =B77*$F$23 -> 0 | C78: =C77*$F$23 -> 0 | H78: строительные работы
H79: электромонтажные работы
A80: З-ты на сод.МОП | B80: =B77-B78 -> 0 | C80: 0 | D80: 0 | E80: 0 | F80: =B80-D80-E80 -> 0 | G80: =C80-D80-E80 -> 0 | L80: =SUM(L77:L79) -> 0 | M80: =F80-L80 -> 0 | N80: =G80-L80 -> 0
H81: Остаток 2016 года | L81: =L36+L40+L44+L48+L52+L56+L60+L64+L68+L72+L76+L80 -> 2358 | M81: =M36+M40+M44+M48+M52+M56+M60+M64+M68+M72+M76+M80 -> 286.9268305 | N81: =N36+N40+N44+N48+N52+N56+N60+N64+N68+N72+N76+N80 -> 7626.424066
H82: Остаток 2015 года | M82: 16042 | N82: 7848
A83: ВСЕГО | B83: =B36+B40+B44+B48+B52+B56+B60+B64+B68+B72+B76+B80 -> 3293.96683 | C83: =C36+C40+C44+C48+C52+C56+C60+C64+C68+C72+C76+C80 -> 10633.46407 | D83: 566.08 | E83: =E36+E40+E44+E48+E52+E56+E60+E64+E68+E72+E76+E80 -> 82.96 | F83: 2644.92683 | G83: =G36+G40+G44+G48+G52+G56+G60+G64+G68+G72+G76+G80 -> 9984.424066 | H83: Всего остаток | M83: =M81+M82 -> 16328.92683 | N83: =N81+N82 -> 15474.42407
A86: февраль
B87: Наименование работ | G87: Ед. | H87: Коли- | I87: Сумма
G88: измерен. | H88: чество
A89: Строительные работы
A90: Очистка кровли от снега ( толщина слоя 60 см ) | G90: м2 | H90: 72 | I90: 2358
F91: Итого: | I91: =SUM(I90:I90) -> 2358

Sheet п.Львин.13
A2: I. ТЕХНИЧЕСКАЯ ХАРАКТЕРИСТИКА ДОМА № 13 по пер. Львиный | I2: Год постройки - 1927
I3: Дата начала управления 01.01.2012г.
I4: Кадастровый номер - 42:20:0101018
A5: ОБОРУДОВАН:
A6: 1.Водопровод - от центральной сети
A8: Мате- | B8: Кол-во | C8: Кол-во | D8: площадь дома в м2 | G8: объём | H8: % | I8: Кровля
A9: риал | B9: этажей | C9: квартир | D9: общая | E9: жилая | F9: не- | G9: здания | H9: износа - | I9: материал | J9: S,м2
A10: стен | B10: шт. | C10: шт. | F10: жилая | H10: год
D11: м2 | E11: м2 | G11: м3 | H11: инвентариз.
A12: Дерево | B12: 1 | C12: 3 | D12: 107.3 | E12: 98.7 | F12: 0 | G12: 387 | I12: шифер | J12: 112.3
B16: II. РАСЧЁТ НАЧИСЛЕНИЙ И ЗАТРАТ
C18: Нач-ие содержания МОП | E18: Затраты на УК | G18: Затраты на сод.дома | I18: Постоянные затраты | M18: Вып-ние тек.ремонта
A19: Площадь,м2 | C19: Тариф | D19: Плановое | E19: Тариф | F19: Плановое | G19: Тариф | H19: Плановое | I19: Вывоз ТКО | J19: Плановое | K19: Вызов АДС | L19: Плановое | M19: Тариф | N19: Плановое
D20: нач-ние | F20: нач-ние | H20: нач-ние | I20: Тариф | J20: нач-ние | K20: Тариф | L20: нач-ние | N20: нач-ние
A22: S жилая | B22: 107.3 | C22: 8.14 | D22: =B22*C22 -> 873.422 | E22: 1.39 | F22: =B22*E22 -> 149.147 | G22: =C22-E22 -> 6.75 | H22: =B22*G22 -> 724.275 | I22: 1.16 | J22: =B22*I22 -> 124.468 | K22: 0.17 | L22: =B22*K22 -> 18.241 | M22: =G22-I22-K22 -> 5.42 | N22: =B22*M22 -> 581.566 | O22: =E22+I22+K22+M22 -> 8.14
A23: Аренда | B23: 0 | F23: =E22/C22 -> 0.1707616708 | O23: =F22+H22 -> 873.422
A28: Отчёт за 2016 год
A29: по содержанию и текущему ремонту мест общего пользования жилого дома № 13 по пер.Львиный
A30: , | B30: ДОХОДЫ | D30: РАСХОДЫ | H30: ВЫПОЛНЕНО РАБОТ | M30: остаток + | P30: Отчетный | Q30: ОДС
B31: Начислено | C31: Оплачено | D31: Вывоз ТКО | E31: Вызов АДС | F31: Средства на т.рем. | M31: перерасход - | P31: период | Q31: план | R31: факт
B32: факт | C32: факт | F32: от нач-ия | G32: от оплаты | H32: Виды работ | L32: сумма | M32: от нач-ия | N32: от оплаты | P32: 2016г. | Q32: руб. | R32: руб.
A33: январь | B33: 1022.93 | C33: 1046.1 | H33: санитарно-технические работы | P33: январь
A34: затраты УК | B34: =B33*$F$23 -> 174.6772359 | C34: =C33*$F$23 -> 178.6337838 | H34: строительные работы | Q34: =L22 -> 18.241
H35: электромонтажные работы | P35: февраль
A36: З-ты на сод.МОП | B36: =B33-B34 -> 848.2527641 | C36: =C33-C34 -> 867.4662162 | D36: =J22 -> 124.468 | E36: =L22 -> 18.241 | F36: =B36-D36-$E$36 -> 705.5437641 | G36: =C36-D36-$E$36 -> 724.7572162 | L36: =SUM(L33:L35) -> 0 | M36: =F36-L36 -> 705.5437641 | N36: =G36-L36 -> 724.7572162 | Q36: =Q34 -> 18.241
A37: февраль | B37: 873.42 | C37: 7749.87 | H37: санитарно-технические работы | P37: март
A38: затраты УК | B38: =B37*$F$23 -> 149.1466585 | C38: =C37*$F$23 -> 1323.380749 | H38: строительные работы | Q38: =Q36 -> 18.241
H39: электромонтажные работы | P39: аперль
A40: З-ты на сод.МОП | B40: =B37-B38 -> 724.2733415 | C40: =C37-C38 -> 6426.489251 | D40: =D36 -> 124.468 | E40: =E36 -> 18.241 | F40: =B40-D40-E40 -> 581.5643415 | G40: =C40-D40-E40 -> 6283.780251 | L40: =SUM(L37:L39) -> 0 | M40: =F40-L40 -> 581.5643415 | N40: =G40-L40 -> 6283.780251 | Q40: =Q38 -> 18.241
A41: март | B41: 873.42 | C41: 0 | H41: санитарно-технические работы | P41: май
A42: затраты УК | B42: =B41*$F$23 -> 149.1466585 | C42: =C41*$F$23 -> 0 | H42: строительные работы | Q42: =Q40 -> 18.241
H43: электромонтажные работы | P43: июнь
A44: З-ты на сод.МОП | B44: =B41-B42 -> 724.2733415 | C44: 0 | D44: =D40 -> 124.468 | E44: =E40 -> 18.241 | F44: =B44-D44-E44 -> 581.5643415 | G44: =C44-D44-E44 -> -142.709 | L44: =SUM(L41:L43) -> 0 | M44: =F44-L44 -> 581.5643415 | N44: =G44-L44 -> -142.709 | Q44: =Q42 -> 18.241
A45: апрель | B45: 873.42 | C45: 0 | H45: санитарно-технические работы | P45: июль
A46: затраты УК | B46: =B45*$F$23 -> 149.1466585 | C46: =C45*$F$23 -> 0 | H46: строительные работы | Q46: =L22 -> 18.241
H47: электромонтажные работы | P47: август
A48: З-ты на сод.МОП | B48: =B45-B46 -> 724.2733415 | C48: 0 | D48: =D44 -> 124.468 | E48: =E44 -> 18.241 | F48: =B48-D48-E48 -> 581.5643415 | G48: =C48-D48-E48 -> -142.709 | L48: =SUM(L45:L46) -> 0 | M48: =F48-L48 -> 581.5643415 | N48: =G48-L48 -> -142.709 | Q48: =Q46 -> 18.241
A49: май | B49: 0 | C49: 0 | H49: санитарно-технические работы | P49: сентябрь
A50: затраты УК | B50: =B49*$F$23 -> 0 | C50: =C49*$F$23 -> 0 | H50: строительные работы | Q50: =Q48 -> 18.241
H51: электромонтажные работы | P51: октябрь
A52: З-ты на сод.МОП | B52: =B49-B50 -> 0 | C52: 0 | D52: 0 | E52: 0 | F52: =B52-D52-E52 -> 0 | G52: =C52-D52-E52 -> 0 | L52: =SUM(L49:L50) -> 0 | M52: =F52-L52 -> 0 | N52: =G52-L52 -> 0 | Q52: =Q50 -> 18.241
A53: июнь | B53: 0 | C53: 0 | H53: санитарно-технические работы | P53: ноябрь
A54: затраты УК | B54: =B53*$F$23 -> 0 | C54: =C53*$F$23 -> 0 | H54: строительные работы | Q54: =Q52 -> 18.241
H55: электромонтажные работы | P55: декабрь
A56: З-ты на сод.МОП | B56: =B53-B54 -> 0 | C56: 0 | D56: 0 | E56: 0 | F56: =B56-D56-E56 -> 0 | G56: =C56-D56-E56 -> 0 | L56: =SUM(L53:L54) -> 0 | M56: =F56-L56 -> 0 | N56: =G56-L56 -> 0 | Q56: =Q54 -> 18.241
A57: июль | B57: 0 | C57: 0 | H57: санитарно-технические работы | P57: Итого: | Q57: =SUM(Q34:Q56) -> 218.892 | R57: =SUM(R34:R56) -> 0
A58: затраты УК | B58: =B57*$F$23 -> 0 | C58: =C57*$F$23 -> 0 | H58: строительные работы | R58: =R57-Q57 -> -218.892
H59: электромонтажные работы
A60: З-ты на сод.МОП | B60: =B57-B58 -> 0 | C60: 0 | D60: 0 | E60: 0 | F60: =B60-D60-E60 -> 0 | G60: =C60-D60-E60 -> 0 | L60: =SUM(L57:L58) -> 0 | M60: =F60-L60 -> 0 | N60: =G60-L60 -> 0
A61: август | B61: 0 | C61: 0 | H61: санитарно-технические работы
A62: затраты УК | B62: =B61*$F$23 -> 0 | C62: =C61*$F$23 -> 0 | H62: строительные работы
H63: электромонтажные работы
A64: З-ты на сод.МОП | B64: =B61-B62 -> 0 | C64: 0 | D64: 0 | E64: 0 | F64: =B64-D64-E64 -> 0 | G64: =C64-D64-E64 -> 0 | L64: =SUM(L61:L62) -> 0 | M64: =F64-L64 -> 0 | N64: =G64-L64 -> 0
A65: сентябрь | B65: 0 | C65: 0 | H65: санитарно-технические работы
A66: затраты УК | B66: =B65*$F$23 -> 0 | C66: =C65*$F$23 -> 0 | H66: строительные работы
H67: электромонтажные работы
A68: З-ты на сод.МОП | B68: =B65-B66 -> 0 | C68: 0 | D68: 0 | E68: 0 | F68: =B68-D68-E68 -> 0 | G68: =C68-D68-E68 -> 0 | L68: =SUM(L65:L66) -> 0 | M68: =F68-L68 -> 0 | N68: =G68-L68 -> 0
A69: октябрь | B69: 0 | C69: 0 | H69: санитарно-технические работы
A70: затраты УК | B70: =B69*$F$23 -> 0 | C70: =C69*$F$23 -> 0 | H70: строительные работы
H71: электромонтажные работы
A72: З-ты на сод.МОП | B72: =B69-B70 -> 0 | C72: 0 | D72: 0 | E72: 0 | F72: =B72-D72-E72 -> 0 | G72: =C72-D72-E72 -> 0 | L72: =SUM(L69:L70) -> 0 | M72: =F72-L72 -> 0 | N72: =G72-L72 -> 0
A73: ноябрь | B73: 0 | C73: 0 | H73: санитарно-технические работы
A74: затраты УК | B74: =B73*$F$23 -> 0 | C74: =C73*$F$23 -> 0 | H74: строительные работы
H75: электромонтажные работы
A76: З-ты на сод.МОП | B76: =B73-B74 -> 0 | C76: 0 | D76: 0 | E76: 0 | F76: =B76-D76-E76 -> 0 | G76: =C76-D76-E76 -> 0 | L76: =SUM(L73:L74) -> 0 | M76: =F76-L76 -> 0 | N76: =G76-L76 -> 0
A77: декабрь | B77: 0 | C77: 0 | H77: санитарно-технические работы
A78: затраты УК | B78: =B77*$F$23 -> 0 | C78: =C77*$F$23 -> 0 | H78: строительные работы
H79: электромонтажные работы
A80: З-ты на сод.МОП | B80: =B77-B78 -> 0 | C80: 0 | D80: 0 | E80: 0 | F80: =B80-D80-E80 -> 0 | G80: =C80-D80-E80 -> 0 | L80: =SUM(L77:L79) -> 0 | M80: =F80-L80 -> 0 | N80: =G80-L80 -> 0
H81: Остаток 2016 года | L81: =L36+L40+L44+L48+L52+L56+L60+L64+L68+L72+L76+L80 -> 0 | M81: =M36+M40+M44+M48+M52+M56+M60+M64+M68+M72+M76+M80 -> 2450.236789 | N81: =N36+N40+N44+N48+N52+N56+N60+N64+N68+N72+N76+N80 -> 6723.119467
H82: Остаток 2015 года | M82: 21682 | N82: 19362
A83: ВСЕГО | B83: =B36+B40+B44+B48+B52+B56+B60+B64+B68+B72+B76+B80 -> 3021.072789 | C83: =C36+C40+C44+C48+C52+C56+C60+C64+C68+C72+C76+C80 -> 7293.955467 | D83: 497.872 | E83: =E36+E40+E44+E48+E52+E56+E60+E64+E68+E72+E76+E80 -> 72.964 | F83: 2450.236789 | G83: =G36+G40+G44+G48+G52+G56+G60+G64+G68+G72+G76+G80 -> 6723.119467 | H83: Всего остаток | M83: =M81+M82 -> 24132.23679 | N83: =N81+N82 -> 26085.11947
B86: Наименование работ | G86: Ед. | H86: Коли- | I86: Сумма
G87: измерен. | H87: чество
A88: Строительные работы
F92: Итого: | I92: =SUM(I89:I91) -> 0

Sheet п.Львин.15
A2: I. ТЕХНИЧЕСКАЯ ХАРАКТЕРИСТИКА ДОМА № 15 по пер. Львиный | I2: Год постройки - 1927
I3: Дата начала управления 01.01.2012г.
I4: Кадастровый номер - 42:20:0101018
A5: ОБОРУДОВАН:
A6: 1.Водопровод - от центральной сети
A8: Мате- | B8: Кол-во | C8: Кол-во | D8: площадь дома в м2 | G8: объём | H8: % | I8: Кровля
A9: риал | B9: этажей | C9: квартир | D9: общая | E9: жилая | F9: не- | G9: здания | H9: износа - | I9: материал | J9: S,м2
A10: стен | B10: шт. | C10: шт. | F10: жилая | H10: год
D11: м2 | E11: м2 | G11: м3 | H11: инвентариз.
A12: Дерево | B12: 1 | C12: 3 | D12: 121.2 | E12: 84.6 | F12: 0 | G12: 480 | I12: шиферная | J12: 179
B16: II. РАСЧЁТ НАЧИСЛЕНИЙ И ЗАТРАТ
C18: Нач-ие содержания МОП | E18: Затраты на УК | G18: Затраты на сод.дома | I18: Постоянные затраты | M18: Вып-ние тек.ремонта
A19: Площадь,м2 | C19: Тариф | D19: Плановое | E19: Тариф | F19: Плановое | G19: Тариф | H19: Плановое | I19: Вывоз ТКО | J19: Плановое | K19: Вызов АДС | L19: Плановое | M19: Тариф | N19: Плановое
D20: нач-ние | F20: нач-ние | H20: нач-ние | I20: Тариф | J20: нач-ние | K20: Тариф | L20: нач-ние | N20: нач-ние
A22: S жилая | B22: 121.2 | C22: 8.14 | D22: =B22*C22 -> 986.568 | E22: 1.39 | F22: =B22*E22 -> 168.468 | G22: =C22-E22 -> 6.75 | H22: =B22*G22 -> 818.1 | I22: 1.16 | J22: =B22*I22 -> 140.592 | K22: 0.17 | L22: =B22*K22 -> 20.604 | M22: =G22-I22-K22 -> 5.42 | N22: =B22*M22 -> 656.904 | O22: =E22+I22+K22+M22 -> 8.14
A23: Аренда | B23: 0 | F23: =E22/C22 -> 0.1707616708 | O23: =F22+H22 -> 986.568
A28: Отчёт за 2016 год
A29: по содержанию и текущему ремонту мест общего пользования жилого дома № 15 по пер.Львиный
A30: , | B30: ДОХОДЫ | D30: РАСХОДЫ | H30: ВЫПОЛНЕНО РАБОТ | M30: остаток + | P30: Отчетный | Q30: ОДС
B31: Начислено | C31: Оплачено | D31: Вывоз ТКО | E31: Вызов АДС | F31: Средства на т.рем. | M31: перерасход - | P31: период | Q31: план | R31: факт
B32: факт | C32: факт | F32: от нач-ия | G32: от оплаты | H32: Виды работ | L32: сумма | M32: от нач-ия | N32: от оплаты | P32: 2016г. | Q32: руб. | R32: руб.
A33: январь | B33: 986.56 | C33: 489.4 | H33: санитарно-технические работы | P33: январь
A34: затраты УК | B34: =B33*$F$23 -> 168.4666339 | C34: =C33*$F$23 -> 83.57076167 | H34: строительные работы | Q34: =L22 -> 20.604
H35: электромонтажные работы | P35: февраль
A36: З-ты на сод.МОП | B36: =B33-B34 -> 818.0933661 | C36: =C33-C34 -> 405.8292383 | D36: =J22 -> 140.592 | E36: =L22 -> 20.604 | F36: =B36-D36-$E$36 -> 656.8973661 | G36: =C36-D36-$E$36 -> 244.6332383 | L36: =SUM(L33:L35) -> 0 | M36: =F36-L36 -> 656.8973661 | N36: =G36-L36 -> 244.6332383 | Q36: =Q34 -> 20.604
A37: февраль | B37: 986.56 | C37: 240.43 | H37: санитарно-технические работы | P37: март
A38: затраты УК | B38: =B37*$F$23 -> 168.4666339 | C38: =C37*$F$23 -> 41.0562285 | H38: строительные работы | Q38: =Q36 -> 20.604
H39: электромонтажные работы | P39: аперль
A40: З-ты на сод.МОП | B40: =B37-B38 -> 818.0933661 | C40: =C37-C38 -> 199.3737715 | D40: =D36 -> 140.592 | E40: =E36 -> 20.604 | F40: =B40-D40-E40 -> 656.8973661 | G40: =C40-D40-E40 -> 38.1777715 | L40: =SUM(L37:L39) -> 0 | M40: =F40-L40 -> 656.8973661 | N40: =G40-L40 -> 38.1777715 | Q40: =Q38 -> 20.604
A41: март | B41: 986.56 | C41: 0 | H41: санитарно-технические работы | P41: май
A42: затраты УК | B42: =B41*$F$23 -> 168.4666339 | C42: =C41*$F$23 -> 0 | H42: строительные работы | Q42: =Q40 -> 20.604
H43: электромонтажные работы | P43: июнь
A44: З-ты на сод.МОП | B44: =B41-B42 -> 818.0933661 | C44: 0 | D44: =D40 -> 140.592 | E44: =E40 -> 20.604 | F44: =B44-D44-E44 -> 656.8973661 | G44: =C44-D44-E44 -> -161.196 | L44: =SUM(L41:L43) -> 0 | M44: =F44-L44 -> 656.8973661 | N44: =G44-L44 -> -161.196 | Q44: =Q42 -> 20.604
A45: апрель | B45: 986.56 | C45: 0 | H45: санитарно-технические работы | P45: июль
A46: затраты УК | B46: =B45*$F$23 -> 168.4666339 | C46: =C45*$F$23 -> 0 | H46: строительные работы | Q46: =L22 -> 20.604
H47: электромонтажные работы | P47: август
A48: З-ты на сод.МОП | B48: =B45-B46 -> 818.0933661 | C48: 0 | D48: =D44 -> 140.592 | E48: =E44 -> 20.604 | F48: =B48-D48-E48 -> 656.8973661 | G48: =C48-D48-E48 -> -161.196 | L48: =SUM(L45:L46) -> 0 | M48: =F48-L48 -> 656.8973661 | N48: =G48-L48 -> -161.196 | Q48: =Q46 -> 20.604
A49: май | B49: 0 | C49: 0 | H49: санитарно-технические работы | P49: сентябрь
A50: затраты УК | B50: =B49*$F$23 -> 0 | C50: =C49*$F$23 -> 0 | H50: строительные работы | Q50: =Q48 -> 20.604
H51: электромонтажные работы | P51: октябрь
A52: З-ты на сод.МОП | B52: =B49-B50 -> 0 | C52: 0 | D52: 0 | E52: 0 | F52: =B52-D52-E52 -> 0 | G52: =C52-D52-E52 -> 0 | L52: =SUM(L49:L50) -> 0 | M52: =F52-L52 -> 0 | N52: =G52-L52 -> 0 | Q52: =Q50 -> 20.604
A53: июнь | B53: 0 | C53: 0 | H53: санитарно-технические работы | P53: ноябрь
A54: затраты УК | B54: =B53*$F$23 -> 0 | C54: =C53*$F$23 -> 0 | H54: строительные работы | Q54: =Q52 -> 20.604
H55: электромонтажные работы | P55: декабрь
A56: З-ты на сод.МОП | B56: =B53-B54 -> 0 | C56: 0 | D56: 0 | E56: 0 | F56: =B56-D56-E56 -> 0 | G56: =C56-D56-E56 -> 0 | L56: =SUM(L53:L54) -> 0 | M56: =F56-L56 -> 0 | N56: =G56-L56 -> 0 | Q56: =Q54 -> 20.604
A57: июль | B57: 0 | C57: 0 | H57: санитарно-технические работы | P57: Итого: | Q57: =SUM(Q34:Q56) -> 247.248 | R57: =SUM(R34:R56) -> 0
A58: затраты УК | B58: =B57*$F$23 -> 0 | C58: =C57*$F$23 -> 0 | H58: строительные работы | R58: =R57-Q57 -> -247.248
H59: электромонтажные работы
A60: З-ты на сод.МОП | B60: =B57-B58 -> 0 | C60: 0 | D60: 0 | E60: 0 | F60: =B60-D60-E60 -> 0 | G60: =C60-D60-E60 -> 0 | L60: =SUM(L57:L58) -> 0 | M60: =F60-L60 -> 0 | N60: =G60-L60 -> 0
A61: август | B61: 0 | C61: 0 | H61: санитарно-технические работы
A62: затраты УК | B62: =B61*$F$23 -> 0 | C62: =C61*$F$23 -> 0 | H62: строительные работы
H63: электромонтажные работы
A64: З-ты на сод.МОП | B64: =B61-B62 -> 0 | C64: 0 | D64: 0 | E64: 0 | F64: =B64-D64-E64 -> 0 | G64: =C64-D64-E64 -> 0 | L64: =SUM(L61:L62) -> 0 | M64: =F64-L64 -> 0 | N64: =G64-L64 -> 0
A65: сентябрь | B65: 0 | C65: 0 | H65: санитарно-технические работы
A66: затраты УК | B66: =B65*$F$23 -> 0 | C66: =C65*$F$23 -> 0 | H66: строительные работы
H67: электромонтажные работы
A68: З-ты на сод.МОП | B68: =B65-B66 -> 0 | C68: 0 | D68: 0 | E68: 0 | F68: =B68-D68-E68 -> 0 | G68: =C68-D68-E68 -> 0 | L68: =SUM(L65:L66) -> 0 | M68: =F68-L68 -> 0 | N68: =G68-L68 -> 0
A69: октябрь | B69: 0 | C69: 0 | H69: санитарно-технические работы
A70: затраты УК | B70: =B69*$F$23 -> 0 | C70: =C69*$F$23 -> 0 | H70: строительные работы
H71: электромонтажные работы
A72: З-ты на сод.МОП | B72: =B69-B70 -> 0 | C72: 0 | D72: 0 | E72: 0 | F72: =B72-D72-E72 -> 0 | G72: =C72-D72-E72 -> 0 | L72: =SUM(L69:L70) -> 0 | M72: =F72-L72 -> 0 | N72: =G72-L72 -> 0
A73: ноябрь | B73: 0 | C73: 0 | H73: санитарно-технические работы
A74: затраты УК | B74: =B73*$F$23 -> 0 | C74: =C73*$F$23 -> 0 | H74: строительные работы
H75: электромонтажные работы
A76: З-ты на сод.МОП | B76: =B73-B74 -> 0 | C76: 0 | D76: 0 | E76: 0 | F76: =B76-D76-E76 -> 0 | G76: =C76-D76-E76 -> 0 | L76: =SUM(L73:L74) -> 0 | M76: =F76-L76 -> 0 | N76: =G76-L76 -> 0
A77: декабрь | B77: 0 | C77: 0 | H77: санитарно-технические работы
A78: затраты УК | B78: =B77*$F$23 -> 0 | C78: =C77*$F$23 -> 0 | H78: строительные работы
H79: электромонтажные работы
A80: З-ты на сод.МОП | B80: =B77-B78 -> 0 | C80: 0 | D80: 0 | E80: 0 | F80: =B80-D80-E80 -> 0 | G80: =C80-D80-E80 -> 0 | L80: =SUM(L77:L79) -> 0 | M80: =F80-L80 -> 0 | N80: =G80-L80 -> 0
H81: Остаток 2016 года | L81: =L36+L40+L44+L48+L52+L56+L60+L64+L68+L72+L76+L80 -> 0 | M81: =M36+M40+M44+M48+M52+M56+M60+M64+M68+M72+M76+M80 -> 2627.589464 | N81: =N36+N40+N44+N48+N52+N56+N60+N64+N68+N72+N76+N80 -> -39.58099017
H82: Остаток 2015 года | M82: 12133 | N82: 3421
A83: ВСЕГО | B83: =B36+B40+B44+B48+B52+B56+B60+B64+B68+B72+B76+B80 -> 3272.373464 | C83: =C36+C40+C44+C48+C52+C56+C60+C64+C68+C72+C76+C80 -> 605.2030098 | D83: 562.368 | E83: =E36+E40+E44+E48+E52+E56+E60+E64+E68+E72+E76+E80 -> 82.416 | F83: 2627.589464 | G83: =G36+G40+G44+G48+G52+G56+G60+G64+G68+G72+G76+G80 -> -39.58099017 | H83: Всего остаток | M83: =M81+M82 -> 14760.58946 | N83: =N81+N82 -> 3381.41901
B86: Наименование работ | G86: Ед. | H86: Коли- | I86: Сумма
G87: измерен. | H87: чество
A88: Строительные работы
F92: Итого: | I92: =SUM(I89:I91) -> 0

Sheet п.Львин.17
A2: I. ТЕХНИЧЕСКАЯ ХАРАКТЕРИСТИКА ДОМА № 17 по пер. Львиный | I2: Год постройки - 1927
I3: Дата начала управления 01.01.2012г.
I4: Кадастровый номер - 42:20:0101018
A5: ОБОРУДОВАН:
A6: 1.Водопровод - от центральной сети
A8: Мате- | B8: Кол-во | C8: Кол-во | D8: площадь дома в м2 | G8: объём | H8: % | I8: Кровля
A9: риал | B9: этажей | C9: квартир | D9: общая | E9: жилая | F9: не- | G9: здания | H9: износа - | I9: материал | J9: S,м2
A10: стен | B10: шт. | C10: шт. | F10: жилая | H10: год
D11: м2 | E11: м2 | G11: м3 | H11: инвентариз.
A12: Дерево | B12: 1 | C12: 3 | D12: 114 | E12: 81.5 | F12: 0 | G12: 446 | I12: шиферная | J12: 139
B16: II. РАСЧЁТ НАЧИСЛЕНИЙ И ЗАТРАТ
C18: Нач-ие содержания МОП | E18: Затраты на УК | G18: Затраты на сод.дома | I18: Постоянные затраты | M18: Вып-ние тек.ремонта
A19: Площадь,м2 | C19: Тариф | D19: Плановое | E19: Тариф | F19: Плановое | G19: Тариф | H19: Плановое | I19: Вывоз ТКО | J19: Плановое | K19: Вызов АДС | L19: Плановое | M19: Тариф | N19: Плановое
D20: нач-ние | F20: нач-ние | H20: нач-ние | I20: Тариф | J20: нач-ние | K20: Тариф | L20: нач-ние | N20: нач-ние
A22: S жилая | B22: 114 | C22: 8.14 | D22: =B22*C22 -> 927.96 | E22: 1.39 | F22: =B22*E22 -> 158.46 | G22: =C22-E22 -> 6.75 | H22: =B22*G22 -> 769.5 | I22: 1.16 | J22: =B22*I22 -> 132.24 | K22: 0.17 | L22: =B22*K22 -> 19.38 | M22: =G22-I22-K22 -> 5.42 | N22: =B22*M22 -> 617.88 | O22: =E22+I22+K22+M22 -> 8.14
A23: Аренда | B23: 0 | F23: =E22/C22 -> 0.1707616708 | O23: =F22+H22 -> 927.96
A28: Отчёт за 2016 год
A29: по содержанию и текущему ремонту мест общего пользования жилого дома № 17 по пер.Львиный
A30: , | B30: ДОХОДЫ | D30: РАСХОДЫ | H30: ВЫПОЛНЕНО РАБОТ | M30: остаток + | P30: Отчетный | Q30: ОДС
B31: Начислено | C31: Оплачено | D31: Вывоз ТКО | E31: Вызов АДС | F31: Средства на т.рем. | M31: перерасход - | P31: период | Q31: план | R31: факт
B32: факт | C32: факт | F32: от нач-ия | G32: от оплаты | H32: Виды работ | L32: сумма | M32: от нач-ия | N32: от оплаты | P32: 2016г. | Q32: руб. | R32: руб.
A33: январь | B33: 927.96 | C33: 354 | H33: санитарно-технические работы | P33: январь
A34: затраты УК | B34: =B33*$F$23 -> 158.46 | C34: =C33*$F$23 -> 60.44963145 | H34: строительные работы | Q34: =L22 -> 19.38
H35: электромонтажные работы | P35: февраль
A36: З-ты на сод.МОП | B36: =B33-B34 -> 769.5 | C36: =C33-C34 -> 293.5503686 | D36: =J22 -> 132.24 | E36: =L22 -> 19.38 | F36: =B36-D36-$E$36 -> 617.88 | G36: =C36-D36-$E$36 -> 141.9303686 | L36: =SUM(L33:L35) -> 0 | M36: =F36-L36 -> 617.88 | N36: =G36-L36 -> 141.9303686 | Q36: =Q34 -> 19.38
A37: февраль | B37: 927.96 | C37: 355 | H37: санитарно-технические работы | P37: март
A38: затраты УК | B38: =B37*$F$23 -> 158.46 | C38: =C37*$F$23 -> 60.62039312 | H38: строительные работы | Q38: =Q36 -> 19.38
H39: электромонтажные работы | P39: аперль
A40: З-ты на сод.МОП | B40: =B37-B38 -> 769.5 | C40: =C37-C38 -> 294.3796069 | D40: =D36 -> 132.24 | E40: =E36 -> 19.38 | F40: =B40-D40-E40 -> 617.88 | G40: =C40-D40-E40 -> 142.7596069 | L40: =SUM(L37:L39) -> 0 | M40: =F40-L40 -> 617.88 | N40: =G40-L40 -> 142.7596069 | Q40: =Q38 -> 19.38
A41: март | B41: 927.96 | C41: 354 | H41: санитарно-технические работы | P41: май
A42: затраты УК | B42: =B41*$F$23 -> 158.46 | C42: =C41*$F$23 -> 60.44963145 | H42: строительные работы | Q42: =Q40 -> 19.38
H43: электромонтажные работы | P43: июнь
A44: З-ты на сод.МОП | B44: =B41-B42 -> 769.5 | C44: 293.5503686 | D44: =D40 -> 132.24 | E44: =E40 -> 19.38 | F44: =B44-D44-E44 -> 617.88 | G44: =C44-D44-E44 -> 141.9303686 | L44: =SUM(L41:L43) -> 0 | M44: =F44-L44 -> 617.88 | N44: =G44-L44 -> 141.9303686 | Q44: =Q42 -> 19.38
A45: апрель | B45: 927.96 | C45: 354 | H45: санитарно-технические работы | P45: июль
A46: затраты УК | B46: =B45*$F$23 -> 158.46 | C46: =C45*$F$23 -> 60.44963145 | H46: строительные работы | Q46: =L22 -> 19.38
H47: электромонтажные работы | P47: август
A48: З-ты на сод.МОП | B48: =B45-B46 -> 769.5 | C48: 293.5503686 | D48: =D44 -> 132.24 | E48: =E44 -> 19.38 | F48: =B48-D48-E48 -> 617.88 | G48: =C48-D48-E48 -> 141.9303686 | L48: =SUM(L45:L46) -> 0 | M48: =F48-L48 -> 617.88 | N48: =G48-L48 -> 141.9303686 | Q48: =Q46 -> 19.38
A49: май | B49: 0 | C49: 0 | H49: санитарно-технические работы | P49: сентябрь
A50: затраты УК | B50: =B49*$F$23 -> 0 | C50: =C49*$F$23 -> 0 | H50: строительные работы | Q50: =Q48 -> 19.38
H51: электромонтажные работы | P51: октябрь
A52: З-ты на сод.МОП | B52: =B49-B50 -> 0 | C52: 0 | D52: 0 | E52: 0 | F52: =B52-D52-E52 -> 0 | G52: =C52-D52-E52 -> 0 | L52: =SUM(L49:L50) -> 0 | M52: =F52-L52 -> 0 | N52: =G52-L52 -> 0 | Q52: =Q50 -> 19.38
A53: июнь | B53: 0 | C53: 0 | H53: санитарно-технические работы | P53: ноябрь
A54: затраты УК | B54: =B53*$F$23 -> 0 | C54: =C53*$F$23 -> 0 | H54: строительные работы | Q54: =Q52 -> 19.38
H55: электромонтажные работы | P55: декабрь
A56: З-ты на сод.МОП | B56: =B53-B54 -> 0 | C56: 0 | D56: 0 | E56: 0 | F56: =B56-D56-E56 -> 0 | G56: =C56-D56-E56 -> 0 | L56: =SUM(L53:L54) -> 0 | M56: =F56-L56 -> 0 | N56: =G56-L56 -> 0 | Q56: =Q54 -> 19.38
A57: июль | B57: 0 | C57: 0 | H57: санитарно-технические работы | P57: Итого: | Q57: =SUM(Q34:Q56) -> 232.56 | R57: =SUM(R34:R56) -> 0
A58: затраты УК | B58: =B57*$F$23 -> 0 | C58: =C57*$F$23 -> 0 | H58: строительные работы | R58: =R57-Q57 -> -232.56
H59: электромонтажные работы
A60: З-ты на сод.МОП | B60: =B57-B58 -> 0 | C60: 0 | D60: 0 | E60: 0 | F60: =B60-D60-E60 -> 0 | G60: =C60-D60-E60 -> 0 | L60: =SUM(L57:L58) -> 0 | M60: =F60-L60 -> 0 | N60: =G60-L60 -> 0
A61: август | B61: 0 | C61: 0 | H61: санитарно-технические работы
A62: затраты УК | B62: =B61*$F$23 -> 0 | C62: =C61*$F$23 -> 0 | H62: строительные работы
H63: электромонтажные работы
A64: З-ты на сод.МОП | B64: =B61-B62 -> 0 | C64: 0 | D64: 0 | E64: 0 | F64: =B64-D64-E64 -> 0 | G64: =C64-D64-E64 -> 0 | L64: =SUM(L61:L62) -> 0 | M64: =F64-L64 -> 0 | N64: =G64-L64 -> 0
A65: сентябрь | B65: 0 | C65: 0 | H65: санитарно-технические работы
A66: затраты УК | B66: =B65*$F$23 -> 0 | C66: =C65*$F$23 -> 0 | H66: строительные работы
H67: электромонтажные работы
A68: З-ты на сод.МОП | B68: =B65-B66 -> 0 | C68: 0 | D68: 0 | E68: 0 | F68: =B68-D68-E68 -> 0 | G68: =C68-D68-E68 -> 0 | L68: =SUM(L65:L66) -> 0 | M68: =F68-L68 -> 0 | N68: =G68-L68 -> 0
A69: октябрь | B69: 0 | C69: 0 | H69: санитарно-технические работы
A70: затраты УК | B70: =B69*$F$23 -> 0 | C70: =C69*$F$23 -> 0 | H70: строительные работы
H71: электромонтажные работы
A72: З-ты на сод.МОП | B72: =B69-B70 -> 0 | C72: 0 | D72: 0 | E72: 0 | F72: =B72-D72-E72 -> 0 | G72: =C72-D72-E72 -> 0 | L72: =SUM(L69:L70) -> 0 | M72: =F72-L72 -> 0 | N72: =G72-L72 -> 0
A73: ноябрь | B73: 0 | C73: 0 | H73: санитарно-технические работы
A74: затраты УК | B74: =B73*$F$23 -> 0 | C74: =C73*$F$23 -> 0 | H74: строительные работы
H75: электромонтажные работы
A76: З-ты на сод.МОП | B76: =B73-B74 -> 0 | C76: 0 | D76: 0 | E76: 0 | F76: =B76-D76-E76 -> 0 | G76: =C76-D76-E76 -> 0 | L76: =SUM(L73:L74) -> 0 | M76: =F76-L76 -> 0 | N76: =G76-L76 -> 0
A77: декабрь | B77: 0 | C77: 0 | H77: санитарно-технические работы
A78: затраты УК | B78: =B77*$F$23 -> 0 | C78: =C77*$F$23 -> 0 | H78: строительные работы
H79: электромонтажные работы
A80: З-ты на сод.МОП | B80: =B77-B78 -> 0 | C80: 0 | D80: 0 | E80: 0 | F80: =B80-D80-E80 -> 0 | G80: =C80-D80-E80 -> 0 | L80: =SUM(L77:L79) -> 0 | M80: =F80-L80 -> 0 | N80: =G80-L80 -> 0
H81: Остаток 2016 года | L81: =L36+L40+L44+L48+L52+L56+L60+L64+L68+L72+L76+L80 -> 0 | M81: =M36+M40+M44+M48+M52+M56+M60+M64+M68+M72+M76+M80 -> 2471.52 | N81: =N36+N40+N44+N48+N52+N56+N60+N64+N68+N72+N76+N80 -> 568.5507125
H82: Остаток 2015 года | M82: 16197 | N82: 472
A83: ВСЕГО | B83: =B36+B40+B44+B48+B52+B56+B60+B64+B68+B72+B76+B80 -> 3078 | C83: =C36+C40+C44+C48+C52+C56+C60+C64+C68+C72+C76+C80 -> 1175.030713 | D83: 528.96 | E83: =E36+E40+E44+E48+E52+E56+E60+E64+E68+E72+E76+E80 -> 77.52 | F83: 2471.52 | G83: =G36+G40+G44+G48+G52+G56+G60+G64+G68+G72+G76+G80 -> 568.5507125 | H83: Всего остаток | M83: =M81+M82 -> 18668.52 | N83: =N81+N82 -> 1040.550713
B86: Наименование работ | G86: Ед. | H86: Коли- | I86: Сумма
G87: измерен. | H87: чество
A88: Строительные работы
F92: Итого: | I92: =SUM(I89:I91) -> 0

Sheet п.Львин.19
A2: I. ТЕХНИЧЕСКАЯ ХАРАКТЕРИСТИКА ДОМА № 19 по пер. Львиный | I2: Год постройки - 1927
I3: Дата начала управления 01.01.2012г.
I4: Кадастровый номер - 42:20:0101018
A5: ОБОРУДОВАН:
A6: 1.Водопровод - от центральной сети
A8: Мате- | B8: Кол-во | C8: Кол-во | D8: площадь дома в м2 | G8: объём | H8: % | I8: Кровля
A9: риал | B9: этажей | C9: квартир | D9: общая | E9: жилая | F9: не- | G9: здания | H9: износа - | I9: материал | J9: S,м2
A10: стен | B10: шт. | C10: шт. | F10: жилая | H10: год
D11: м2 | E11: м2 | G11: м3 | H11: инвентариз.
A12: Дерево | B12: 1 | C12: 4 | D12: 175.4 | E12: 123 | F12: 0 | G12: 434 | I12: шиферная | J12: 262
B16: II. РАСЧЁТ НАЧИСЛЕНИЙ И ЗАТРАТ
C18: Нач-ие содержания МОП | E18: Затраты на УК | G18: Затраты на сод.дома | I18: Постоянные затраты | M18: Вып-ние тек.ремонта
A19: Площадь,м2 | C19: Тариф | D19: Плановое | E19: Тариф | F19: Плановое | G19: Тариф | H19: Плановое | I19: Вывоз ТКО | J19: Плановое | K19: Вызов АДС | L19: Плановое | M19: Тариф | N19: Плановое
D20: нач-ние | F20: нач-ние | H20: нач-ние | I20: Вывоз ТКО | J20: нач-ние | K20: Тариф | L20: нач-ние | N20: нач-ние
A22: S жилая | B22: 175.4 | C22: 8.14 | D22: =B22*C22 -> 1427.756 | E22: 1.39 | F22: =B22*E22 -> 243.806 | G22: =C22-E22 -> 6.75 | H22: =B22*G22 -> 1183.95 | I22: 1.16 | J22: =B22*I22 -> 203.464 | K22: 0.17 | L22: =B22*K22 -> 29.818 | M22: =G22-I22-K22 -> 5.42 | N22: =B22*M22 -> 950.668 | O22: =E22+I22+K22+M22 -> 8.14
A23: Аренда | B23: 0 | F23: =E22/C22 -> 0.1707616708 | O23: =F22+H22 -> 1427.756
A28: Отчёт за 2016 год
A29: по содержанию и текущему ремонту мест общего пользования жилого дома № 19 по пер.Львиный
A30: , | B30: ДОХОДЫ | D30: РАСХОДЫ | H30: ВЫПОЛНЕНО РАБОТ | M30: остаток + | P30: Отчетный | Q30: ОДС
B31: Начислено | C31: Оплачено | D31: Вывоз ТКО | E31: Вызов АДС | F31: Средства на т.рем. | M31: перерасход - | P31: период | Q31: план | R31: факт
B32: факт | C32: факт | F32: от нач-ия | G32: от оплаты | H32: Виды работ | L32: сумма | M32: от нач-ия | N32: от оплаты | P32: 2016г. | Q32: руб. | R32: руб.
A33: январь | B33: 1427.76 | C33: 0 | H33: санитарно-технические работы | P33: январь
A34: затраты УК | B34: =B33*$F$23 -> 243.806683 | C34: =C33*$F$23 -> 0 | H34: строительные работы | Q34: =L22 -> 29.818
H35: электромонтажные работы | P35: февраль
A36: З-ты на сод.МОП | B36: =B33-B34 -> 1183.953317 | C36: =C33-C34 -> 0 | D36: =J22 -> 203.464 | E36: =L22 -> 29.818 | F36: =B36-D36-$E$36 -> 950.671317 | G36: =C36-D36-$E$36 -> -233.282 | L36: =SUM(L33:L35) -> 0 | M36: =F36-L36 -> 950.671317 | N36: =G36-L36 -> -233.282 | Q36: =Q34 -> 29.818
A37: февраль | B37: 1427.76 | C37: 1421.3 | H37: санитарно-технические работы | P37: март
A38: затраты УК | B38: =B37*$F$23 -> 243.806683 | C38: =C37*$F$23 -> 242.7035627 | H38: строительные работы | L38: 2451 | Q38: =Q36 -> 29.818
H39: электромонтажные работы | P39: аперль
A40: З-ты на сод.МОП | B40: =B37-B38 -> 1183.953317 | C40: =C37-C38 -> 1178.596437 | D40: =D36 -> 203.464 | E40: =E36 -> 29.818 | F40: =B40-D40-E40 -> 950.671317 | G40: =C40-D40-E40 -> 945.3144373 | L40: =SUM(L37:L39) -> 2451 | M40: =F40-L40 -> -1500.328683 | N40: =G40-L40 -> -1505.685563 | Q40: =Q38 -> 29.818
A41: март | B41: 1427.76 | C41: 0 | H41: санитарно-технические работы | P41: май
A42: затраты УК | B42: =B41*$F$23 -> 243.806683 | C42: =C41*$F$23 -> 0 | H42: строительные работы | Q42: =Q40 -> 29.818
H43: электромонтажные работы | P43: июнь
A44: З-ты на сод.МОП | B44: =B41-B42 -> 1183.953317 | C44: 0 | D44: =D40 -> 203.464 | E44: =E40 -> 29.818 | F44: =B44-D44-E44 -> 950.671317 | G44: =C44-D44-E44 -> -233.282 | L44: =SUM(L41:L43) -> 0 | M44: =F44-L44 -> 950.671317 | N44: =G44-L44 -> -233.282 | Q44: =Q42 -> 29.818
A45: апрель | B45: 1427.76 | C45: 3868.48 | H45: санитарно-технические работы | P45: июль
A46: затраты УК | B46: =B45*$F$23 -> 243.806683 | C46: =C45*$F$23 -> 660.5881081 | H46: строительные работы | Q46: =L22 -> 29.818
H47: электромонтажные работы | P47: август
A48: З-ты на сод.МОП | B48: =B45-B46 -> 1183.953317 | C48: 3207.891892 | D48: =D44 -> 203.464 | E48: =E44 -> 29.818 | F48: =B48-D48-E48 -> 950.671317 | G48: =C48-D48-E48 -> 2974.609892 | L48: =SUM(L45:L46) -> 0 | M48: =F48-L48 -> 950.671317 | N48: =G48-L48 -> 2974.609892 | Q48: =Q46 -> 29.818
A49: май | B49: 0 | C49: 0 | H49: санитарно-технические работы | P49: сентябрь
A50: затраты УК | B50: =B49*$F$23 -> 0 | C50: =C49*$F$23 -> 0 | H50: строительные работы | Q50: =Q48 -> 29.818
H51: электромонтажные работы | P51: октябрь
A52: З-ты на сод.МОП | B52: =B49-B50 -> 0 | C52: 0 | D52: 0 | E52: 0 | F52: =B52-D52-E52 -> 0 | G52: =C52-D52-E52 -> 0 | L52: =SUM(L49:L50) -> 0 | M52: =F52-L52 -> 0 | N52: =G52-L52 -> 0 | Q52: =Q50 -> 29.818
A53: июнь | B53: 0 | C53: 0 | H53: санитарно-технические работы | P53: ноябрь
A54: затраты УК | B54: =B53*$F$23 -> 0 | C54: =C53*$F$23 -> 0 | H54: строительные работы | Q54: =Q52 -> 29.818
H55: электромонтажные работы | P55: декабрь
A56: З-ты на сод.МОП | B56: =B53-B54 -> 0 | C56: 0 | D56: 0 | E56: 0 | F56: =B56-D56-E56 -> 0 | G56: =C56-D56-E56 -> 0 | L56: =SUM(L53:L54) -> 0 | M56: =F56-L56 -> 0 | N56: =G56-L56 -> 0 | Q56: =Q54 -> 29.818
A57: июль | B57: 0 | C57: 0 | H57: санитарно-технические работы | P57: Итого: | Q57: =SUM(Q34:Q56) -> 357.816 | R57: =SUM(R34:R56) -> 0
A58: затраты УК | B58: =B57*$F$23 -> 0 | C58: =C57*$F$23 -> 0 | H58: строительные работы | R58: =R57-Q57 -> -357.816
H59: электромонтажные работы
A60: З-ты на сод.МОП | B60: =B57-B58 -> 0 | C60: 0 | D60: 0 | E60: 0 | F60: =B60-D60-E60 -> 0 | G60: =C60-D60-E60 -> 0 | L60: =SUM(L57:L58) -> 0 | M60: =F60-L60 -> 0 | N60: =G60-L60 -> 0
A61: август | B61: 0 | C61: 0 | H61: санитарно-технические работы
A62: затраты УК | B62: =B61*$F$23 -> 0 | C62: =C61*$F$23 -> 0 | H62: строительные работы
H63: электромонтажные работы
A64: З-ты на сод.МОП | B64: =B61-B62 -> 0 | C64: 0 | D64: 0 | E64: 0 | F64: =B64-D64-E64 -> 0 | G64: =C64-D64-E64 -> 0 | L64: =SUM(L61:L62) -> 0 | M64: =F64-L64 -> 0 | N64: =G64-L64 -> 0
A65: сентябрь | B65: 0 | C65: 0 | H65: санитарно-технические работы
A66: затраты УК | B66: =B65*$F$23 -> 0 | C66: =C65*$F$23 -> 0 | H66: строительные работы
H67: электромонтажные работы
A68: З-ты на сод.МОП | B68: =B65-B66 -> 0 | C68: 0 | D68: 0 | E68: 0 | F68: =B68-D68-E68 -> 0 | G68: =C68-D68-E68 -> 0 | L68: =SUM(L65:L66) -> 0 | M68: =F68-L68 -> 0 | N68: =G68-L68 -> 0
A69: октябрь | B69: 0 | C69: 0 | H69: санитарно-технические работы
A70: затраты УК | B70: =B69*$F$23 -> 0 | C70: =C69*$F$23 -> 0 | H70: строительные работы
H71: электромонтажные работы
A72: З-ты на сод.МОП | B72: =B69-B70 -> 0 | C72: 0 | D72: 0 | E72: 0 | F72: =B72-D72-E72 -> 0 | G72: =C72-D72-E72 -> 0 | L72: =SUM(L69:L70) -> 0 | M72: =F72-L72 -> 0 | N72: =G72-L72 -> 0
A73: ноябрь | B73: 0 | C73: 0 | H73: санитарно-технические работы
A74: затраты УК | B74: =B73*$F$23 -> 0 | C74: =C73*$F$23 -> 0 | H74: строительные работы
H75: электромонтажные работы
A76: З-ты на сод.МОП | B76: =B73-B74 -> 0 | C76: 0 | D76: 0 | E76: 0 | F76: =B76-D76-E76 -> 0 | G76: =C76-D76-E76 -> 0 | L76: =SUM(L73:L74) -> 0 | M76: =F76-L76 -> 0 | N76: =G76-L76 -> 0
A77: декабрь | B77: 0 | C77: 0 | H77: санитарно-технические работы
A78: затраты УК | B78: =B77*$F$23 -> 0 | C78: =C77*$F$23 -> 0 | H78: строительные работы
H79: электромонтажные работы
A80: З-ты на сод.МОП | B80: =B77-B78 -> 0 | C80: 0 | D80: 0 | E80: 0 | F80: =B80-D80-E80 -> 0 | G80: =C80-D80-E80 -> 0 | L80: =SUM(L77:L79) -> 0 | M80: =F80-L80 -> 0 | N80: =G80-L80 -> 0
H81: Остаток 2016 года | L81: =L36+L40+L44+L48+L52+L56+L60+L64+L68+L72+L76+L80 -> 2451 | M81: =M36+M40+M44+M48+M52+M56+M60+M64+M68+M72+M76+M80 -> 1351.685268 | N81: =N36+N40+N44+N48+N52+N56+N60+N64+N68+N72+N76+N80 -> 1002.360329
H82: Остаток 2015 года | M82: 20845 | N82: 5967
A83: ВСЕГО | B83: =B36+B40+B44+B48+B52+B56+B60+B64+B68+B72+B76+B80 -> 4735.813268 | C83: =C36+C40+C44+C48+C52+C56+C60+C64+C68+C72+C76+C80 -> 4386.488329 | D83: 813.856 | E83: =E36+E40+E44+E48+E52+E56+E60+E64+E68+E72+E76+E80 -> 119.272 | F83: 3802.685268 | G83: =G36+G40+G44+G48+G52+G56+G60+G64+G68+G72+G76+G80 -> 3453.360329 | H83: Всего остаток | M83: =M81+M82 -> 22196.68527 | N83: =N81+N82 -> 6969.360329
A86: февраль
B87: Наименование работ | G87: Ед. | H87: Коли- | I87: Сумма
G88: измерен. | H88: чество
A89: Строительные работы
A90: Очистка кровли от снега ( толщина слоя 70 см ) | G90: м2 | H90: 70 | I90: 2451
F91: Итого: | I91: =SUM(I90:I90) -> 2451

Sheet п.Львин.21
A2: I. ТЕХНИЧЕСКАЯ ХАРАКТЕРИСТИКА ДОМА № 21 по пер. Львиный | I2: Год постройки - 1923
I3: Дата начала управления 01.01.2012г.
I4: Кадастровый номер - 42:20:0101018
A5: ОБОРУДОВАН:
A6: 1.Водопровод - от центральной сети
A8: Мате- | B8: Кол-во | C8: Кол-во | D8: площадь дома в м2 | G8: объём | H8: % | I8: Кровля
A9: риал | B9: этажей | C9: квартир | D9: общая | E9: жилая | F9: не- | G9: здания | H9: износа - | I9: материал | J9: S,м2
A10: стен | B10: шт. | C10: шт. | F10: жилая | H10: год
D11: м2 | E11: м2 | G11: м3 | H11: инвентариз.
A12: Дерево | B12: 1 | C12: 2 | D12: 61.1 | E12: 33.4 | F12: 0 | G12: 234 | I12: шифер | J12: 78
B16: II. РАСЧЁТ НАЧИСЛЕНИЙ И ЗАТРАТ
C18: Нач-ие содержания МОП | E18: Затраты на УК | G18: Затраты на сод.дома | I18: Постоянные затраты | M18: Вып-ние тек.ремонта
A19: Площадь,м2 | C19: Тариф | D19: Плановое | E19: Тариф | F19: Плановое | G19: Тариф | H19: Плановое | I19: Вывоз ТКО | J19: Плановое | K19: Вызов АДС | L19: Плановое | M19: Тариф | N19: Плановое
D20: нач-ние | F20: нач-ние | H20: нач-ние | I20: Тариф | J20: нач-ние | K20: Тариф | L20: нач-ние | N20: нач-ние
A22: S жилая | B22: 61.1 | C22: 8.14 | D22: =B22*C22 -> 497.354 | E22: 1.39 | F22: =B22*E22 -> 84.929 | G22: =C22-E22 -> 6.75 | H22: =B22*G22 -> 412.425 | I22: 1.16 | J22: =B22*I22 -> 70.876 | K22: 0.17 | L22: =B22*K22 -> 10.387 | M22: =G22-I22-K22 -> 5.42 | N22: =B22*M22 -> 331.162 | O22: =E22+I22+K22+M22 -> 8.14
A23: Аренда | B23: 0 | F23: =E22/C22 -> 0.1707616708 | O23: =F22+H22 -> 497.354
A28: Отчёт за 2016 год
A29: по содержанию и текущему ремонту мест общего пользования жилого дома № 21 по пер.Львиный
A30: , | B30: ДОХОДЫ | D30: РАСХОДЫ | H30: ВЫПОЛНЕНО РАБОТ | M30: остаток + | P30: Отчетный | Q30: ОДС
B31: Начислено | C31: Оплачено | D31: Вывоз ТКО | E31: Вызов АДС | F31: Средства на т.рем. | M31: перерасход - | P31: период | Q31: план | R31: факт
B32: факт | C32: факт | F32: от нач-ия | G32: от оплаты | H32: Виды работ | L32: сумма | M32: от нач-ия | N32: от оплаты | P32: 2016г. | Q32: руб. | R32: руб.
A33: январь | B33: 559.45 | C33: 349.81 | H33: санитарно-технические работы | P33: январь
A34: затраты УК | B34: =B33*$F$23 -> 95.53261671 | C34: =C33*$F$23 -> 59.73414005 | H34: строительные работы | Q34: =L22 -> 10.387
H35: электромонтажные работы | P35: февраль
A36: З-ты на сод.МОП | B36: =B33-B34 -> 463.9173833 | C36: =C33-C34 -> 290.07586 | D36: =J22 -> 70.876 | E36: =L22 -> 10.387 | F36: =B36-D36-$E$36 -> 382.6543833 | G36: =C36-D36-$E$36 -> 208.81286 | L36: =SUM(L33:L35) -> 0 | M36: =F36-L36 -> 382.6543833 | N36: =G36-L36 -> 208.81286 | Q36: =Q34 -> 10.387
A37: февраль | B37: 497.35 | C37: 0 | H37: санитарно-технические работы | P37: март
A38: затраты УК | B38: =B37*$F$23 -> 84.92831695 | C38: =C37*$F$23 -> 0 | H38: строительные работы | Q38: =Q36 -> 10.387
H39: электромонтажные работы | P39: аперль
A40: З-ты на сод.МОП | B40: =B37-B38 -> 412.421683 | C40: =C37-C38 -> 0 | D40: =D36 -> 70.876 | E40: =E36 -> 10.387 | F40: =B40-D40-E40 -> 331.158683 | G40: =C40-D40-E40 -> -81.263 | L40: =SUM(L37:L39) -> 0 | M40: =F40-L40 -> 331.158683 | N40: =G40-L40 -> -81.263 | Q40: =Q38 -> 10.387
A41: март | B41: 497.35 | C41: 1016.15 | H41: санитарно-технические работы | P41: май
A42: затраты УК | B42: =B41*$F$23 -> 84.92831695 | C42: =C41*$F$23 -> 173.5194717 | H42: строительные работы | Q42: =Q40 -> 10.387
H43: электромонтажные работы | P43: июнь
A44: З-ты на сод.МОП | B44: =B41-B42 -> 412.421683 | C44: 842.6305283 | D44: =D40 -> 70.876 | E44: =E40 -> 10.387 | F44: =B44-D44-E44 -> 331.158683 | G44: =C44-D44-E44 -> 761.3675283 | L44: =SUM(L41:L43) -> 0 | M44: =F44-L44 -> 331.158683 | N44: =G44-L44 -> 761.3675283 | Q44: =Q42 -> 10.387
A45: апрель | B45: 497.35 | C45: 0 | H45: санитарно-технические работы | P45: июль
A46: затраты УК | B46: =B45*$F$23 -> 84.92831695 | C46: =C45*$F$23 -> 0 | H46: строительные работы | Q46: =L22 -> 10.387
H47: электромонтажные работы | P47: август
A48: З-ты на сод.МОП | B48: =B45-B46 -> 412.421683 | C48: 0 | D48: =D44 -> 70.876 | E48: =E44 -> 10.387 | F48: =B48-D48-E48 -> 331.158683 | G48: =C48-D48-E48 -> -81.263 | L48: =SUM(L45:L46) -> 0 | M48: =F48-L48 -> 331.158683 | N48: =G48-L48 -> -81.263 | Q48: =Q46 -> 10.387
A49: май | B49: 0 | C49: 0 | H49: санитарно-технические работы | P49: сентябрь
A50: затраты УК | B50: =B49*$F$23 -> 0 | C50: =C49*$F$23 -> 0 | H50: строительные работы | Q50: =Q48 -> 10.387
H51: электромонтажные работы | P51: октябрь
A52: З-ты на сод.МОП | B52: =B49-B50 -> 0 | C52: 0 | D52: 0 | E52: 0 | F52: =B52-D52-E52 -> 0 | G52: =C52-D52-E52 -> 0 | L52: =SUM(L49:L50) -> 0 | M52: =F52-L52 -> 0 | N52: =G52-L52 -> 0 | Q52: =Q50 -> 10.387
A53: июнь | B53: 0 | C53: 0 | H53: санитарно-технические работы | P53: ноябрь
A54: затраты УК | B54: =B53*$F$23 -> 0 | C54: =C53*$F$23 -> 0 | H54: строительные работы | Q54: =Q52 -> 10.387
H55: электромонтажные работы | P55: декабрь
A56: З-ты на сод.МОП | B56: =B53-B54 -> 0 | C56: 0 | D56: 0 | E56: 0 | F56: =B56-D56-E56 -> 0 | G56: =C56-D56-E56 -> 0 | L56: =SUM(L53:L54) -> 0 | M56: =F56-L56 -> 0 | N56: =G56-L56 -> 0 | Q56: =Q54 -> 10.387
A57: июль | B57: 0 | C57: 0 | H57: санитарно-технические работы | P57: Итого: | Q57: =SUM(Q34:Q56) -> 124.644 | R57: =SUM(R34:R56) -> 0
A58: затраты УК | B58: =B57*$F$23 -> 0 | C58: =C57*$F$23 -> 0 | H58: строительные работы | R58: =R57-Q57 -> -124.644
H59: электромонтажные работы
A60: З-ты на сод.МОП | B60: =B57-B58 -> 0 | C60: 0 | D60: 0 | E60: 0 | F60: =B60-D60-E60 -> 0 | G60: =C60-D60-E60 -> 0 | L60: =SUM(L57:L58) -> 0 | M60: =F60-L60 -> 0 | N60: =G60-L60 -> 0
A61: август | B61: 0 | C61: 0 | H61: санитарно-технические работы
A62: затраты УК | B62: =B61*$F$23 -> 0 | C62: =C61*$F$23 -> 0 | H62: строительные работы
H63: электромонтажные работы
A64: З-ты на сод.МОП | B64: =B61-B62 -> 0 | C64: 0 | D64: 0 | E64: 0 | F64: =B64-D64-E64 -> 0 | G64: =C64-D64-E64 -> 0 | L64: =SUM(L61:L62) -> 0 | M64: =F64-L64 -> 0 | N64: =G64-L64 -> 0
A65: сентябрь | B65: 0 | C65: 0 | H65: санитарно-технические работы
A66: затраты УК | B66: =B65*$F$23 -> 0 | C66: =C65*$F$23 -> 0 | H66: строительные работы
H67: электромонтажные работы
A68: З-ты на сод.МОП | B68: =B65-B66 -> 0 | C68: 0 | D68: 0 | E68: 0 | F68: =B68-D68-E68 -> 0 | G68: =C68-D68-E68 -> 0 | L68: =SUM(L65:L66) -> 0 | M68: =F68-L68 -> 0 | N68: =G68-L68 -> 0
A69: октябрь | B69: 0 | C69: 0 | H69: санитарно-технические работы
A70: затраты УК | B70: =B69*$F$23 -> 0 | C70: =C69*$F$23 -> 0 | H70: строительные работы
H71: электромонтажные работы
A72: З-ты на сод.МОП | B72: =B69-B70 -> 0 | C72: 0 | D72: 0 | E72: 0 | F72: =B72-D72-E72 -> 0 | G72: =C72-D72-E72 -> 0 | L72: =SUM(L69:L70) -> 0 | M72: =F72-L72 -> 0 | N72: =G72-L72 -> 0
A73: ноябрь | B73: 0 | C73: 0 | H73: санитарно-технические работы
A74: затраты УК | B74: =B73*$F$23 -> 0 | C74: =C73*$F$23 -> 0 | H74: строительные работы
H75: электромонтажные работы
A76: З-ты на сод.МОП | B76: =B73-B74 -> 0 | C76: 0 | D76: 0 | E76: 0 | F76: =B76-D76-E76 -> 0 | G76: =C76-D76-E76 -> 0 | L76: =SUM(L73:L74) -> 0 | M76: =F76-L76 -> 0 | N76: =G76-L76 -> 0
A77: декабрь | B77: 0 | C77: 0 | H77: санитарно-технические работы
A78: затраты УК | B78: =B77*$F$23 -> 0 | C78: =C77*$F$23 -> 0 | H78: строительные работы
H79: электромонтажные работы
A80: З-ты на сод.МОП | B80: =B77-B78 -> 0 | C80: 0 | D80: 0 | E80: 0 | F80: =B80-D80-E80 -> 0 | G80: =C80-D80-E80 -> 0 | L80: =SUM(L77:L79) -> 0 | M80: =F80-L80 -> 0 | N80: =G80-L80 -> 0
H81: Остаток 2016 года | L81: =L36+L40+L44+L48+L52+L56+L60+L64+L68+L72+L76+L80 -> 0 | M81: =M36+M40+M44+M48+M52+M56+M60+M64+M68+M72+M76+M80 -> 1376.130432 | N81: =N36+N40+N44+N48+N52+N56+N60+N64+N68+N72+N76+N80 -> 807.6543882
H82: Остаток 2015 года | M82: 9944 | N82: 4426
A83: ВСЕГО | B83: =B36+B40+B44+B48+B52+B56+B60+B64+B68+B72+B76+B80 -> 1701.182432 | C83: =C36+C40+C44+C48+C52+C56+C60+C64+C68+C72+C76+C80 -> 1132.706388 | D83: =D36+D40+D44+D48+D52+D56+D60+D64+D68+D72+D76+D80 -> 283.504 | E83: =E36+E40+E44+E48+E52+E56+E60+E64+E68+E72+E76+E80 -> 41.548 | F83: 1376.130432 | G83: =G36+G40+G44+G48+G52+G56+G60+G64+G68+G72+G76+G80 -> 807.6543882 | H83: Всего остаток | M83: =M81+M82 -> 11320.13043 | N83: =N81+N82 -> 5233.654388
B86: Наименование работ | G86: Ед. | H86: Коли- | I86: Сумма
G87: измерен. | H87: чество
A88: Строительные работы
F92: Итого: | I92: =SUM(I89:I91) -> 0

Sheet п.Якутск.1
A2: I. ТЕХНИЧЕСКАЯ ХАРАКТЕРИСТИКА ДОМА № 1 по пер. Якутский | I2: Год постройки - 1916
I3: Дата начала управления 01.01.2012г.
I4: Кадастровый номер - 42:20:0101018
A5: ОБОРУДОВАН:
A6: 1.Водопровод - от центральной сети
A8: Мате- | B8: Кол-во | C8: Кол-во | D8: площадь дома в м2 | G8: объём | H8: % | I8: Кровля
A9: риал | B9: этажей | C9: квартир | D9: общая | E9: жилая | F9: не- | G9: здания | H9: износа - | I9: материал | J9: S,м2
A10: стен | B10: шт. | C10: шт. | F10: жилая | H10: год
D11: м2 | E11: м2 | G11: м3 | H11: инвентариз.
A12: Дерево | B12: 1 | C12: 4 | D12: 71.5 | E12: 65.4 | F12: 0 | G12: 402.7 | I12: шифер | J12: 83.7
B16: II. РАСЧЁТ НАЧИСЛЕНИЙ И ЗАТРАТ
C18: Нач-ие содержания МОП | E18: Затраты на УК | G18: Затраты на сод.дома | I18: Постоянные затраты | M18: Вып-ние тек.ремонта
A19: Площадь,м2 | C19: Тариф | D19: Плановое | E19: Тариф | F19: Плановое | G19: Тариф | H19: Плановое | I19: Вывоз ТКО | J19: Плановое | K19: Вызов АДС | L19: Плановое | M19: Тариф | N19: Плановое
D20: нач-ние | F20: нач-ние | H20: нач-ние | I20: Тариф | J20: нач-ние | K20: Тариф | L20: нач-ние | N20: нач-ние
A22: S жилая | B22: 71.5 | C22: 8.14 | D22: =B22*C22 -> 582.01 | E22: 1.39 | F22: =B22*E22 -> 99.385 | G22: =C22-E22 -> 6.75 | H22: =B22*G22 -> 482.625 | I22: 1.16 | J22: =B22*I22 -> 82.94 | K22: 0.17 | L22: =B22*K22 -> 12.155 | M22: =G22-I22-K22 -> 5.42 | N22: =B22*M22 -> 387.53 | O22: =E22+I22+K22+M22 -> 8.14
A23: Аренда | B23: 0 | F23: =E22/C22 -> 0.1707616708 | O23: =F22+H22 -> 582.01
A28: Отчёт за 2016 год
A29: по содержанию и текущему ремонту мест общего пользования жилого дома № 21 по пер.Львиный
A30: , | B30: ДОХОДЫ | D30: РАСХОДЫ | H30: ВЫПОЛНЕНО РАБОТ | M30: остаток + | P30: Отчетный | Q30: ОДС
B31: Начислено | C31: Оплачено | D31: Вывоз ТКО | E31: Вызов АДС | F31: Средства на т.рем. | M31: перерасход - | P31: период | Q31: план | R31: факт
B32: факт | C32: факт | F32: от нач-ия | G32: от оплаты | H32: Виды работ | L32: сумма | M32: от нач-ия | N32: от оплаты | P32: 2016г. | Q32: руб. | R32: руб.
A33: январь | B33: 103.67 | C33: 0 | H33: санитарно-технические работы | P33: январь
A34: затраты УК | B34: =B33*$F$23 -> 17.70286241 | C34: =C33*$F$23 -> 0 | H34: строительные работы | Q34: =L22 -> 12.155
H35: электромонтажные работы | P35: февраль
A36: З-ты на сод.МОП | B36: =B33-B34 -> 85.96713759 | C36: =C33-C34 -> 0 | D36: =J22 -> 82.94 | E36: =L22 -> 12.155 | F36: =B36-D36-$E$36 -> -9.127862408 | G36: =C36-D36-$E$36 -> -95.095 | L36: =SUM(L33:L35) -> 0 | M36: =F36-L36 -> -9.127862408 | N36: =G36-L36 -> -95.095 | Q36: =Q34 -> 12.155
A37: февраль | B37: 582.01 | C37: 0 | H37: санитарно-технические работы | P37: март
A38: затраты УК | B38: =B37*$F$23 -> 99.385 | C38: =C37*$F$23 -> 0 | H38: строительные работы | Q38: =Q36 -> 12.155
H39: электромонтажные работы | P39: аперль
A40: З-ты на сод.МОП | B40: =B37-B38 -> 482.625 | C40: =C37-C38 -> 0 | D40: =D36 -> 82.94 | E40: =E36 -> 12.155 | F40: =B40-D40-E40 -> 387.53 | G40: =C40-D40-E40 -> -95.095 | L40: =SUM(L37:L39) -> 0 | M40: =F40-L40 -> 387.53 | N40: =G40-L40 -> -95.095 | Q40: =Q38 -> 12.155
A41: март | B41: 582.01 | C41: 0 | H41: санитарно-технические работы | P41: май
A42: затраты УК | B42: =B41*$F$23 -> 99.385 | C42: =C41*$F$23 -> 0 | H42: строительные работы | Q42: =Q40 -> 12.155
H43: электромонтажные работы | P43: июнь
A44: З-ты на сод.МОП | B44: =B41-B42 -> 482.625 | C44: 0 | D44: =D40 -> 82.94 | E44: =E40 -> 12.155 | F44: =B44-D44-E44 -> 387.53 | G44: =C44-D44-E44 -> -95.095 | L44: =SUM(L41:L43) -> 0 | M44: =F44-L44 -> 387.53 | N44: =G44-L44 -> -95.095 | Q44: =Q42 -> 12.155
A45: апрель | B45: 582.01 | C45: 0 | H45: санитарно-технические работы | P45: июль
A46: затраты УК | B46: =B45*$F$23 -> 99.385 | C46: 0 | H46: строительные работы | Q46: =L22 -> 12.155
H47: электромонтажные работы | P47: август
A48: З-ты на сод.МОП | B48: =B45-B46 -> 482.625 | C48: 0 | D48: =D44 -> 82.94 | E48: =E44 -> 12.155 | F48: =B48-D48-E48 -> 387.53 | G48: =C48-D48-E48 -> -95.095 | L48: =SUM(L45:L46) -> 0 | M48: =F48-L48 -> 387.53 | N48: =G48-L48 -> -95.095 | Q48: =Q46 -> 12.155
A49: май | B49: 0 | C49: 0 | H49: санитарно-технические работы | P49: сентябрь
A50: затраты УК | B50: =B49*$F$23 -> 0 | C50: =C49*$F$23 -> 0 | H50: строительные работы | Q50: =Q48 -> 12.155
H51: электромонтажные работы | P51: октябрь
A52: З-ты на сод.МОП | B52: =B49-B50 -> 0 | C52: 0 | D52: 0 | E52: 0 | F52: =B52-D52-E52 -> 0 | G52: =C52-D52-E52 -> 0 | L52: =SUM(L49:L50) -> 0 | M52: =F52-L52 -> 0 | N52: =G52-L52 -> 0 | Q52: =Q50 -> 12.155
A53: июнь | B53: 0 | C53: 0 | H53: санитарно-технические работы | P53: ноябрь
A54: затраты УК | B54: =B53*$F$23 -> 0 | C54: =C53*$F$23 -> 0 | H54: строительные работы | Q54: =Q52 -> 12.155
H55: электромонтажные работы | P55: декабрь
A56: З-ты на сод.МОП | B56: =B53-B54 -> 0 | C56: 0 | D56: 0 | E56: 0 | F56: =B56-D56-E56 -> 0 | G56: =C56-D56-E56 -> 0 | L56: =SUM(L53:L54) -> 0 | M56: =F56-L56 -> 0 | N56: =G56-L56 -> 0 | Q56: =Q54 -> 12.155
A57: июль | B57: 0 | C57: 0 | H57: санитарно-технические работы | P57: Итого: | Q57: =SUM(Q34:Q56) -> 145.86 | R57: =SUM(R34:R56) -> 0
A58: затраты УК | B58: =B57*$F$23 -> 0 | C58: =C57*$F$23 -> 0 | H58: строительные работы | R58: =R57-Q57 -> -145.86
H59: электромонтажные работы
A60: З-ты на сод.МОП | B60: =B57-B58 -> 0 | C60: 0 | D60: 0 | E60: 0 | F60: =B60-D60-E60 -> 0 | G60: =C60-D60-E60 -> 0 | L60: =SUM(L57:L58) -> 0 | M60: =F60-L60 -> 0 | N60: =G60-L60 -> 0
A61: август | B61: 0 | C61: 0 | H61: санитарно-технические работы
A62: затраты УК | B62: =B61*$F$23 -> 0 | C62: =C61*$F$23 -> 0 | H62: строительные работы
H63: электромонтажные работы
A64: З-ты на сод.МОП | B64: =B61-B62 -> 0 | C64: 0 | D64: 0 | E64: 0 | F64: =B64-D64-E64 -> 0 | G64: =C64-D64-E64 -> 0 | L64: =SUM(L61:L62) -> 0 | M64: =F64-L64 -> 0 | N64: =G64-L64 -> 0
A65: сентябрь | B65: 0 | C65: 0 | H65: санитарно-технические работы
A66: затраты УК | B66: =B65*$F$23 -> 0 | C66: =C65*$F$23 -> 0 | H66: строительные работы
H67: электромонтажные работы
A68: З-ты на сод.МОП | B68: =B65-B66 -> 0 | C68: 0 | D68: 0 | E68: 0 | F68: =B68-D68-E68 -> 0 | G68: =C68-D68-E68 -> 0 | L68: =SUM(L65:L66) -> 0 | M68: =F68-L68 -> 0 | N68: =G68-L68 -> 0
A69: октябрь | B69: 0 | C69: 0 | H69: санитарно-технические работы
A70: затраты УК | B70: =B69*$F$23 -> 0 | C70: =C69*$F$23 -> 0 | H70: строительные работы
H71: электромонтажные работы
A72: З-ты на сод.МОП | B72: =B69-B70 -> 0 | C72: 0 | D72: 0 | E72: 0 | F72: =B72-D72-E72 -> 0 | G72: =C72-D72-E72 -> 0 | L72: =SUM(L69:L70) -> 0 | M72: =F72-L72 -> 0 | N72: =G72-L72 -> 0
A73: ноябрь | B73: 0 | C73: 0 | H73: санитарно-технические работы
A74: затраты УК | B74: =B73*$F$23 -> 0 | C74: =C73*$F$23 -> 0 | H74: строительные работы
H75: электромонтажные работы
A76: З-ты на сод.МОП | B76: =B73-B74 -> 0 | C76: 0 | D76: 0 | E76: 0 | F76: =B76-D76-E76 -> 0 | G76: =C76-D76-E76 -> 0 | L76: =SUM(L73:L74) -> 0 | M76: =F76-L76 -> 0 | N76: =G76-L76 -> 0
A77: декабрь | B77: 0 | C77: 0 | H77: санитарно-технические работы
A78: затраты УК | B78: =B77*$F$23 -> 0 | C78: =C77*$F$23 -> 0 | H78: строительные работы
H79: электромонтажные работы
A80: З-ты на сод.МОП | B80: =B77-B78 -> 0 | C80: 0 | D80: 0 | E80: 0 | F80: =B80-D80-E80 -> 0 | G80: =C80-D80-E80 -> 0 | L80: =SUM(L77:L79) -> 0 | M80: =F80-L80 -> 0 | N80: =G80-L80 -> 0
H81: Остаток 2016 года | L81: =L36+L40+L44+L48+L52+L56+L60+L64+L68+L72+L76+L80 -> 0 | M81: =M36+M40+M44+M48+M52+M56+M60+M64+M68+M72+M76+M80 -> 1153.462138 | N81: =N36+N40+N44+N48+N52+N56+N60+N64+N68+N72+N76+N80 -> -380.38
H82: Остаток 2015 года | M82: 21653 | N82: 10276
A83: ВСЕГО | B83: =B36+B40+B44+B48+B52+B56+B60+B64+B68+B72+B76+B80 -> 1533.842138 | C83: =C36+C40+C44+C48+C52+C56+C60+C64+C68+C72+C76+C80 -> 0 | D83: =D36+D40+D44+D48+D52+D56+D60+D64+D68+D72+D76+D80 -> 331.76 | E83: =E36+E40+E44+E48+E52+E56+E60+E64+E68+E72+E76+E80 -> 48.62 | F83: 1153.462138 | G83: =G36+G40+G44+G48+G52+G56+G60+G64+G68+G72+G76+G80 -> -380.38 | H83: Всего остаток | M83: =M81+M82 -> 22806.46214 | N83: =N81+N82 -> 9895.62
B86: Наименование работ | G86: Ед. | H86: Коли- | I86: Сумма
G87: измерен. | H87: чество
A88: Строительные работы
F92: Итого: | I92: =SUM(I89:I91) -> 0

Sheet ул.Днепров.2
A2: I. ТЕХНИЧЕСКАЯ ХАРАКТЕРИСТИКА ДОМА № 2 по ул.Днепровская | I2: Год постройки - 1910
I3: Дата начала управления 01.01.2012г.
I4: Кадастровый номер - 42:20:0101012
A5: ОБОРУДОВАН:
A6: 1.Водопровод - от центральной сети
A8: Мате- | B8: Кол-во | C8: Кол-во | D8: площадь дома в м2 | G8: объём | H8: % | I8: Кровля
A9: риал | B9: этажей | C9: квартир | D9: общая | E9: жилая | F9: не- | G9: здания | H9: износа - | I9: материал | J9: S,м2
A10: стен | B10: шт. | C10: шт. | F10: жилая | H10: год
D11: м2 | E11: м2 | G11: м3 | H11: инвентариз.
A12: Дерево | B12: 1 | C12: 2 | D12: 43.8 | E12: 24 | F12: 0 | G12: 152 | I12: шиферная | J12: 104
B16: II. РАСЧЁТ НАЧИСЛЕНИЙ И ЗАТРАТ
C18: Нач-ие содержания МОП | E18: Затраты на УК | G18: Затраты на сод.дома | I18: Постоянные затраты | M18: Вып-ние тек.ремонта
A19: Площадь,м2 | C19: Тариф | D19: Плановое | E19: Тариф | F19: Плановое | G19: Тариф | H19: Плановое | I19: Вывоз ТКО | J19: Плановое | K19: Вызов АДС | L19: Плановое | M19: Тариф | N19: Плановое
D20: нач-ние | F20: нач-ние | H20: нач-ние | I20: Тариф | J20: нач-ние | K20: Тариф | L20: нач-ние | N20: нач-ние
A22: S жилая | B22: 43.8 | C22: 8.14 | D22: =B22*C22 -> 356.532 | E22: 1.39 | F22: =B22*E22 -> 60.882 | G22: =C22-E22 -> 6.75 | H22: =B22*G22 -> 295.65 | I22: 1.16 | J22: =B22*I22 -> 50.808 | K22: 0.17 | L22: =B22*K22 -> 7.446 | M22: =G22-I22-K22 -> 5.42 | N22: =B22*M22 -> 237.396 | O22: =E22+I22+K22+M22 -> 8.14
A23: Аренда | B23: 0 | F23: =E22/C22 -> 0.1707616708 | O23: =F22+H22 -> 356.532
A28: Отчёт за 2016 год
A29: по содержанию и текущему ремонту мест общего пользования жилого дома № 2 по ул. Днепровская
A30: , | B30: ДОХОДЫ | D30: РАСХОДЫ | H30: ВЫПОЛНЕНО РАБОТ | M30: остаток + | P30: Отчетный | Q30: ОДС
B31: Начислено | C31: Оплачено | D31: Вывоз ТКО | E31: Вызов АДС | F31: Средства на т.рем. | M31: перерасход - | P31: период | Q31: план | R31: факт
B32: факт | C32: факт | F32: от нач-ия | G32: от оплаты | H32: Виды работ | L32: сумма | M32: от нач-ия | N32: от оплаты | P32: 2016г. | Q32: руб. | R32: руб.
A33: январь | B33: 356.53 | C33: 0 | H33: санитарно-технические работы | P33: январь
A34: затраты УК | B34: =B33*$F$23 -> 60.88165848 | C34: =C33*$F$23 -> 0 | H34: строительные работы | Q34: =L22 -> 7.446
H35: электромонтажные работы | P35: февраль
A36: З-ты на сод.МОП | B36: =B33-B34 -> 295.6483415 | C36: =C33-C34 -> 0 | D36: =J22 -> 50.808 | E36: =L22 -> 7.446 | F36: =B36-D36-$E$36 -> 237.3943415 | G36: =C36-D36-$E$36 -> -58.254 | L36: =SUM(L33:L35) -> 0 | M36: =F36-L36 -> 237.3943415 | N36: =G36-L36 -> -58.254 | Q36: =Q34 -> 7.446
A37: февраль | B37: 356.53 | C37: 0 | H37: санитарно-технические работы | P37: март
A38: затраты УК | B38: =B37*$F$23 -> 60.88165848 | C38: =C37*$F$23 -> 0 | H38: строительные работы | Q38: =Q36 -> 7.446
H39: электромонтажные работы | P39: аперль
A40: З-ты на сод.МОП | B40: =B37-B38 -> 295.6483415 | C40: =C37-C38 -> 0 | D40: =D36 -> 50.808 | E40: =E36 -> 7.446 | F40: =B40-D40-E40 -> 237.3943415 | G40: =C40-D40-E40 -> -58.254 | L40: =SUM(L37:L39) -> 0 | M40: =F40-L40 -> 237.3943415 | N40: =G40-L40 -> -58.254 | Q40: =Q38 -> 7.446
A41: март | B41: 356.53 | C41: 530.44 | H41: санитарно-технические работы | P41: май
A42: затраты УК | B42: =B41*$F$23 -> 60.88165848 | C42: =C41*$F$23 -> 90.57882064 | H42: строительные работы | Q42: =Q40 -> 7.446
H43: электромонтажные работы | P43: июнь
A44: З-ты на сод.МОП | B44: =B41-B42 -> 295.6483415 | C44: 439.8611794 | D44: =D40 -> 50.808 | E44: =E40 -> 7.446 | F44: =B44-D44-E44 -> 237.3943415 | G44: =C44-D44-E44 -> 381.6071794 | L44: =SUM(L41:L43) -> 0 | M44: =F44-L44 -> 237.3943415 | N44: =G44-L44 -> 381.6071794 | Q44: =Q42 -> 7.446
A45: апрель | B45: 356.53 | C45: 0 | H45: санитарно-технические работы | P45: июль
A46: затраты УК | B46: =B45*$F$23 -> 60.88165848 | C46: =C45*$F$23 -> 0 | H46: строительные работы | Q46: =L22 -> 7.446
H47: электромонтажные работы | P47: август
A48: З-ты на сод.МОП | B48: =B45-B46 -> 295.6483415 | C48: 0 | D48: =D44 -> 50.808 | E48: =E44 -> 7.446 | F48: =B48-D48-E48 -> 237.3943415 | G48: =C48-D48-E48 -> -58.254 | L48: =SUM(L45:L46) -> 0 | M48: =F48-L48 -> 237.3943415 | N48: =G48-L48 -> -58.254 | Q48: =Q46 -> 7.446
A49: май | B49: 0 | C49: 0 | H49: санитарно-технические работы | P49: сентябрь
A50: затраты УК | B50: =B49*$F$23 -> 0 | C50: =C49*$F$23 -> 0 | H50: строительные работы | Q50: =Q48 -> 7.446
H51: электромонтажные работы | P51: октябрь
A52: З-ты на сод.МОП | B52: =B49-B50 -> 0 | C52: 0 | D52: 0 | E52: 0 | F52: =B52-D52-E52 -> 0 | G52: =C52-D52-E52 -> 0 | L52: =SUM(L49:L50) -> 0 | M52: =F52-L52 -> 0 | N52: =G52-L52 -> 0 | Q52: =Q50 -> 7.446
A53: июнь | B53: 0 | C53: 0 | H53: санитарно-технические работы | P53: ноябрь
A54: затраты УК | B54: =B53*$F$23 -> 0 | C54: =C53*$F$23 -> 0 | H54: строительные работы | Q54: =Q52 -> 7.446
H55: электромонтажные работы | P55: декабрь
A56: З-ты на сод.МОП | B56: =B53-B54 -> 0 | C56: 0 | D56: 0 | E56: 0 | F56: =B56-D56-E56 -> 0 | G56: =C56-D56-E56 -> 0 | L56: =SUM(L53:L54) -> 0 | M56: =F56-L56 -> 0 | N56: =G56-L56 -> 0 | Q56: =Q54 -> 7.446
A57: июль | B57: 0 | C57: 0 | H57: санитарно-технические работы | P57: Итого: | Q57: =SUM(Q34:Q56) -> 89.352 | R57: =SUM(R34:R56) -> 0
A58: затраты УК | B58: =B57*$F$23 -> 0 | C58: =C57*$F$23 -> 0 | H58: строительные работы | R58: =R57-Q57 -> -89.352
H59: электромонтажные работы
A60: З-ты на сод.МОП | B60: =B57-B58 -> 0 | C60: 0 | D60: 0 | E60: 0 | F60: =B60-D60-E60 -> 0 | G60: =C60-D60-E60 -> 0 | L60: =SUM(L57:L58) -> 0 | M60: =F60-L60 -> 0 | N60: =G60-L60 -> 0
A61: август | B61: 0 | C61: 0 | H61: санитарно-технические работы
A62: затраты УК | B62: =B61*$F$23 -> 0 | C62: =C61*$F$23 -> 0 | H62: строительные работы
H63: электромонтажные работы
A64: З-ты на сод.МОП | B64: =B61-B62 -> 0 | C64: 0 | D64: 0 | E64: 0 | F64: =B64-D64-E64 -> 0 | G64: =C64-D64-E64 -> 0 | L64: =SUM(L61:L62) -> 0 | M64: =F64-L64 -> 0 | N64: =G64-L64 -> 0
A65: сентябрь | B65: 0 | C65: 0 | H65: санитарно-технические работы
A66: затраты УК | B66: =B65*$F$23 -> 0 | C66: =C65*$F$23 -> 0 | H66: строительные работы
H67: электромонтажные работы
A68: З-ты на сод.МОП | B68: =B65-B66 -> 0 | C68: 0 | D68: 0 | E68: 0 | F68: =B68-D68-E68 -> 0 | G68: =C68-D68-E68 -> 0 | L68: =SUM(L65:L66) -> 0 | M68: =F68-L68 -> 0 | N68: =G68-L68 -> 0
A69: октябрь | B69: 0 | C69: 0 | H69: санитарно-технические работы
A70: затраты УК | B70: =B69*$F$23 -> 0 | C70: =C69*$F$23 -> 0 | H70: строительные работы
H71: электромонтажные работы
A72: З-ты на сод.МОП | B72: =B69-B70 -> 0 | C72: 0 | D72: 0 | E72: 0 | F72: =B72-D72-E72 -> 0 | G72: =C72-D72-E72 -> 0 | L72: =SUM(L69:L70) -> 0 | M72: =F72-L72 -> 0 | N72: =G72-L72 -> 0
A73: ноябрь | B73: 0 | C73: 0 | H73: санитарно-технические работы
A74: затраты УК | B74: =B73*$F$23 -> 0 | C74: =C73*$F$23 -> 0 | H74: строительные работы
H75: электромонтажные работы
A76: З-ты на сод.МОП | B76: =B73-B74 -> 0 | C76: 0 | D76: 0 | E76: 0 | F76: =B76-D76-E76 -> 0 | G76: =C76-D76-E76 -> 0 | L76: =SUM(L73:L74) -> 0 | M76: =F76-L76 -> 0 | N76: =G76-L76 -> 0
A77: декабрь | B77: 0 | C77: 0 | H77: санитарно-технические работы
A78: затраты УК | B78: =B77*$F$23 -> 0 | C78: =C77*$F$23 -> 0 | H78: строительные работы
H79: электромонтажные работы
A80: З-ты на сод.МОП | B80: =B77-B78 -> 0 | C80: 0 | D80: 0 | E80: 0 | F80: =B80-D80-E80 -> 0 | G80: =C80-D80-E80 -> 0 | L80: =SUM(L77:L79) -> 0 | M80: =F80-L80 -> 0 | N80: =G80-L80 -> 0
H81: Остаток 2016 года | L81: =L36+L40+L44+L48+L52+L56+L60+L64+L68+L72+L76+L80 -> 0 | M81: =M36+M40+M44+M48+M52+M56+M60+M64+M68+M72+M76+M80 -> 949.5773661 | N81: =N36+N40+N44+N48+N52+N56+N60+N64+N68+N72+N76+N80 -> 206.8451794
H82: Остаток 2015 года | M82: 6510 | N82: 6310
A83: ВСЕГО | B83: =B36+B40+B44+B48+B52+B56+B60+B64+B68+B72+B76+B80 -> 1182.593366 | C83: =C36+C40+C44+C48+C52+C56+C60+C64+C68+C72+C76+C80 -> 439.8611794 | D83: =D36+D40+D44+D48+D52+D56+D60+D64+D68+D72+D76+D80 -> 203.232 | E83: =E36+E40+E44+E48+E52+E56+E60+E64+E68+E72+E76+E80 -> 29.784 | F83: 949.5773661 | G83: =G36+G40+G44+G48+G52+G56+G60+G64+G68+G72+G76+G80 -> 206.8451794 | H83: Всего остаток | M83: =M81+M82 -> 7459.577366 | N83: =N81+N82 -> 6516.845179
B86: Наименование работ | G86: Ед. | H86: Коли- | I86: Сумма
G87: измерен. | H87: чество
A88: Строительные работы
F92: Итого: | I92: =SUM(I89:I91) -> 0

Sheet ул.Днепров.3
A2: I. ТЕХНИЧЕСКАЯ ХАРАКТЕРИСТИКА ДОМА № 3 по ул.Днепровская | I2: Год постройки - 1910
I3: Дата начала управления 01.01.2012г.
I4: Кадастровый номер - 42:20:0101012
A5: ОБОРУДОВАН:
A6: 1.Водопровод - от центральной сети
A8: Мате- | B8: Кол-во | C8: Кол-во | D8: площадь дома в м2 | G8: объём | H8: % | I8: Кровля
A9: риал | B9: этажей | C9: квартир | D9: общая | E9: жилая | F9: не- | G9: здания | H9: износа - | I9: материал | J9: S,м2
A10: стен | B10: шт. | C10: шт. | F10: жилая | H10: год
D11: м2 | E11: м2 | G11: м3 | H11: инвентариз.
A12: Дерево | B12: 1 | C12: 2 | D12: 71.6 | E12: 49.8 | F12: 0 | G12: 250 | I12: шиферная | J12: 107
B16: II. РАСЧЁТ НАЧИСЛЕНИЙ И ЗАТРАТ
C18: Нач-ие содержания МОП | E18: Затраты на УК | G18: Затраты на сод.дома | I18: Постоянные затраты | M18: Вып-ние тек.ремонта
A19: Площадь,м2 | C19: Тариф | D19: Плановое | E19: Тариф | F19: Плановое | G19: Тариф | H19: Плановое | I19: Вывоз ТКО | J19: Плановое | K19: Вызов АДС | L19: Плановое | M19: Тариф | N19: Плановое
D20: нач-ние | F20: нач-ние | H20: нач-ние | I20: Тариф | J20: нач-ние | K20: Тариф | L20: нач-ние | N20: нач-ние
A22: S жилая | B22: 71.6 | C22: 8.14 | D22: =B22*C22 -> 582.824 | E22: 1.39 | F22: =B22*E22 -> 99.524 | G22: =C22-E22 -> 6.75 | H22: =B22*G22 -> 483.3 | I22: 1.16 | J22: =B22*I22 -> 83.056 | K22: 0.17 | L22: =B22*K22 -> 12.172 | M22: =G22-I22-K22 -> 5.42 | N22: =B22*M22 -> 388.072 | O22: =E22+I22+K22+M22 -> 8.14
A23: Аренда | B23: 0 | F23: =E22/C22 -> 0.1707616708 | O23: =F22+H22 -> 582.824
A28: Отчёт за 2016 год
A29: по содержанию и текущему ремонту мест общего пользования жилого дома № 3 по ул. Днепровская
A30: , | B30: ДОХОДЫ | D30: РАСХОДЫ | H30: ВЫПОЛНЕНО РАБОТ | M30: остаток + | P30: Отчетный | Q30: ОДС
B31: Начислено | C31: Оплачено | D31: Вывоз ТКО | E31: Вызов АДС | F31: Средства на т.рем. | M31: перерасход - | P31: период | Q31: план | R31: факт
B32: факт | C32: факт | F32: от нач-ия | G32: от оплаты | H32: Виды работ | L32: сумма | M32: от нач-ия | N32: от оплаты | P32: 2016г. | Q32: руб. | R32: руб.
A33: январь | B33: 582.82 | C33: 582.17 | H33: санитарно-технические работы | P33: январь
A34: затраты УК | B34: =B33*$F$23 -> 99.52331695 | C34: =C33*$F$23 -> 99.41232187 | H34: строительные работы | Q34: =L22 -> 12.172
H35: электромонтажные работы | P35: февраль
A36: З-ты на сод.МОП | B36: =B33-B34 -> 483.296683 | C36: =C33-C34 -> 482.7576781 | D36: =J22 -> 83.056 | E36: =L22 -> 12.172 | F36: =B36-D36-$E$36 -> 388.068683 | G36: =C36-D36-$E$36 -> 387.5296781 | L36: =SUM(L33:L35) -> 0 | M36: =F36-L36 -> 388.068683 | N36: =G36-L36 -> 387.5296781 | Q36: =Q34 -> 12.172
A37: февраль | B37: 582.82 | C37: 0 | H37: санитарно-технические работы | P37: март
A38: затраты УК | B38: =B37*$F$23 -> 99.52331695 | C38: =C37*$F$23 -> 0 | H38: строительные работы | Q38: =Q36 -> 12.172
H39: электромонтажные работы | P39: аперль
A40: З-ты на сод.МОП | B40: =B37-B38 -> 483.296683 | C40: =C37-C38 -> 0 | D40: =D36 -> 83.056 | E40: =E36 -> 12.172 | F40: =B40-D40-E40 -> 388.068683 | G40: =C40-D40-E40 -> -95.228 | L40: =SUM(L37:L39) -> 0 | M40: =F40-L40 -> 388.068683 | N40: =G40-L40 -> -95.228 | Q40: =Q38 -> 12.172
A41: март | B41: 582.82 | C41: 0 | H41: санитарно-технические работы | P41: май
A42: затраты УК | B42: =B41*$F$23 -> 99.52331695 | C42: =C41*$F$23 -> 0 | H42: строительные работы | Q42: =Q40 -> 12.172
H43: электромонтажные работы | P43: июнь
A44: З-ты на сод.МОП | B44: =B41-B42 -> 483.296683 | C44: 0 | D44: =D40 -> 83.056 | E44: =E40 -> 12.172 | F44: =B44-D44-E44 -> 388.068683 | G44: =C44-D44-E44 -> -95.228 | L44: =SUM(L41:L43) -> 0 | M44: =F44-L44 -> 388.068683 | N44: =G44-L44 -> -95.228 | Q44: =Q42 -> 12.172
A45: апрель | B45: 582.82 | C45: 0 | H45: санитарно-технические работы | P45: июль
A46: затраты УК | B46: =B45*$F$23 -> 99.52331695 | C46: =C45*$F$23 -> 0 | H46: строительные работы | Q46: =L22 -> 12.172
H47: электромонтажные работы | P47: август
A48: З-ты на сод.МОП | B48: =B45-B46 -> 483.296683 | C48: 0 | D48: =D44 -> 83.056 | E48: =E44 -> 12.172 | F48: =B48-D48-E48 -> 388.068683 | G48: =C48-D48-E48 -> -95.228 | L48: =SUM(L45:L46) -> 0 | M48: =F48-L48 -> 388.068683 | N48: =G48-L48 -> -95.228 | Q48: =Q46 -> 12.172
A49: май | B49: 0 | C49: 0 | H49: санитарно-технические работы | P49: сентябрь
A50: затраты УК | B50: =B49*$F$23 -> 0 | C50: =C49*$F$23 -> 0 | H50: строительные работы | Q50: =Q48 -> 12.172
H51: электромонтажные работы | P51: октябрь
A52: З-ты на сод.МОП | B52: =B49-B50 -> 0 | C52: 0 | D52: 0 | E52: 0 | F52: =B52-D52-E52 -> 0 | G52: =C52-D52-E52 -> 0 | L52: =SUM(L49:L50) -> 0 | M52: =F52-L52 -> 0 | N52: =G52-L52 -> 0 | Q52: =Q50 -> 12.172
A53: июнь | B53: 0 | C53: 0 | H53: санитарно-технические работы | P53: ноябрь
A54: затраты УК | B54: =B53*$F$23 -> 0 | C54: =C53*$F$23 -> 0 | H54: строительные работы | Q54: =Q52 -> 12.172
H55: электромонтажные работы | P55: декабрь
A56: З-ты на сод.МОП | B56: =B53-B54 -> 0 | C56: 0 | D56: 0 | E56: 0 | F56: =B56-D56-E56 -> 0 | G56: =C56-D56-E56 -> 0 | L56: =SUM(L53:L54) -> 0 | M56: =F56-L56 -> 0 | N56: =G56-L56 -> 0 | Q56: =Q54 -> 12.172
A57: июль | B57: 0 | C57: 0 | H57: санитарно-технические работы | P57: Итого: | Q57: =SUM(Q34:Q56) -> 146.064 | R57: =SUM(R34:R56) -> 0
A58: затраты УК | B58: =B57*$F$23 -> 0 | C58: =C57*$F$23 -> 0 | H58: строительные работы | R58: =R57-Q57 -> -146.064
H59: электромонтажные работы
A60: З-ты на сод.МОП | B60: =B57-B58 -> 0 | C60: 0 | D60: 0 | E60: 0 | F60: =B60-D60-E60 -> 0 | G60: =C60-D60-E60 -> 0 | L60: =SUM(L57:L58) -> 0 | M60: =F60-L60 -> 0 | N60: =G60-L60 -> 0
A61: август | B61: 0 | C61: 0 | H61: санитарно-технические работы
A62: затраты УК | B62: =B61*$F$23 -> 0 | C62: =C61*$F$23 -> 0 | H62: строительные работы
H63: электромонтажные работы
A64: З-ты на сод.МОП | B64: =B61-B62 -> 0 | C64: 0 | D64: 0 | E64: 0 | F64: =B64-D64-E64 -> 0 | G64: =C64-D64-E64 -> 0 | L64: =SUM(L61:L62) -> 0 | M64: =F64-L64 -> 0 | N64: =G64-L64 -> 0
A65: сентябрь | B65: 0 | C65: 0 | H65: санитарно-технические работы
A66: затраты УК | B66: =B65*$F$23 -> 0 | C66: =C65*$F$23 -> 0 | H66: строительные работы
H67: электромонтажные работы
A68: З-ты на сод.МОП | B68: =B65-B66 -> 0 | C68: 0 | D68: 0 | E68: 0 | F68: =B68-D68-E68 -> 0 | G68: =C68-D68-E68 -> 0 | L68: =SUM(L65:L66) -> 0 | M68: =F68-L68 -> 0 | N68: =G68-L68 -> 0
A69: октябрь | B69: 0 | C69: 0 | H69: санитарно-технические работы
A70: затраты УК | B70: =B69*$F$23 -> 0 | C70: =C69*$F$23 -> 0 | H70: строительные работы
H71: электромонтажные работы
A72: З-ты на сод.МОП | B72: =B69-B70 -> 0 | C72: 0 | D72: 0 | E72: 0 | F72: =B72-D72-E72 -> 0 | G72: =C72-D72-E72 -> 0 | L72: =SUM(L69:L70) -> 0 | M72: =F72-L72 -> 0 | N72: =G72-L72 -> 0
A73: ноябрь | B73: 0 | C73: 0 | H73: санитарно-технические работы
A74: затраты УК | B74: =B73*$F$23 -> 0 | C74: =C73*$F$23 -> 0 | H74: строительные работы
H75: электромонтажные работы
A76: З-ты на сод.МОП | B76: =B73-B74 -> 0 | C76: 0 | D76: 0 | E76: 0 | F76: =B76-D76-E76 -> 0 | G76: =C76-D76-E76 -> 0 | L76: =SUM(L73:L74) -> 0 | M76: =F76-L76 -> 0 | N76: =G76-L76 -> 0
A77: декабрь | B77: 0 | C77: 0 | H77: санитарно-технические работы
A78: затраты УК | B78: =B77*$F$23 -> 0 | C78: =C77*$F$23 -> 0 | H78: строительные работы
H79: электромонтажные работы
A80: З-ты на сод.МОП | B80: =B77-B78 -> 0 | C80: 0 | D80: 0 | E80: 0 | F80: =B80-D80-E80 -> 0 | G80: =C80-D80-E80 -> 0 | L80: =SUM(L77:L79) -> 0 | M80: =F80-L80 -> 0 | N80: =G80-L80 -> 0
H81: Остаток 2016 года | L81: =L36+L40+L44+L48+L52+L56+L60+L64+L68+L72+L76+L80 -> 0 | M81: =M36+M40+M44+M48+M52+M56+M60+M64+M68+M72+M76+M80 -> 1552.274732 | N81: =N36+N40+N44+N48+N52+N56+N60+N64+N68+N72+N76+N80 -> 101.8456781
H82: Остаток 2015 года | M82: -17128 | N82: -26434
A83: ВСЕГО | B83: =B36+B40+B44+B48+B52+B56+B60+B64+B68+B72+B76+B80 -> 1933.186732 | C83: =C36+C40+C44+C48+C52+C56+C60+C64+C68+C72+C76+C80 -> 482.7576781 | D83: =D36+D40+D44+D48+D52+D56+D60+D64+D68+D72+D76+D80 -> 332.224 | E83: =E36+E40+E44+E48+E52+E56+E60+E64+E68+E72+E76+E80 -> 48.688 | F83: 1552.274732 | G83: =G36+G40+G44+G48+G52+G56+G60+G64+G68+G72+G76+G80 -> 101.8456781 | H83: Всего остаток | M83: =M81+M82 -> -15575.72527 | N83: =N81+N82 -> -26332.15432
B86: Наименование работ | G86: Ед. | H86: Коли- | I86: Сумма
G87: измерен. | H87: чество
A88: Строительные работы
F92: Итого: | I92: =SUM(I89:I91) -> 0

Sheet ул.Днепров.5
A2: I. ТЕХНИЧЕСКАЯ ХАРАКТЕРИСТИКА ДОМА № 5 по ул.Днепровская | I2: Год постройки - 1912
I3: Дата начала управления 01.01.2012г.
I4: Кадастровый номер - 42:20:0101012
A5: ОБОРУДОВАН:
A6: 1.Водопровод - от центральной сети
A8: Мате- | B8: Кол-во | C8: Кол-во | D8: площадь дома в м2 | G8: объём | H8: % | I8: Кровля
A9: риал | B9: этажей | C9: квартир | D9: общая | E9: жилая | F9: не- | G9: здания | H9: износа - | I9: материал | J9: S,м2
A10: стен | B10: шт. | C10: шт. | F10: жилая | H10: год
D11: м2 | E11: м2 | G11: м3 | H11: инвентариз.
A12: Дерево | B12: 1 | C12: 1 | D12: 49 | E12: 39.8 | F12: 0 | G12: 178 | I12: шиферная | J12: 56
B16: II. РАСЧЁТ НАЧИСЛЕНИЙ И ЗАТРАТ
C18: Нач-ие содержания МОП | E18: Затраты на УК | G18: Затраты на сод.дома | I18: Постоянные затраты | M18: Вып-ние тек.ремонта
A19: Площадь,м2 | C19: Тариф | D19: Плановое | E19: Тариф | F19: Плановое | G19: Тариф | H19: Плановое | I19: Вывоз ТКО | J19: Плановое | K19: Вызов АДС | L19: Плановое | M19: Тариф | N19: Плановое
D20: нач-ние | F20: нач-ние | H20: нач-ние | I20: Тариф | J20: нач-ние | K20: Тариф | L20: нач-ние | N20: нач-ние
A22: S жилая | B22: 49 | C22: 8.14 | D22: =B22*C22 -> 398.86 | E22: 1.39 | F22: =B22*E22 -> 68.11 | G22: =C22-E22 -> 6.75 | H22: =B22*G22 -> 330.75 | I22: 1.16 | J22: =B22*I22 -> 56.84 | K22: 0.17 | L22: =B22*K22 -> 8.33 | M22: =G22-I22-K22 -> 5.42 | N22: =B22*M22 -> 265.58
A23: Аренда | B23: 0 | F23: =E22/C22 -> 0.1707616708
B27: с 01.04.16г. Договор расторгнут
A28: Отчёт за 2016 год
A29: по содержанию и текущему ремонту мест общего пользования жилого дома № 5 по ул. Днепровская
A30: , | B30: ДОХОДЫ | D30: РАСХОДЫ | H30: ВЫПОЛНЕНО РАБОТ | M30: остаток + | P30: Отчетный | Q30: ОДС
B31: Начислено | C31: Оплачено | D31: Вывоз ТКО | E31: Вызов АДС | F31: Средства на т.рем. | M31: перерасход - | P31: период | Q31: план | R31: факт
B32: факт | C32: факт | F32: от нач-ия | G32: от оплаты | H32: Виды работ | L32: сумма | M32: от нач-ия | N32: от оплаты | P32: 2016г. | Q32: руб. | R32: руб.
A33: январь | B33: 337.41 | C33: 0 | H33: санитарно-технические работы | P33: январь
A34: затраты УК | B34: =B33*$F$23 -> 57.61669533 | C34: =C33*$F$23 -> 0 | H34: строительные работы | Q34: =L22 -> 8.33
H35: электромонтажные работы | P35: февраль
A36: З-ты на сод.МОП | B36: =B33-B34 -> 279.7933047 | C36: =C33-C34 -> 0 | D36: =J22 -> 56.84 | E36: =L22 -> 8.33 | F36: =B36-D36-$E$36 -> 214.6233047 | G36: =C36-D36-$E$36 -> -65.17 | L36: =SUM(L33:L35) -> 0 | M36: =F36-L36 -> 214.6233047 | N36: =G36-L36 -> -65.17 | Q36: =Q34 -> 8.33
A37: февраль | B37: 398.86 | C37: 0 | H37: санитарно-технические работы | P37: март
A38: затраты УК | B38: =B37*$F$23 -> 68.11 | C38: =C37*$F$23 -> 0 | H38: строительные работы | Q38: =Q36 -> 8.33
H39: электромонтажные работы | P39: аперль
A40: З-ты на сод.МОП | B40: =B37-B38 -> 330.75 | C40: =C37-C38 -> 0 | D40: =D36 -> 56.84 | E40: =E36 -> 8.33 | F40: =B40-D40-E40 -> 265.58 | G40: =C40-D40-E40 -> -65.17 | L40: =SUM(L37:L39) -> 0 | M40: =F40-L40 -> 265.58 | N40: =G40-L40 -> -65.17 | Q40: =Q38 -> 8.33
A41: март | B41: 398.86 | C41: 1794.19 | H41: санитарно-технические работы | P41: май
A42: затраты УК | B42: =B41*$F$23 -> 68.11 | C42: =C41*$F$23 -> 306.3788821 | H42: строительные работы | Q42: =Q40 -> 8.33
H43: электромонтажные работы | P43: июнь
A44: З-ты на сод.МОП | B44: =B41-B42 -> 330.75 | C44: 1487.811118 | D44: =D40 -> 56.84 | E44: =E40 -> 8.33 | F44: =B44-D44-E44 -> 265.58 | G44: =C44-D44-E44 -> 1422.641118 | L44: =SUM(L41:L43) -> 0 | M44: =F44-L44 -> 265.58 | N44: =G44-L44 -> 1422.641118 | Q44: =Q42 -> 8.33
A45: апрель | B45: 0 | C45: 0 | H45: санитарно-технические работы | P45: июль
A46: затраты УК | B46: =B45*$F$23 -> 0 | C46: =C45*$F$23 -> 0 | H46: строительные работы | Q46: =L22 -> 8.33
H47: электромонтажные работы | P47: август
A48: З-ты на сод.МОП | B48: =B45-B46 -> 0 | C48: 0 | D48: 0 | E48: 0 | F48: =B48-D48-E48 -> 0 | G48: =C48-D48-E48 -> 0 | L48: =SUM(L45:L46) -> 0 | M48: =F48-L48 -> 0 | N48: =G48-L48 -> 0 | Q48: =Q46 -> 8.33
A49: май | B49: 0 | C49: 0 | H49: санитарно-технические работы | P49: сентябрь
A50: затраты УК | B50: =B49*$F$23 -> 0 | C50: =C49*$F$23 -> 0 | H50: строительные работы | Q50: =Q48 -> 8.33
H51: электромонтажные работы | P51: октябрь
A52: З-ты на сод.МОП | B52: =B49-B50 -> 0 | C52: 0 | D52: 0 | E52: 0 | F52: =B52-D52-E52 -> 0 | G52: =C52-D52-E52 -> 0 | L52: =SUM(L49:L50) -> 0 | M52: =F52-L52 -> 0 | N52: =G52-L52 -> 0 | Q52: =Q50 -> 8.33
A53: июнь | B53: 0 | C53: 0 | H53: санитарно-технические работы | P53: ноябрь
A54: затраты УК | B54: =B53*$F$23 -> 0 | C54: =C53*$F$23 -> 0 | H54: строительные работы | Q54: =Q52 -> 8.33
H55: электромонтажные работы | P55: декабрь
A56: З-ты на сод.МОП | B56: =B53-B54 -> 0 | C56: 0 | D56: 0 | E56: 0 | F56: =B56-D56-E56 -> 0 | G56: =C56-D56-E56 -> 0 | L56: =SUM(L53:L54) -> 0 | M56: =F56-L56 -> 0 | N56: =G56-L56 -> 0 | Q56: =Q54 -> 8.33
A57: июль | B57: 0 | C57: 0 | H57: санитарно-технические работы | P57: Итого: | Q57: =SUM(Q34:Q56) -> 99.96 | R57: =SUM(R34:R56) -> 0
A58: затраты УК | B58: =B57*$F$23 -> 0 | C58: =C57*$F$23 -> 0 | H58: строительные работы | R58: =R57-Q57 -> -99.96
H59: электромонтажные работы
A60: З-ты на сод.МОП | B60: =B57-B58 -> 0 | C60: 0 | D60: 0 | E60: 0 | F60: =B60-D60-E60 -> 0 | G60: =C60-D60-E60 -> 0 | L60: =SUM(L57:L58) -> 0 | M60: =F60-L60 -> 0 | N60: =G60-L60 -> 0
A61: август | B61: 0 | C61: 0 | H61: санитарно-технические работы
A62: затраты УК | B62: =B61*$F$23 -> 0 | C62: =C61*$F$23 -> 0 | H62: строительные работы
H63: электромонтажные работы
A64: З-ты на сод.МОП | B64: =B61-B62 -> 0 | C64: 0 | D64: 0 | E64: 0 | F64: =B64-D64-E64 -> 0 | G64: =C64-D64-E64 -> 0 | L64: =SUM(L61:L62) -> 0 | M64: =F64-L64 -> 0 | N64: =G64-L64 -> 0
A65: сентябрь | B65: 0 | C65: 0 | H65: санитарно-технические работы
A66: затраты УК | B66: =B65*$F$23 -> 0 | C66: =C65*$F$23 -> 0 | H66: строительные работы
H67: электромонтажные работы
A68: З-ты на сод.МОП | B68: =B65-B66 -> 0 | C68: 0 | D68: 0 | E68: 0 | F68: =B68-D68-E68 -> 0 | G68: =C68-D68-E68 -> 0 | L68: =SUM(L65:L66) -> 0 | M68: =F68-L68 -> 0 | N68: =G68-L68 -> 0
A69: октябрь | B69: 0 | C69: 0 | H69: санитарно-технические работы
A70: затраты УК | B70: =B69*$F$23 -> 0 | C70: =C69*$F$23 -> 0 | H70: строительные работы
H71: электромонтажные работы
A72: З-ты на сод.МОП | B72: =B69-B70 -> 0 | C72: 0 | D72: 0 | E72: 0 | F72: =B72-D72-E72 -> 0 | G72: =C72-D72-E72 -> 0 | L72: =SUM(L69:L70) -> 0 | M72: =F72-L72 -> 0 | N72: =G72-L72 -> 0
A73: ноябрь | B73: 0 | C73: 0 | H73: санитарно-технические работы
A74: затраты УК | B74: =B73*$F$23 -> 0 | C74: =C73*$F$23 -> 0 | H74: строительные работы
H75: электромонтажные работы
A76: З-ты на сод.МОП | B76: =B73-B74 -> 0 | C76: 0 | D76: 0 | E76: 0 | F76: =B76-D76-E76 -> 0 | G76: =C76-D76-E76 -> 0 | L76: =SUM(L73:L74) -> 0 | M76: =F76-L76 -> 0 | N76: =G76-L76 -> 0
A77: декабрь | B77: 0 | C77: 0 | H77: санитарно-технические работы
A78: затраты УК | B78: =B77*$F$23 -> 0 | C78: =C77*$F$23 -> 0 | H78: строительные работы
H79: электромонтажные работы
A80: З-ты на сод.МОП | B80: =B77-B78 -> 0 | C80: 0 | D80: 0 | E80: 0 | F80: =B80-D80-E80 -> 0 | G80: =C80-D80-E80 -> 0 | L80: =SUM(L77:L79) -> 0 | M80: =F80-L80 -> 0 | N80: =G80-L80 -> 0
H81: Остаток 2016 года | L81: =L36+L40+L44+L48+L52+L56+L60+L64+L68+L72+L76+L80 -> 0 | M81: =M36+M40+M44+M48+M52+M56+M60+M64+M68+M72+M76+M80 -> 745.7833047 | N81: =N36+N40+N44+N48+N52+N56+N60+N64+N68+N72+N76+N80 -> 1292.301118
H82: Остаток 2015 года | M82: 10184 | N82: 10661
A83: ВСЕГО | B83: =B36+B40+B44+B48+B52+B56+B60+B64+B68+B72+B76+B80 -> 941.2933047 | C83: =C36+C40+C44+C48+C52+C56+C60+C64+C68+C72+C76+C80 -> 1487.811118 | D83: =D36+D40+D44+D48+D52+D56+D60+D64+D68+D72+D76+D80 -> 170.52 | E83: =E36+E40+E44+E48+E52+E56+E60+E64+E68+E72+E76+E80 -> 24.99 | F83: 745.7833047 | G83: =G36+G40+G44+G48+G52+G56+G60+G64+G68+G72+G76+G80 -> 1292.301118 | H83: Всего остаток | M83: =M81+M82 -> 10929.7833 | N83: =N81+N82 -> 11953.30112
B86: Наименование работ | G86: Ед. | H86: Коли- | I86: Сумма
G87: измерен. | H87: чество
A88: Строительные работы
F92: Итого: | I92: =SUM(I89:I91) -> 0

Sheet ул.Днепров.6
A2: I. ТЕХНИЧЕСКАЯ ХАРАКТЕРИСТИКА ДОМА № 6 по ул.Днепровская | I2: Год постройки - 1909
I3: Дата начала управления 01.01.2012г.
I4: Кадастровый номер - 42:20:0101012
A5: ОБОРУДОВАН:
A6: 1.Водопровод - от центральной сети
A8: Мате- | B8: Кол-во | C8: Кол-во | D8: площадь дома в м2 | G8: объём | H8: % | I8: Кровля
A9: риал | B9: этажей | C9: квартир | D9: общая | E9: жилая | F9: не- | G9: здания | H9: износа - | I9: материал | J9: S,м2
A10: стен | B10: шт. | C10: шт. | F10: жилая | H10: год
D11: м2 | E11: м2 | G11: м3 | H11: инвентариз.
A12: Дерево | B12: 1 | C12: 3 | D12: 70.5 | E12: 36.9 | F12: 0 | G12: 241.9 | I12: шиферная | J12: 108
B16: II. РАСЧЁТ НАЧИСЛЕНИЙ И ЗАТРАТ
C18: Нач-ие содержания МОП | E18: Затраты на УК | G18: Затраты на сод.дома | I18: Постоянные затраты | M18: Вып-ние тек.ремонта
A19: Площадь,м2 | C19: Тариф | D19: Плановое | E19: Тариф | F19: Плановое | G19: Тариф | H19: Плановое | I19: Вывоз ТКО | J19: Плановое | K19: Вызов АДС | L19: Плановое | M19: Тариф | N19: Плановое
D20: нач-ние | F20: нач-ние | H20: нач-ние | I20: Тариф | J20: нач-ние | K20: Тариф | L20: нач-ние | N20: нач-ние
A22: S жилая | B22: 70.5 | C22: 8.14 | D22: =B22*C22 -> 573.87 | E22: 1.39 | F22: =B22*E22 -> 97.995 | G22: =C22-E22 -> 6.75 | H22: =B22*G22 -> 475.875 | I22: 1.16 | J22: =B22*I22 -> 81.78 | K22: 0.17 | L22: =B22*K22 -> 11.985 | M22: =G22-I22-K22 -> 5.42 | N22: =B22*M22 -> 382.11
A23: Аренда | B23: 0 | F23: =E22/C22 -> 0.1707616708
B27: с 01.04.16г. Договор расторгшнут
A28: Отчёт за 2016 год
A29: по содержанию и текущему ремонту мест общего пользования жилого дома № 6 по ул. Днепровская
A30: , | B30: ДОХОДЫ | D30: РАСХОДЫ | H30: ВЫПОЛНЕНО РАБОТ | M30: остаток + | P30: Отчетный | Q30: ОДС
B31: Начислено | C31: Оплачено | D31: Вывоз ТКО | E31: Вызов АДС | F31: Средства на т.рем. | M31: перерасход - | P31: период | Q31: план | R31: факт
B32: факт | C32: факт | F32: от нач-ия | G32: от оплаты | H32: Виды работ | L32: сумма | M32: от нач-ия | N32: от оплаты | P32: 2016г. | Q32: руб. | R32: руб.
A33: январь | B33: 573.88 | C33: 589.53 | H33: санитарно-технические работы | P33: январь
A34: затраты УК | B34: =B33*$F$23 -> 97.99670762 | C34: =C33*$F$23 -> 100.6691278 | H34: строительные работы | Q34: =L22 -> 11.985
H35: электромонтажные работы | P35: февраль
A36: З-ты на сод.МОП | B36: =B33-B34 -> 475.8832924 | C36: =C33-C34 -> 488.8608722 | D36: =J22 -> 81.78 | E36: =L22 -> 11.985 | F36: =B36-D36-$E$36 -> 382.1182924 | G36: =C36-D36-$E$36 -> 395.0958722 | L36: =SUM(L33:L35) -> 0 | M36: =F36-L36 -> 382.1182924 | N36: =G36-L36 -> 395.0958722 | Q36: =Q34 -> 11.985
A37: февраль | B37: 573.88 | C37: 559.07 | H37: санитарно-технические работы | P37: март
A38: затраты УК | B38: =B37*$F$23 -> 97.99670762 | C38: =C37*$F$23 -> 95.46772727 | H38: строительные работы | Q38: =Q36 -> 11.985
H39: электромонтажные работы | P39: аперль
A40: З-ты на сод.МОП | B40: =B37-B38 -> 475.8832924 | C40: =C37-C38 -> 463.6022727 | D40: =D36 -> 81.78 | E40: =E36 -> 11.985 | F40: =B40-D40-E40 -> 382.1182924 | G40: =C40-D40-E40 -> 369.8372727 | L40: =SUM(L37:L39) -> 0 | M40: =F40-L40 -> 382.1182924 | N40: =G40-L40 -> 369.8372727 | Q40: =Q38 -> 11.985
A41: март | B41: 573.88 | C41: 572.76 | H41: санитарно-технические работы | P41: май
A42: затраты УК | B42: =B41*$F$23 -> 97.99670762 | C42: =C41*$F$23 -> 97.80545455 | H42: строительные работы | Q42: =Q40 -> 11.985
H43: электромонтажные работы | P43: июнь
A44: З-ты на сод.МОП | B44: =B41-B42 -> 475.8832924 | C44: 474.9545455 | D44: =D40 -> 81.78 | E44: =E40 -> 11.985 | F44: =B44-D44-E44 -> 382.1182924 | G44: =C44-D44-E44 -> 381.1895455 | L44: =SUM(L41:L43) -> 0 | M44: =F44-L44 -> 382.1182924 | N44: =G44-L44 -> 381.1895455 | Q44: =Q42 -> 11.985
A45: апрель | B45: 0 | C45: 0 | H45: санитарно-технические работы | P45: июль
A46: затраты УК | B46: =B45*$F$23 -> 0 | C46: =C45*$F$23 -> 0 | H46: строительные работы | Q46: =L22 -> 11.985
H47: электромонтажные работы | P47: август
A48: З-ты на сод.МОП | B48: =B45-B46 -> 0 | C48: 0 | D48: 0 | E48: 0 | F48: =B48-D48-E48 -> 0 | G48: =C48-D48-E48 -> 0 | L48: =SUM(L45:L46) -> 0 | M48: =F48-L48 -> 0 | N48: =G48-L48 -> 0 | Q48: =Q46 -> 11.985
A49: май | B49: 0 | C49: 0 | H49: санитарно-технические работы | P49: сентябрь
A50: затраты УК | B50: =B49*$F$23 -> 0 | C50: =C49*$F$23 -> 0 | H50: строительные работы | Q50: =Q48 -> 11.985
H51: электромонтажные работы | P51: октябрь
A52: З-ты на сод.МОП | B52: =B49-B50 -> 0 | C52: 0 | D52: 0 | E52: 0 | F52: =B52-D52-E52 -> 0 | G52: =C52-D52-E52 -> 0 | L52: =SUM(L49:L50) -> 0 | M52: =F52-L52 -> 0 | N52: =G52-L52 -> 0 | Q52: =Q50 -> 11.985
A53: июнь | B53: 0 | C53: 0 | H53: санитарно-технические работы | P53: ноябрь
A54: затраты УК | B54: =B53*$F$23 -> 0 | C54: =C53*$F$23 -> 0 | H54: строительные работы | Q54: =Q52 -> 11.985
H55: электромонтажные работы | P55: декабрь
A56: З-ты на сод.МОП | B56: =B53-B54 -> 0 | C56: 0 | D56: 0 | E56: 0 | F56: =B56-D56-E56 -> 0 | G56: =C56-D56-E56 -> 0 | L56: =SUM(L53:L54) -> 0 | M56: =F56-L56 -> 0 | N56: =G56-L56 -> 0 | Q56: =Q54 -> 11.985
A57: июль | B57: 0 | C57: 0 | H57: санитарно-технические работы | P57: Итого: | Q57: =SUM(Q34:Q56) -> 143.82 | R57: =SUM(R34:R56) -> 0
A58: затраты УК | B58: =B57*$F$23 -> 0 | C58: =C57*$F$23 -> 0 | H58: строительные работы | R58: =R57-Q57 -> -143.82
H59: электромонтажные работы
A60: З-ты на сод.МОП | B60: =B57-B58 -> 0 | C60: 0 | D60: 0 | E60: 0 | F60: =B60-D60-E60 -> 0 | G60: =C60-D60-E60 -> 0 | L60: =SUM(L57:L58) -> 0 | M60: =F60-L60 -> 0 | N60: =G60-L60 -> 0
A61: август | B61: 0 | C61: 0 | H61: санитарно-технические работы
A62: затраты УК | B62: =B61*$F$23 -> 0 | C62: =C61*$F$23 -> 0 | H62: строительные работы
H63: электромонтажные работы
A64: З-ты на сод.МОП | B64: =B61-B62 -> 0 | C64: 0 | D64: 0 | E64: 0 | F64: =B64-D64-E64 -> 0 | G64: =C64-D64-E64 -> 0 | L64: =SUM(L61:L62) -> 0 | M64: =F64-L64 -> 0 | N64: =G64-L64 -> 0
A65: сентябрь | B65: 0 | C65: 0 | H65: санитарно-технические работы
A66: затраты УК | B66: =B65*$F$23 -> 0 | C66: =C65*$F$23 -> 0 | H66: строительные работы
H67: электромонтажные работы
A68: З-ты на сод.МОП | B68: =B65-B66 -> 0 | C68: 0 | D68: 0 | E68: 0 | F68: =B68-D68-E68 -> 0 | G68: =C68-D68-E68 -> 0 | L68: =SUM(L65:L66) -> 0 | M68: =F68-L68 -> 0 | N68: =G68-L68 -> 0
A69: октябрь | B69: 0 | C69: 0 | H69: санитарно-технические работы
A70: затраты УК | B70: =B69*$F$23 -> 0 | C70: =C69*$F$23 -> 0 | H70: строительные работы
H71: электромонтажные работы
A72: З-ты на сод.МОП | B72: =B69-B70 -> 0 | C72: 0 | D72: 0 | E72: 0 | F72: =B72-D72-E72 -> 0 | G72: =C72-D72-E72 -> 0 | L72: =SUM(L69:L70) -> 0 | M72: =F72-L72 -> 0 | N72: =G72-L72 -> 0
A73: ноябрь | B73: 0 | C73: 0 | H73: санитарно-технические работы
A74: затраты УК | B74: =B73*$F$23 -> 0 | C74: =C73*$F$23 -> 0 | H74: строительные работы
H75: электромонтажные работы
A76: З-ты на сод.МОП | B76: =B73-B74 -> 0 | C76: 0 | D76: 0 | E76: 0 | F76: =B76-D76-E76 -> 0 | G76: =C76-D76-E76 -> 0 | L76: =SUM(L73:L74) -> 0 | M76: =F76-L76 -> 0 | N76: =G76-L76 -> 0
A77: декабрь | B77: 0 | C77: 0 | H77: санитарно-технические работы
A78: затраты УК | B78: =B77*$F$23 -> 0 | C78: =C77*$F$23 -> 0 | H78: строительные работы
H79: электромонтажные работы
A80: З-ты на сод.МОП | B80: =B77-B78 -> 0 | C80: 0 | D80: 0 | E80: 0 | F80: =B80-D80-E80 -> 0 | G80: =C80-D80-E80 -> 0 | L80: =SUM(L77:L79) -> 0 | M80: =F80-L80 -> 0 | N80: =G80-L80 -> 0
H81: Остаток 2016 года | L81: =L36+L40+L44+L48+L52+L56+L60+L64+L68+L72+L76+L80 -> 0 | M81: =M36+M40+M44+M48+M52+M56+M60+M64+M68+M72+M76+M80 -> 1146.354877 | N81: =N36+N40+N44+N48+N52+N56+N60+N64+N68+N72+N76+N80 -> 1146.12269
H82: Остаток 2015 года | M82: 13271 | N82: 13110
A83: ВСЕГО | B83: =B36+B40+B44+B48+B52+B56+B60+B64+B68+B72+B76+B80 -> 1427.649877 | C83: =C36+C40+C44+C48+C52+C56+C60+C64+C68+C72+C76+C80 -> 1427.41769 | D83: =D36+D40+D44+D48+D52+D56+D60+D64+D68+D72+D76+D80 -> 245.34 | E83: =E36+E40+E44+E48+E52+E56+E60+E64+E68+E72+E76+E80 -> 35.955 | F83: 1146.354877 | G83: =G36+G40+G44+G48+G52+G56+G60+G64+G68+G72+G76+G80 -> 1146.12269 | H83: Всего остаток | M83: =M81+M82 -> 14417.35488 | N83: =N81+N82 -> 14256.12269
B86: Наименование работ | G86: Ед. | H86: Коли- | I86: Сумма
G87: измерен. | H87: чество
A88: Строительные работы
F92: Итого: | I92: =SUM(I89:I91) -> 0

Sheet ул.Днепров.7
A2: I. ТЕХНИЧЕСКАЯ ХАРАКТЕРИСТИКА ДОМА № 7 по ул.Днепровская | I2: Год постройки - 1912
I3: Дата начала управления 01.01.2012г.
I4: Кадастровый номер - 42:20:0101012
A5: ОБОРУДОВАН:
A6: 1.Водопровод - от центральной сети
A8: Мате- | B8: Кол-во | C8: Кол-во | D8: площадь дома в м2 | G8: объём | H8: % | I8: Кровля
A9: риал | B9: этажей | C9: квартир | D9: общая | E9: жилая | F9: не- | G9: здания | H9: износа - | I9: материал | J9: S,м2
A10: стен | B10: шт. | C10: шт. | F10: жилая | H10: год
D11: м2 | E11: м2 | G11: м3 | H11: инвентариз.
A12: Дерево | B12: 1 | C12: 3 | D12: 97 | E12: 65.1 | F12: 0 | G12: 298 | I12: шиферная | J12: 136
B16: II. РАСЧЁТ НАЧИСЛЕНИЙ И ЗАТРАТ
C18: Нач-ие содержания МОП | E18: Затраты на УК | G18: Затраты на сод.дома | I18: Постоянные затраты | M18: Вып-ние тек.ремонта
A19: Площадь,м2 | C19: Тариф | D19: Плановое | E19: Тариф | F19: Плановое | G19: Тариф | H19: Плановое | I19: Вывоз ТКО | J19: Плановое | K19: Вызов АДС | L19: Плановое | M19: Тариф | N19: Плановое
D20: нач-ние | F20: нач-ние | H20: нач-ние | I20: Тариф | J20: нач-ние | K20: Тариф | L20: нач-ние | N20: нач-ние
A22: S жилая | B22: 97 | C22: 8.14 | D22: =B22*C22 -> 789.58 | E22: 1.39 | F22: =B22*E22 -> 134.83 | G22: =C22-E22 -> 6.75 | H22: =B22*G22 -> 654.75 | I22: 1.16 | J22: =B22*I22 -> 112.52 | K22: 0.17 | L22: =B22*K22 -> 16.49 | M22: =G22-I22-K22 -> 5.42 | N22: =B22*M22 -> 525.74 | O22: =E22+I22+K22+M22 -> 8.14
A23: Аренда | B23: 0 | F23: =E22/C22 -> 0.1707616708 | O23: =F22+H22 -> 789.58
A28: Отчёт за 2016 год
A29: по содержанию и текущему ремонту мест общего пользования жилого дома № 7 по ул. Днепровская
A30: , | B30: ДОХОДЫ | D30: РАСХОДЫ | H30: ВЫПОЛНЕНО РАБОТ | M30: остаток + | P30: Отчетный | Q30: ОДС
B31: Начислено | C31: Оплачено | D31: Вывоз ТКО | E31: Вызов АДС | F31: Средства на т.рем. | M31: перерасход - | P31: период | Q31: план | R31: факт
B32: факт | C32: факт | F32: от нач-ия | G32: от оплаты | H32: Виды работ | L32: сумма | M32: от нач-ия | N32: от оплаты | P32: 2016г. | Q32: руб. | R32: руб.
A33: январь | B33: 789.58 | C33: 409.05 | H33: санитарно-технические работы | P33: январь
A34: затраты УК | B34: =B33*$F$23 -> 134.83 | C34: =C33*$F$23 -> 69.85006143 | H34: строительные работы | Q34: =L22 -> 16.49
H35: электромонтажные работы | P35: февраль
A36: З-ты на сод.МОП | B36: =B33-B34 -> 654.75 | C36: =C33-C34 -> 339.1999386 | D36: =J22 -> 112.52 | E36: =L22 -> 16.49 | F36: =B36-D36-$E$36 -> 525.74 | G36: =C36-D36-$E$36 -> 210.1899386 | L36: =SUM(L33:L35) -> 0 | M36: =F36-L36 -> 525.74 | N36: =G36-L36 -> 210.1899386 | Q36: =Q34 -> 16.49
A37: февраль | B37: 789.58 | C37: 411.26 | H37: санитарно-технические работы | P37: март
A38: затраты УК | B38: =B37*$F$23 -> 134.83 | C38: =C37*$F$23 -> 70.22744472 | H38: строительные работы | Q38: =Q36 -> 16.49
H39: электромонтажные работы | P39: аперль
A40: З-ты на сод.МОП | B40: =B37-B38 -> 654.75 | C40: =C37-C38 -> 341.0325553 | D40: =D36 -> 112.52 | E40: =E36 -> 16.49 | F40: =B40-D40-E40 -> 525.74 | G40: =C40-D40-E40 -> 212.0225553 | L40: =SUM(L37:L39) -> 0 | M40: =F40-L40 -> 525.74 | N40: =G40-L40 -> 212.0225553 | Q40: =Q38 -> 16.49
A41: март | B41: 789.58 | C41: 410.52 | H41: санитарно-технические работы | P41: май
A42: затраты УК | B42: =B41*$F$23 -> 134.83 | C42: =C41*$F$23 -> 70.10108108 | H42: строительные работы | Q42: =Q40 -> 16.49
H43: электромонтажные работы | P43: июнь
A44: З-ты на сод.МОП | B44: =B41-B42 -> 654.75 | C44: 340.4189189 | D44: =D40 -> 112.52 | E44: =E40 -> 16.49 | F44: =B44-D44-E44 -> 525.74 | G44: =C44-D44-E44 -> 211.4089189 | L44: =SUM(L41:L43) -> 0 | M44: =F44-L44 -> 525.74 | N44: =G44-L44 -> 211.4089189 | Q44: =Q42 -> 16.49
A45: апрель | B45: 789.58 | C45: 0 | H45: санитарно-технические работы | P45: июль
A46: затраты УК | B46: =B45*$F$23 -> 134.83 | C46: =C45*$F$23 -> 0 | H46: строительные работы | Q46: =L22 -> 16.49
H47: электромонтажные работы | P47: август
A48: З-ты на сод.МОП | B48: =B45-B46 -> 654.75 | C48: 0 | D48: =D44 -> 112.52 | E48: =E44 -> 16.49 | F48: =B48-D48-E48 -> 525.74 | G48: =C48-D48-E48 -> -129.01 | L48: =SUM(L45:L46) -> 0 | M48: =F48-L48 -> 525.74 | N48: =G48-L48 -> -129.01 | Q48: =Q46 -> 16.49
A49: май | B49: 0 | C49: 0 | H49: санитарно-технические работы | P49: сентябрь
A50: затраты УК | B50: =B49*$F$23 -> 0 | C50: =C49*$F$23 -> 0 | H50: строительные работы | Q50: =Q48 -> 16.49
H51: электромонтажные работы | P51: октябрь
A52: З-ты на сод.МОП | B52: =B49-B50 -> 0 | C52: 0 | D52: 0 | E52: 0 | F52: =B52-D52-E52 -> 0 | G52: =C52-D52-E52 -> 0 | L52: =SUM(L49:L50) -> 0 | M52: =F52-L52 -> 0 | N52: =G52-L52 -> 0 | Q52: =Q50 -> 16.49
A53: июнь | B53: 0 | C53: 0 | H53: санитарно-технические работы | P53: ноябрь
A54: затраты УК | B54: =B53*$F$23 -> 0 | C54: =C53*$F$23 -> 0 | H54: строительные работы | Q54: =Q52 -> 16.49
H55: электромонтажные работы | P55: декабрь
A56: З-ты на сод.МОП | B56: =B53-B54 -> 0 | C56: 0 | D56: 0 | E56: 0 | F56: =B56-D56-E56 -> 0 | G56: =C56-D56-E56 -> 0 | L56: =SUM(L53:L54) -> 0 | M56: =F56-L56 -> 0 | N56: =G56-L56 -> 0 | Q56: =Q54 -> 16.49
A57: июль | B57: 0 | C57: 0 | H57: санитарно-технические работы | P57: Итого: | Q57: =SUM(Q34:Q56) -> 197.88 | R57: =SUM(R34:R56) -> 0
A58: затраты УК | B58: =B57*$F$23 -> 0 | C58: =C57*$F$23 -> 0 | H58: строительные работы | R58: =R57-Q57 -> -197.88
H59: электромонтажные работы
A60: З-ты на сод.МОП | B60: =B57-B58 -> 0 | C60: 0 | D60: 0 | E60: 0 | F60: =B60-D60-E60 -> 0 | G60: =C60-D60-E60 -> 0 | L60: =SUM(L57:L58) -> 0 | M60: =F60-L60 -> 0 | N60: =G60-L60 -> 0
A61: август | B61: 0 | C61: 0 | H61: санитарно-технические работы
A62: затраты УК | B62: =B61*$F$23 -> 0 | C62: =C61*$F$23 -> 0 | H62: строительные работы
H63: электромонтажные работы
A64: З-ты на сод.МОП | B64: =B61-B62 -> 0 | C64: 0 | D64: 0 | E64: 0 | F64: =B64-D64-E64 -> 0 | G64: =C64-D64-E64 -> 0 | L64: =SUM(L61:L62) -> 0 | M64: =F64-L64 -> 0 | N64: =G64-L64 -> 0
A65: сентябрь | B65: 0 | C65: 0 | H65: санитарно-технические работы
A66: затраты УК | B66: =B65*$F$23 -> 0 | C66: =C65*$F$23 -> 0 | H66: строительные работы
H67: электромонтажные работы
A68: З-ты на сод.МОП | B68: =B65-B66 -> 0 | C68: 0 | D68: 0 | E68: 0 | F68: =B68-D68-E68 -> 0 | G68: =C68-D68-E68 -> 0 | L68: =SUM(L65:L66) -> 0 | M68: =F68-L68 -> 0 | N68: =G68-L68 -> 0
A69: октябрь | B69: 0 | C69: 0 | H69: санитарно-технические работы
A70: затраты УК | B70: =B69*$F$23 -> 0 | C70: =C69*$F$23 -> 0 | H70: строительные работы
H71: электромонтажные работы
A72: З-ты на сод.МОП | B72: =B69-B70 -> 0 | C72: 0 | D72: 0 | E72: 0 | F72: =B72-D72-E72 -> 0 | G72: =C72-D72-E72 -> 0 | L72: =SUM(L69:L70) -> 0 | M72: =F72-L72 -> 0 | N72: =G72-L72 -> 0
A73: ноябрь | B73: 0 | C73: 0 | H73: санитарно-технические работы
A74: затраты УК | B74: =B73*$F$23 -> 0 | C74: =C73*$F$23 -> 0 | H74: строительные работы
H75: электромонтажные работы
A76: З-ты на сод.МОП | B76: =B73-B74 -> 0 | C76: 0 | D76: 0 | E76: 0 | F76: =B76-D76-E76 -> 0 | G76: =C76-D76-E76 -> 0 | L76: =SUM(L73:L74) -> 0 | M76: =F76-L76 -> 0 | N76: =G76-L76 -> 0
A77: декабрь | B77: 0 | C77: 0 | H77: санитарно-технические работы
A78: затраты УК | B78: =B77*$F$23 -> 0 | C78: =C77*$F$23 -> 0 | H78: строительные работы
H79: электромонтажные работы
A80: З-ты на сод.МОП | B80: =B77-B78 -> 0 | C80: 0 | D80: 0 | E80: 0 | F80: =B80-D80-E80 -> 0 | G80: =C80-D80-E80 -> 0 | L80: =SUM(L77:L79) -> 0 | M80: =F80-L80 -> 0 | N80: =G80-L80 -> 0
H81: Остаток 2016 года | L81: =L36+L40+L44+L48+L52+L56+L60+L64+L68+L72+L76+L80 -> 0 | M81: =M36+M40+M44+M48+M52+M56+M60+M64+M68+M72+M76+M80 -> 2102.96 | N81: =N36+N40+N44+N48+N52+N56+N60+N64+N68+N72+N76+N80 -> 504.6114128
H82: Остаток 2015 года | M82: 14666 | N82: 9275
A83: ВСЕГО | B83: =B36+B40+B44+B48+B52+B56+B60+B64+B68+B72+B76+B80 -> 2619 | C83: =C36+C40+C44+C48+C52+C56+C60+C64+C68+C72+C76+C80 -> 1020.651413 | D83: =D36+D40+D44+D48+D52+D56+D60+D64+D68+D72+D76+D80 -> 450.08 | E83: =E36+E40+E44+E48+E52+E56+E60+E64+E68+E72+E76+E80 -> 65.96 | F83: 2102.96 | G83: =G36+G40+G44+G48+G52+G56+G60+G64+G68+G72+G76+G80 -> 504.6114128 | H83: Всего остаток | M83: =M81+M82 -> 16768.96 | N83: =N81+N82 -> 9779.611413
B86: Наименование работ | G86: Ед. | H86: Коли- | I86: Сумма
G87: измерен. | H87: чество
A88: Строительные работы
F92: Итого: | I92: =SUM(I89:I91) -> 0

Sheet ул.Днепров.8
A2: I. ТЕХНИЧЕСКАЯ ХАРАКТЕРИСТИКА ДОМА № 8 по ул.Днепровская | I2: Год постройки - 1912
I3: Дата начала управления 01.01.2012г.
I4: Кадастровый номер - 42:20:0101012
A5: ОБОРУДОВАН:
A6: 1.Водопровод - от центральной сети
A8: Мате- | B8: Кол-во | C8: Кол-во | D8: площадь дома в м2 | G8: объём | H8: % | I8: Кровля
A9: риал | B9: этажей | C9: квартир | D9: общая | E9: жилая | F9: не- | G9: здания | H9: износа - | I9: материал | J9: S,м2
A10: стен | B10: шт. | C10: шт. | F10: жилая | H10: год
D11: м2 | E11: м2 | G11: м3 | H11: инвентариз.
A12: Дерево | B12: 1 | C12: 3 | D12: 69.5 | E12: 35.8 | F12: 0 | G12: 239 | I12: шиферная | J12: 107
B16: II. РАСЧЁТ НАЧИСЛЕНИЙ И ЗАТРАТ
C18: Нач-ие содержания МОП | E18: Затраты на УК | G18: Затраты на сод.дома | I18: Постоянные затраты | M18: Вып-ние тек.ремонта
A19: Площадь,м2 | C19: Тариф | D19: Плановое | E19: Тариф | F19: Плановое | G19: Тариф | H19: Плановое | I19: Вывоз ТКО | J19: Плановое | K19: Вызов АДС | L19: Плановое | M19: Тариф | N19: Плановое
D20: нач-ние | F20: нач-ние | H20: нач-ние | I20: Тариф | J20: нач-ние | K20: Тариф | L20: нач-ние | N20: нач-ние
A22: S жилая | B22: 69.5 | C22: 8.14 | D22: =B22*C22 -> 565.73 | E22: 1.39 | F22: =B22*E22 -> 96.605 | G22: =C22-E22 -> 6.75 | H22: =B22*G22 -> 469.125 | I22: 1.16 | J22: =B22*I22 -> 80.62 | K22: 0.17 | L22: =B22*K22 -> 11.815 | M22: =G22-I22-K22 -> 5.42 | N22: =B22*M22 -> 376.69 | O22: =E22+I22+K22+M22 -> 8.14
A23: Аренда | B23: 0 | F23: =E22/C22 -> 0.1707616708 | O23: =F22+H22 -> 565.73
A28: Отчёт за 2016 год
A29: по содержанию и текущему ремонту мест общего пользования жилого дома № 8 по ул. Днепровская
A30: , | B30: ДОХОДЫ | D30: РАСХОДЫ | H30: ВЫПОЛНЕНО РАБОТ | M30: остаток + | P30: Отчетный | Q30: ОДС
B31: Начислено | C31: Оплачено | D31: Вывоз ТКО | E31: Вызов АДС | F31: Средства на т.рем. | M31: перерасход - | P31: период | Q31: план | R31: факт
B32: факт | C32: факт | F32: от нач-ия | G32: от оплаты | H32: Виды работ | L32: сумма | M32: от нач-ия | N32: от оплаты | P32: 2016г. | Q32: руб. | R32: руб.
A33: январь | B33: 565.74 | C33: 953.6 | H33: санитарно-технические работы | P33: январь
A34: затраты УК | B34: =B33*$F$23 -> 96.60670762 | C34: =C33*$F$23 -> 162.8383292 | H34: строительные работы | Q34: =L22 -> 11.815
H35: электромонтажные работы | P35: февраль
A36: З-ты на сод.МОП | B36: =B33-B34 -> 469.1332924 | C36: =C33-C34 -> 790.7616708 | D36: =J22 -> 80.62 | E36: =L22 -> 11.815 | F36: =B36-D36-$E$36 -> 376.6982924 | G36: =C36-D36-$E$36 -> 698.3266708 | L36: =SUM(L33:L35) -> 0 | M36: =F36-L36 -> 376.6982924 | N36: =G36-L36 -> 698.3266708 | Q36: =Q34 -> 11.815
A37: февраль | B37: 565.74 | C37: 279.53 | H37: санитарно-технические работы | P37: март
A38: затраты УК | B38: =B37*$F$23 -> 96.60670762 | C38: =C37*$F$23 -> 47.73300983 | H38: строительные работы | Q38: =Q36 -> 11.815
H39: электромонтажные работы | P39: аперль
A40: З-ты на сод.МОП | B40: =B37-B38 -> 469.1332924 | C40: =C37-C38 -> 231.7969902 | D40: =D36 -> 80.62 | E40: =E36 -> 11.815 | F40: =B40-D40-E40 -> 376.6982924 | G40: =C40-D40-E40 -> 139.3619902 | L40: =SUM(L37:L39) -> 0 | M40: =F40-L40 -> 376.6982924 | N40: =G40-L40 -> 139.3619902 | Q40: =Q38 -> 11.815
A41: март | B41: 565.74 | C41: 834.99 | H41: санитарно-технические работы | P41: май
A42: затраты УК | B42: =B41*$F$23 -> 96.60670762 | C42: =C41*$F$23 -> 142.5842875 | H42: строительные работы | Q42: =Q40 -> 11.815
H43: электромонтажные работы | P43: июнь
A44: З-ты на сод.МОП | B44: =B41-B42 -> 469.1332924 | C44: 692.4057125 | D44: =D40 -> 80.62 | E44: =E40 -> 11.815 | F44: =B44-D44-E44 -> 376.6982924 | G44: =C44-D44-E44 -> 599.9707125 | L44: =SUM(L41:L43) -> 0 | M44: =F44-L44 -> 376.6982924 | N44: =G44-L44 -> 599.9707125 | Q44: =Q42 -> 11.815
A45: апрель | B45: 565.74 | C45: 891.01 | H45: санитарно-технические работы | P45: июль
A46: затраты УК | B46: =B45*$F$23 -> 96.60670762 | C46: =C45*$F$23 -> 152.1503563 | H46: строительные работы | Q46: =L22 -> 11.815
H47: электромонтажные работы | P47: август
A48: З-ты на сод.МОП | B48: =B45-B46 -> 469.1332924 | C48: 738.8596437 | D48: =D44 -> 80.62 | E48: =E44 -> 11.815 | F48: =B48-D48-E48 -> 376.6982924 | G48: =C48-D48-E48 -> 646.4246437 | L48: =SUM(L45:L46) -> 0 | M48: =F48-L48 -> 376.6982924 | N48: =G48-L48 -> 646.4246437 | Q48: =Q46 -> 11.815
A49: май | B49: 0 | C49: 0 | H49: санитарно-технические работы | P49: сентябрь
A50: затраты УК | B50: =B49*$F$23 -> 0 | C50: =C49*$F$23 -> 0 | H50: строительные работы | Q50: =Q48 -> 11.815
H51: электромонтажные работы | P51: октябрь
A52: З-ты на сод.МОП | B52: =B49-B50 -> 0 | C52: 0 | D52: 0 | E52: 0 | F52: =B52-D52-E52 -> 0 | G52: =C52-D52-E52 -> 0 | L52: =SUM(L49:L50) -> 0 | M52: =F52-L52 -> 0 | N52: =G52-L52 -> 0 | Q52: =Q50 -> 11.815
A53: июнь | B53: 0 | C53: 0 | H53: санитарно-технические работы | P53: ноябрь
A54: затраты УК | B54: =B53*$F$23 -> 0 | C54: =C53*$F$23 -> 0 | H54: строительные работы | Q54: =Q52 -> 11.815
H55: электромонтажные работы | P55: декабрь
A56: З-ты на сод.МОП | B56: =B53-B54 -> 0 | C56: 0 | D56: 0 | E56: 0 | F56: =B56-D56-E56 -> 0 | G56: =C56-D56-E56 -> 0 | L56: =SUM(L53:L54) -> 0 | M56: =F56-L56 -> 0 | N56: =G56-L56 -> 0 | Q56: =Q54 -> 11.815
A57: июль | B57: 0 | C57: 0 | H57: санитарно-технические работы | P57: Итого: | Q57: =SUM(Q34:Q56) -> 141.78 | R57: =SUM(R34:R56) -> 0
A58: затраты УК | B58: =B57*$F$23 -> 0 | C58: =C57*$F$23 -> 0 | H58: строительные работы | R58: =R57-Q57 -> -141.78
H59: электромонтажные работы
A60: З-ты на сод.МОП | B60: =B57-B58 -> 0 | C60: 0 | D60: 0 | E60: 0 | F60: =B60-D60-E60 -> 0 | G60: =C60-D60-E60 -> 0 | L60: =SUM(L57:L58) -> 0 | M60: =F60-L60 -> 0 | N60: =G60-L60 -> 0
A61: август | B61: 0 | C61: 0 | H61: санитарно-технические работы
A62: затраты УК | B62: =B61*$F$23 -> 0 | C62: =C61*$F$23 -> 0 | H62: строительные работы
H63: электромонтажные работы
A64: З-ты на сод.МОП | B64: =B61-B62 -> 0 | C64: 0 | D64: 0 | E64: 0 | F64: =B64-D64-E64 -> 0 | G64: =C64-D64-E64 -> 0 | L64: =SUM(L61:L62) -> 0 | M64: =F64-L64 -> 0 | N64: =G64-L64 -> 0
A65: сентябрь | B65: 0 | C65: 0 | H65: санитарно-технические работы
A66: затраты УК | B66: =B65*$F$23 -> 0 | C66: =C65*$F$23 -> 0 | H66: строительные работы
H67: электромонтажные работы
A68: З-ты на сод.МОП | B68: =B65-B66 -> 0 | C68: 0 | D68: 0 | E68: 0 | F68: =B68-D68-E68 -> 0 | G68: =C68-D68-E68 -> 0 | L68: =SUM(L65:L66) -> 0 | M68: =F68-L68 -> 0 | N68: =G68-L68 -> 0
A69: октябрь | B69: 0 | C69: 0 | H69: санитарно-технические работы
A70: затраты УК | B70: =B69*$F$23 -> 0 | C70: =C69*$F$23 -> 0 | H70: строительные работы
H71: электромонтажные работы
A72: З-ты на сод.МОП | B72: =B69-B70 -> 0 | C72: 0 | D72: 0 | E72: 0 | F72: =B72-D72-E72 -> 0 | G72: =C72-D72-E72 -> 0 | L72: =SUM(L69:L70) -> 0 | M72: =F72-L72 -> 0 | N72: =G72-L72 -> 0
A73: ноябрь | B73: 0 | C73: 0 | H73: санитарно-технические работы
A74: затраты УК | B74: =B73*$F$23 -> 0 | C74: =C73*$F$23 -> 0 | H74: строительные работы
H75: электромонтажные работы
A76: З-ты на сод.МОП | B76: =B73-B74 -> 0 | C76: 0 | D76: 0 | E76: 0 | F76: =B76-D76-E76 -> 0 | G76: =C76-D76-E76 -> 0 | L76: =SUM(L73:L74) -> 0 | M76: =F76-L76 -> 0 | N76: =G76-L76 -> 0
A77: декабрь | B77: 0 | C77: 0 | H77: санитарно-технические работы
A78: затраты УК | B78: =B77*$F$23 -> 0 | C78: =C77*$F$23 -> 0 | H78: строительные работы
H79: электромонтажные работы
A80: З-ты на сод.МОП | B80: =B77-B78 -> 0 | C80: 0 | D80: 0 | E80: 0 | F80: =B80-D80-E80 -> 0 | G80: =C80-D80-E80 -> 0 | L80: =SUM(L77:L79) -> 0 | M80: =F80-L80 -> 0 | N80: =G80-L80 -> 0
H81: Остаток 2016 года | L81: =L36+L40+L44+L48+L52+L56+L60+L64+L68+L72+L76+L80 -> 0 | M81: =M36+M40+M44+M48+M52+M56+M60+M64+M68+M72+M76+M80 -> 1506.79317 | N81: =N36+N40+N44+N48+N52+N56+N60+N64+N68+N72+N76+N80 -> 2084.084017
H82: Остаток 2015 года | M82: 4643 | N82: 4590
A83: ВСЕГО | B83: =B36+B40+B44+B48+B52+B56+B60+B64+B68+B72+B76+B80 -> 1876.53317 | C83: =C36+C40+C44+C48+C52+C56+C60+C64+C68+C72+C76+C80 -> 2453.824017 | D83: =D36+D40+D44+D48+D52+D56+D60+D64+D68+D72+D76+D80 -> 322.48 | E83: =E36+E40+E44+E48+E52+E56+E60+E64+E68+E72+E76+E80 -> 47.26 | F83: 1506.79317 | G83: =G36+G40+G44+G48+G52+G56+G60+G64+G68+G72+G76+G80 -> 2084.084017 | H83: Всего остаток | M83: =M81+M82 -> 6149.79317 | N83: =N81+N82 -> 6674.084017
B86: Наименование работ | G86: Ед. | H86: Коли- | I86: Сумма
G87: измерен. | H87: чество
A88: Строительные работы
F92: Итого: | I92: =SUM(I89:I91) -> 0

Sheet ул.Днепров.11
A2: I. ТЕХНИЧЕСКАЯ ХАРАКТЕРИСТИКА ДОМА № 11 по ул.Днепровская | I2: Год постройки - 1952
I3: Дата начала управления 01.01.2012г.
I4: Кадастровый номер - 42:20:0101012
A5: ОБОРУДОВАН:
A6: 1.Водопровод - от центральной сети
A8: Мате- | B8: Кол-во | C8: Кол-во | D8: площадь дома в м2 | G8: объём | H8: % | I8: Кровля
A9: риал | B9: этажей | C9: квартир | D9: общая | E9: жилая | F9: не- | G9: здания | H9: износа - | I9: материал | J9: S,м2
A10: стен | B10: шт. | C10: шт. | F10: жилая | H10: год
D11: м2 | E11: м2 | G11: м3 | H11: инвентариз.
A12: Дерево | B12: 1 | C12: 7 | D12: 205.1 | E12: 124.8 | F12: 0 | G12: 690 | I12: шиферная | J12: 298
B16: II. РАСЧЁТ НАЧИСЛЕНИЙ И ЗАТРАТ
C18: Нач-ие содержания МОП | E18: Затраты на УК | G18: Затраты на сод.дома | I18: Постоянные затраты | M18: Вып-ние тек.ремонта
A19: Площадь,м2 | C19: Тариф | D19: Плановое | E19: Тариф | F19: Плановое | G19: Тариф | H19: Плановое | I19: Вывоз ТКО | J19: Плановое | K19: Вызов АДС | L19: Плановое | M19: Тариф | N19: Плановое
D20: нач-ние | F20: нач-ние | H20: нач-ние | I20: Тариф | J20: нач-ние | K20: Тариф | L20: нач-ние | N20: нач-ние
A22: S жилая | B22: 205.1 | C22: 8.14 | D22: =B22*C22 -> 1669.514 | E22: 1.39 | F22: =B22*E22 -> 285.089 | G22: =C22-E22 -> 6.75 | H22: =B22*G22 -> 1384.425 | I22: 1.16 | J22: =B22*I22 -> 237.916 | K22: 0.17 | L22: =B22*K22 -> 34.867 | M22: =G22-I22-K22 -> 5.42 | N22: =B22*M22 -> 1111.642 | O22: =E22+I22+K22+M22 -> 8.14
A23: Аренда | B23: 0 | F23: =E22/C22 -> 0.1707616708 | O23: =F22+H22 -> 1669.514
A28: Отчёт за 2016 год
A29: по содержанию и текущему ремонту мест общего пользования жилого дома № 11 по ул. Днепровская
A30: , | B30: ДОХОДЫ | D30: РАСХОДЫ | H30: ВЫПОЛНЕНО РАБОТ | M30: остаток + | P30: Отчетный | Q30: ОДС
B31: Начислено | C31: Оплачено | D31: Вывоз ТКО | E31: Вызов АДС | F31: Средства на т.рем. | M31: перерасход - | P31: период | Q31: план | R31: факт
B32: факт | C32: факт | F32: от нач-ия | G32: от оплаты | H32: Виды работ | L32: сумма | M32: от нач-ия | N32: от оплаты | P32: 2016г. | Q32: руб. | R32: руб.
A33: январь | B33: 1669.52 | C33: 481.88 | H33: санитарно-технические работы | P33: январь
A34: затраты УК | B34: =B33*$F$23 -> 285.0900246 | C34: =C33*$F$23 -> 82.28663391 | H34: строительные работы | Q34: =L22 -> 34.867
H35: электромонтажные работы | P35: февраль
A36: З-ты на сод.МОП | B36: =B33-B34 -> 1384.429975 | C36: =C33-C34 -> 399.5933661 | D36: =J22 -> 237.916 | E36: =L22 -> 34.867 | F36: =B36-D36-$E$36 -> 1111.646975 | G36: =C36-D36-$E$36 -> 126.8103661 | L36: =SUM(L33:L35) -> 0 | M36: =F36-L36 -> 1111.646975 | N36: =G36-L36 -> 126.8103661 | Q36: =Q34 -> 34.867
A37: февраль | B37: 1669.52 | C37: 1195.31 | H37: санитарно-технические работы | P37: март
A38: затраты УК | B38: =B37*$F$23 -> 285.0900246 | C38: =C37*$F$23 -> 204.1131327 | H38: строительные работы | Q38: =Q36 -> 34.867
H39: электромонтажные работы | P39: аперль
A40: З-ты на сод.МОП | B40: =B37-B38 -> 1384.429975 | C40: =C37-C38 -> 991.1968673 | D40: =D36 -> 237.916 | E40: =E36 -> 34.867 | F40: =B40-D40-E40 -> 1111.646975 | G40: =C40-D40-E40 -> 718.4138673 | L40: =SUM(L37:L39) -> 0 | M40: =F40-L40 -> 1111.646975 | N40: =G40-L40 -> 718.4138673 | Q40: =Q38 -> 34.867
A41: март | B41: 1669.52 | C41: 1851.26 | H41: санитарно-технические работы | P41: май
A42: затраты УК | B42: =B41*$F$23 -> 285.0900246 | C42: =C41*$F$23 -> 316.1242506 | H42: строительные работы | Q42: =Q40 -> 34.867
H43: электромонтажные работы | P43: июнь
A44: З-ты на сод.МОП | B44: =B41-B42 -> 1384.429975 | C44: 1535.135749 | D44: =D40 -> 237.916 | E44: =E40 -> 34.867 | F44: =B44-D44-E44 -> 1111.646975 | G44: =C44-D44-E44 -> 1262.352749 | L44: =SUM(L41:L43) -> 0 | M44: =F44-L44 -> 1111.646975 | N44: =G44-L44 -> 1262.352749 | Q44: =Q42 -> 34.867
A45: апрель | B45: 1669.52 | C45: 821.21 | H45: санитарно-технические работы | P45: июль
A46: затраты УК | B46: =B45*$F$23 -> 285.0900246 | C46: =C45*$F$23 -> 140.2311916 | H46: строительные работы | Q46: =L22 -> 34.867
H47: электромонтажные работы | P47: август
A48: З-ты на сод.МОП | B48: =B45-B46 -> 1384.429975 | C48: 680.9788084 | D48: =D44 -> 237.916 | E48: =E44 -> 34.867 | F48: =B48-D48-E48 -> 1111.646975 | G48: =C48-D48-E48 -> 408.1958084 | L48: =SUM(L45:L46) -> 0 | M48: =F48-L48 -> 1111.646975 | N48: =G48-L48 -> 408.1958084 | Q48: =Q46 -> 34.867
A49: май | B49: 0 | C49: 0 | H49: санитарно-технические работы | P49: сентябрь
A50: затраты УК | B50: =B49*$F$23 -> 0 | C50: =C49*$F$23 -> 0 | H50: строительные работы | Q50: =Q48 -> 34.867
H51: электромонтажные работы | P51: октябрь
A52: З-ты на сод.МОП | B52: =B49-B50 -> 0 | C52: 0 | D52: 0 | E52: 0 | F52: =B52-D52-E52 -> 0 | G52: =C52-D52-E52 -> 0 | L52: =SUM(L49:L50) -> 0 | M52: =F52-L52 -> 0 | N52: =G52-L52 -> 0 | Q52: =Q50 -> 34.867
A53: июнь | B53: 0 | C53: 0 | H53: санитарно-технические работы | P53: ноябрь
A54: затраты УК | B54: =B53*$F$23 -> 0 | C54: =C53*$F$23 -> 0 | H54: строительные работы | Q54: =Q52 -> 34.867
H55: электромонтажные работы | P55: декабрь
A56: З-ты на сод.МОП | B56: =B53-B54 -> 0 | C56: 0 | D56: 0 | E56: 0 | F56: =B56-D56-E56 -> 0 | G56: =C56-D56-E56 -> 0 | L56: =SUM(L53:L54) -> 0 | M56: =F56-L56 -> 0 | N56: =G56-L56 -> 0 | Q56: =Q54 -> 34.867
A57: июль | B57: 0 | C57: 0 | H57: санитарно-технические работы | P57: Итого: | Q57: =SUM(Q34:Q56) -> 418.404 | R57: =SUM(R34:R56) -> 0
A58: затраты УК | B58: =B57*$F$23 -> 0 | C58: =C57*$F$23 -> 0 | H58: строительные работы | R58: =R57-Q57 -> -418.404
H59: электромонтажные работы
A60: З-ты на сод.МОП | B60: =B57-B58 -> 0 | C60: 0 | D60: 0 | E60: 0 | F60: =B60-D60-E60 -> 0 | G60: =C60-D60-E60 -> 0 | L60: =SUM(L57:L58) -> 0 | M60: =F60-L60 -> 0 | N60: =G60-L60 -> 0
A61: август | B61: 0 | C61: 0 | H61: санитарно-технические работы
A62: затраты УК | B62: =B61*$F$23 -> 0 | C62: =C61*$F$23 -> 0 | H62: строительные работы
H63: электромонтажные работы
A64: З-ты на сод.МОП | B64: =B61-B62 -> 0 | C64: 0 | D64: 0 | E64: 0 | F64: =B64-D64-E64 -> 0 | G64: =C64-D64-E64 -> 0 | L64: =SUM(L61:L62) -> 0 | M64: =F64-L64 -> 0 | N64: =G64-L64 -> 0
A65: сентябрь | B65: 0 | C65: 0 | H65: санитарно-технические работы
A66: затраты УК | B66: =B65*$F$23 -> 0 | C66: =C65*$F$23 -> 0 | H66: строительные работы
H67: электромонтажные работы
A68: З-ты на сод.МОП | B68: =B65-B66 -> 0 | C68: 0 | D68: 0 | E68: 0 | F68: =B68-D68-E68 -> 0 | G68: =C68-D68-E68 -> 0 | L68: =SUM(L65:L66) -> 0 | M68: =F68-L68 -> 0 | N68: =G68-L68 -> 0
A69: октябрь | B69: 0 | C69: 0 | H69: санитарно-технические работы
A70: затраты УК | B70: =B69*$F$23 -> 0 | C70: =C69*$F$23 -> 0 | H70: строительные работы
H71: электромонтажные работы
A72: З-ты на сод.МОП | B72: =B69-B70 -> 0 | C72: 0 | D72: 0 | E72: 0 | F72: =B72-D72-E72 -> 0 | G72: =C72-D72-E72 -> 0 | L72: =SUM(L69:L70) -> 0 | M72: =F72-L72 -> 0 | N72: =G72-L72 -> 0
A73: ноябрь | B73: 0 | C73: 0 | H73: санитарно-технические работы
A74: затраты УК | B74: =B73*$F$23 -> 0 | C74: =C73*$F$23 -> 0 | H74: строительные работы
H75: электромонтажные работы
A76: З-ты на сод.МОП | B76: =B73-B74 -> 0 | C76: 0 | D76: 0 | E76: 0 | F76: =B76-D76-E76 -> 0 | G76: =C76-D76-E76 -> 0 | L76: =SUM(L73:L74) -> 0 | M76: =F76-L76 -> 0 | N76: =G76-L76 -> 0
A77: декабрь | B77: 0 | C77: 0 | H77: санитарно-технические работы
A78: затраты УК | B78: =B77*$F$23 -> 0 | C78: =C77*$F$23 -> 0 | H78: строительные работы
H79: электромонтажные работы
A80: З-ты на сод.МОП | B80: =B77-B78 -> 0 | C80: 0 | D80: 0 | E80: 0 | F80: =B80-D80-E80 -> 0 | G80: =C80-D80-E80 -> 0 | L80: =SUM(L77:L79) -> 0 | M80: =F80-L80 -> 0 | N80: =G80-L80 -> 0
H81: Остаток 2016 года | L81: =L36+L40+L44+L48+L52+L56+L60+L64+L68+L72+L76+L80 -> 0 | M81: =M36+M40+M44+M48+M52+M56+M60+M64+M68+M72+M76+M80 -> 4446.587902 | N81: =N36+N40+N44+N48+N52+N56+N60+N64+N68+N72+N76+N80 -> 2515.772791
H82: Остаток 2015 года | M82: 26654 | N82: 14195
A83: ВСЕГО | B83: =B36+B40+B44+B48+B52+B56+B60+B64+B68+B72+B76+B80 -> 5537.719902 | C83: =C36+C40+C44+C48+C52+C56+C60+C64+C68+C72+C76+C80 -> 3606.904791 | D83: =D36+D40+D44+D48+D52+D56+D60+D64+D68+D72+D76+D80 -> 951.664 | E83: =E36+E40+E44+E48+E52+E56+E60+E64+E68+E72+E76+E80 -> 139.468 | F83: 4446.587902 | G83: =G36+G40+G44+G48+G52+G56+G60+G64+G68+G72+G76+G80 -> 2515.772791 | H83: Всего остаток | M83: =M81+M82 -> 31100.5879 | N83: =N81+N82 -> 16710.77279
B86: Наименование работ | G86: Ед. | H86: Коли- | I86: Сумма
G87: измерен. | H87: чество
A88: Строительные работы
F92: Итого: | I92: =SUM(I89:I91) -> 0

Sheet ул.Днепров.18
A2: I. ТЕХНИЧЕСКАЯ ХАРАКТЕРИСТИКА ДОМА № 18 по ул.Днепровская | I2: Год постройки - 1917
I3: Дата начала управления 01.01.2012г.
I4: Кадастровый номер - 42:20:0101012
A5: ОБОРУДОВАН:
A6: 1.Водопровод - от центральной сети
A8: Мате- | B8: Кол-во | C8: Кол-во | D8: площадь дома в м2 | G8: объём | H8: % | I8: Кровля
A9: риал | B9: этажей | C9: квартир | D9: общая | E9: жилая | F9: не- | G9: здания | H9: износа - | I9: материал | J9: S,м2
A10: стен | B10: шт. | C10: шт. | F10: жилая | H10: год
D11: м2 | E11: м2 | G11: м3 | H11: инвентариз.
A12: Дерево | B12: 1 | C12: 1 | D12: 28.8 | E12: 18.7 | F12: 0 | G12: 102 | I12: шифер | J12: 36
B16: II. РАСЧЁТ НАЧИСЛЕНИЙ И ЗАТРАТ
C18: Нач-ие содержания МОП | E18: Затраты на УК | G18: Затраты на сод.дома | I18: Постоянные затраты | M18: Вып-ние тек.ремонта
A19: Площадь,м2 | C19: Тариф | D19: Плановое | E19: Тариф | F19: Плановое | G19: Тариф | H19: Плановое | I19: Вывоз ТКО | J19: Плановое | K19: Вызов АДС | L19: Плановое | M19: Тариф | N19: Плановое
D20: нач-ние | F20: нач-ние | H20: нач-ние | I20: Тариф | J20: нач-ние | K20: Тариф | L20: нач-ние | N20: нач-ние
A22: S жилая | B22: 28.8 | C22: 8.14 | D22: =B22*C22 -> 234.432 | E22: 1.39 | F22: =B22*E22 -> 40.032 | G22: =C22-E22 -> 6.75 | H22: =B22*G22 -> 194.4 | I22: 1.16 | J22: =B22*I22 -> 33.408 | K22: 0.17 | L22: =B22*K22 -> 4.896 | M22: =G22-I22-K22 -> 5.42 | N22: =B22*M22 -> 156.096 | O22: =E22+I22+K22+M22 -> 8.14
A23: Аренда | B23: 0 | F23: =E22/C22 -> 0.1707616708 | O23: =F22+H22 -> 234.432
A28: Отчёт за 2016 год
A29: по содержанию и текущему ремонту мест общего пользования жилого дома № 18 по ул. Днепровская
A30: , | B30: ДОХОДЫ | D30: РАСХОДЫ | H30: ВЫПОЛНЕНО РАБОТ | M30: остаток + | P30: Отчетный | Q30: ОДС
B31: Начислено | C31: Оплачено | D31: Вывоз ТКО | E31: Вызов АДС | F31: Средства на т.рем. | M31: перерасход - | P31: период | Q31: план | R31: факт
B32: факт | C32: факт | F32: от нач-ия | G32: от оплаты | H32: Виды работ | L32: сумма | M32: от нач-ия | N32: от оплаты | P32: 2016г. | Q32: руб. | R32: руб.
A33: январь | B33: 436.3 | C33: 0 | H33: санитарно-технические работы | P33: январь
A34: затраты УК | B34: =B33*$F$23 -> 74.50331695 | C34: =C33*$F$23 -> 0 | H34: строительные работы | Q34: =L22 -> 4.896
H35: электромонтажные работы | P35: февраль
A36: З-ты на сод.МОП | B36: =B33-B34 -> 361.796683 | C36: =C33-C34 -> 0 | D36: =J22 -> 33.408 | E36: =L22 -> 4.896 | F36: =B36-D36-$E$36 -> 323.492683 | G36: =C36-D36-$E$36 -> -38.304 | L36: =SUM(L33:L35) -> 0 | M36: =F36-L36 -> 323.492683 | N36: =G36-L36 -> -38.304 | Q36: =Q34 -> 4.896
A37: февраль | B37: -19.54 | C37: 0 | H37: санитарно-технические работы | P37: март
A38: затраты УК | B38: =B37*$F$23 -> -3.336683047 | C38: =C37*$F$23 -> 0 | H38: строительные работы | Q38: =Q36 -> 4.896
H39: электромонтажные работы | P39: аперль
A40: З-ты на сод.МОП | B40: =B37-B38 -> -16.20331695 | C40: =C37-C38 -> 0 | D40: 0 | E40: 0 | F40: =B40-D40-E40 -> -16.20331695 | G40: =C40-D40-E40 -> 0 | L40: =SUM(L37:L39) -> 0 | M40: =F40-L40 -> -16.20331695 | N40: =G40-L40 -> 0 | Q40: =Q38 -> 4.896
A41: март | B41: 234.43 | C41: 0 | H41: санитарно-технические работы | P41: май
A42: затраты УК | B42: =B41*$F$23 -> 40.03165848 | C42: =C41*$F$23 -> 0 | H42: строительные работы | Q42: =Q40 -> 4.896
H43: электромонтажные работы | P43: июнь
A44: З-ты на сод.МОП | B44: =B41-B42 -> 194.3983415 | C44: 0 | D44: =D36 -> 33.408 | E44: =E36 -> 4.896 | F44: =B44-D44-E44 -> 156.0943415 | G44: =C44-D44-E44 -> -38.304 | L44: =SUM(L41:L43) -> 0 | M44: =F44-L44 -> 156.0943415 | N44: =G44-L44 -> -38.304 | Q44: =Q42 -> 4.896
A45: апрель | B45: 234.43 | C45: 0 | H45: санитарно-технические работы | P45: июль
A46: затраты УК | B46: =B45*$F$23 -> 40.03165848 | C46: =C45*$F$23 -> 0 | H46: строительные работы | Q46: =L22 -> 4.896
H47: электромонтажные работы | P47: август
A48: З-ты на сод.МОП | B48: =B45-B46 -> 194.3983415 | C48: 0 | D48: =D44 -> 33.408 | E48: =E44 -> 4.896 | F48: =B48-D48-E48 -> 156.0943415 | G48: =C48-D48-E48 -> -38.304 | L48: =SUM(L45:L46) -> 0 | M48: =F48-L48 -> 156.0943415 | N48: =G48-L48 -> -38.304 | Q48: =Q46 -> 4.896
A49: май | B49: 0 | C49: 0 | H49: санитарно-технические работы | P49: сентябрь
A50: затраты УК | B50: =B49*$F$23 -> 0 | C50: =C49*$F$23 -> 0 | H50: строительные работы | Q50: =Q48 -> 4.896
H51: электромонтажные работы | P51: октябрь
A52: З-ты на сод.МОП | B52: =B49-B50 -> 0 | C52: 0 | D52: 0 | E52: 0 | F52: =B52-D52-E52 -> 0 | G52: =C52-D52-E52 -> 0 | L52: =SUM(L49:L50) -> 0 | M52: =F52-L52 -> 0 | N52: =G52-L52 -> 0 | Q52: =Q50 -> 4.896
A53: июнь | B53: 0 | C53: 0 | H53: санитарно-технические работы | P53: ноябрь
A54: затраты УК | B54: =B53*$F$23 -> 0 | C54: =C53*$F$23 -> 0 | H54: строительные работы | Q54: =Q52 -> 4.896
H55: электромонтажные работы | P55: декабрь
A56: З-ты на сод.МОП | B56: =B53-B54 -> 0 | C56: 0 | D56: 0 | E56: 0 | F56: =B56-D56-E56 -> 0 | G56: =C56-D56-E56 -> 0 | L56: =SUM(L53:L54) -> 0 | M56: =F56-L56 -> 0 | N56: =G56-L56 -> 0 | Q56: =Q54 -> 4.896
A57: июль | B57: 0 | C57: 0 | H57: санитарно-технические работы | P57: Итого: | Q57: =SUM(Q34:Q56) -> 58.752 | R57: =SUM(R34:R56) -> 0
A58: затраты УК | B58: =B57*$F$23 -> 0 | C58: =C57*$F$23 -> 0 | H58: строительные работы | R58: =R57-Q57 -> -58.752
H59: электромонтажные работы
A60: З-ты на сод.МОП | B60: =B57-B58 -> 0 | C60: 0 | D60: 0 | E60: 0 | F60: =B60-D60-E60 -> 0 | G60: =C60-D60-E60 -> 0 | L60: =SUM(L57:L58) -> 0 | M60: =F60-L60 -> 0 | N60: =G60-L60 -> 0
A61: август | B61: 0 | C61: 0 | H61: санитарно-технические работы
A62: затраты УК | B62: =B61*$F$23 -> 0 | C62: =C61*$F$23 -> 0 | H62: строительные работы
H63: электромонтажные работы
A64: З-ты на сод.МОП | B64: =B61-B62 -> 0 | C64: 0 | D64: 0 | E64: 0 | F64: =B64-D64-E64 -> 0 | G64: =C64-D64-E64 -> 0 | L64: =SUM(L61:L62) -> 0 | M64: =F64-L64 -> 0 | N64: =G64-L64 -> 0
A65: сентябрь | B65: 0 | C65: 0 | H65: санитарно-технические работы
A66: затраты УК | B66: =B65*$F$23 -> 0 | C66: =C65*$F$23 -> 0 | H66: строительные работы
H67: электромонтажные работы
A68: З-ты на сод.МОП | B68: =B65-B66 -> 0 | C68: 0 | D68: 0 | E68: 0 | F68: =B68-D68-E68 -> 0 | G68: =C68-D68-E68 -> 0 | L68: =SUM(L65:L66) -> 0 | M68: =F68-L68 -> 0 | N68: =G68-L68 -> 0
A69: октябрь | B69: 0 | C69: 0 | H69: санитарно-технические работы
A70: затраты УК | B70: =B69*$F$23 -> 0 | C70: =C69*$F$23 -> 0 | H70: строительные работы
H71: электромонтажные работы
A72: З-ты на сод.МОП | B72: =B69-B70 -> 0 | C72: 0 | D72: 0 | E72: 0 | F72: =B72-D72-E72 -> 0 | G72: =C72-D72-E72 -> 0 | L72: =SUM(L69:L70) -> 0 | M72: =F72-L72 -> 0 | N72: =G72-L72 -> 0
A73: ноябрь | B73: 0 | C73: 0 | H73: санитарно-технические работы
A74: затраты УК | B74: =B73*$F$23 -> 0 | C74: =C73*$F$23 -> 0 | H74: строительные работы
H75: электромонтажные работы
A76: З-ты на сод.МОП | B76: =B73-B74 -> 0 | C76: 0 | D76: 0 | E76: 0 | F76: =B76-D76-E76 -> 0 | G76: =C76-D76-E76 -> 0 | L76: =SUM(L73:L74) -> 0 | M76: =F76-L76 -> 0 | N76: =G76-L76 -> 0
A77: декабрь | B77: 0 | C77: 0 | H77: санитарно-технические работы
A78: затраты УК | B78: =B77*$F$23 -> 0 | C78: =C77*$F$23 -> 0 | H78: строительные работы
H79: электромонтажные работы
A80: З-ты на сод.МОП | B80: =B77-B78 -> 0 | C80: 0 | D80: 0 | E80: 0 | F80: =B80-D80-E80 -> 0 | G80: =C80-D80-E80 -> 0 | L80: =SUM(L77:L79) -> 0 | M80: =F80-L80 -> 0 | N80: =G80-L80 -> 0
H81: Остаток 2016 года | L81: =L36+L40+L44+L48+L52+L56+L60+L64+L68+L72+L76+L80 -> 0 | M81: =M36+M40+M44+M48+M52+M56+M60+M64+M68+M72+M76+M80 -> 619.4780491 | N81: =N36+N40+N44+N48+N52+N56+N60+N64+N68+N72+N76+N80 -> -114.912
H82: Остаток 2015 года | M82: 5392 | N82: -1275
A83: ВСЕГО | B83: =B36+B40+B44+B48+B52+B56+B60+B64+B68+B72+B76+B80 -> 734.3900491 | C83: =C36+C40+C44+C48+C52+C56+C60+C64+C68+C72+C76+C80 -> 0 | D83: =D36+D40+D44+D48+D52+D56+D60+D64+D68+D72+D76+D80 -> 100.224 | E83: =E36+E40+E44+E48+E52+E56+E60+E64+E68+E72+E76+E80 -> 14.688 | F83: =F36+F40+F44+F48+F52+F56+F60+F64+F68+F72+F76+F80 -> 619.4780491 | G83: =G36+G40+G44+G48+G52+G56+G60+G64+G68+G72+G76+G80 -> -114.912 | H83: Всего остаток | M83: =M81+M82 -> 6011.478049 | N83: =N81+N82 -> -1389.912
B86: Наименование работ | G86: Ед. | H86: Коли- | I86: Сумма
G87: измерен. | H87: чество
A88: Строительные работы
F92: Итого: | I92: =SUM(I89:I91) -> 0

Sheet ул.Днепров.20
A2: I. ТЕХНИЧЕСКАЯ ХАРАКТЕРИСТИКА ДОМА № 20 по ул.Днепровская | I2: Год постройки - 1932
I3: Дата начала управления 01.01.2012г.
I4: Кадастровый номер - 42:20:0101012
A5: ОБОРУДОВАН:
A6: 1.Водопровод - от центральной сети
A8: Мате- | B8: Кол-во | C8: Кол-во | D8: площадь дома в м2 | G8: объём | H8: % | I8: Кровля
A9: риал | B9: этажей | C9: квартир | D9: общая | E9: жилая | F9: не- | G9: здания | H9: износа - | I9: материал | J9: S,м2
A10: стен | B10: шт. | C10: шт. | F10: жилая | H10: год
D11: м2 | E11: м2 | G11: м3 | H11: инвентариз.
A12: Дерево | B12: 1 | C12: 1 | D12: 41.4 | E12: 33.1 | F12: 0 | G12: 145 | I12: шиферная | J12: 62.3
B16: II. РАСЧЁТ НАЧИСЛЕНИЙ И ЗАТРАТ
C18: Нач-ие содержания МОП | E18: Затраты на УК | G18: Затраты на сод.дома | I18: Постоянные затраты | M18: Вып-ние тек.ремонта
A19: Площадь,м2 | C19: Тариф | D19: Плановое | E19: Тариф | F19: Плановое | G19: Тариф | H19: Плановое | I19: Вывоз ТКО | J19: Плановое | K19: Вызов АДС | L19: Плановое | M19: Тариф | N19: Плановое
D20: нач-ние | F20: нач-ние | H20: нач-ние | I20: Тариф | J20: нач-ние | K20: Тариф | L20: нач-ние | N20: нач-ние
A22: S жилая | B22: 41.4 | C22: 8.14 | D22: =B22*C22 -> 336.996 | E22: 1.39 | F22: =B22*E22 -> 57.546 | G22: =C22-E22 -> 6.75 | H22: =B22*G22 -> 279.45 | I22: 1.16 | J22: =B22*I22 -> 48.024 | K22: 0.17 | L22: =B22*K22 -> 7.038 | M22: =G22-I22-K22 -> 5.42 | N22: =B22*M22 -> 224.388 | O22: =E22+I22+K22+M22 -> 8.14
A23: Аренда | B23: 0 | F23: =E22/C22 -> 0.1707616708 | O23: =F22+H22 -> 336.996
A28: Отчёт за 2016 год
A29: по содержанию и текущему ремонту мест общего пользования жилого дома № 20 по ул. Днепровская
A30: , | B30: ДОХОДЫ | D30: РАСХОДЫ | H30: ВЫПОЛНЕНО РАБОТ | M30: остаток + | P30: Отчетный | Q30: ОДС
B31: Начислено | C31: Оплачено | D31: Вывоз ТКО | E31: Вызов АДС | F31: Средства на т.рем. | M31: перерасход - | P31: период | Q31: план | R31: факт
B32: факт | C32: факт | F32: от нач-ия | G32: от оплаты | H32: Виды работ | L32: сумма | M32: от нач-ия | N32: от оплаты | P32: 2016г. | Q32: руб. | R32: руб.
A33: январь | B33: 337 | C33: 0 | H33: санитарно-технические работы | P33: январь
A34: затраты УК | B34: =B33*$F$23 -> 57.54668305 | C34: =C33*$F$23 -> 0 | H34: строительные работы | Q34: =L22 -> 7.038
H35: электромонтажные работы | P35: февраль
A36: З-ты на сод.МОП | B36: =B33-B34 -> 279.453317 | C36: =C33-C34 -> 0 | D36: =J22 -> 48.024 | E36: =L22 -> 7.038 | F36: =B36-D36-$E$36 -> 224.391317 | G36: =C36-D36-$E$36 -> -55.062 | L36: =SUM(L33:L35) -> 0 | M36: =F36-L36 -> 224.391317 | N36: =G36-L36 -> -55.062 | Q36: =Q34 -> 7.038
A37: февраль | B37: 337 | C37: 0 | H37: санитарно-технические работы | P37: март
A38: затраты УК | B38: =B37*$F$23 -> 57.54668305 | C38: =C37*$F$23 -> 0 | H38: строительные работы | Q38: =Q36 -> 7.038
H39: электромонтажные работы | P39: аперль
A40: З-ты на сод.МОП | B40: =B37-B38 -> 279.453317 | C40: =C37-C38 -> 0 | D40: =D36 -> 48.024 | E40: =E36 -> 7.038 | F40: =B40-D40-E40 -> 224.391317 | G40: =C40-D40-E40 -> -55.062 | L40: =SUM(L37:L39) -> 0 | M40: =F40-L40 -> 224.391317 | N40: =G40-L40 -> -55.062 | Q40: =Q38 -> 7.038
A41: март | B41: 337 | C41: 0 | H41: санитарно-технические работы | P41: май
A42: затраты УК | B42: =B41*$F$23 -> 57.54668305 | C42: =C41*$F$23 -> 0 | H42: строительные работы | Q42: =Q40 -> 7.038
H43: электромонтажные работы | P43: июнь
A44: З-ты на сод.МОП | B44: =B41-B42 -> 279.453317 | C44: 0 | D44: =D40 -> 48.024 | E44: =E40 -> 7.038 | F44: =B44-D44-E44 -> 224.391317 | G44: =C44-D44-E44 -> -55.062 | L44: =SUM(L41:L43) -> 0 | M44: =F44-L44 -> 224.391317 | N44: =G44-L44 -> -55.062 | Q44: =Q42 -> 7.038
A45: апрель | B45: 337 | C45: 0 | H45: санитарно-технические работы | P45: июль
A46: затраты УК | B46: =B45*$F$23 -> 57.54668305 | C46: =C45*$F$23 -> 0 | H46: строительные работы | Q46: =L22 -> 7.038
H47: электромонтажные работы | P47: август
A48: З-ты на сод.МОП | B48: =B45-B46 -> 279.453317 | C48: 0 | D48: =D44 -> 48.024 | E48: =E44 -> 7.038 | F48: =B48-D48-E48 -> 224.391317 | G48: =C48-D48-E48 -> -55.062 | L48: =SUM(L45:L46) -> 0 | M48: =F48-L48 -> 224.391317 | N48: =G48-L48 -> -55.062 | Q48: =Q46 -> 7.038
A49: май | B49: 0 | C49: 0 | H49: санитарно-технические работы | P49: сентябрь
A50: затраты УК | B50: =B49*$F$23 -> 0 | C50: =C49*$F$23 -> 0 | H50: строительные работы | Q50: =Q48 -> 7.038
H51: электромонтажные работы | P51: октябрь
A52: З-ты на сод.МОП | B52: =B49-B50 -> 0 | C52: 0 | D52: 0 | E52: 0 | F52: =B52-D52-E52 -> 0 | G52: =C52-D52-E52 -> 0 | L52: =SUM(L49:L50) -> 0 | M52: =F52-L52 -> 0 | N52: =G52-L52 -> 0 | Q52: =Q50 -> 7.038
A53: июнь | B53: 0 | C53: 0 | H53: санитарно-технические работы | P53: ноябрь
A54: затраты УК | B54: =B53*$F$23 -> 0 | C54: =C53*$F$23 -> 0 | H54: строительные работы | Q54: =Q52 -> 7.038
H55: электромонтажные работы | P55: декабрь
A56: З-ты на сод.МОП | B56: =B53-B54 -> 0 | C56: 0 | D56: 0 | E56: 0 | F56: =B56-D56-E56 -> 0 | G56: =C56-D56-E56 -> 0 | L56: =SUM(L53:L54) -> 0 | M56: =F56-L56 -> 0 | N56: =G56-L56 -> 0 | Q56: =Q54 -> 7.038
A57: июль | B57: 0 | C57: 0 | H57: санитарно-технические работы | P57: Итого: | Q57: =SUM(Q34:Q56) -> 84.456 | R57: =SUM(R34:R56) -> 0
A58: затраты УК | B58: =B57*$F$23 -> 0 | C58: =C57*$F$23 -> 0 | H58: строительные работы | R58: =R57-Q57 -> -84.456
H59: электромонтажные работы
A60: З-ты на сод.МОП | B60: =B57-B58 -> 0 | C60: 0 | D60: 0 | E60: 0 | F60: =B60-D60-E60 -> 0 | G60: =C60-D60-E60 -> 0 | L60: =SUM(L57:L58) -> 0 | M60: =F60-L60 -> 0 | N60: =G60-L60 -> 0
A61: август | B61: 0 | C61: 0 | H61: санитарно-технические работы
A62: затраты УК | B62: =B61*$F$23 -> 0 | C62: =C61*$F$23 -> 0 | H62: строительные работы
H63: электромонтажные работы
A64: З-ты на сод.МОП | B64: =B61-B62 -> 0 | C64: 0 | D64: 0 | E64: 0 | F64: =B64-D64-E64 -> 0 | G64: =C64-D64-E64 -> 0 | L64: =SUM(L61:L62) -> 0 | M64: =F64-L64 -> 0 | N64: =G64-L64 -> 0
A65: сентябрь | B65: 0 | C65: 0 | H65: санитарно-технические работы
A66: затраты УК | B66: =B65*$F$23 -> 0 | C66: =C65*$F$23 -> 0 | H66: строительные работы
H67: электромонтажные работы
A68: З-ты на сод.МОП | B68: =B65-B66 -> 0 | C68: 0 | D68: 0 | E68: 0 | F68: =B68-D68-E68 -> 0 | G68: =C68-D68-E68 -> 0 | L68: =SUM(L65:L66) -> 0 | M68: =F68-L68 -> 0 | N68: =G68-L68 -> 0
A69: октябрь | B69: 0 | C69: 0 | H69: санитарно-технические работы
A70: затраты УК | B70: =B69*$F$23 -> 0 | C70: =C69*$F$23 -> 0 | H70: строительные работы
H71: электромонтажные работы
A72: З-ты на сод.МОП | B72: =B69-B70 -> 0 | C72: 0 | D72: 0 | E72: 0 | F72: =B72-D72-E72 -> 0 | G72: =C72-D72-E72 -> 0 | L72: =SUM(L69:L70) -> 0 | M72: =F72-L72 -> 0 | N72: =G72-L72 -> 0
A73: ноябрь | B73: 0 | C73: 0 | H73: санитарно-технические работы
A74: затраты УК | B74: =B73*$F$23 -> 0 | C74: =C73*$F$23 -> 0 | H74: строительные работы
H75: электромонтажные работы
A76: З-ты на сод.МОП | B76: =B73-B74 -> 0 | C76: 0 | D76: 0 | E76: 0 | F76: =B76-D76-E76 -> 0 | G76: =C76-D76-E76 -> 0 | L76: =SUM(L73:L74) -> 0 | M76: =F76-L76 -> 0 | N76: =G76-L76 -> 0
A77: декабрь | B77: 0 | C77: 0 | H77: санитарно-технические работы
A78: затраты УК | B78: =B77*$F$23 -> 0 | C78: =C77*$F$23 -> 0 | H78: строительные работы
H79: электромонтажные работы
A80: З-ты на сод.МОП | B80: =B77-B78 -> 0 | C80: 0 | D80: 0 | E80: 0 | F80: =B80-D80-E80 -> 0 | G80: =C80-D80-E80 -> 0 | L80: =SUM(L77:L79) -> 0 | M80: =F80-L80 -> 0 | N80: =G80-L80 -> 0
H81: Остаток 2016 года | L81: =L36+L40+L44+L48+L52+L56+L60+L64+L68+L72+L76+L80 -> 0 | M81: =M36+M40+M44+M48+M52+M56+M60+M64+M68+M72+M76+M80 -> 897.5652678 | N81: =N36+N40+N44+N48+N52+N56+N60+N64+N68+N72+N76+N80 -> -220.248
H82: Остаток 2015 года | M82: 8588 | N82: 7725
A83: ВСЕГО | B83: =B36+B40+B44+B48+B52+B56+B60+B64+B68+B72+B76+B80 -> 1117.813268 | C83: =C36+C40+C44+C48+C52+C56+C60+C64+C68+C72+C76+C80 -> 0 | D83: =D36+D40+D44+D48+D52+D56+D60+D64+D68+D72+D76+D80 -> 192.096 | E83: =E36+E40+E44+E48+E52+E56+E60+E64+E68+E72+E76+E80 -> 28.152 | F83: =F36+F40+F44+F48+F52+F56+F60+F64+F68+F72+F76+F80 -> 897.5652678 | G83: =G36+G40+G44+G48+G52+G56+G60+G64+G68+G72+G76+G80 -> -220.248 | H83: Всего остаток | M83: =M81+M82 -> 9485.565268 | N83: =N81+N82 -> 7504.752
B86: Наименование работ | G86: Ед. | H86: Коли- | I86: Сумма
G87: измерен. | H87: чество
A88: Строительные работы
F92: Итого: | I92: =SUM(I89:I91) -> 0

Sheet ул.Доватора1
A3: I. ТЕХНИЧЕСКАЯ ХАРАКТЕРИСТИКА ДОМА № 1 по ул.Доватора | I3: Год постройки - 1904
I4: Дата начала управления 01.01.2012г.
I5: Кадастровый номер - 42:20:0101007
A6: ОБОРУДОВАН:
A7: 1.Водопровод - от центральной сети
A9: Мате- | B9: Кол-во | C9: Кол-во | D9: площадь дома в м2 | G9: объём | H9: % | I9: Кровля
A10: риал | B10: этажей | C10: квартир | D10: общая | E10: жилая | F10: не- | G10: здания | H10: износа - | I10: материал | J10: S,м2
A11: стен | B11: шт. | C11: шт. | F11: жилая | H11: год
D12: м2 | E12: м2 | G12: м3 | H12: инвентариз.
A13: Дерево | B13: 1 | C13: 2 | D13: 61.2 | E13: 32.2 | F13: 0 | G13: 224 | I13: шиферная | J13: 94
B16: II. РАСЧЁТ НАЧИСЛЕНИЙ И ЗАТРАТ
C18: Нач-ие содержания МОП | E18: Затраты на УК | G18: Затраты на сод.дома | I18: Постоянные затраты | M18: Вып-ние тек.ремонта
A19: Площадь,м2 | C19: Тариф | D19: Плановое | E19: Тариф | F19: Плановое | G19: Тариф | H19: Плановое | I19: Вывоз ТКО | J19: Плановое | K19: Вызов АДС | L19: Плановое | M19: Тариф | N19: Плановое
D20: нач-ние | F20: нач-ние | H20: нач-ние | I20: Тариф | J20: нач-ние | K20: Тариф | L20: нач-ние | N20: нач-ние
A22: S жилая | B22: 61.2 | C22: 8.14 | D22: =B22*C22 -> 498.168 | E22: 1.39 | F22: =B22*E22 -> 85.068 | G22: =C22-E22 -> 6.75 | H22: =B22*G22 -> 413.1 | I22: 1.16 | J22: =B22*I22 -> 70.992 | K22: 0.17 | L22: =B22*K22 -> 10.404 | M22: =G22-I22-K22 -> 5.42 | N22: =B22*M22 -> 331.704 | O22: =E22+I22+K22+M22 -> 8.14
A23: Аренда | B23: 0 | F23: =E22/C22 -> 0.1707616708 | O23: =F22+H22 -> 498.168
C27: с01.04.16г. Договор расторгнут
A28: Отчёт за 2016 год
A29: по содержанию и текущему ремонту мест общего пользования жилого дома № 1 по ул. Доватора
A30: , | B30: ДОХОДЫ | D30: РАСХОДЫ | H30: ВЫПОЛНЕНО РАБОТ | M30: остаток + | P30: Отчетный | Q30: ОДС
B31: Начислено | C31: Оплачено | D31: Вывоз ТКО | E31: Вызов АДС | F31: Средства на т.рем. | M31: перерасход - | P31: период | Q31: план | R31: факт
B32: факт | C32: факт | F32: от нач-ия | G32: от оплаты | H32: Виды работ | L32: сумма | M32: от нач-ия | N32: от оплаты | P32: 2016г. | Q32: руб. | R32: руб.
A33: январь | B33: 498.17 | C33: 527.08 | H33: санитарно-технические работы | P33: январь
A34: затраты УК | B34: =B33*$F$23 -> 85.06834152 | C34: =C33*$F$23 -> 90.00506143 | H34: строительные работы | Q34: =L22 -> 10.404
H35: электромонтажные работы | P35: февраль
A36: З-ты на сод.МОП | B36: =B33-B34 -> 413.1016585 | C36: =C33-C34 -> 437.0749386 | D36: =J22 -> 70.992 | E36: =L22 -> 10.404 | F36: =B36-D36-$E$36 -> 331.7056585 | G36: =C36-D36-$E$36 -> 355.6789386 | L36: =SUM(L33:L35) -> 0 | M36: =F36-L36 -> 331.7056585 | N36: =G36-L36 -> 355.6789386 | Q36: =Q34 -> 10.404
A37: февраль | B37: 498.17 | C37: 468.77 | H37: санитарно-технические работы | P37: март
A38: затраты УК | B38: =B37*$F$23 -> 85.06834152 | C38: =C37*$F$23 -> 80.0479484 | H38: строительные работы | Q38: =Q36 -> 10.404
H39: электромонтажные работы | P39: аперль
A40: З-ты на сод.МОП | B40: =B37-B38 -> 413.1016585 | C40: =C37-C38 -> 388.7220516 | D40: =D36 -> 70.992 | E40: =E36 -> 10.404 | F40: =B40-D40-E40 -> 331.7056585 | G40: =C40-D40-E40 -> 307.3260516 | L40: =SUM(L37:L39) -> 0 | M40: =F40-L40 -> 331.7056585 | N40: =G40-L40 -> 307.3260516 | Q40: =Q38 -> 10.404
A41: март | B41: 498.17 | C41: 498.4 | H41: санитарно-технические работы | P41: май
A42: затраты УК | B42: =B41*$F$23 -> 85.06834152 | C42: =C41*$F$23 -> 85.10761671 | H42: строительные работы | Q42: =Q40 -> 10.404
H43: электромонтажные работы | P43: июнь
A44: З-ты на сод.МОП | B44: =B41-B42 -> 413.1016585 | C44: 413.2923833 | D44: =D40 -> 70.992 | E44: =E40 -> 10.404 | F44: =B44-D44-E44 -> 331.7056585 | G44: =C44-D44-E44 -> 331.8963833 | L44: =SUM(L41:L43) -> 0 | M44: =F44-L44 -> 331.7056585 | N44: =G44-L44 -> 331.8963833 | Q44: =Q42 -> 10.404
A45: апрель | B45: 0 | C45: 0 | H45: санитарно-технические работы | P45: июль
A46: затраты УК | B46: =B45*$F$23 -> 0 | C46: =C45*$F$23 -> 0 | H46: строительные работы | Q46: =L22 -> 10.404
H47: электромонтажные работы | P47: август
A48: З-ты на сод.МОП | B48: =B45-B46 -> 0 | C48: 0 | D48: 0 | E48: 0 | F48: =B48-D48-E48 -> 0 | G48: =C48-D48-E48 -> 0 | L48: =SUM(L45:L46) -> 0 | M48: =F48-L48 -> 0 | N48: =G48-L48 -> 0 | Q48: =Q46 -> 10.404
A49: май | B49: 0 | C49: 0 | H49: санитарно-технические работы | P49: сентябрь
A50: затраты УК | B50: =B49*$F$23 -> 0 | C50: =C49*$F$23 -> 0 | H50: строительные работы | Q50: =Q48 -> 10.404
H51: электромонтажные работы | P51: октябрь
A52: З-ты на сод.МОП | B52: =B49-B50 -> 0 | C52: 0 | D52: 0 | E52: 0 | F52: =B52-D52-E52 -> 0 | G52: =C52-D52-E52 -> 0 | L52: =SUM(L49:L50) -> 0 | M52: =F52-L52 -> 0 | N52: =G52-L52 -> 0 | Q52: =Q50 -> 10.404
A53: июнь | B53: 0 | C53: 0 | H53: санитарно-технические работы | P53: ноябрь
A54: затраты УК | B54: =B53*$F$23 -> 0 | C54: =C53*$F$23 -> 0 | H54: строительные работы | Q54: =Q52 -> 10.404
H55: электромонтажные работы | P55: декабрь
A56: З-ты на сод.МОП | B56: =B53-B54 -> 0 | C56: 0 | D56: 0 | E56: 0 | F56: =B56-D56-E56 -> 0 | G56: =C56-D56-E56 -> 0 | L56: =SUM(L53:L54) -> 0 | M56: =F56-L56 -> 0 | N56: =G56-L56 -> 0 | Q56: =Q54 -> 10.404
A57: июль | B57: 0 | C57: 0 | H57: санитарно-технические работы | P57: Итого: | Q57: =SUM(Q34:Q56) -> 124.848 | R57: =SUM(R34:R56) -> 0
A58: затраты УК | B58: =B57*$F$23 -> 0 | C58: =C57*$F$23 -> 0 | H58: строительные работы | R58: =R57-Q57 -> -124.848
H59: электромонтажные работы
A60: З-ты на сод.МОП | B60: =B57-B58 -> 0 | C60: 0 | D60: 0 | E60: 0 | F60: =B60-D60-E60 -> 0 | G60: =C60-D60-E60 -> 0 | L60: =SUM(L57:L58) -> 0 | M60: =F60-L60 -> 0 | N60: =G60-L60 -> 0
A61: август | B61: 0 | C61: 0 | H61: санитарно-технические работы
A62: затраты УК | B62: =B61*$F$23 -> 0 | C62: =C61*$F$23 -> 0 | H62: строительные работы
H63: электромонтажные работы
A64: З-ты на сод.МОП | B64: =B61-B62 -> 0 | C64: 0 | D64: 0 | E64: 0 | F64: =B64-D64-E64 -> 0 | G64: =C64-D64-E64 -> 0 | L64: =SUM(L61:L62) -> 0 | M64: =F64-L64 -> 0 | N64: =G64-L64 -> 0
A65: сентябрь | B65: 0 | C65: 0 | H65: санитарно-технические работы
A66: затраты УК | B66: =B65*$F$23 -> 0 | C66: =C65*$F$23 -> 0 | H66: строительные работы
H67: электромонтажные работы
A68: З-ты на сод.МОП | B68: =B65-B66 -> 0 | C68: 0 | D68: 0 | E68: 0 | F68: =B68-D68-E68 -> 0 | G68: =C68-D68-E68 -> 0 | L68: =SUM(L65:L66) -> 0 | M68: =F68-L68 -> 0 | N68: =G68-L68 -> 0
A69: октябрь | B69: 0 | C69: 0 | H69: санитарно-технические работы
A70: затраты УК | B70: =B69*$F$23 -> 0 | C70: =C69*$F$23 -> 0 | H70: строительные работы
H71: электромонтажные работы
A72: З-ты на сод.МОП | B72: =B69-B70 -> 0 | C72: 0 | D72: 0 | E72: 0 | F72: =B72-D72-E72 -> 0 | G72: =C72-D72-E72 -> 0 | L72: =SUM(L69:L70) -> 0 | M72: =F72-L72 -> 0 | N72: =G72-L72 -> 0
A73: ноябрь | B73: 0 | C73: 0 | H73: санитарно-технические работы
A74: затраты УК | B74: =B73*$F$23 -> 0 | C74: =C73*$F$23 -> 0 | H74: строительные работы
H75: электромонтажные работы
A76: З-ты на сод.МОП | B76: =B73-B74 -> 0 | C76: 0 | D76: 0 | E76: 0 | F76: =B76-D76-E76 -> 0 | G76: =C76-D76-E76 -> 0 | L76: =SUM(L73:L74) -> 0 | M76: =F76-L76 -> 0 | N76: =G76-L76 -> 0
A77: декабрь | B77: 0 | C77: 0 | H77: санитарно-технические работы
A78: затраты УК | B78: =B77*$F$23 -> 0 | C78: =C77*$F$23 -> 0 | H78: строительные работы
H79: электромонтажные работы
A80: З-ты на сод.МОП | B80: =B77-B78 -> 0 | C80: 0 | D80: 0 | E80: 0 | F80: =B80-D80-E80 -> 0 | G80: =C80-D80-E80 -> 0 | L80: =SUM(L77:L79) -> 0 | M80: =F80-L80 -> 0 | N80: =G80-L80 -> 0
H81: Остаток 2016 года | L81: =L36+L40+L44+L48+L52+L56+L60+L64+L68+L72+L76+L80 -> 0 | M81: =M36+M40+M44+M48+M52+M56+M60+M64+M68+M72+M76+M80 -> 995.1169754 | N81: =N36+N40+N44+N48+N52+N56+N60+N64+N68+N72+N76+N80 -> 994.9013735
H82: Остаток 2015 года | M82: 12912 | N82: 9455
A83: ВСЕГО | B83: =B36+B40+B44+B48+B52+B56+B60+B64+B68+B72+B76+B80 -> 1239.304975 | C83: =C36+C40+C44+C48+C52+C56+C60+C64+C68+C72+C76+C80 -> 1239.089373 | D83: =D36+D40+D44+D48+D52+D56+D60+D64+D68+D72+D76+D80 -> 212.976 | E83: =E36+E40+E44+E48+E52+E56+E60+E64+E68+E72+E76+E80 -> 31.212 | F83: =F36+F40+F44+F48+F52+F56+F60+F64+F68+F72+F76+F80 -> 995.1169754 | G83: =G36+G40+G44+G48+G52+G56+G60+G64+G68+G72+G76+G80 -> 994.9013735 | H83: Всего остаток | M83: =M81+M82 -> 13907.11698 | N83: =N81+N82 -> 10449.90137
B86: Наименование работ | G86: Ед. | H86: Коли- | I86: Сумма
G87: измерен. | H87: чество
A88: Строительные работы
F92: Итого: | I92: =SUM(I89:I91) -> 0

Sheet ул.Доватора2
A2: I. ТЕХНИЧЕСКАЯ ХАРАКТЕРИСТИКА ДОМА № 2 по ул.Доватора | I2: Год постройки - 1913
I3: Дата начала управления 01.01.2012г.
I4: Кадастровый номер - 42:20:0101007
A5: ОБОРУДОВАН:
A6: 1.Водопровод - от центральной сети
A8: Мате- | B8: Кол-во | C8: Кол-во | D8: площадь дома в м2 | G8: объём | H8: % | I8: Кровля
A9: риал | B9: этажей | C9: квартир | D9: общая | E9: жилая | F9: не- | G9: здания | H9: износа - | I9: материал | J9: S,м2
A10: стен | B10: шт. | C10: шт. | F10: жилая | H10: год
D11: м2 | E11: м2 | G11: м3 | H11: инвентариз.
A12: Дерево | B12: 1 | C12: 2 | D12: 88.1 | E12: 62.4 | F12: 0 | G12: 285 | I12: тес | J12: 130
B16: II. РАСЧЁТ НАЧИСЛЕНИЙ И ЗАТРАТ
C18: Нач-ие содержания МОП | E18: Затраты на УК | G18: Затраты на сод.дома | I18: Постоянные затраты | M18: Вып-ние тек.ремонта
A19: Площадь,м2 | C19: Тариф | D19: Плановое | E19: Тариф | F19: Плановое | G19: Тариф | H19: Плановое | I19: Вывоз ТКО | J19: Плановое | K19: Вызов АДС | L19: Плановое | M19: Тариф | N19: Плановое
D20: нач-ние | F20: нач-ние | H20: нач-ние | I20: Тариф | J20: нач-ние | K20: Тариф | L20: нач-ние | N20: нач-ние
A22: S жилая | B22: 88.1 | C22: 8.14 | D22: =B22*C22 -> 717.134 | E22: 1.39 | F22: =B22*E22 -> 122.459 | G22: =C22-E22 -> 6.75 | H22: =B22*G22 -> 594.675 | I22: 1.16 | J22: =B22*I22 -> 102.196 | K22: 0.17 | L22: =B22*K22 -> 14.977 | M22: =G22-I22-K22 -> 5.42 | N22: =B22*M22 -> 477.502
A23: Аренда | B23: 0 | F23: =E22/C22 -> 0.1707616708
A25: S жилая | B25: 29.9 | C25: 8.14 | D25: =B25*C25 -> 243.386 | E25: 1.39 | F25: =B25*E25 -> 41.561 | G25: =C25-E25 -> 6.75 | H25: =B25-G25 -> 23.15 | I25: 1.16 | J25: =B25*I25 -> 34.684 | K25: 0.17 | L25: =B25*K25 -> 5.083 | M25: =G25-I25-K25 -> 5.42 | N25: =B25*M25 -> 162.058
A26: с 01.03.2016г.
B28: с 01.04.16г. Договор расторгнут
A29: Отчёт за 2016 год
A30: по содержанию и текущему ремонту мест общего пользования жилого дома № 2 по ул. Доватора
A31: , | B31: ДОХОДЫ | D31: РАСХОДЫ | H31: ВЫПОЛНЕНО РАБОТ | M31: остаток + | P31: Отчетный | Q31: ОДС
B32: Начислено | C32: Оплачено | D32: Вывоз ТКО | E32: Вызов АДС | F32: Средства на т.рем. | M32: перерасход - | P32: период | Q32: план | R32: факт
B33: факт | C33: факт | F33: от нач-ия | G33: от оплаты | H33: Виды работ | L33: сумма | M33: от нач-ия | N33: от оплаты | P33: 2016г. | Q33: руб. | R33: руб.
A34: январь | B34: 717.14 | C34: 474.19 | H34: санитарно-технические работы | P34: январь
A35: затраты УК | B35: =B34*$F$23 -> 122.4600246 | C35: =C34*$F$23 -> 80.97347666 | H35: строительные работы | Q35: =L22 -> 14.977
H36: электромонтажные работы | P36: февраль
A37: З-ты на сод.МОП | B37: =B34-B35 -> 594.6799754 | C37: =C34-C35 -> 393.2165233 | D37: =J22 -> 102.196 | E37: =L22 -> 14.977 | F37: =B37-D37-$E$37 -> 477.5069754 | G37: =C37-D37-$E$37 -> 276.0435233 | L37: =SUM(L34:L36) -> 0 | M37: =F37-L37 -> 477.5069754 | N37: =G37-L37 -> 276.0435233 | Q37: =Q35 -> 14.977
A38: февраль | B38: 717.14 | C38: 473.43 | H38: санитарно-технические работы | P38: март
A39: затраты УК | B39: =B38*$F$23 -> 122.4600246 | C39: =C38*$F$23 -> 80.84369779 | H39: строительные работы | Q39: =L25 -> 5.083
H40: электромонтажные работы | P40: аперль
A41: З-ты на сод.МОП | B41: =B38-B39 -> 594.6799754 | C41: =C38-C39 -> 392.5863022 | D41: =D37 -> 102.196 | E41: =E37 -> 14.977 | F41: =B41-D41-E41 -> 477.5069754 | G41: =C41-D41-E41 -> 275.4133022 | L41: =SUM(L38:L40) -> 0 | M41: =F41-L41 -> 477.5069754 | N41: =G41-L41 -> 275.4133022 | Q41: =Q39 -> 5.083
A42: март | B42: 717.14 | C42: 697.7 | H42: санитарно-технические работы | P42: май
A43: затраты УК | B43: =B42*$F$23 -> 122.4600246 | C43: =C42*$F$23 -> 119.1404177 | H43: строительные работы | Q43: =Q41 -> 5.083
H44: электромонтажные работы | P44: июнь
A45: З-ты на сод.МОП | B45: =B42-B43 -> 594.6799754 | C45: 578.5595823 | D45: =J25 -> 34.684 | E45: =L25 -> 5.083 | F45: =B45-D45-E45 -> 554.9129754 | G45: =C45-D45-E45 -> 538.7925823 | L45: =SUM(L42:L44) -> 0 | M45: =F45-L45 -> 554.9129754 | N45: =G45-L45 -> 538.7925823 | Q45: =Q43 -> 5.083
A46: апрель | B46: -473.75 | C46: 0 | H46: санитарно-технические работы | P46: июль
A47: затраты УК | B47: 0 | C47: =C46*$F$23 -> 0 | H47: строительные работы | Q47: =Q45 -> 5.083
H48: электромонтажные работы | P48: август
A49: З-ты на сод.МОП | B49: =B46-B47 -> -473.75 | C49: 0 | D49: 0 | E49: 0 | F49: =B49-D49-E49 -> -473.75 | G49: =C49-D49-E49 -> 0 | L49: =SUM(L46:L47) -> 0 | M49: =F49-L49 -> -473.75 | N49: =G49-L49 -> 0 | Q49: =Q47 -> 5.083
A50: май | B50: 0 | C50: 0 | H50: санитарно-технические работы | P50: сентябрь
A51: затраты УК | B51: =B50*$F$23 -> 0 | C51: =C50*$F$23 -> 0 | H51: строительные работы | Q51: =Q49 -> 5.083
H52: электромонтажные работы | P52: октябрь
A53: З-ты на сод.МОП | B53: =B50-B51 -> 0 | C53: 0 | D53: 0 | E53: 0 | F53: =B53-D53-E53 -> 0 | G53: =C53-D53-E53 -> 0 | L53: =SUM(L50:L51) -> 0 | M53: =F53-L53 -> 0 | N53: =G53-L53 -> 0 | Q53: =Q51 -> 5.083
A54: июнь | B54: 0 | C54: 0 | H54: санитарно-технические работы | P54: ноябрь
A55: затраты УК | B55: =B54*$F$23 -> 0 | C55: =C54*$F$23 -> 0 | H55: строительные работы | Q55: =Q53 -> 5.083
H56: электромонтажные работы | P56: декабрь
A57: З-ты на сод.МОП | B57: =B54-B55 -> 0 | C57: 0 | D57: 0 | E57: 0 | F57: =B57-D57-E57 -> 0 | G57: =C57-D57-E57 -> 0 | L57: =SUM(L54:L55) -> 0 | M57: =F57-L57 -> 0 | N57: =G57-L57 -> 0 | Q57: =Q55 -> 5.083
A58: июль | B58: 0 | C58: 0 | H58: санитарно-технические работы | P58: Итого: | Q58: =SUM(Q35:Q57) -> 80.784 | R58: =SUM(R35:R57) -> 0
A59: затраты УК | B59: =B58*$F$23 -> 0 | C59: =C58*$F$23 -> 0 | H59: строительные работы | R59: =R58-Q58 -> -80.784
H60: электромонтажные работы
A61: З-ты на сод.МОП | B61: =B58-B59 -> 0 | C61: 0 | D61: 0 | E61: 0 | F61: =B61-D61-E61 -> 0 | G61: =C61-D61-E61 -> 0 | L61: =SUM(L58:L59) -> 0 | M61: =F61-L61 -> 0 | N61: =G61-L61 -> 0
A62: август | B62: 0 | C62: 0 | H62: санитарно-технические работы
A63: затраты УК | B63: =B62*$F$23 -> 0 | C63: =C62*$F$23 -> 0 | H63: строительные работы
H64: электромонтажные работы
A65: З-ты на сод.МОП | B65: =B62-B63 -> 0 | C65: 0 | D65: 0 | E65: 0 | F65: =B65-D65-E65 -> 0 | G65: =C65-D65-E65 -> 0 | L65: =SUM(L62:L63) -> 0 | M65: =F65-L65 -> 0 | N65: =G65-L65 -> 0
A66: сентябрь | B66: 0 | C66: 0 | H66: санитарно-технические работы
A67: затраты УК | B67: =B66*$F$23 -> 0 | C67: =C66*$F$23 -> 0 | H67: строительные работы
H68: электромонтажные работы
A69: З-ты на сод.МОП | B69: =B66-B67 -> 0 | C69: 0 | D69: 0 | E69: 0 | F69: =B69-D69-E69 -> 0 | G69: =C69-D69-E69 -> 0 | L69: =SUM(L66:L67) -> 0 | M69: =F69-L69 -> 0 | N69: =G69-L69 -> 0
A70: октябрь | B70: 0 | C70: 0 | H70: санитарно-технические работы
A71: затраты УК | B71: =B70*$F$23 -> 0 | C71: =C70*$F$23 -> 0 | H71: строительные работы
H72: электромонтажные работы
A73: З-ты на сод.МОП | B73: =B70-B71 -> 0 | C73: 0 | D73: 0 | E73: 0 | F73: =B73-D73-E73 -> 0 | G73: =C73-D73-E73 -> 0 | L73: =SUM(L70:L71) -> 0 | M73: =F73-L73 -> 0 | N73: =G73-L73 -> 0
A74: ноябрь | B74: 0 | C74: 0 | H74: санитарно-технические работы
A75: затраты УК | B75: =B74*$F$23 -> 0 | C75: =C74*$F$23 -> 0 | H75: строительные работы
H76: электромонтажные работы
A77: З-ты на сод.МОП | B77: =B74-B75 -> 0 | C77: 0 | D77: 0 | E77: 0 | F77: =B77-D77-E77 -> 0 | G77: =C77-D77-E77 -> 0 | L77: =SUM(L74:L75) -> 0 | M77: =F77-L77 -> 0 | N77: =G77-L77 -> 0
A78: декабрь | B78: 0 | C78: 0 | H78: санитарно-технические работы
A79: затраты УК | B79: =B78*$F$23 -> 0 | C79: =C78*$F$23 -> 0 | H79: строительные работы
H80: электромонтажные работы
A81: З-ты на сод.МОП | B81: =B78-B79 -> 0 | C81: 0 | D81: 0 | E81: 0 | F81: =B81-D81-E81 -> 0 | G81: =C81-D81-E81 -> 0 | L81: =SUM(L78:L80) -> 0 | M81: =F81-L81 -> 0 | N81: =G81-L81 -> 0
H82: Остаток 2016 года | L82: =L37+L41+L45+L49+L53+L57+L61+L65+L69+L73+L77+L81 -> 0 | M82: =M37+M41+M45+M49+M53+M57+M61+M65+M69+M73+M77+M81 -> 1036.176926 | N82: =N37+N41+N45+N49+N53+N57+N61+N65+N69+N73+N77+N81 -> 1090.249408
H83: Остаток 2015 года | M83: 14507 | N83: 17538
A84: ВСЕГО | B84: =B37+B41+B45+B49+B53+B57+B61+B65+B69+B73+B77+B81 -> 1310.289926 | C84: =C37+C41+C45+C49+C53+C57+C61+C65+C69+C73+C77+C81 -> 1364.362408 | D84: =D37+D41+D45+D49+D53+D57+D61+D65+D69+D73+D77+D81 -> 239.076 | E84: =E37+E41+E45+E49+E53+E57+E61+E65+E69+E73+E77+E81 -> 35.037 | F84: =F37+F41+F45+F49+F53+F57+F61+F65+F69+F73+F77+F81 -> 1036.176926 | G84: =G37+G41+G45+G49+G53+G57+G61+G65+G69+G73+G77+G81 -> 1090.249408 | H84: Всего остаток | M84: =M82+M83 -> 15543.17693 | N84: =N82+N83 -> 18628.24941
B87: Наименование работ | G87: Ед. | H87: Коли- | I87: Сумма
G88: измерен. | H88: чество
A89: Строительные работы
F93: Итого: | I93: =SUM(I90:I92) -> 0

Sheet ул.Доватора4
A2: I. ТЕХНИЧЕСКАЯ ХАРАКТЕРИСТИКА ДОМА № 4 по ул. Доватора | I2: Год постройки - 1905
I3: Дата начала управления 01.01.2012г.
I4: Кадастровый номер - 42:20:0101007
A5: ОБОРУДОВАН:
A6: 1.Водопровод - от центральной сети
A8: Мате- | B8: Кол-во | C8: Кол-во | D8: площадь дома в м2 | G8: объём | H8: % | I8: Кровля
A9: риал | B9: этажей | C9: квартир | D9: общая | E9: жилая | F9: не- | G9: здания | H9: износа - | I9: материал | J9: S,м2
A10: стен | B10: шт. | C10: шт. | F10: жилая | H10: год
D11: м2 | E11: м2 | G11: м3 | H11: инвентариз.
A12: Дерево | B12: 1 | C12: 2 | D12: 58.2 | E12: 32.4 | F12: 0 | G12: 191 | I12: шифер | J12: 85
B16: II. РАСЧЁТ НАЧИСЛЕНИЙ И ЗАТРАТ
C18: Нач-ие содержания МОП | E18: Затраты на УК | G18: Затраты на сод.дома | I18: Постоянные затраты | M18: Вып-ние тек.ремонта
A19: Площадь,м2 | C19: Тариф | D19: Плановое | E19: Тариф | F19: Плановое | G19: Тариф | H19: Плановое | I19: Вывоз ТКО | J19: Плановое | K19: Вызов АДС | L19: Плановое | M19: Тариф | N19: Плановое
D20: нач-ние | F20: нач-ние | H20: нач-ние | I20: Тариф | J20: нач-ние | K20: Тариф | L20: нач-ние | N20: нач-ние
A22: S жилая | B22: 58.2 | C22: 8.14 | D22: =B22*C22 -> 473.748 | E22: 1.39 | F22: =B22*E22 -> 80.898 | G22: =C22-E22 -> 6.75 | H22: =B22*G22 -> 392.85 | I22: 1.16 | J22: =B22*I22 -> 67.512 | K22: 0.17 | L22: =B22*K22 -> 9.894 | M22: =G22-I22-K22 -> 5.42 | N22: =B22*M22 -> 315.444 | O22: =E22+I22+K22+M22 -> 8.14
A23: Аренда | B23: 0 | F23: =E22/C22 -> 0.1707616708 | O23: =F22+H22 -> 473.748
A28: Отчёт за 2016 год
A29: по содержанию и текущему ремонту мест общего пользования жилого дома № 4 по ул. Доватора
A30: , | B30: ДОХОДЫ | D30: РАСХОДЫ | H30: ВЫПОЛНЕНО РАБОТ | M30: остаток + | P30: Отчетный | Q30: ОДС
B31: Начислено | C31: Оплачено | D31: Вывоз ТКО | E31: Вызов АДС | F31: Средства на т.рем. | M31: перерасход - | P31: период | Q31: план | R31: факт
B32: факт | C32: факт | F32: от нач-ия | G32: от оплаты | H32: Виды работ | L32: сумма | M32: от нач-ия | N32: от оплаты | P32: 2016г. | Q32: руб. | R32: руб.
A33: январь | B33: 473.75 | C33: 232.09 | H33: санитарно-технические работы | P33: январь
A34: затраты УК | B34: =B33*$F$23 -> 80.89834152 | C34: =C33*$F$23 -> 39.63207617 | H34: строительные работы | Q34: =L22 -> 9.894
H35: электромонтажные работы | P35: февраль
A36: З-ты на сод.МОП | B36: =B33-B34 -> 392.8516585 | C36: =C33-C34 -> 192.4579238 | D36: =J22 -> 67.512 | E36: =L22 -> 9.894 | F36: =B36-D36-$E$36 -> 315.4456585 | G36: =C36-D36-$E$36 -> 115.0519238 | L36: =SUM(L33:L35) -> 0 | M36: =F36-L36 -> 315.4456585 | N36: =G36-L36 -> 115.0519238 | Q36: =Q34 -> 9.894
A37: февраль | B37: 473.75 | C37: 231.26 | H37: санитарно-технические работы | P37: март
A38: затраты УК | B38: =B37*$F$23 -> 80.89834152 | C38: =C37*$F$23 -> 39.49034398 | H38: строительные работы | Q38: =Q36 -> 9.894
H39: электромонтажные работы | P39: аперль
A40: З-ты на сод.МОП | B40: =B37-B38 -> 392.8516585 | C40: =C37-C38 -> 191.769656 | D40: =D36 -> 67.512 | E40: =E36 -> 9.894 | F40: =B40-D40-E40 -> 315.4456585 | G40: =C40-D40-E40 -> 114.363656 | L40: =SUM(L37:L39) -> 0 | M40: =F40-L40 -> 315.4456585 | N40: =G40-L40 -> 114.363656 | Q40: =Q38 -> 9.894
A41: март | B41: 473.75 | C41: 464.18 | H41: санитарно-технические работы | P41: май
A42: затраты УК | B42: =B41*$F$23 -> 80.89834152 | C42: =C41*$F$23 -> 79.26415233 | H42: строительные работы | Q42: =Q40 -> 9.894
H43: электромонтажные работы | P43: июнь
A44: З-ты на сод.МОП | B44: =B41-B42 -> 392.8516585 | C44: 384.9158477 | D44: =D40 -> 67.512 | E44: =E40 -> 9.894 | F44: =B44-D44-E44 -> 315.4456585 | G44: =C44-D44-E44 -> 307.5098477 | L44: =SUM(L41:L43) -> 0 | M44: =F44-L44 -> 315.4456585 | N44: =G44-L44 -> 307.5098477 | Q44: =Q42 -> 9.894
A45: апрель | B45: 473.75 | C45: 232.09 | H45: санитарно-технические работы | P45: июль
A46: затраты УК | B46: =B45*$F$23 -> 80.89834152 | C46: =C45*$F$23 -> 39.63207617 | H46: строительные работы | Q46: =L22 -> 9.894
H47: электромонтажные работы | P47: август
A48: З-ты на сод.МОП | B48: =B45-B46 -> 392.8516585 | C48: 192.4579238 | D48: =D44 -> 67.512 | E48: =E44 -> 9.894 | F48: =B48-D48-E48 -> 315.4456585 | G48: =C48-D48-E48 -> 115.0519238 | L48: =SUM(L45:L46) -> 0 | M48: =F48-L48 -> 315.4456585 | N48: =G48-L48 -> 115.0519238 | Q48: =Q46 -> 9.894
A49: май | B49: 0 | C49: 0 | H49: санитарно-технические работы | P49: сентябрь
A50: затраты УК | B50: =B49*$F$23 -> 0 | C50: =C49*$F$23 -> 0 | H50: строительные работы | Q50: =Q48 -> 9.894
H51: электромонтажные работы | P51: октябрь
A52: З-ты на сод.МОП | B52: =B49-B50 -> 0 | C52: 0 | D52: 0 | E52: 0 | F52: =B52-D52-E52 -> 0 | G52: =C52-D52-E52 -> 0 | L52: =SUM(L49:L50) -> 0 | M52: =F52-L52 -> 0 | N52: =G52-L52 -> 0 | Q52: =Q50 -> 9.894
A53: июнь | B53: 0 | C53: 0 | H53: санитарно-технические работы | P53: ноябрь
A54: затраты УК | B54: =B53*$F$23 -> 0 | C54: =C53*$F$23 -> 0 | H54: строительные работы | Q54: =Q52 -> 9.894
H55: электромонтажные работы | P55: декабрь
A56: З-ты на сод.МОП | B56: =B53-B54 -> 0 | C56: 0 | D56: 0 | E56: 0 | F56: =B56-D56-E56 -> 0 | G56: =C56-D56-E56 -> 0 | L56: =SUM(L53:L54) -> 0 | M56: =F56-L56 -> 0 | N56: =G56-L56 -> 0 | Q56: =Q54 -> 9.894
A57: июль | B57: 0 | C57: 0 | H57: санитарно-технические работы | P57: Итого: | Q57: =SUM(Q34:Q56) -> 118.728 | R57: =SUM(R34:R56) -> 0
A58: затраты УК | B58: =B57*$F$23 -> 0 | C58: =C57*$F$23 -> 0 | H58: строительные работы | R58: =R57-Q57 -> -118.728
H59: электромонтажные работы
A60: З-ты на сод.МОП | B60: =B57-B58 -> 0 | C60: 0 | D60: 0 | E60: 0 | F60: =B60-D60-E60 -> 0 | G60: =C60-D60-E60 -> 0 | L60: =SUM(L57:L58) -> 0 | M60: =F60-L60 -> 0 | N60: =G60-L60 -> 0
A61: август | B61: 0 | C61: 0 | H61: санитарно-технические работы
A62: затраты УК | B62: =B61*$F$23 -> 0 | C62: =C61*$F$23 -> 0 | H62: строительные работы
H63: электромонтажные работы
A64: З-ты на сод.МОП | B64: =B61-B62 -> 0 | C64: 0 | D64: 0 | E64: 0 | F64: =B64-D64-E64 -> 0 | G64: =C64-D64-E64 -> 0 | L64: =SUM(L61:L62) -> 0 | M64: =F64-L64 -> 0 | N64: =G64-L64 -> 0
A65: сентябрь | B65: 0 | C65: 0 | H65: санитарно-технические работы
A66: затраты УК | B66: =B65*$F$23 -> 0 | C66: =C65*$F$23 -> 0 | H66: строительные работы
H67: электромонтажные работы
A68: З-ты на сод.МОП | B68: =B65-B66 -> 0 | C68: 0 | D68: 0 | E68: 0 | F68: =B68-D68-E68 -> 0 | G68: =C68-D68-E68 -> 0 | L68: =SUM(L65:L66) -> 0 | M68: =F68-L68 -> 0 | N68: =G68-L68 -> 0
A69: октябрь | B69: 0 | C69: 0 | H69: санитарно-технические работы
A70: затраты УК | B70: =B69*$F$23 -> 0 | C70: =C69*$F$23 -> 0 | H70: строительные работы
H71: электромонтажные работы
A72: З-ты на сод.МОП | B72: =B69-B70 -> 0 | C72: 0 | D72: 0 | E72: 0 | F72: =B72-D72-E72 -> 0 | G72: =C72-D72-E72 -> 0 | L72: =SUM(L69:L70) -> 0 | M72: =F72-L72 -> 0 | N72: =G72-L72 -> 0
A73: ноябрь | B73: 0 | C73: 0 | H73: санитарно-технические работы
A74: затраты УК | B74: =B73*$F$23 -> 0 | C74: =C73*$F$23 -> 0 | H74: строительные работы
H75: электромонтажные работы
A76: З-ты на сод.МОП | B76: =B73-B74 -> 0 | C76: 0 | D76: 0 | E76: 0 | F76: =B76-D76-E76 -> 0 | G76: =C76-D76-E76 -> 0 | L76: =SUM(L73:L74) -> 0 | M76: =F76-L76 -> 0 | N76: =G76-L76 -> 0
A77: декабрь | B77: 0 | C77: 0 | H77: санитарно-технические работы
A78: затраты УК | B78: =B77*$F$23 -> 0 | C78: =C77*$F$23 -> 0 | H78: строительные работы
H79: электромонтажные работы
A80: З-ты на сод.МОП | B80: =B77-B78 -> 0 | C80: 0 | D80: 0 | E80: 0 | F80: =B80-D80-E80 -> 0 | G80: =C80-D80-E80 -> 0 | L80: =SUM(L77:L79) -> 0 | M80: =F80-L80 -> 0 | N80: =G80-L80 -> 0
H81: Остаток 2016 года | L81: =L36+L40+L44+L48+L52+L56+L60+L64+L68+L72+L76+L80 -> 0 | M81: =M36+M40+M44+M48+M52+M56+M60+M64+M68+M72+M76+M80 -> 1261.782634 | N81: =N36+N40+N44+N48+N52+N56+N60+N64+N68+N72+N76+N80 -> 651.9773514
H82: Остаток 2015 года | M82: 9847 | N82: 2255
A83: ВСЕГО | B83: =B36+B40+B44+B48+B52+B56+B60+B64+B68+B72+B76+B80 -> 1571.406634 | C83: =C36+C40+C44+C48+C52+C56+C60+C64+C68+C72+C76+C80 -> 961.6013514 | D83: =D36+D40+D44+D48+D52+D56+D60+D64+D68+D72+D76+D80 -> 270.048 | E83: =E36+E40+E44+E48+E52+E56+E60+E64+E68+E72+E76+E80 -> 39.576 | F83: =F36+F40+F44+F48+F52+F56+F60+F64+F68+F72+F76+F80 -> 1261.782634 | G83: =G36+G40+G44+G48+G52+G56+G60+G64+G68+G72+G76+G80 -> 651.9773514 | H83: Всего остаток | M83: =M81+M82 -> 11108.78263 | N83: =N81+N82 -> 2906.977351
B86: Наименование работ | G86: Ед. | H86: Коли- | I86: Сумма
G87: измерен. | H87: чество
A88: Строительные работы
F92: Итого: | I92: =SUM(I89:I91) -> 0

Sheet ул.Доватора6
A2: I. ТЕХНИЧЕСКАЯ ХАРАКТЕРИСТИКА ДОМА № 6 по ул. Доватора | I2: Год постройки - 1913
I3: Дата начала управления 01.01.2012г.
I4: Кадастровый номер - 42:20:0101007
A5: ОБОРУДОВАН:
A6: 1.Водопровод - от центральной сети
A8: Мате- | B8: Кол-во | C8: Кол-во | D8: площадь дома в м2 | G8: объём | H8: % | I8: Кровля
A9: риал | B9: этажей | C9: квартир | D9: общая | E9: жилая | F9: не- | G9: здания | H9: износа - | I9: материал | J9: S,м2
A10: стен | B10: шт. | C10: шт. | F10: жилая | H10: год
D11: м2 | E11: м2 | G11: м3 | H11: инвентариз.
A12: Дерево | B12: 1 | C12: 2 | D12: 31.1 | E12: 24.6 | F12: 0 | G12: 90.5 | I12: рубер. | J12: 56.5
B16: II. РАСЧЁТ НАЧИСЛЕНИЙ И ЗАТРАТ
C18: Нач-ие содержания МОП | E18: Затраты на УК | G18: Затраты на сод.дома | I18: Постоянные затраты | M18: Вып-ние тек.ремонта
A19: Площадь,м2 | C19: Тариф | D19: Плановое | E19: Тариф | F19: Плановое | G19: Тариф | H19: Плановое | I19: Вывоз ТКО | J19: Плановое | K19: Вызов АДС | L19: Плановое | M19: Тариф | N19: Плановое
D20: нач-ние | F20: нач-ние | H20: нач-ние | I20: Тариф | J20: нач-ние | K20: Тариф | L20: нач-ние | N20: нач-ние
A22: S жилая | B22: 31.1 | C22: 8.14 | D22: =B22*C22 -> 253.154 | E22: 1.39 | F22: =B22*E22 -> 43.229 | G22: =C22-E22 -> 6.75 | H22: =B22*G22 -> 209.925 | I22: 1.16 | J22: =B22*I22 -> 36.076 | K22: 0.17 | L22: =B22*K22 -> 5.287 | M22: =G22-I22-K22 -> 5.42 | N22: =B22*M22 -> 168.562 | O22: =E22+I22+K22+M22 -> 8.14
A23: Аренда | B23: 0 | F23: =E22/C22 -> 0.1707616708 | O23: =F22+H22 -> 253.154
A28: Отчёт за 2016 год
A29: по содержанию и текущему ремонту мест общего пользования жилого дома № 6 по ул. Доватора
A30: , | B30: ДОХОДЫ | D30: РАСХОДЫ | H30: ВЫПОЛНЕНО РАБОТ | M30: остаток + | P30: Отчетный | Q30: ОДС
B31: Начислено | C31: Оплачено | D31: Вывоз ТКО | E31: Вызов АДС | F31: Средства на т.рем. | M31: перерасход - | P31: период | Q31: план | R31: факт
B32: факт | C32: факт | F32: от нач-ия | G32: от оплаты | H32: Виды работ | L32: сумма | M32: от нач-ия | N32: от оплаты | P32: 2016г. | Q32: руб. | R32: руб.
A33: январь | B33: 253.15 | C33: 0 | H33: санитарно-технические работы | P33: январь
A34: затраты УК | B34: =B33*$F$23 -> 43.22831695 | C34: =C33*$F$23 -> 0 | H34: строительные работы | Q34: =L22 -> 5.287
H35: электромонтажные работы | P35: февраль
A36: З-ты на сод.МОП | B36: =B33-B34 -> 209.921683 | C36: =C33-C34 -> 0 | D36: =J22 -> 36.076 | E36: =L22 -> 5.287 | F36: =B36-D36-$E$36 -> 168.558683 | G36: =C36-D36-$E$36 -> -41.363 | L36: =SUM(L33:L35) -> 0 | M36: =F36-L36 -> 168.558683 | N36: =G36-L36 -> -41.363 | Q36: =Q34 -> 5.287
A37: февраль | B37: 253.15 | C37: 0 | H37: санитарно-технические работы | P37: март
A38: затраты УК | B38: =B37*$F$23 -> 43.22831695 | C38: =C37*$F$23 -> 0 | H38: строительные работы | Q38: =Q36 -> 5.287
H39: электромонтажные работы | P39: аперль
A40: З-ты на сод.МОП | B40: =B37-B38 -> 209.921683 | C40: =C37-C38 -> 0 | D40: =D36 -> 36.076 | E40: =E36 -> 5.287 | F40: =B40-D40-E40 -> 168.558683 | G40: =C40-D40-E40 -> -41.363 | L40: =SUM(L37:L39) -> 0 | M40: =F40-L40 -> 168.558683 | N40: =G40-L40 -> -41.363 | Q40: =Q38 -> 5.287
A41: март | B41: 253.16 | C41: 0 | H41: санитарно-технические работы | P41: май
A42: затраты УК | B42: =B41*$F$23 -> 43.23002457 | C42: =C41*$F$23 -> 0 | H42: строительные работы | Q42: =Q40 -> 5.287
H43: электромонтажные работы | P43: июнь
A44: З-ты на сод.МОП | B44: =B41-B42 -> 209.9299754 | C44: 0 | D44: =D40 -> 36.076 | E44: =E40 -> 5.287 | F44: =B44-D44-E44 -> 168.5669754 | G44: =C44-D44-E44 -> -41.363 | L44: =SUM(L41:L43) -> 0 | M44: =F44-L44 -> 168.5669754 | N44: =G44-L44 -> -41.363 | Q44: =Q42 -> 5.287
A45: апрель | B45: 253.15 | C45: 0 | H45: санитарно-технические работы | P45: июль
A46: затраты УК | B46: =B45*$F$23 -> 43.22831695 | C46: =C45*$F$23 -> 0 | H46: строительные работы | Q46: =L22 -> 5.287
H47: электромонтажные работы | P47: август
A48: З-ты на сод.МОП | B48: =B45-B46 -> 209.921683 | C48: 0 | D48: =D44 -> 36.076 | E48: =E44 -> 5.287 | F48: =B48-D48-E48 -> 168.558683 | G48: =C48-D48-E48 -> -41.363 | L48: =SUM(L45:L46) -> 0 | M48: =F48-L48 -> 168.558683 | N48: =G48-L48 -> -41.363 | Q48: =Q46 -> 5.287
A49: май | B49: 0 | C49: 0 | H49: санитарно-технические работы | P49: сентябрь
A50: затраты УК | B50: =B49*$F$23 -> 0 | C50: =C49*$F$23 -> 0 | H50: строительные работы | Q50: =Q48 -> 5.287
H51: электромонтажные работы | P51: октябрь
A52: З-ты на сод.МОП | B52: =B49-B50 -> 0 | C52: 0 | D52: 0 | E52: 0 | F52: =B52-D52-E52 -> 0 | G52: =C52-D52-E52 -> 0 | L52: =SUM(L49:L50) -> 0 | M52: =F52-L52 -> 0 | N52: =G52-L52 -> 0 | Q52: =Q50 -> 5.287
A53: июнь | B53: 0 | C53: 0 | H53: санитарно-технические работы | P53: ноябрь
A54: затраты УК | B54: =B53*$F$23 -> 0 | C54: =C53*$F$23 -> 0 | H54: строительные работы | Q54: =Q52 -> 5.287
H55: электромонтажные работы | P55: декабрь
A56: З-ты на сод.МОП | B56: =B53-B54 -> 0 | C56: 0 | D56: 0 | E56: 0 | F56: =B56-D56-E56 -> 0 | G56: =C56-D56-E56 -> 0 | L56: =SUM(L53:L54) -> 0 | M56: =F56-L56 -> 0 | N56: =G56-L56 -> 0 | Q56: =Q54 -> 5.287
A57: июль | B57: 0 | C57: 0 | H57: санитарно-технические работы | P57: Итого: | Q57: =SUM(Q34:Q56) -> 63.444 | R57: =SUM(R34:R56) -> 0
A58: затраты УК | B58: =B57*$F$23 -> 0 | C58: =C57*$F$23 -> 0 | H58: строительные работы | R58: =R57-Q57 -> -63.444
H59: электромонтажные работы
A60: З-ты на сод.МОП | B60: =B57-B58 -> 0 | C60: 0 | D60: 0 | E60: 0 | F60: =B60-D60-E60 -> 0 | G60: =C60-D60-E60 -> 0 | L60: =SUM(L57:L58) -> 0 | M60: =F60-L60 -> 0 | N60: =G60-L60 -> 0
A61: август | B61: 0 | C61: 0 | H61: санитарно-технические работы
A62: затраты УК | B62: =B61*$F$23 -> 0 | C62: =C61*$F$23 -> 0 | H62: строительные работы
H63: электромонтажные работы
A64: З-ты на сод.МОП | B64: =B61-B62 -> 0 | C64: 0 | D64: 0 | E64: 0 | F64: =B64-D64-E64 -> 0 | G64: =C64-D64-E64 -> 0 | L64: =SUM(L61:L62) -> 0 | M64: =F64-L64 -> 0 | N64: =G64-L64 -> 0
A65: сентябрь | B65: 0 | C65: 0 | H65: санитарно-технические работы
A66: затраты УК | B66: =B65*$F$23 -> 0 | C66: =C65*$F$23 -> 0 | H66: строительные работы
H67: электромонтажные работы
A68: З-ты на сод.МОП | B68: =B65-B66 -> 0 | C68: 0 | D68: 0 | E68: 0 | F68: =B68-D68-E68 -> 0 | G68: =C68-D68-E68 -> 0 | L68: =SUM(L65:L66) -> 0 | M68: =F68-L68 -> 0 | N68: =G68-L68 -> 0
A69: октябрь | B69: 0 | C69: 0 | H69: санитарно-технические работы
A70: затраты УК | B70: =B69*$F$23 -> 0 | C70: =C69*$F$23 -> 0 | H70: строительные работы
H71: электромонтажные работы
A72: З-ты на сод.МОП | B72: =B69-B70 -> 0 | C72: 0 | D72: 0 | E72: 0 | F72: =B72-D72-E72 -> 0 | G72: =C72-D72-E72 -> 0 | L72: =SUM(L69:L70) -> 0 | M72: =F72-L72 -> 0 | N72: =G72-L72 -> 0
A73: ноябрь | B73: 0 | C73: 0 | H73: санитарно-технические работы
A74: затраты УК | B74: =B73*$F$23 -> 0 | C74: =C73*$F$23 -> 0 | H74: строительные работы
H75: электромонтажные работы
A76: З-ты на сод.МОП | B76: =B73-B74 -> 0 | C76: 0 | D76: 0 | E76: 0 | F76: =B76-D76-E76 -> 0 | G76: =C76-D76-E76 -> 0 | L76: =SUM(L73:L74) -> 0 | M76: =F76-L76 -> 0 | N76: =G76-L76 -> 0
A77: декабрь | B77: 0 | C77: 0 | H77: санитарно-технические работы
A78: затраты УК | B78: =B77*$F$23 -> 0 | C78: =C77*$F$23 -> 0 | H78: строительные работы
H79: электромонтажные работы
A80: З-ты на сод.МОП | B80: =B77-B78 -> 0 | C80: 0 | D80: 0 | E80: 0 | F80: =B80-D80-E80 -> 0 | G80: =C80-D80-E80 -> 0 | L80: =SUM(L77:L79) -> 0 | M80: =F80-L80 -> 0 | N80: =G80-L80 -> 0
H81: Остаток 2016 года | L81: =L36+L40+L44+L48+L52+L56+L60+L64+L68+L72+L76+L80 -> 0 | M81: =M36+M40+M44+M48+M52+M56+M60+M64+M68+M72+M76+M80 -> 674.2430246 | N81: =N36+N40+N44+N48+N52+N56+N60+N64+N68+N72+N76+N80 -> -165.452
H82: Остаток 2015 года | M82: 7606 | N82: 3147
A83: ВСЕГО | B83: =B36+B40+B44+B48+B52+B56+B60+B64+B68+B72+B76+B80 -> 839.6950246 | C83: =C36+C40+C44+C48+C52+C56+C60+C64+C68+C72+C76+C80 -> 0 | D83: =D36+D40+D44+D48+D52+D56+D60+D64+D68+D72+D76+D80 -> 144.304 | E83: =E36+E40+E44+E48+E52+E56+E60+E64+E68+E72+E76+E80 -> 21.148 | F83: =F36+F40+F44+F48+F52+F56+F60+F64+F68+F72+F76+F80 -> 674.2430246 | G83: =G36+G40+G44+G48+G52+G56+G60+G64+G68+G72+G76+G80 -> -165.452 | H83: Всего остаток | M83: =M81+M82 -> 8280.243025 | N83: =N81+N82 -> 2981.548
B86: Наименование работ | G86: Ед. | H86: Коли- | I86: Сумма
G87: измерен. | H87: чество
A88: Строительные работы
F92: Итого: | I92: =SUM(I89:I91) -> 0

Sheet ул.Доватора8
A2: I. ТЕХНИЧЕСКАЯ ХАРАКТЕРИСТИКА ДОМА № 8 по ул. Доватора | I2: Год постройки - 1904
I3: Дата начала управления 01.01.2012г.
I4: Кадастровый номер - 42:20:0101007
A5: ОБОРУДОВАН:
A6: 1.Водопровод - от центральной сети
A8: Мате- | B8: Кол-во | C8: Кол-во | D8: площадь дома в м2 | G8: объём | H8: % | I8: Кровля
A9: риал | B9: этажей | C9: квартир | D9: общая | E9: жилая | F9: не- | G9: здания | H9: износа - | I9: материал | J9: S,м2
A10: стен | B10: шт. | C10: шт. | F10: жилая | H10: год
D11: м2 | E11: м2 | G11: м3 | H11: инвентариз.
A12: Дерево | B12: 1 | C12: 2 | D12: 28.6 | E12: 24.3 | F12: 0 | G12: 100.6 | I12: шифер | J12: 27.5
B16: II. РАСЧЁТ НАЧИСЛЕНИЙ И ЗАТРАТ
C18: Нач-ие содержания МОП | E18: Затраты на УК | G18: Затраты на сод.дома | I18: Постоянные затраты | M18: Вып-ние тек.ремонта
A19: Площадь,м2 | C19: Тариф | D19: Плановое | E19: Тариф | F19: Плановое | G19: Тариф | H19: Плановое | I19: Вывоз ТКО | J19: Плановое | K19: Вызов АДС | L19: Плановое | M19: Тариф | N19: Плановое
D20: нач-ние | F20: нач-ние | H20: нач-ние | I20: Тариф | J20: нач-ние | K20: Тариф | L20: нач-ние | N20: нач-ние
A22: S жилая | B22: 28.6 | C22: 8.14 | D22: =B22*C22 -> 232.804 | E22: 1.39 | F22: =B22*E22 -> 39.754 | G22: =C22-E22 -> 6.75 | H22: =B22*G22 -> 193.05 | I22: 1.16 | J22: =B22*I22 -> 33.176 | K22: 0.17 | L22: =B22*K22 -> 4.862 | M22: =G22-I22-K22 -> 5.42 | N22: =B22*M22 -> 155.012 | O22: =E22+I22+K22+M22 -> 8.14
A23: Аренда | B23: 0 | F23: =E22/C22 -> 0.1707616708 | O23: =F22+H22 -> 232.804
A28: Отчёт за 2016 год
A29: по содержанию и текущему ремонту мест общего пользования жилого дома № 8 по ул. Доватора
A30: , | B30: ДОХОДЫ | D30: РАСХОДЫ | H30: ВЫПОЛНЕНО РАБОТ | M30: остаток + | P30: Отчетный | Q30: ОДС
B31: Начислено | C31: Оплачено | D31: Вывоз ТКО | E31: Вызов АДС | F31: Средства на т.рем. | M31: перерасход - | P31: период | Q31: план | R31: факт
B32: факт | C32: факт | F32: от нач-ия | G32: от оплаты | H32: Виды работ | L32: сумма | M32: от нач-ия | N32: от оплаты | P32: 2016г. | Q32: руб. | R32: руб.
A33: январь | B33: 232.8 | C33: 0 | H33: санитарно-технические работы | P33: январь
A34: затраты УК | B34: =B33*$F$23 -> 39.75331695 | C34: =C33*$F$23 -> 0 | H34: строительные работы | Q34: =L22 -> 4.862
H35: электромонтажные работы | P35: февраль
A36: З-ты на сод.МОП | B36: =B33-B34 -> 193.046683 | C36: =C33-C34 -> 0 | D36: =J22 -> 33.176 | E36: =L22 -> 4.862 | F36: =B36-D36-$E$36 -> 155.008683 | G36: =C36-D36-$E$36 -> -38.038 | L36: =SUM(L33:L35) -> 0 | M36: =F36-L36 -> 155.008683 | N36: =G36-L36 -> -38.038 | Q36: =Q34 -> 4.862
A37: февраль | B37: 232.8 | C37: 701.85 | H37: санитарно-технические работы | P37: март
A38: затраты УК | B38: =B37*$F$23 -> 39.75331695 | C38: =C37*$F$23 -> 119.8490786 | H38: строительные работы | Q38: =Q36 -> 4.862
H39: электромонтажные работы | P39: аперль
A40: З-ты на сод.МОП | B40: =B37-B38 -> 193.046683 | C40: =C37-C38 -> 582.0009214 | D40: =D36 -> 33.176 | E40: =E36 -> 4.862 | F40: =B40-D40-E40 -> 155.008683 | G40: =C40-D40-E40 -> 543.9629214 | L40: =SUM(L37:L39) -> 0 | M40: =F40-L40 -> 155.008683 | N40: =G40-L40 -> 543.9629214 | Q40: =Q38 -> 4.862
A41: март | B41: 232.8 | C41: 0 | H41: санитарно-технические работы | P41: май
A42: затраты УК | B42: =B41*$F$23 -> 39.75331695 | C42: =C41*$F$23 -> 0 | H42: строительные работы | Q42: =Q40 -> 4.862
H43: электромонтажные работы | P43: июнь
A44: З-ты на сод.МОП | B44: =B41-B42 -> 193.046683 | C44: 0 | D44: =D40 -> 33.176 | E44: =E40 -> 4.862 | F44: =B44-D44-E44 -> 155.008683 | G44: =C44-D44-E44 -> -38.038 | L44: =SUM(L41:L43) -> 0 | M44: =F44-L44 -> 155.008683 | N44: =G44-L44 -> -38.038 | Q44: =Q42 -> 4.862
A45: апрель | B45: 232.8 | C45: 519.71 | H45: санитарно-технические работы | P45: июль
A46: затраты УК | B46: =B45*$F$23 -> 39.75331695 | C46: =C45*$F$23 -> 88.74654791 | H46: строительные работы | Q46: =L22 -> 4.862
H47: электромонтажные работы | P47: август
A48: З-ты на сод.МОП | B48: =B45-B46 -> 193.046683 | C48: 430.9634521 | D48: =D44 -> 33.176 | E48: =E44 -> 4.862 | F48: =B48-D48-E48 -> 155.008683 | G48: =C48-D48-E48 -> 392.9254521 | L48: =SUM(L45:L46) -> 0 | M48: =F48-L48 -> 155.008683 | N48: =G48-L48 -> 392.9254521 | Q48: =Q46 -> 4.862
A49: май | B49: 0 | C49: 0 | H49: санитарно-технические работы | P49: сентябрь
A50: затраты УК | B50: =B49*$F$23 -> 0 | C50: =C49*$F$23 -> 0 | H50: строительные работы | Q50: =Q48 -> 4.862
H51: электромонтажные работы | P51: октябрь
A52: З-ты на сод.МОП | B52: =B49-B50 -> 0 | C52: 0 | D52: 0 | E52: 0 | F52: =B52-D52-E52 -> 0 | G52: =C52-D52-E52 -> 0 | L52: =SUM(L49:L50) -> 0 | M52: =F52-L52 -> 0 | N52: =G52-L52 -> 0 | Q52: =Q50 -> 4.862
A53: июнь | B53: 0 | C53: 0 | H53: санитарно-технические работы | P53: ноябрь
A54: затраты УК | B54: =B53*$F$23 -> 0 | C54: =C53*$F$23 -> 0 | H54: строительные работы | Q54: =Q52 -> 4.862
H55: электромонтажные работы | P55: декабрь
A56: З-ты на сод.МОП | B56: =B53-B54 -> 0 | C56: 0 | D56: 0 | E56: 0 | F56: =B56-D56-E56 -> 0 | G56: =C56-D56-E56 -> 0 | L56: =SUM(L53:L54) -> 0 | M56: =F56-L56 -> 0 | N56: =G56-L56 -> 0 | Q56: =Q54 -> 4.862
A57: июль | B57: 0 | C57: 0 | H57: санитарно-технические работы | P57: Итого: | Q57: =SUM(Q34:Q56) -> 58.344 | R57: =SUM(R34:R56) -> 0
A58: затраты УК | B58: =B57*$F$23 -> 0 | C58: =C57*$F$23 -> 0 | H58: строительные работы | R58: =R57-Q57 -> -58.344
H59: электромонтажные работы
A60: З-ты на сод.МОП | B60: =B57-B58 -> 0 | C60: 0 | D60: 0 | E60: 0 | F60: =B60-D60-E60 -> 0 | G60: =C60-D60-E60 -> 0 | L60: =SUM(L57:L58) -> 0 | M60: =F60-L60 -> 0 | N60: =G60-L60 -> 0
A61: август | B61: 0 | C61: 0 | H61: санитарно-технические работы
A62: затраты УК | B62: =B61*$F$23 -> 0 | C62: =C61*$F$23 -> 0 | H62: строительные работы
H63: электромонтажные работы
A64: З-ты на сод.МОП | B64: =B61-B62 -> 0 | C64: 0 | D64: 0 | E64: 0 | F64: =B64-D64-E64 -> 0 | G64: =C64-D64-E64 -> 0 | L64: =SUM(L61:L62) -> 0 | M64: =F64-L64 -> 0 | N64: =G64-L64 -> 0
A65: сентябрь | B65: 0 | C65: 0 | H65: санитарно-технические работы
A66: затраты УК | B66: =B65*$F$23 -> 0 | C66: =C65*$F$23 -> 0 | H66: строительные работы
H67: электромонтажные работы
A68: З-ты на сод.МОП | B68: =B65-B66 -> 0 | C68: 0 | D68: 0 | E68: 0 | F68: =B68-D68-E68 -> 0 | G68: =C68-D68-E68 -> 0 | L68: =SUM(L65:L66) -> 0 | M68: =F68-L68 -> 0 | N68: =G68-L68 -> 0
A69: октябрь | B69: 0 | C69: 0 | H69: санитарно-технические работы
A70: затраты УК | B70: =B69*$F$23 -> 0 | C70: =C69*$F$23 -> 0 | H70: строительные работы
H71: электромонтажные работы
A72: З-ты на сод.МОП | B72: =B69-B70 -> 0 | C72: 0 | D72: 0 | E72: 0 | F72: =B72-D72-E72 -> 0 | G72: =C72-D72-E72 -> 0 | L72: =SUM(L69:L70) -> 0 | M72: =F72-L72 -> 0 | N72: =G72-L72 -> 0
A73: ноябрь | B73: 0 | C73: 0 | H73: санитарно-технические работы
A74: затраты УК | B74: =B73*$F$23 -> 0 | C74: =C73*$F$23 -> 0 | H74: строительные работы
H75: электромонтажные работы
A76: З-ты на сод.МОП | B76: =B73-B74 -> 0 | C76: 0 | D76: 0 | E76: 0 | F76: =B76-D76-E76 -> 0 | G76: =C76-D76-E76 -> 0 | L76: =SUM(L73:L74) -> 0 | M76: =F76-L76 -> 0 | N76: =G76-L76 -> 0
A77: декабрь | B77: 0 | C77: 0 | H77: санитарно-технические работы
A78: затраты УК | B78: =B77*$F$23 -> 0 | C78: =C77*$F$23 -> 0 | H78: строительные работы
H79: электромонтажные работы
A80: З-ты на сод.МОП | B80: =B77-B78 -> 0 | C80: 0 | D80: 0 | E80: 0 | F80: =B80-D80-E80 -> 0 | G80: =C80-D80-E80 -> 0 | L80: =SUM(L77:L79) -> 0 | M80: =F80-L80 -> 0 | N80: =G80-L80 -> 0
H81: Остаток 2016 года | L81: =L36+L40+L44+L48+L52+L56+L60+L64+L68+L72+L76+L80 -> 0 | M81: =M36+M40+M44+M48+M52+M56+M60+M64+M68+M72+M76+M80 -> 620.0347322 | N81: =N36+N40+N44+N48+N52+N56+N60+N64+N68+N72+N76+N80 -> 860.8123735
H82: Остаток 2015 года | M82: 15200 | N82: 15226
A83: ВСЕГО | B83: =B36+B40+B44+B48+B52+B56+B60+B64+B68+B72+B76+B80 -> 772.1867322 | C83: =C36+C40+C44+C48+C52+C56+C60+C64+C68+C72+C76+C80 -> 1012.964373 | D83: =D36+D40+D44+D48+D52+D56+D60+D64+D68+D72+D76+D80 -> 132.704 | E83: =E36+E40+E44+E48+E52+E56+E60+E64+E68+E72+E76+E80 -> 19.448 | F83: =F36+F40+F44+F48+F52+F56+F60+F64+F68+F72+F76+F80 -> 620.0347322 | G83: =G36+G40+G44+G48+G52+G56+G60+G64+G68+G72+G76+G80 -> 860.8123735 | H83: Всего остаток | M83: =M81+M82 -> 15820.03473 | N83: =N81+N82 -> 16086.81237
B86: Наименование работ | G86: Ед. | H86: Коли- | I86: Сумма
G87: измерен. | H87: чество
A88: Строительные работы
F92: Итого: | I92: =SUM(I89:I91) -> 0

Sheet ул.Доватора9
A2: I. ТЕХНИЧЕСКАЯ ХАРАКТЕРИСТИКА ДОМА № 9 по ул. Доватора | I2: Год постройки - 1904
I3: Дата начала управления 01.01.2012г.
I4: Кадастровый номер - 42:20:0101007
A5: ОБОРУДОВАН:
A6: 1.Водопровод - от центральной сети
A8: Мате- | B8: Кол-во | C8: Кол-во | D8: площадь дома в м2 | G8: объём | H8: % | I8: Кровля
A9: риал | B9: этажей | C9: квартир | D9: общая | E9: жилая | F9: не- | G9: здания | H9: износа - | I9: материал | J9: S,м2
A10: стен | B10: шт. | C10: шт. | F10: жилая | H10: год
D11: м2 | E11: м2 | G11: м3 | H11: инвентариз.
A12: Дерево | B12: 1 | C12: 2 | D12: 60 | E12: 31.2 | F12: 0 | G12: 196 | I12: шифер | J12: 85
B16: II. РАСЧЁТ НАЧИСЛЕНИЙ И ЗАТРАТ
C18: Нач-ие содержания МОП | E18: Затраты на УК | G18: Затраты на сод.дома | I18: Постоянные затраты | M18: Вып-ние тек.ремонта
A19: Площадь,м2 | C19: Тариф | D19: Плановое | E19: Тариф | F19: Плановое | G19: Тариф | H19: Плановое | I19: Вывоз ТКО | J19: Плановое | K19: Вызов АДС | L19: Плановое | M19: Тариф | N19: Плановое
D20: нач-ние | F20: нач-ние | H20: нач-ние | I20: Тариф | J20: нач-ние | K20: Тариф | L20: нач-ние | N20: нач-ние
A22: S жилая | B22: 60 | C22: 8.14 | D22: =B22*C22 -> 488.4 | E22: 1.39 | F22: =B22*E22 -> 83.4 | G22: =C22-E22 -> 6.75 | H22: =B22*G22 -> 405 | I22: 1.16 | J22: =B22*I22 -> 69.6 | K22: 0.17 | L22: =B22*K22 -> 10.2 | M22: =G22-I22-K22 -> 5.42 | N22: =B22*M22 -> 325.2 | O22: =E22+I22+K22+M22 -> 8.14
A23: Аренда | B23: 0 | F23: =E22/C22 -> 0.1707616708 | O23: =F22+H22 -> 488.4
A28: Отчёт за 2016 год
A29: по содержанию и текущему ремонту мест общего пользования жилого дома № 9 по ул. Доватора
A30: , | B30: ДОХОДЫ | D30: РАСХОДЫ | H30: ВЫПОЛНЕНО РАБОТ | M30: остаток + | P30: Отчетный | Q30: ОДС
B31: Начислено | C31: Оплачено | D31: Вывоз ТКО | E31: Вызов АДС | F31: Средства на т.рем. | M31: перерасход - | P31: период | Q31: план | R31: факт
B32: факт | C32: факт | F32: от нач-ия | G32: от оплаты | H32: Виды работ | L32: сумма | M32: от нач-ия | N32: от оплаты | P32: 2016г. | Q32: руб. | R32: руб.
A33: январь | B33: 488.4 | C33: 0 | H33: санитарно-технические работы | P33: январь
A34: затраты УК | B34: =B33*$F$23 -> 83.4 | C34: =C33*$F$23 -> 0 | H34: строительные работы | Q34: =L22 -> 10.2
H35: электромонтажные работы | P35: февраль
A36: З-ты на сод.МОП | B36: =B33-B34 -> 405 | C36: =C33-C34 -> 0 | D36: =J22 -> 69.6 | E36: =L22 -> 10.2 | F36: =B36-D36-$E$36 -> 325.2 | G36: =C36-D36-$E$36 -> -79.8 | L36: =SUM(L33:L35) -> 0 | M36: =F36-L36 -> 325.2 | N36: =G36-L36 -> -79.8 | Q36: =Q34 -> 10.2
A37: февраль | B37: 488.4 | C37: 0 | H37: санитарно-технические работы | P37: март
A38: затраты УК | B38: =B37*$F$23 -> 83.4 | C38: =C37*$F$23 -> 0 | H38: строительные работы | Q38: =Q36 -> 10.2
H39: электромонтажные работы | P39: аперль
A40: З-ты на сод.МОП | B40: =B37-B38 -> 405 | C40: =C37-C38 -> 0 | D40: =D36 -> 69.6 | E40: =E36 -> 10.2 | F40: =B40-D40-E40 -> 325.2 | G40: =C40-D40-E40 -> -79.8 | L40: =SUM(L37:L39) -> 0 | M40: =F40-L40 -> 325.2 | N40: =G40-L40 -> -79.8 | Q40: =Q38 -> 10.2
A41: март | B41: 488.4 | C41: 7294.89 | H41: санитарно-технические работы | P41: май
A42: затраты УК | B42: =B41*$F$23 -> 83.4 | C42: =C41*$F$23 -> 1245.687604 | H42: строительные работы | Q42: =Q40 -> 10.2
H43: электромонтажные работы | P43: июнь
A44: З-ты на сод.МОП | B44: =B41-B42 -> 405 | C44: 6049.202396 | D44: =D40 -> 69.6 | E44: =E40 -> 10.2 | F44: =B44-D44-E44 -> 325.2 | G44: =C44-D44-E44 -> 5969.402396 | L44: =SUM(L41:L43) -> 0 | M44: =F44-L44 -> 325.2 | N44: =G44-L44 -> 5969.402396 | Q44: =Q42 -> 10.2
A45: апрель | B45: 488.4 | C45: 2179.54 | H45: санитарно-технические работы | P45: июль
A46: затраты УК | B46: =B45*$F$23 -> 83.4 | C46: =C45*$F$23 -> 372.1818919 | H46: строительные работы | Q46: =L22 -> 10.2
H47: электромонтажные работы | P47: август
A48: З-ты на сод.МОП | B48: =B45-B46 -> 405 | C48: 1807.358108 | D48: =D44 -> 69.6 | E48: =E44 -> 10.2 | F48: =B48-D48-E48 -> 325.2 | G48: =C48-D48-E48 -> 1727.558108 | L48: =SUM(L45:L46) -> 0 | M48: =F48-L48 -> 325.2 | N48: =G48-L48 -> 1727.558108 | Q48: =Q46 -> 10.2
A49: май | B49: 0 | C49: 0 | H49: санитарно-технические работы | P49: сентябрь
A50: затраты УК | B50: =B49*$F$23 -> 0 | C50: =C49*$F$23 -> 0 | H50: строительные работы | Q50: =Q48 -> 10.2
H51: электромонтажные работы | P51: октябрь
A52: З-ты на сод.МОП | B52: =B49-B50 -> 0 | C52: 0 | D52: 0 | E52: 0 | F52: =B52-D52-E52 -> 0 | G52: =C52-D52-E52 -> 0 | L52: =SUM(L49:L50) -> 0 | M52: =F52-L52 -> 0 | N52: =G52-L52 -> 0 | Q52: =Q50 -> 10.2
A53: июнь | B53: 0 | C53: 0 | H53: санитарно-технические работы | P53: ноябрь
A54: затраты УК | B54: =B53*$F$23 -> 0 | C54: =C53*$F$23 -> 0 | H54: строительные работы | Q54: =Q52 -> 10.2
H55: электромонтажные работы | P55: декабрь
A56: З-ты на сод.МОП | B56: =B53-B54 -> 0 | C56: 0 | D56: 0 | E56: 0 | F56: =B56-D56-E56 -> 0 | G56: =C56-D56-E56 -> 0 | L56: =SUM(L53:L54) -> 0 | M56: =F56-L56 -> 0 | N56: =G56-L56 -> 0 | Q56: =Q54 -> 10.2
A57: июль | B57: 0 | C57: 0 | H57: санитарно-технические работы | P57: Итого: | Q57: =SUM(Q34:Q56) -> 122.4 | R57: =SUM(R34:R56) -> 0
A58: затраты УК | B58: =B57*$F$23 -> 0 | C58: =C57*$F$23 -> 0 | H58: строительные работы | R58: =R57-Q57 -> -122.4
H59: электромонтажные работы
A60: З-ты на сод.МОП | B60: =B57-B58 -> 0 | C60: 0 | D60: 0 | E60: 0 | F60: =B60-D60-E60 -> 0 | G60: =C60-D60-E60 -> 0 | L60: =SUM(L57:L58) -> 0 | M60: =F60-L60 -> 0 | N60: =G60-L60 -> 0
A61: август | B61: 0 | C61: 0 | H61: санитарно-технические работы
A62: затраты УК | B62: =B61*$F$23 -> 0 | C62: =C61*$F$23 -> 0 | H62: строительные работы
H63: электромонтажные работы
A64: З-ты на сод.МОП | B64: =B61-B62 -> 0 | C64: 0 | D64: 0 | E64: 0 | F64: =B64-D64-E64 -> 0 | G64: =C64-D64-E64 -> 0 | L64: =SUM(L61:L62) -> 0 | M64: =F64-L64 -> 0 | N64: =G64-L64 -> 0
A65: сентябрь | B65: 0 | C65: 0 | H65: санитарно-технические работы
A66: затраты УК | B66: =B65*$F$23 -> 0 | C66: =C65*$F$23 -> 0 | H66: строительные работы
H67: электромонтажные работы
A68: З-ты на сод.МОП | B68: =B65-B66 -> 0 | C68: 0 | D68: 0 | E68: 0 | F68: =B68-D68-E68 -> 0 | G68: =C68-D68-E68 -> 0 | L68: =SUM(L65:L66) -> 0 | M68: =F68-L68 -> 0 | N68: =G68-L68 -> 0
A69: октябрь | B69: 0 | C69: 0 | H69: санитарно-технические работы
A70: затраты УК | B70: =B69*$F$23 -> 0 | C70: =C69*$F$23 -> 0 | H70: строительные работы
H71: электромонтажные работы
A72: З-ты на сод.МОП | B72: =B69-B70 -> 0 | C72: 0 | D72: 0 | E72: 0 | F72: =B72-D72-E72 -> 0 | G72: =C72-D72-E72 -> 0 | L72: =SUM(L69:L70) -> 0 | M72: =F72-L72 -> 0 | N72: =G72-L72 -> 0
A73: ноябрь | B73: 0 | C73: 0 | H73: санитарно-технические работы
A74: затраты УК | B74: =B73*$F$23 -> 0 | C74: =C73*$F$23 -> 0 | H74: строительные работы
H75: электромонтажные работы
A76: З-ты на сод.МОП | B76: =B73-B74 -> 0 | C76: 0 | D76: 0 | E76: 0 | F76: =B76-D76-E76 -> 0 | G76: =C76-D76-E76 -> 0 | L76: =SUM(L73:L74) -> 0 | M76: =F76-L76 -> 0 | N76: =G76-L76 -> 0
A77: декабрь | B77: 0 | C77: 0 | H77: санитарно-технические работы
A78: затраты УК | B78: =B77*$F$23 -> 0 | C78: =C77*$F$23 -> 0 | H78: строительные работы
H79: электромонтажные работы
A80: З-ты на сод.МОП | B80: =B77-B78 -> 0 | C80: 0 | D80: 0 | E80: 0 | F80: =B80-D80-E80 -> 0 | G80: =C80-D80-E80 -> 0 | L80: =SUM(L77:L79) -> 0 | M80: =F80-L80 -> 0 | N80: =G80-L80 -> 0
H81: Остаток 2016 года | L81: =L36+L40+L44+L48+L52+L56+L60+L64+L68+L72+L76+L80 -> 0 | M81: =M36+M40+M44+M48+M52+M56+M60+M64+M68+M72+M76+M80 -> 1300.8 | N81: =N36+N40+N44+N48+N52+N56+N60+N64+N68+N72+N76+N80 -> 7537.360504
H82: Остаток 2015 года | M82: 10302 | N82: -2889
A83: ВСЕГО | B83: =B36+B40+B44+B48+B52+B56+B60+B64+B68+B72+B76+B80 -> 1620 | C83: =C36+C40+C44+C48+C52+C56+C60+C64+C68+C72+C76+C80 -> 7856.560504 | D83: =D36+D40+D44+D48+D52+D56+D60+D64+D68+D72+D76+D80 -> 278.4 | E83: =E36+E40+E44+E48+E52+E56+E60+E64+E68+E72+E76+E80 -> 40.8 | F83: =F36+F40+F44+F48+F52+F56+F60+F64+F68+F72+F76+F80 -> 1300.8 | G83: =G36+G40+G44+G48+G52+G56+G60+G64+G68+G72+G76+G80 -> 7537.360504 | H83: Всего остаток | M83: =M81+M82 -> 11602.8 | N83: =N81+N82 -> 4648.360504
B86: Наименование работ | G86: Ед. | H86: Коли- | I86: Сумма
G87: измерен. | H87: чество
A88: Строительные работы
F92: Итого: | I92: =SUM(I89:I91) -> 0

Sheet ул.Доватора12
A2: I. ТЕХНИЧЕСКАЯ ХАРАКТЕРИСТИКА ДОМА № 12 по ул. Доватора | I2: Год постройки - 1913
I3: Дата начала управления 01.01.2012г.
I4: Кадастровый номер - 42:20:0101007
A5: ОБОРУДОВАН:
A6: 1.Водопровод - от центральной сети
A8: Мате- | B8: Кол-во | C8: Кол-во | D8: площадь дома в м2 | G8: объём | H8: % | I8: Кровля
A9: риал | B9: этажей | C9: квартир | D9: общая | E9: жилая | F9: не- | G9: здания | H9: износа - | I9: материал | J9: S,м2
A10: стен | B10: шт. | C10: шт. | F10: жилая | H10: год
D11: м2 | E11: м2 | G11: м3 | H11: инвентариз.
A12: Дерево | B12: 1 | C12: 2 | D12: 60.4 | E12: 31.2 | F12: 0 | G12: 237 | I12: тес | J12: 90
B16: II. РАСЧЁТ НАЧИСЛЕНИЙ И ЗАТРАТ
C18: Нач-ие содержания МОП | E18: Затраты на УК | G18: Затраты на сод.дома | I18: Постоянные затраты | M18: Вып-ние тек.ремонта
A19: Площадь,м2 | C19: Тариф | D19: Плановое | E19: Тариф | F19: Плановое | G19: Тариф | H19: Плановое | I19: Вывоз ТКО | J19: Плановое | K19: Вызов АДС | L19: Плановое | M19: Тариф | N19: Плановое
D20: нач-ние | F20: нач-ние | H20: нач-ние | I20: Тариф | J20: нач-ние | K20: Тариф | L20: нач-ние | N20: нач-ние
A22: S жилая | B22: 60.4 | C22: 8.14 | D22: =B22*C22 -> 491.656 | E22: 1.39 | F22: =B22*E22 -> 83.956 | G22: =C22-E22 -> 6.75 | H22: =B22*G22 -> 407.7 | I22: 1.16 | J22: =B22*I22 -> 70.064 | K22: 0.17 | L22: =B22*K22 -> 10.268 | M22: =G22-I22-K22 -> 5.42 | N22: =B22*M22 -> 327.368
A23: Аренда | B23: 0 | F23: =E22/C22 -> 0.1707616708
A24: S жилая | B24: 31 | C24: 8.14 | D24: =B24*C24 -> 252.34 | E24: 1.39 | F24: =B24*E24 -> 43.09 | G24: =C24-E24 -> 6.75 | H24: =B24*G24 -> 209.25 | I24: 1.16 | J24: =B24*I24 -> 35.96 | K24: 0.17 | L24: =B24*K24 -> 5.27 | M24: =G24-I24-K24 -> 5.42 | N24: =M24*B24 -> 168.02
A25: с 01.04.16г.
A28: Отчёт за 2016 год
A29: по содержанию и текущему ремонту мест общего пользования жилого дома № 12 по ул. Доватора
A30: , | B30: ДОХОДЫ | D30: РАСХОДЫ | H30: ВЫПОЛНЕНО РАБОТ | M30: остаток + | P30: Отчетный | Q30: ОДС
B31: Начислено | C31: Оплачено | D31: Вывоз ТКО | E31: Вызов АДС | F31: Средства на т.рем. | M31: перерасход - | P31: период | Q31: план | R31: факт
B32: факт | C32: факт | F32: от нач-ия | G32: от оплаты | H32: Виды работ | L32: сумма | M32: от нач-ия | N32: от оплаты | P32: 2016г. | Q32: руб. | R32: руб.
A33: январь | B33: 491.66 | C33: 239.15 | H33: санитарно-технические работы | P33: январь
A34: затраты УК | B34: =B33*$F$23 -> 83.95668305 | C34: =C33*$F$23 -> 40.83765356 | H34: строительные работы | Q34: =L22 -> 10.268
H35: электромонтажные работы | P35: февраль
A36: З-ты на сод.МОП | B36: =B33-B34 -> 407.703317 | C36: =C33-C34 -> 198.3123464 | D36: =J22 -> 70.064 | E36: =L22 -> 10.268 | F36: =B36-D36-$E$36 -> 327.371317 | G36: =C36-D36-$E$36 -> 117.9803464 | L36: =SUM(L33:L35) -> 0 | M36: =F36-L36 -> 327.371317 | N36: =G36-L36 -> 117.9803464 | Q36: =Q34 -> 10.268
A37: февраль | B37: 491.66 | C37: 0 | H37: санитарно-технические работы | P37: март
A38: затраты УК | B38: =B37*$F$23 -> 83.95668305 | C38: =C37*$F$23 -> 0 | H38: строительные работы | Q38: =Q36 -> 10.268
H39: электромонтажные работы | P39: аперль
A40: З-ты на сод.МОП | B40: =B37-B38 -> 407.703317 | C40: =C37-C38 -> 0 | D40: =D36 -> 70.064 | E40: =E36 -> 10.268 | F40: =B40-D40-E40 -> 327.371317 | G40: =C40-D40-E40 -> -80.332 | L40: =SUM(L37:L39) -> 0 | M40: =F40-L40 -> 327.371317 | N40: =G40-L40 -> -80.332 | Q40: =Q38 -> 10.268
A41: март | B41: 491.66 | C41: 479.11 | H41: санитарно-технические работы | P41: май
A42: затраты УК | B42: =B41*$F$23 -> 83.95668305 | C42: =C41*$F$23 -> 81.81362408 | H42: строительные работы | Q42: =Q40 -> 10.268
H43: электромонтажные работы | P43: июнь
A44: З-ты на сод.МОП | B44: =B41-B42 -> 407.703317 | C44: 397.2963759 | D44: =D40 -> 70.064 | E44: =E40 -> 10.268 | F44: =B44-D44-E44 -> 327.371317 | G44: =C44-D44-E44 -> 316.9643759 | L44: =SUM(L41:L43) -> 0 | M44: =F44-L44 -> 327.371317 | N44: =G44-L44 -> 316.9643759 | Q44: =Q42 -> 10.268
A45: апрель | B45: 252.34 | C45: 1009.33 | H45: санитарно-технические работы | P45: июль
A46: затраты УК | B46: =B45*$F$23 -> 43.09 | C46: =C45*$F$23 -> 172.3548771 | H46: строительные работы | Q46: =L22 -> 10.268
H47: электромонтажные работы | P47: август
A48: З-ты на сод.МОП | B48: =B45-B46 -> 209.25 | C48: 836.9751229 | D48: =J24 -> 35.96 | E48: =L24 -> 5.27 | F48: =B48-D48-E48 -> 168.02 | G48: =C48-D48-E48 -> 795.7451229 | L48: =SUM(L45:L46) -> 0 | M48: =F48-L48 -> 168.02 | N48: =G48-L48 -> 795.7451229 | Q48: =Q46 -> 10.268
A49: май | B49: 0 | C49: 0 | H49: санитарно-технические работы | P49: сентябрь
A50: затраты УК | B50: =B49*$F$23 -> 0 | C50: =C49*$F$23 -> 0 | H50: строительные работы | Q50: =Q48 -> 10.268
H51: электромонтажные работы | P51: октябрь
A52: З-ты на сод.МОП | B52: =B49-B50 -> 0 | C52: 0 | D52: 0 | E52: 0 | F52: =B52-D52-E52 -> 0 | G52: =C52-D52-E52 -> 0 | L52: =SUM(L49:L50) -> 0 | M52: =F52-L52 -> 0 | N52: =G52-L52 -> 0 | Q52: =Q50 -> 10.268
A53: июнь | B53: 0 | C53: 0 | H53: санитарно-технические работы | P53: ноябрь
A54: затраты УК | B54: =B53*$F$23 -> 0 | C54: =C53*$F$23 -> 0 | H54: строительные работы | Q54: =Q52 -> 10.268
H55: электромонтажные работы | P55: декабрь
A56: З-ты на сод.МОП | B56: =B53-B54 -> 0 | C56: 0 | D56: 0 | E56: 0 | F56: =B56-D56-E56 -> 0 | G56: =C56-D56-E56 -> 0 | L56: =SUM(L53:L54) -> 0 | M56: =F56-L56 -> 0 | N56: =G56-L56 -> 0 | Q56: =Q54 -> 10.268
A57: июль | B57: 0 | C57: 0 | H57: санитарно-технические работы | P57: Итого: | Q57: =SUM(Q34:Q56) -> 123.216 | R57: =SUM(R34:R56) -> 0
A58: затраты УК | B58: =B57*$F$23 -> 0 | C58: =C57*$F$23 -> 0 | H58: строительные работы | R58: =R57-Q57 -> -123.216
H59: электромонтажные работы
A60: З-ты на сод.МОП | B60: =B57-B58 -> 0 | C60: 0 | D60: 0 | E60: 0 | F60: =B60-D60-E60 -> 0 | G60: =C60-D60-E60 -> 0 | L60: =SUM(L57:L58) -> 0 | M60: =F60-L60 -> 0 | N60: =G60-L60 -> 0
A61: август | B61: 0 | C61: 0 | H61: санитарно-технические работы
A62: затраты УК | B62: =B61*$F$23 -> 0 | C62: =C61*$F$23 -> 0 | H62: строительные работы
H63: электромонтажные работы
A64: З-ты на сод.МОП | B64: =B61-B62 -> 0 | C64: 0 | D64: 0 | E64: 0 | F64: =B64-D64-E64 -> 0 | G64: =C64-D64-E64 -> 0 | L64: =SUM(L61:L62) -> 0 | M64: =F64-L64 -> 0 | N64: =G64-L64 -> 0
A65: сентябрь | B65: 0 | C65: 0 | H65: санитарно-технические работы
A66: затраты УК | B66: =B65*$F$23 -> 0 | C66: =C65*$F$23 -> 0 | H66: строительные работы
H67: электромонтажные работы
A68: З-ты на сод.МОП | B68: =B65-B66 -> 0 | C68: 0 | D68: 0 | E68: 0 | F68: =B68-D68-E68 -> 0 | G68: =C68-D68-E68 -> 0 | L68: =SUM(L65:L66) -> 0 | M68: =F68-L68 -> 0 | N68: =G68-L68 -> 0
A69: октябрь | B69: 0 | C69: 0 | H69: санитарно-технические работы
A70: затраты УК | B70: =B69*$F$23 -> 0 | C70: =C69*$F$23 -> 0 | H70: строительные работы
H71: электромонтажные работы
A72: З-ты на сод.МОП | B72: =B69-B70 -> 0 | C72: 0 | D72: 0 | E72: 0 | F72: =B72-D72-E72 -> 0 | G72: =C72-D72-E72 -> 0 | L72: =SUM(L69:L70) -> 0 | M72: =F72-L72 -> 0 | N72: =G72-L72 -> 0
A73: ноябрь | B73: 0 | C73: 0 | H73: санитарно-технические работы
A74: затраты УК | B74: =B73*$F$23 -> 0 | C74: =C73*$F$23 -> 0 | H74: строительные работы
H75: электромонтажные работы
A76: З-ты на сод.МОП | B76: =B73-B74 -> 0 | C76: 0 | D76: 0 | E76: 0 | F76: =B76-D76-E76 -> 0 | G76: =C76-D76-E76 -> 0 | L76: =SUM(L73:L74) -> 0 | M76: =F76-L76 -> 0 | N76: =G76-L76 -> 0
A77: декабрь | B77: 0 | C77: 0 | H77: санитарно-технические работы
A78: затраты УК | B78: =B77*$F$23 -> 0 | C78: =C77*$F$23 -> 0 | H78: строительные работы
H79: электромонтажные работы
A80: З-ты на сод.МОП | B80: =B77-B78 -> 0 | C80: 0 | D80: 0 | E80: 0 | F80: =B80-D80-E80 -> 0 | G80: =C80-D80-E80 -> 0 | L80: =SUM(L77:L79) -> 0 | M80: =F80-L80 -> 0 | N80: =G80-L80 -> 0
H81: Остаток 2016 года | L81: =L36+L40+L44+L48+L52+L56+L60+L64+L68+L72+L76+L80 -> 0 | M81: =M36+M40+M44+M48+M52+M56+M60+M64+M68+M72+M76+M80 -> 1150.133951 | N81: =N36+N40+N44+N48+N52+N56+N60+N64+N68+N72+N76+N80 -> 1150.357845
H82: Остаток 2015 года | M82: -4474 | N82: -3479
A83: ВСЕГО | B83: =B36+B40+B44+B48+B52+B56+B60+B64+B68+B72+B76+B80 -> 1432.359951 | C83: =C36+C40+C44+C48+C52+C56+C60+C64+C68+C72+C76+C80 -> 1432.583845 | D83: =D36+D40+D44+D48+D52+D56+D60+D64+D68+D72+D76+D80 -> 246.152 | E83: =E36+E40+E44+E48+E52+E56+E60+E64+E68+E72+E76+E80 -> 36.074 | F83: =F36+F40+F44+F48+F52+F56+F60+F64+F68+F72+F76+F80 -> 1150.133951 | G83: =G36+G40+G44+G48+G52+G56+G60+G64+G68+G72+G76+G80 -> 1150.357845 | H83: Всего остаток | M83: =M81+M82 -> -3323.866049 | N83: =N81+N82 -> -2328.642155
B86: Наименование работ | G86: Ед. | H86: Коли- | I86: Сумма
G87: измерен. | H87: чество
A88: Строительные работы
F92: Итого: | I92: =SUM(I89:I91) -> 0

Sheet ул.Доватора15
A2: I. ТЕХНИЧЕСКАЯ ХАРАКТЕРИСТИКА ДОМА № 15 по ул. Доватора | I2: Год постройки - 1913
I3: Дата начала управления 01.01.2012г.
I4: Кадастровый номер - 42:20:0101007
A5: ОБОРУДОВАН:
A6: 1.Водопровод - от центральной сети
A8: Мате- | B8: Кол-во | C8: Кол-во | D8: площадь дома в м2 | G8: объём | H8: % | I8: Кровля
A9: риал | B9: этажей | C9: квартир | D9: общая | E9: жилая | F9: не- | G9: здания | H9: износа - | I9: материал | J9: S,м2
A10: стен | B10: шт. | C10: шт. | F10: жилая | H10: год
D11: м2 | E11: м2 | G11: м3 | H11: инвентариз.
A12: Дерево | B12: 1 | C12: 2 | D12: 83.3 | E12: 53.2 | F12: 0 | G12: 222 | I12: шифер | J12: 90
B16: II. РАСЧЁТ НАЧИСЛЕНИЙ И ЗАТРАТ
